Workbook

Sheet Navires
A1: Nom | B1: Fer Fou Cui Liv Vin Cha | D1: Pai Cui Or Vet Fou Cha | F1: 4/5 Vet Laine Charbon | H1: 5/9 Cui Bie Bou Via Qua | J1: Pain Saumur Or | L1: 2/7 Saumure Charbon | N1: Pain Bois Or | P1: Vet Lin Vet Fou Livre | R1: Bière | T1: Boi Poi Sau Vet Fou Liv | V1: Blé | X1: Boi Cha Fer Sau | Z1: Viande | AB1: 2/6 Cidre Vet lin | AD1: 2/6 Vet lin Quartz Bière | AF1: 8/6 Pain Quartz Or | AH1: 6/5 Quartz Cuivre
A2: Trajet | B2: 45 | C2: 54 | D2: 85 | E2: 58 | F2: 45 | G2: 54 | H2: 59 | I2: 95 | J2: 82 | K2: 28 | L2: 27 | M2: 72 | N2: 89 | O2: 98 | P2: 75 | Q2: 57 | R2: 105 | S2: 510 | T2: 105 | U2: 510 | V2: 810 | W2: 108 | X2: 75 | Y2: 57 | Z2: 75 | AA2: 57 | AB2: 26 | AC2: 62 | AD2: 26 | AE2: 62 | AF2: 86 | AG2: 68 | AH2: 65 | AI2: 56
A3: Capacité totale | B3: 260 | D3: 260 | F3: 240 | H3: 250 | J3: 220 | L3: 220 | N3: 220 | P3: 220 | R3: 260 | T3: 220 | V3: 260 | X3: 220 | Z3: 220 | AB3: 220 | AD3: 220 | AF3: 220 | AH3: 220
A4: Capacité utilisée | B4: =SUM(B5:C70) -> 260 | D4: =SUM(D5:E70) -> 260 | F4: =SUM(F5:G70) -> 240 | H4: =SUM(H5:I70) -> 250 | J4: =SUM(J5:K70) -> 180 | L4: =SUM(L5:M70) -> 80 | N4: =SUM(N5:O70) -> 170 | P4: =SUM(P5:Q70) -> 215 | R4: =SUM(R5:S70) -> 260 | T4: =SUM(T5:U70) -> 210 | V4: =SUM(V5:W70) -> 260 | X4: =SUM(X5:Y70) -> 190 | Z4: =SUM(Z5:AA70) -> 180 | AB4: =SUM(AB5:AC70) -> 220 | AD4: =SUM(AD5:AE70) -> 140 | AF4: =SUM(AF5:AG70) -> 175 | AH4: =SUM(AH5:AI70) -> 55 | AJ4: =SUM(AJ5:AK70) -> 0 | AL4: =SUM(AL5:AM70) -> 0 | AN4: =SUM(AN5:AO70) -> 0 | AP4: =SUM(AP5:AQ70) -> 0 | AR4: =SUM(AR5:AS70) -> 0 | AT4: =SUM(AT5:AU70) -> 0 | AV4: =SUM(AV5:AW70) -> 0 | AX4: =SUM(AX5:AY70) -> 0 | AZ4: =SUM(AZ5:BA70) -> 0 | BB4: =SUM(BB5:BC70) -> 0 | BD4: =SUM(BD5:BE70) -> 0
A5: Bois | N5: 10 | T5: 20 | Y5: 20
A6: Pierre
A7: Charbon | B7: 20 | D7: 20 | F7: 30 | L7: 40 | X7: 40
A8: Minerai de fer
A9: Fer | C9: 60 | X9: 60
A10: Outils
A11: Potasse
A12: Quartz | I12: 10 | AD12: 5 | AF12: 5 | AH12: 25
A13: Verre
A15: Poisson | T15: 60
A16: Céréales | V16: 260
A17: Farine
A18: Pain | D18: 192 | J18: 150 | N18: 150 | AF18: 165
A19: Epices
A20: Charbon | B20: =FIXED(B$7,0) -> 20 | C20: 0 | D20: 20 | E20: 0 | F20: 30 | G20: 0 | H20: 0 | I20: 0 | J20: 0 | K20: 0 | L20: 40 | M20: 0 | N20: 0 | O20: 0 | P20: 0 | Q20: 0 | R20: 0 | S20: 0 | T20: 0 | U20: 0 | V20: 0 | W20: 0 | X20: 40 | Y20: 0 | Z20: 0 | AA20: 0 | AB20: 0 | AC20: 0 | AD20: 0 | AE20: 0 | AF20: 0 | AG20: 0 | AH20: 0 | AI20: 0 | AJ20: 0 | AK20: 0 | AL20: 0 | AM20: 0 | AN20: 0 | AO20: 0 | AP20: 0 | AQ20: 0 | AR20: 0 | AS20: 0 | AT20: 0 | AU20: =FIXED(AU$7,0) -> 0 | AV20: 0 | AW20: 0 | AX20: 0 | AY20: 0 | AZ20: 0 | BA20: 0 | BB20: 0 | BC20: 0 | BD20: 0 | BE20: 0
A21: Saumure | J21: 20 | L21: 40 | T21: 70 | Y21: 70
A22: Sel
A23: Bétail
A24: Viande | H24: 65 | Z24: 180
A26: Lait
A27: Pommes
A28: Cidre | AB28: 150
A29: Herbes
A30: Céréales | B30: =FIXED(B$16,0) -> 0 | C30: 0 | D30: 0 | E30: 0 | F30: 0 | G30: 0 | H30: 0 | I30: 0 | J30: 0 | K30: 0 | L30: 0 | M30: 0 | N30: 0 | O30: 0 | P30: 0 | Q30: 0 | R30: 0 | S30: 0 | T30: 0 | U30: 0 | V30: 260 | W30: 0 | X30: 0 | Y30: 0 | Z30: 0 | AA30: 0 | AB30: 0 | AC30: 0 | AD30: 0 | AE30: 0 | AF30: 0 | AG30: 0 | AH30: 0 | AI30: 0 | AJ30: 0 | AK30: 0 | AL30: 0 | AM30: 0 | AN30: 0 | AO30: 0 | AP30: 0 | AQ30: 0 | AR30: 0 | AS30: 0 | AT30: 0 | AU30: =FIXED(AU$16,0) -> 0 | AV30: 0 | AW30: 0 | AX30: 0 | AY30: 0 | AZ30: 0 | BA30: 0 | BB30: 0 | BC30: 0 | BD30: 0 | BE30: 0
A31: Bière | H31: 90 | R31: 260 | AE31: 105
A32: Fer | B32: =FIXED(B$9,0) -> 0 | C32: 60 | D32: 0 | E32: 0 | F32: 0 | G32: 0 | H32: 0 | I32: 0 | J32: 0 | K32: 0 | L32: 0 | M32: 0 | N32: 0 | O32: 0 | P32: 0 | Q32: 0 | R32: 0 | S32: 0 | T32: 0 | U32: 0 | V32: 0 | W32: 0 | X32: 60 | Y32: 0 | Z32: 0 | AA32: 0 | AB32: 0 | AC32: 0 | AD32: 0 | AE32: 0 | AF32: 0 | AG32: 0 | AH32: 0 | AI32: 0 | AJ32: 0 | AK32: 0 | AL32: 0 | AM32: 0 | AN32: 0 | AO32: 0 | AP32: 0 | AQ32: 0 | AR32: 0 | AS32: 0 | AT32: 0 | AU32: =FIXED(AU$9,0) -> 0 | AV32: 0 | AW32: 0 | AX32: 0 | AY32: 0 | AZ32: 0 | BA32: 0 | BB32: 0 | BC32: 0 | BD32: 0 | BE32: 0
A33: Bois | B33: =FIXED(B$5,0) -> 0 | C33: 0 | D33: 0 | E33: 0 | F33: 0 | G33: 0 | H33: 0 | I33: 0 | J33: 0 | K33: 0 | L33: 0 | M33: 0 | N33: 10 | O33: 0 | P33: 0 | Q33: 0 | R33: 0 | S33: 0 | T33: 20 | U33: 0 | V33: 0 | W33: 0 | X33: 0 | Y33: 20 | Z33: 0 | AA33: 0 | AB33: 0 | AC33: 0 | AD33: 0 | AE33: 0 | AF33: 0 | AG33: 0 | AH33: 0 | AI33: 0 | AJ33: 0 | AK33: 0 | AL33: 0 | AM33: 0 | AN33: 0 | AO33: 0 | AP33: 0 | AQ33: 0 | AR33: 0 | AS33: 0 | AT33: 0 | AU33: =FIXED(AU$5,0) -> 0 | AV33: 0 | AW33: 0 | AX33: 0 | AY33: 0 | AZ33: 0 | BA33: 0 | BB33: 0 | BC33: 0 | BD33: 0 | BE33: 0
A34: Tonneaux
A35: Raisins
A36: Vin | B36: 50
A38: Laine
A39: Vêtements en laine | F39: 210
A40: Chanvre
A41: Vêtements en lin | P41: 175 | AB41: 70 | AD41: 30
A42: Charbon | B42: =FIXED(B$7,0) -> 20 | C42: 0 | D42: 20 | E42: 0 | F42: 30 | G42: 0 | H42: 0 | I42: 0 | J42: 0 | K42: 0 | L42: 40 | M42: 0 | N42: 0 | O42: 0 | P42: 0 | Q42: 0 | R42: 0 | S42: 0 | T42: 0 | U42: 0 | V42: 0 | W42: 0 | X42: 40 | Y42: 0 | Z42: 0 | AA42: 0 | AB42: 0 | AC42: 0 | AD42: 0 | AE42: 0 | AF42: 0 | AG42: 0 | AH42: 0 | AI42: 0 | AJ42: 0 | AK42: 0 | AL42: 0 | AM42: 0 | AN42: 0 | AO42: 0 | AP42: 0 | AQ42: 0 | AR42: 0 | AS42: 0 | AT42: 0 | AU42: =FIXED(AU$7,0) -> 0 | AV42: 0 | AW42: 0 | AX42: 0 | AY42: 0 | AZ42: 0 | BA42: 0 | BB42: 0 | BC42: 0 | BD42: 0 | BE42: 0
A43: Saumure | B43: =FIXED(B$21,0) -> 0 | C43: 0 | D43: 0 | E43: 0 | F43: 0 | G43: 0 | H43: 0 | I43: 0 | J43: 20 | K43: 0 | L43: 40 | M43: 0 | N43: 0 | O43: 0 | P43: 0 | Q43: 0 | R43: 0 | S43: 0 | T43: 70 | U43: 0 | V43: 0 | W43: 0 | X43: 0 | Y43: 70 | Z43: 0 | AA43: 0 | AB43: 0 | AC43: 0 | AD43: 0 | AE43: 0 | AF43: 0 | AG43: 0 | AH43: 0 | AI43: 0 | AJ43: 0 | AK43: 0 | AL43: 0 | AM43: 0 | AN43: 0 | AO43: 0 | AP43: 0 | AQ43: 0 | AR43: 0 | AS43: 0 | AT43: 0 | AU43: =FIXED(AU$21,0) -> 0 | AV43: 0 | AW43: 0 | AX43: 0 | AY43: 0 | AZ43: 0 | BA43: 0 | BB43: 0 | BC43: 0 | BD43: 0 | BE43: 0
A44: Sel | B44: =FIXED(B$22,0) -> 0 | C44: 0 | D44: 0 | E44: 0 | F44: 0 | G44: 0 | H44: 0 | I44: 0 | J44: 0 | K44: 0 | L44: 0 | M44: 0 | N44: 0 | O44: 0 | P44: 0 | Q44: 0 | R44: 0 | S44: 0 | T44: 0 | U44: 0 | V44: 0 | W44: 0 | X44: 0 | Y44: 0 | Z44: 0 | AA44: 0 | AB44: 0 | AC44: 0 | AD44: 0 | AE44: 0 | AF44: 0 | AG44: 0 | AH44: 0 | AI44: 0 | AJ44: 0 | AK44: 0 | AL44: 0 | AM44: 0 | AN44: 0 | AO44: 0 | AP44: 0 | AQ44: 0 | AR44: 0 | AS44: 0 | AT44: 0 | AU44: =FIXED(AU$22,0) -> 0 | AV44: 0 | AW44: 0 | AX44: 0 | AY44: 0 | AZ44: 0 | BA44: 0 | BB44: 0 | BC44: 0 | BD44: 0 | BE44: 0
A45: Peaux animales
A46: Justaucorps en cuir
A47: Fourrures
A48: Manteaux de fourrure | B48: 30 | D48: 20 | P48: 20 | T48: 30
A49: Charbon | B49: =FIXED(B$7,0) -> 20 | C49: 0 | D49: 20 | E49: 0 | F49: 30 | G49: 0 | H49: 0 | I49: 0 | J49: 0 | K49: 0 | L49: 40 | M49: 0 | N49: 0 | O49: 0 | P49: 0 | Q49: 0 | R49: 0 | S49: 0 | T49: 0 | U49: 0 | V49: 0 | W49: 0 | X49: 40 | Y49: 0 | Z49: 0 | AA49: 0 | AB49: 0 | AC49: 0 | AD49: 0 | AE49: 0 | AF49: 0 | AG49: 0 | AH49: 0 | AI49: 0 | AJ49: 0 | AK49: 0 | AL49: 0 | AM49: 0 | AN49: 0 | AO49: 0 | AP49: 0 | AQ49: 0 | AR49: 0 | AS49: 0 | AT49: 0 | AU49: =FIXED(AU$7,0) -> 0 | AV49: 0 | AW49: 0 | AX49: 0 | AY49: 0 | AZ49: 0 | BA49: 0 | BB49: 0 | BC49: 0 | BD49: 0 | BE49: 0
A50: Minerai d'or | D50: 18 | K50: 10 | O50: 10 | AG50: 5
A51: Or
A52: Soierie
A53: Robes en brocart
A55: Bois | B55: =FIXED(B$5,0) -> 0 | C55: 0 | D55: 0 | E55: 0 | F55: 0 | G55: 0 | H55: 0 | I55: 0 | J55: 0 | K55: 0 | L55: 0 | M55: 0 | N55: 10 | O55: 0 | P55: 0 | Q55: 0 | R55: 0 | S55: 0 | T55: 20 | U55: 0 | V55: 0 | W55: 0 | X55: 0 | Y55: 20 | Z55: 0 | AA55: 0 | AB55: 0 | AC55: 0 | AD55: 0 | AE55: 0 | AF55: 0 | AG55: 0 | AH55: 0 | AI55: 0 | AJ55: 0 | AK55: 0 | AL55: 0 | AM55: 0 | AN55: 0 | AO55: 0 | AP55: 0 | AQ55: 0 | AR55: 0 | AS55: 0 | AT55: 0 | AU55: =FIXED(AU$5,0) -> 0 | AV55: 0 | AW55: 0 | AX55: 0 | AY55: 0 | AZ55: 0 | BA55: 0 | BB55: 0 | BC55: 0 | BD55: 0 | BE55: 0
A56: Papier
A57: Teinturerie
A58: Livres | B58: 70 | P58: 20 | T58: 30
A59: Charbon | B59: =FIXED(B$7,0) -> 20 | C59: 0 | D59: 20 | E59: 0 | F59: 30 | G59: 0 | H59: 0 | I59: 0 | J59: 0 | K59: 0 | L59: 40 | M59: 0 | N59: 0 | O59: 0 | P59: 0 | Q59: 0 | R59: 0 | S59: 0 | T59: 0 | U59: 0 | V59: 0 | W59: 0 | X59: 40 | Y59: 0 | Z59: 0 | AA59: 0 | AB59: 0 | AC59: 0 | AD59: 0 | AE59: 0 | AF59: 0 | AG59: 0 | AH59: 0 | AI59: 0 | AJ59: 0 | AK59: 0 | AL59: 0 | AM59: 0 | AN59: 0 | AO59: 0 | AP59: 0 | AQ59: 0 | AR59: 0 | AS59: 0 | AT59: 0 | AU59: =FIXED(AU$7,0) -> 0 | AV59: 0 | AW59: 0 | AX59: 0 | AY59: 0 | AZ59: 0 | BA59: 0 | BB59: 0 | BC59: 0 | BD59: 0 | BE59: 0
A60: Minerai de cuivre | B60: 30 | D60: 10 | H60: 40 | AH60: 30
A61: Bronze
A62: Chanvre | B62: =FIXED(B$40,0) -> 0 | C62: 0 | D62: 0 | E62: 0 | F62: 0 | G62: 0 | H62: 0 | I62: 0 | J62: 0 | K62: 0 | L62: 0 | M62: 0 | N62: 0 | O62: 0 | P62: 0 | Q62: 0 | R62: 0 | S62: 0 | T62: 0 | U62: 0 | V62: 0 | W62: 0 | X62: 0 | Y62: 0 | Z62: 0 | AA62: 0 | AB62: 0 | AC62: 0 | AD62: 0 | AE62: 0 | AF62: 0 | AG62: 0 | AH62: 0 | AI62: 0 | AJ62: 0 | AK62: 0 | AL62: 0 | AM62: 0 | AN62: 0 | AO62: 0 | AP62: 0 | AQ62: 0 | AR62: 0 | AS62: 0 | AT62: 0 | AU62: =FIXED(AU$40,0) -> 0 | AV62: 0 | AW62: 0 | AX62: 0 | AY62: 0 | AZ62: 0 | BA62: 0 | BB62: 0 | BC62: 0 | BD62: 0 | BE62: 0
A63: Cire d'abeille
A64: Bougies
A65: Bougeoirs | I65: 45
A66: Charbon | B66: =FIXED(B$7,0) -> 20 | C66: 0 | D66: 20 | E66: 0 | F66: 30 | G66: 0 | H66: 0 | I66: 0 | J66: 0 | K66: 0 | L66: 40 | M66: 0 | N66: 0 | O66: 0 | P66: 0 | Q66: 0 | R66: 0 | S66: 0 | T66: 0 | U66: 0 | V66: 0 | W66: 0 | X66: 40 | Y66: 0 | Z66: 0 | AA66: 0 | AB66: 0 | AC66: 0 | AD66: 0 | AE66: 0 | AF66: 0 | AG66: 0 | AH66: 0 | AI66: 0 | AJ66: 0 | AK66: 0 | AL66: 0 | AM66: 0 | AN66: 0 | AO66: 0 | AP66: 0 | AQ66: 0 | AR66: 0 | AS66: 0 | AT66: 0 | AU66: =FIXED(AU$7,0) -> 0 | AV66: 0 | AW66: 0 | AX66: 0 | AY66: 0 | AZ66: 0 | BA66: 0 | BB66: 0 | BC66: 0 | BD66: 0 | BE66: 0
A67: Minerai de cuivre | B67: =FIXED(B$60,0) -> 30 | C67: 0 | D67: 10 | E67: 0 | F67: 0 | G67: 0 | H67: 40 | I67: 0 | J67: 0 | K67: 0 | L67: 0 | M67: 0 | N67: 0 | O67: 0 | P67: 0 | Q67: 0 | R67: 0 | S67: 0 | T67: 0 | U67: 0 | V67: 0 | W67: 0 | X67: 0 | Y67: 0 | Z67: 0 | AA67: 0 | AB67: 0 | AC67: 0 | AD67: 0 | AE67: 0 | AF67: 0 | AG67: 0 | AH67: 30 | AI67: 0 | AJ67: 0 | AK67: 0 | AL67: 0 | AM67: 0 | AN67: 0 | AO67: 0 | AP67: 0 | AQ67: 0 | AR67: 0 | AS67: 0 | AT67: 0 | AU67: =FIXED(AU$60,0) -> 0 | AV67: 0 | AW67: 0 | AX67: 0 | AY67: 0 | AZ67: 0 | BA67: 0 | BB67: 0 | BC67: 0 | BD67: 0 | BE67: 0
A68: Bronze | B68: =FIXED(B$61,0) -> 0 | C68: 0 | D68: 0 | E68: 0 | F68: 0 | G68: 0 | H68: 0 | I68: 0 | J68: 0 | K68: 0 | L68: 0 | M68: 0 | N68: 0 | O68: 0 | P68: 0 | Q68: 0 | R68: 0 | S68: 0 | T68: 0 | U68: 0 | V68: 0 | W68: 0 | X68: 0 | Y68: 0 | Z68: 0 | AA68: 0 | AB68: 0 | AC68: 0 | AD68: 0 | AE68: 0 | AF68: 0 | AG68: 0 | AH68: 0 | AI68: 0 | AJ68: 0 | AK68: 0 | AL68: 0 | AM68: 0 | AN68: 0 | AO68: 0 | AP68: 0 | AQ68: 0 | AR68: 0 | AS68: 0 | AT68: 0 | AU68: =FIXED(AU$61,0) -> 0 | AV68: 0 | AW68: 0 | AX68: 0 | AY68: 0 | AZ68: 0 | BA68: 0 | BB68: 0 | BC68: 0 | BD68: 0 | BE68: 0
A69: Quartz | B69: =FIXED(B$12,0) -> 0 | C69: 0 | D69: 0 | E69: 0 | F69: 0 | G69: 0 | H69: 0 | I69: 10 | J69: 0 | K69: 0 | L69: 0 | M69: 0 | N69: 0 | O69: 0 | P69: 0 | Q69: 0 | R69: 0 | S69: 0 | T69: 0 | U69: 0 | V69: 0 | W69: 0 | X69: 0 | Y69: 0 | Z69: 0 | AA69: 0 | AB69: 0 | AC69: 0 | AD69: 5 | AE69: 0 | AF69: 5 | AG69: 0 | AH69: 25 | AI69: 0 | AJ69: 0 | AK69: 0 | AL69: 0 | AM69: 0 | AN69: 0 | AO69: 0 | AP69: 0 | AQ69: 0 | AR69: 0 | AS69: 0 | AT69: 0 | AU69: =FIXED(AU$12,0) -> 0 | AV69: 0 | AW69: 0 | AX69: 0 | AY69: 0 | AZ69: 0 | BA69: 0 | BB69: 0 | BC69: 0 | BD69: 0 | BE69: 0
A70: Lunettes

Sheet 1
B1: Production | C1: Importations de | M1: Dispo 1 | N1: Exportations vers | X1: Dispo 2 | Y1: Besoins | Z1: Couverture | AA1: Exp+Besoin
A2: 1 | C2: 1 | D2: 2 | E2: 3 | F2: 4 | G2: 5 | H2: 6 | I2: 7 | J2: 8 | K2: 9 | L2: 10 | N2: 1 | O2: 2 | P2: 3 | Q2: 4 | R2: 5 | S2: 6 | T2: 7 | U2: 8 | V2: 9 | W2: 10
A5: Bois | B5: =ProdBesoins!B7 -> 0 | D5: ='2'!N5 -> 0 | E5: ='3'!N5 -> 0 | F5: ='4'!N5 -> 0 | G5: ='5'!N5 -> 0 | H5: ='6'!N5 -> 0 | I5: ='7'!N5 -> 0 | J5: ='8'!N5 -> 0 | K5: ='9'!N5 -> 0 | L5: ='10'!N5 -> 0 | M5: =SUM(B5:L5) -> 0 | O5: =SUMIF(Navires!$B$2:$BE$2,$A$2&O$2,Navires!$B5:$BE5)/0.54*IF($AB5>$B5,$B5/$AB5,1) -> 0 | P5: =SUMIF(Navires!$B$2:$BE$2,$A$2&P$2,Navires!$B5:$BE5)/0.54*IF($AB5>$B5,$B5/$AB5,1) -> 0 | Q5: =SUMIF(Navires!$B$2:$BE$2,$A$2&Q$2,Navires!$B5:$BE5)/0.54*IF($AB5>$B5,$B5/$AB5,1) -> 0 | R5: =SUMIF(Navires!$B$2:$BE$2,$A$2&R$2,Navires!$B5:$BE5)/0.54*IF($AB5>$B5,$B5/$AB5,1) -> 0 | S5: =SUMIF(Navires!$B$2:$BE$2,$A$2&S$2,Navires!$B5:$BE5)/0.54*IF($AB5>$B5,$B5/$AB5,1) -> 0 | T5: =SUMIF(Navires!$B$2:$BE$2,$A$2&T$2,Navires!$B5:$BE5)/0.54*IF($AB5>$B5,$B5/$AB5,1) -> 0 | U5: =SUMIF(Navires!$B$2:$BE$2,$A$2&U$2,Navires!$B5:$BE5)/0.54*IF($AB5>$B5,$B5/$AB5,1) -> 0 | V5: =SUMIF(Navires!$B$2:$BE$2,$A$2&V$2,Navires!$B5:$BE5)/0.54*IF($AB5>$B5,$B5/$AB5,1) -> 0 | W5: =SUMIF(Navires!$B$2:$BE$2,$A$2&W$2,Navires!$B5:$BE5)/0.54*IF($AB5>$B5,$B5/$AB5,1) -> 0 | X5: =M5-SUM(N5:W5) -> 0 | Y5: =ProdBesoins!C7 -> 0 | Z5: =IF(Y5>0,X5/Y5,IF(X5>0,"A exporter","")) ->  | AA5: =(SUMIF(Navires!$B$2:$BE$2,">9",Navires!$B5:$BE5)-SUMIF(Navires!$B$2:$BE$2,">19",Navires!$B5:$BE5))/0.54/(IF(ISERR((B5+'2'!N5+'3'!N5+'4'!N5+'5'!N5+'6'!N5+'7'!N5+'8'!N5+'9'!N5+'10'!N5)/B5),1,(B5+'2'!N5+'3'!N5+'4'!N5+'5'!N5+'6'!N5+'7'!N5+'8'!N5+'9'!N5+'10'!N5)/B5))+Y5 -> 0 | AB5: 0
A6: Pierre | B6: =ProdBesoins!B8 -> 0 | D6: ='2'!N6 -> 0 | E6: ='3'!N6 -> 0 | F6: ='4'!N6 -> 0 | G6: ='5'!N6 -> 0 | H6: ='6'!N6 -> 0 | I6: ='7'!N6 -> 0 | J6: ='8'!N6 -> 0 | K6: ='9'!N6 -> 0 | L6: ='10'!N6 -> 0 | M6: 0 | O6: =SUMIF(Navires!$B$2:$BE$2,$A$2&O$2,Navires!$B6:$BE6)/0.54*IF($AB6>$B6,$B6/$AB6,1) -> 0 | P6: =SUMIF(Navires!$B$2:$BE$2,$A$2&P$2,Navires!$B6:$BE6)/0.54*IF($AB6>$B6,$B6/$AB6,1) -> 0 | Q6: =SUMIF(Navires!$B$2:$BE$2,$A$2&Q$2,Navires!$B6:$BE6)/0.54*IF($AB6>$B6,$B6/$AB6,1) -> 0 | R6: =SUMIF(Navires!$B$2:$BE$2,$A$2&R$2,Navires!$B6:$BE6)/0.54*IF($AB6>$B6,$B6/$AB6,1) -> 0 | S6: =SUMIF(Navires!$B$2:$BE$2,$A$2&S$2,Navires!$B6:$BE6)/0.54*IF($AB6>$B6,$B6/$AB6,1) -> 0 | T6: =SUMIF(Navires!$B$2:$BE$2,$A$2&T$2,Navires!$B6:$BE6)/0.54*IF($AB6>$B6,$B6/$AB6,1) -> 0 | U6: =SUMIF(Navires!$B$2:$BE$2,$A$2&U$2,Navires!$B6:$BE6)/0.54*IF($AB6>$B6,$B6/$AB6,1) -> 0 | V6: =SUMIF(Navires!$B$2:$BE$2,$A$2&V$2,Navires!$B6:$BE6)/0.54*IF($AB6>$B6,$B6/$AB6,1) -> 0 | W6: =SUMIF(Navires!$B$2:$BE$2,$A$2&W$2,Navires!$B6:$BE6)/0.54*IF($AB6>$B6,$B6/$AB6,1) -> 0 | X6: =M6-SUM(N6:W6) -> 0 | Y6: =ProdBesoins!C8 -> 0 | Z6: =IF(Y6>0,X6/Y6,IF(X6>0,"Excédent","")) ->  | AA6: =(SUMIF(Navires!$B$2:$BE$2,">9",Navires!$B6:$BE6)-SUMIF(Navires!$B$2:$BE$2,">19",Navires!$B6:$BE6))/0.54/(IF(ISERR((B6+'2'!N6+'3'!N6+'4'!N6+'5'!N6+'6'!N6+'7'!N6+'8'!N6+'9'!N6+'10'!N6)/B6),1,(B6+'2'!N6+'3'!N6+'4'!N6+'5'!N6+'6'!N6+'7'!N6+'8'!N6+'9'!N6+'10'!N6)/B6))+Y6 -> 0 | AB6: 0
A7: Charbon | B7: =ProdBesoins!B9 -> 0 | D7: ='2'!N7 -> 0 | E7: ='3'!N7 -> 0 | F7: ='4'!N7 -> 0 | G7: ='5'!N7 -> 0 | H7: ='6'!N7 -> 0 | I7: ='7'!N7 -> 0 | J7: ='8'!N7 -> 0 | K7: ='9'!N7 -> 0 | L7: ='10'!N7 -> 0 | M7: 0 | O7: =SUMIF(Navires!$B$2:$BE$2,$A$2&O$2,Navires!$B7:$BE7)/0.54*IF($AB7>$B7,$B7/$AB7,1) -> 0 | P7: =SUMIF(Navires!$B$2:$BE$2,$A$2&P$2,Navires!$B7:$BE7)/0.54*IF($AB7>$B7,$B7/$AB7,1) -> 0 | Q7: =SUMIF(Navires!$B$2:$BE$2,$A$2&Q$2,Navires!$B7:$BE7)/0.54*IF($AB7>$B7,$B7/$AB7,1) -> 0 | R7: =SUMIF(Navires!$B$2:$BE$2,$A$2&R$2,Navires!$B7:$BE7)/0.54*IF($AB7>$B7,$B7/$AB7,1) -> 0 | S7: =SUMIF(Navires!$B$2:$BE$2,$A$2&S$2,Navires!$B7:$BE7)/0.54*IF($AB7>$B7,$B7/$AB7,1) -> 0 | T7: =SUMIF(Navires!$B$2:$BE$2,$A$2&T$2,Navires!$B7:$BE7)/0.54*IF($AB7>$B7,$B7/$AB7,1) -> 0 | U7: =SUMIF(Navires!$B$2:$BE$2,$A$2&U$2,Navires!$B7:$BE7)/0.54*IF($AB7>$B7,$B7/$AB7,1) -> 0 | V7: =SUMIF(Navires!$B$2:$BE$2,$A$2&V$2,Navires!$B7:$BE7)/0.54*IF($AB7>$B7,$B7/$AB7,1) -> 0 | W7: =SUMIF(Navires!$B$2:$BE$2,$A$2&W$2,Navires!$B7:$BE7)/0.54*IF($AB7>$B7,$B7/$AB7,1) -> 0 | X7: 0 | Y7: =ProdBesoins!C9 -> 0 | Z7: =IF(Y7>0,X7/Y7,IF(X7>0,"Excédent","")) ->  | AA7: =(SUMIF(Navires!$B$2:$BE$2,">9",Navires!$B7:$BE7)-SUMIF(Navires!$B$2:$BE$2,">19",Navires!$B7:$BE7))/0.54/(IF(ISERR((B7+'2'!N7+'3'!N7+'4'!N7+'5'!N7+'6'!N7+'7'!N7+'8'!N7+'9'!N7+'10'!N7)/B7),1,(B7+'2'!N7+'3'!N7+'4'!N7+'5'!N7+'6'!N7+'7'!N7+'8'!N7+'9'!N7+'10'!N7)/B7))+Y7 -> 0 | AB7: 0
A8: Minerai de fer | B8: =ProdBesoins!B10 -> 0 | D8: ='2'!N8 -> 0 | E8: ='3'!N8 -> 0 | F8: ='4'!N8 -> 0 | G8: ='5'!N8 -> 0 | H8: ='6'!N8 -> 0 | I8: ='7'!N8 -> 0 | J8: ='8'!N8 -> 0 | K8: ='9'!N8 -> 0 | L8: ='10'!N8 -> 0 | M8: 0 | O8: =SUMIF(Navires!$B$2:$BE$2,$A$2&O$2,Navires!$B8:$BE8)/0.54*IF($AB8>$B8,$B8/$AB8,1) -> 0 | P8: =SUMIF(Navires!$B$2:$BE$2,$A$2&P$2,Navires!$B8:$BE8)/0.54*IF($AB8>$B8,$B8/$AB8,1) -> 0 | Q8: =SUMIF(Navires!$B$2:$BE$2,$A$2&Q$2,Navires!$B8:$BE8)/0.54*IF($AB8>$B8,$B8/$AB8,1) -> 0 | R8: =SUMIF(Navires!$B$2:$BE$2,$A$2&R$2,Navires!$B8:$BE8)/0.54*IF($AB8>$B8,$B8/$AB8,1) -> 0 | S8: =SUMIF(Navires!$B$2:$BE$2,$A$2&S$2,Navires!$B8:$BE8)/0.54*IF($AB8>$B8,$B8/$AB8,1) -> 0 | T8: =SUMIF(Navires!$B$2:$BE$2,$A$2&T$2,Navires!$B8:$BE8)/0.54*IF($AB8>$B8,$B8/$AB8,1) -> 0 | U8: =SUMIF(Navires!$B$2:$BE$2,$A$2&U$2,Navires!$B8:$BE8)/0.54*IF($AB8>$B8,$B8/$AB8,1) -> 0 | V8: =SUMIF(Navires!$B$2:$BE$2,$A$2&V$2,Navires!$B8:$BE8)/0.54*IF($AB8>$B8,$B8/$AB8,1) -> 0 | W8: =SUMIF(Navires!$B$2:$BE$2,$A$2&W$2,Navires!$B8:$BE8)/0.54*IF($AB8>$B8,$B8/$AB8,1) -> 0 | X8: 0 | Y8: =ProdBesoins!C10 -> 0 | AA8: =(SUMIF(Navires!$B$2:$BE$2,">9",Navires!$B8:$BE8)-SUMIF(Navires!$B$2:$BE$2,">19",Navires!$B8:$BE8))/0.54/(IF(ISERR((B8+'2'!N8+'3'!N8+'4'!N8+'5'!N8+'6'!N8+'7'!N8+'8'!N8+'9'!N8+'10'!N8)/B8),1,(B8+'2'!N8+'3'!N8+'4'!N8+'5'!N8+'6'!N8+'7'!N8+'8'!N8+'9'!N8+'10'!N8)/B8))+Y8 -> 0 | AB8: 0
A9: Fer | B9: =ProdBesoins!B11 -> 0 | D9: ='2'!N9 -> 0 | E9: ='3'!N9 -> 0 | F9: ='4'!N9 -> 0 | G9: ='5'!N9 -> 0 | H9: ='6'!N9 -> 0 | I9: ='7'!N9 -> 0 | J9: ='8'!N9 -> 0 | K9: ='9'!N9 -> 0 | L9: ='10'!N9 -> 0 | M9: 0 | O9: =SUMIF(Navires!$B$2:$BE$2,$A$2&O$2,Navires!$B9:$BE9)/0.54*IF($AB9>$B9,$B9/$AB9,1) -> 0 | P9: =SUMIF(Navires!$B$2:$BE$2,$A$2&P$2,Navires!$B9:$BE9)/0.54*IF($AB9>$B9,$B9/$AB9,1) -> 0 | Q9: =SUMIF(Navires!$B$2:$BE$2,$A$2&Q$2,Navires!$B9:$BE9)/0.54*IF($AB9>$B9,$B9/$AB9,1) -> 0 | R9: =SUMIF(Navires!$B$2:$BE$2,$A$2&R$2,Navires!$B9:$BE9)/0.54*IF($AB9>$B9,$B9/$AB9,1) -> 0 | S9: =SUMIF(Navires!$B$2:$BE$2,$A$2&S$2,Navires!$B9:$BE9)/0.54*IF($AB9>$B9,$B9/$AB9,1) -> 0 | T9: =SUMIF(Navires!$B$2:$BE$2,$A$2&T$2,Navires!$B9:$BE9)/0.54*IF($AB9>$B9,$B9/$AB9,1) -> 0 | U9: =SUMIF(Navires!$B$2:$BE$2,$A$2&U$2,Navires!$B9:$BE9)/0.54*IF($AB9>$B9,$B9/$AB9,1) -> 0 | V9: =SUMIF(Navires!$B$2:$BE$2,$A$2&V$2,Navires!$B9:$BE9)/0.54*IF($AB9>$B9,$B9/$AB9,1) -> 0 | W9: =SUMIF(Navires!$B$2:$BE$2,$A$2&W$2,Navires!$B9:$BE9)/0.54*IF($AB9>$B9,$B9/$AB9,1) -> 0 | X9: 0 | Y9: =ProdBesoins!C11 -> 0 | AA9: =(SUMIF(Navires!$B$2:$BE$2,">9",Navires!$B9:$BE9)-SUMIF(Navires!$B$2:$BE$2,">19",Navires!$B9:$BE9))/0.54/(IF(ISERR((B9+'2'!N9+'3'!N9+'4'!N9+'5'!N9+'6'!N9+'7'!N9+'8'!N9+'9'!N9+'10'!N9)/B9),1,(B9+'2'!N9+'3'!N9+'4'!N9+'5'!N9+'6'!N9+'7'!N9+'8'!N9+'9'!N9+'10'!N9)/B9))+Y9 -> 0 | AB9: 0
A10: Outils | B10: =ProdBesoins!B12 -> 0 | D10: ='2'!N10 -> 0 | E10: ='3'!N10 -> 0 | F10: ='4'!N10 -> 0 | G10: ='5'!N10 -> 0 | H10: ='6'!N10 -> 0 | I10: ='7'!N10 -> 0 | J10: ='8'!N10 -> 0 | K10: ='9'!N10 -> 0 | L10: ='10'!N10 -> 0 | M10: 0 | O10: =SUMIF(Navires!$B$2:$BE$2,$A$2&O$2,Navires!$B10:$BE10)/0.54*IF($AB10>$B10,$B10/$AB10,1) -> 0 | P10: =SUMIF(Navires!$B$2:$BE$2,$A$2&P$2,Navires!$B10:$BE10)/0.54*IF($AB10>$B10,$B10/$AB10,1) -> 0 | Q10: =SUMIF(Navires!$B$2:$BE$2,$A$2&Q$2,Navires!$B10:$BE10)/0.54*IF($AB10>$B10,$B10/$AB10,1) -> 0 | R10: =SUMIF(Navires!$B$2:$BE$2,$A$2&R$2,Navires!$B10:$BE10)/0.54*IF($AB10>$B10,$B10/$AB10,1) -> 0 | S10: =SUMIF(Navires!$B$2:$BE$2,$A$2&S$2,Navires!$B10:$BE10)/0.54*IF($AB10>$B10,$B10/$AB10,1) -> 0 | T10: =SUMIF(Navires!$B$2:$BE$2,$A$2&T$2,Navires!$B10:$BE10)/0.54*IF($AB10>$B10,$B10/$AB10,1) -> 0 | U10: =SUMIF(Navires!$B$2:$BE$2,$A$2&U$2,Navires!$B10:$BE10)/0.54*IF($AB10>$B10,$B10/$AB10,1) -> 0 | V10: =SUMIF(Navires!$B$2:$BE$2,$A$2&V$2,Navires!$B10:$BE10)/0.54*IF($AB10>$B10,$B10/$AB10,1) -> 0 | W10: =SUMIF(Navires!$B$2:$BE$2,$A$2&W$2,Navires!$B10:$BE10)/0.54*IF($AB10>$B10,$B10/$AB10,1) -> 0 | X10: 0 | Y10: =ProdBesoins!C12 -> 0 | AA10: =(SUMIF(Navires!$B$2:$BE$2,">9",Navires!$B10:$BE10)-SUMIF(Navires!$B$2:$BE$2,">19",Navires!$B10:$BE10))/0.54/(IF(ISERR((B10+'2'!N10+'3'!N10+'4'!N10+'5'!N10+'6'!N10+'7'!N10+'8'!N10+'9'!N10+'10'!N10)/B10),1,(B10+'2'!N10+'3'!N10+'4'!N10+'5'!N10+'6'!N10+'7'!N10+'8'!N10+'9'!N10+'10'!N10)/B10))+Y10 -> 0 | AB10: 0
A11: Potasse | B11: =ProdBesoins!B13 -> 0 | D11: ='2'!N11 -> 0 | E11: ='3'!N11 -> 0 | F11: ='4'!N11 -> 0 | G11: ='5'!N11 -> 0 | H11: ='6'!N11 -> 0 | I11: ='7'!N11 -> 0 | J11: ='8'!N11 -> 0 | K11: ='9'!N11 -> 0 | L11: ='10'!N11 -> 0 | M11: 0 | O11: =SUMIF(Navires!$B$2:$BE$2,$A$2&O$2,Navires!$B11:$BE11)/0.54*IF($AB11>$B11,$B11/$AB11,1) -> 0 | P11: =SUMIF(Navires!$B$2:$BE$2,$A$2&P$2,Navires!$B11:$BE11)/0.54*IF($AB11>$B11,$B11/$AB11,1) -> 0 | Q11: =SUMIF(Navires!$B$2:$BE$2,$A$2&Q$2,Navires!$B11:$BE11)/0.54*IF($AB11>$B11,$B11/$AB11,1) -> 0 | R11: =SUMIF(Navires!$B$2:$BE$2,$A$2&R$2,Navires!$B11:$BE11)/0.54*IF($AB11>$B11,$B11/$AB11,1) -> 0 | S11: =SUMIF(Navires!$B$2:$BE$2,$A$2&S$2,Navires!$B11:$BE11)/0.54*IF($AB11>$B11,$B11/$AB11,1) -> 0 | T11: =SUMIF(Navires!$B$2:$BE$2,$A$2&T$2,Navires!$B11:$BE11)/0.54*IF($AB11>$B11,$B11/$AB11,1) -> 0 | U11: =SUMIF(Navires!$B$2:$BE$2,$A$2&U$2,Navires!$B11:$BE11)/0.54*IF($AB11>$B11,$B11/$AB11,1) -> 0 | V11: =SUMIF(Navires!$B$2:$BE$2,$A$2&V$2,Navires!$B11:$BE11)/0.54*IF($AB11>$B11,$B11/$AB11,1) -> 0 | W11: =SUMIF(Navires!$B$2:$BE$2,$A$2&W$2,Navires!$B11:$BE11)/0.54*IF($AB11>$B11,$B11/$AB11,1) -> 0 | X11: 0 | Y11: =ProdBesoins!C13 -> 0 | AA11: =(SUMIF(Navires!$B$2:$BE$2,">9",Navires!$B11:$BE11)-SUMIF(Navires!$B$2:$BE$2,">19",Navires!$B11:$BE11))/0.54/(IF(ISERR((B11+'2'!N11+'3'!N11+'4'!N11+'5'!N11+'6'!N11+'7'!N11+'8'!N11+'9'!N11+'10'!N11)/B11),1,(B11+'2'!N11+'3'!N11+'4'!N11+'5'!N11+'6'!N11+'7'!N11+'8'!N11+'9'!N11+'10'!N11)/B11))+Y11 -> 0 | AB11: 0
A12: Quartz | B12: =ProdBesoins!B14 -> 0 | D12: ='2'!N12 -> 0 | E12: ='3'!N12 -> 0 | F12: ='4'!N12 -> 0 | G12: ='5'!N12 -> 0 | H12: ='6'!N12 -> 0 | I12: ='7'!N12 -> 0 | J12: ='8'!N12 -> 0 | K12: ='9'!N12 -> 0 | L12: ='10'!N12 -> 0 | M12: 0 | O12: =SUMIF(Navires!$B$2:$BE$2,$A$2&O$2,Navires!$B12:$BE12)/0.54*IF($AB12>$B12,$B12/$AB12,1) -> 0 | P12: =SUMIF(Navires!$B$2:$BE$2,$A$2&P$2,Navires!$B12:$BE12)/0.54*IF($AB12>$B12,$B12/$AB12,1) -> 0 | Q12: =SUMIF(Navires!$B$2:$BE$2,$A$2&Q$2,Navires!$B12:$BE12)/0.54*IF($AB12>$B12,$B12/$AB12,1) -> 0 | R12: =SUMIF(Navires!$B$2:$BE$2,$A$2&R$2,Navires!$B12:$BE12)/0.54*IF($AB12>$B12,$B12/$AB12,1) -> 0 | S12: =SUMIF(Navires!$B$2:$BE$2,$A$2&S$2,Navires!$B12:$BE12)/0.54*IF($AB12>$B12,$B12/$AB12,1) -> 0 | T12: =SUMIF(Navires!$B$2:$BE$2,$A$2&T$2,Navires!$B12:$BE12)/0.54*IF($AB12>$B12,$B12/$AB12,1) -> 0 | U12: =SUMIF(Navires!$B$2:$BE$2,$A$2&U$2,Navires!$B12:$BE12)/0.54*IF($AB12>$B12,$B12/$AB12,1) -> 0 | V12: =SUMIF(Navires!$B$2:$BE$2,$A$2&V$2,Navires!$B12:$BE12)/0.54*IF($AB12>$B12,$B12/$AB12,1) -> 0 | W12: =SUMIF(Navires!$B$2:$BE$2,$A$2&W$2,Navires!$B12:$BE12)/0.54*IF($AB12>$B12,$B12/$AB12,1) -> 0 | X12: 0 | Y12: =ProdBesoins!C14 -> 0 | AA12: =(SUMIF(Navires!$B$2:$BE$2,">9",Navires!$B12:$BE12)-SUMIF(Navires!$B$2:$BE$2,">19",Navires!$B12:$BE12))/0.54/(IF(ISERR((B12+'2'!N12+'3'!N12+'4'!N12+'5'!N12+'6'!N12+'7'!N12+'8'!N12+'9'!N12+'10'!N12)/B12),1,(B12+'2'!N12+'3'!N12+'4'!N12+'5'!N12+'6'!N12+'7'!N12+'8'!N12+'9'!N12+'10'!N12)/B12))+Y12 -> 0 | AB12: 0
A13: Verre | B13: =ProdBesoins!B15 -> 0 | D13: ='2'!N13 -> 0 | E13: ='3'!N13 -> 0 | F13: ='4'!N13 -> 0 | G13: ='5'!N13 -> 0 | H13: ='6'!N13 -> 0 | I13: ='7'!N13 -> 0 | J13: ='8'!N13 -> 0 | K13: ='9'!N13 -> 0 | L13: ='10'!N13 -> 0 | M13: 0 | O13: =SUMIF(Navires!$B$2:$BE$2,$A$2&O$2,Navires!$B13:$BE13)/0.54*IF($AB13>$B13,$B13/$AB13,1) -> 0 | P13: =SUMIF(Navires!$B$2:$BE$2,$A$2&P$2,Navires!$B13:$BE13)/0.54*IF($AB13>$B13,$B13/$AB13,1) -> 0 | Q13: =SUMIF(Navires!$B$2:$BE$2,$A$2&Q$2,Navires!$B13:$BE13)/0.54*IF($AB13>$B13,$B13/$AB13,1) -> 0 | R13: =SUMIF(Navires!$B$2:$BE$2,$A$2&R$2,Navires!$B13:$BE13)/0.54*IF($AB13>$B13,$B13/$AB13,1) -> 0 | S13: =SUMIF(Navires!$B$2:$BE$2,$A$2&S$2,Navires!$B13:$BE13)/0.54*IF($AB13>$B13,$B13/$AB13,1) -> 0 | T13: =SUMIF(Navires!$B$2:$BE$2,$A$2&T$2,Navires!$B13:$BE13)/0.54*IF($AB13>$B13,$B13/$AB13,1) -> 0 | U13: =SUMIF(Navires!$B$2:$BE$2,$A$2&U$2,Navires!$B13:$BE13)/0.54*IF($AB13>$B13,$B13/$AB13,1) -> 0 | V13: =SUMIF(Navires!$B$2:$BE$2,$A$2&V$2,Navires!$B13:$BE13)/0.54*IF($AB13>$B13,$B13/$AB13,1) -> 0 | W13: =SUMIF(Navires!$B$2:$BE$2,$A$2&W$2,Navires!$B13:$BE13)/0.54*IF($AB13>$B13,$B13/$AB13,1) -> 0 | X13: 0 | Y13: =ProdBesoins!C15 -> 0 | AA13: =(SUMIF(Navires!$B$2:$BE$2,">9",Navires!$B13:$BE13)-SUMIF(Navires!$B$2:$BE$2,">19",Navires!$B13:$BE13))/0.54/(IF(ISERR((B13+'2'!N13+'3'!N13+'4'!N13+'5'!N13+'6'!N13+'7'!N13+'8'!N13+'9'!N13+'10'!N13)/B13),1,(B13+'2'!N13+'3'!N13+'4'!N13+'5'!N13+'6'!N13+'7'!N13+'8'!N13+'9'!N13+'10'!N13)/B13))+Y13 -> 0 | AB13: 0
B14: =ProdBesoins!B16 -> 0 | Y14: =ProdBesoins!C16 -> 0
A15: Poisson | B15: =ProdBesoins!B17 -> 0 | D15: ='2'!N15 -> 0 | E15: ='3'!N15 -> 0 | F15: ='4'!N15 -> 0 | G15: ='5'!N15 -> 0 | H15: ='6'!N15 -> 0 | I15: ='7'!N15 -> 0 | J15: ='8'!N15 -> 0 | K15: ='9'!N15 -> 0 | L15: ='10'!N15 -> 0 | M15: =SUM(B15:L15) -> 0 | O15: =SUMIF(Navires!$B$2:$BE$2,$A$2&O$2,Navires!$B15:$BE15)/0.54*IF($AB15>$B15,$B15/$AB15,1) -> 0 | P15: =SUMIF(Navires!$B$2:$BE$2,$A$2&P$2,Navires!$B15:$BE15)/0.54*IF($AB15>$B15,$B15/$AB15,1) -> 0 | Q15: =SUMIF(Navires!$B$2:$BE$2,$A$2&Q$2,Navires!$B15:$BE15)/0.54*IF($AB15>$B15,$B15/$AB15,1) -> 0 | R15: =SUMIF(Navires!$B$2:$BE$2,$A$2&R$2,Navires!$B15:$BE15)/0.54*IF($AB15>$B15,$B15/$AB15,1) -> 0 | S15: =SUMIF(Navires!$B$2:$BE$2,$A$2&S$2,Navires!$B15:$BE15)/0.54*IF($AB15>$B15,$B15/$AB15,1) -> 0 | T15: =SUMIF(Navires!$B$2:$BE$2,$A$2&T$2,Navires!$B15:$BE15)/0.54*IF($AB15>$B15,$B15/$AB15,1) -> 0 | U15: =SUMIF(Navires!$B$2:$BE$2,$A$2&U$2,Navires!$B15:$BE15)/0.54*IF($AB15>$B15,$B15/$AB15,1) -> 0 | V15: =SUMIF(Navires!$B$2:$BE$2,$A$2&V$2,Navires!$B15:$BE15)/0.54*IF($AB15>$B15,$B15/$AB15,1) -> 0 | W15: =SUMIF(Navires!$B$2:$BE$2,$A$2&W$2,Navires!$B15:$BE15)/0.54*IF($AB15>$B15,$B15/$AB15,1) -> 0 | X15: 0 | Y15: =ProdBesoins!C17 -> 0 | AA15: =(SUMIF(Navires!$B$2:$BE$2,">9",Navires!$B15:$BE15)-SUMIF(Navires!$B$2:$BE$2,">19",Navires!$B15:$BE15))/0.54/(IF(ISERR((B15+'2'!N15+'3'!N15+'4'!N15+'5'!N15+'6'!N15+'7'!N15+'8'!N15+'9'!N15+'10'!N15)/B15),1,(B15+'2'!N15+'3'!N15+'4'!N15+'5'!N15+'6'!N15+'7'!N15+'8'!N15+'9'!N15+'10'!N15)/B15))+Y15 -> 0 | AB15: 0
A16: Céréales | B16: =ProdBesoins!B18 -> 0 | D16: ='2'!N16 -> 0 | E16: ='3'!N16 -> 0 | F16: ='4'!N16 -> 0 | G16: ='5'!N16 -> 0 | H16: ='6'!N16 -> 0 | I16: ='7'!N16 -> 0 | J16: ='8'!N16 -> 0 | K16: ='9'!N16 -> 0 | L16: ='10'!N16 -> 0 | M16: 0 | O16: =SUMIF(Navires!$B$2:$BE$2,$A$2&O$2,Navires!$B16:$BE16)/0.54*IF($AB16>$B16,$B16/$AB16,1) -> 0 | P16: =SUMIF(Navires!$B$2:$BE$2,$A$2&P$2,Navires!$B16:$BE16)/0.54*IF($AB16>$B16,$B16/$AB16,1) -> 0 | Q16: =SUMIF(Navires!$B$2:$BE$2,$A$2&Q$2,Navires!$B16:$BE16)/0.54*IF($AB16>$B16,$B16/$AB16,1) -> 0 | R16: =SUMIF(Navires!$B$2:$BE$2,$A$2&R$2,Navires!$B16:$BE16)/0.54*IF($AB16>$B16,$B16/$AB16,1) -> 0 | S16: =SUMIF(Navires!$B$2:$BE$2,$A$2&S$2,Navires!$B16:$BE16)/0.54*IF($AB16>$B16,$B16/$AB16,1) -> 0 | T16: =SUMIF(Navires!$B$2:$BE$2,$A$2&T$2,Navires!$B16:$BE16)/0.54*IF($AB16>$B16,$B16/$AB16,1) -> 0 | U16: =SUMIF(Navires!$B$2:$BE$2,$A$2&U$2,Navires!$B16:$BE16)/0.54*IF($AB16>$B16,$B16/$AB16,1) -> 0 | V16: =SUMIF(Navires!$B$2:$BE$2,$A$2&V$2,Navires!$B16:$BE16)/0.54*IF($AB16>$B16,$B16/$AB16,1) -> 0 | W16: =SUMIF(Navires!$B$2:$BE$2,$A$2&W$2,Navires!$B16:$BE16)/0.54*IF($AB16>$B16,$B16/$AB16,1) -> 0 | X16: 0 | Y16: =ProdBesoins!C18 -> 0 | AA16: =(SUMIF(Navires!$B$2:$BE$2,">9",Navires!$B16:$BE16)-SUMIF(Navires!$B$2:$BE$2,">19",Navires!$B16:$BE16))/0.54/(IF(ISERR((B16+'2'!N16+'3'!N16+'4'!N16+'5'!N16+'6'!N16+'7'!N16+'8'!N16+'9'!N16+'10'!N16)/B16),1,(B16+'2'!N16+'3'!N16+'4'!N16+'5'!N16+'6'!N16+'7'!N16+'8'!N16+'9'!N16+'10'!N16)/B16))+Y16 -> 0 | AB16: 0
A17: Farine | B17: =ProdBesoins!B19 -> 0 | D17: ='2'!N17 -> 0 | E17: ='3'!N17 -> 0 | F17: ='4'!N17 -> 0 | G17: ='5'!N17 -> 0 | H17: ='6'!N17 -> 0 | I17: ='7'!N17 -> 0 | J17: ='8'!N17 -> 0 | K17: ='9'!N17 -> 0 | L17: ='10'!N17 -> 0 | M17: 0 | O17: =SUMIF(Navires!$B$2:$BE$2,$A$2&O$2,Navires!$B17:$BE17)/0.54*IF($AB17>$B17,$B17/$AB17,1) -> 0 | P17: =SUMIF(Navires!$B$2:$BE$2,$A$2&P$2,Navires!$B17:$BE17)/0.54*IF($AB17>$B17,$B17/$AB17,1) -> 0 | Q17: =SUMIF(Navires!$B$2:$BE$2,$A$2&Q$2,Navires!$B17:$BE17)/0.54*IF($AB17>$B17,$B17/$AB17,1) -> 0 | R17: =SUMIF(Navires!$B$2:$BE$2,$A$2&R$2,Navires!$B17:$BE17)/0.54*IF($AB17>$B17,$B17/$AB17,1) -> 0 | S17: =SUMIF(Navires!$B$2:$BE$2,$A$2&S$2,Navires!$B17:$BE17)/0.54*IF($AB17>$B17,$B17/$AB17,1) -> 0 | T17: =SUMIF(Navires!$B$2:$BE$2,$A$2&T$2,Navires!$B17:$BE17)/0.54*IF($AB17>$B17,$B17/$AB17,1) -> 0 | U17: =SUMIF(Navires!$B$2:$BE$2,$A$2&U$2,Navires!$B17:$BE17)/0.54*IF($AB17>$B17,$B17/$AB17,1) -> 0 | V17: =SUMIF(Navires!$B$2:$BE$2,$A$2&V$2,Navires!$B17:$BE17)/0.54*IF($AB17>$B17,$B17/$AB17,1) -> 0 | W17: =SUMIF(Navires!$B$2:$BE$2,$A$2&W$2,Navires!$B17:$BE17)/0.54*IF($AB17>$B17,$B17/$AB17,1) -> 0 | X17: 0 | Y17: =ProdBesoins!C19 -> 0 | AA17: =(SUMIF(Navires!$B$2:$BE$2,">9",Navires!$B17:$BE17)-SUMIF(Navires!$B$2:$BE$2,">19",Navires!$B17:$BE17))/0.54/(IF(ISERR((B17+'2'!N17+'3'!N17+'4'!N17+'5'!N17+'6'!N17+'7'!N17+'8'!N17+'9'!N17+'10'!N17)/B17),1,(B17+'2'!N17+'3'!N17+'4'!N17+'5'!N17+'6'!N17+'7'!N17+'8'!N17+'9'!N17+'10'!N17)/B17))+Y17 -> 0 | AB17: 0
A18: Pain | B18: =ProdBesoins!B20 -> 0 | D18: ='2'!N18 -> 0 | E18: ='3'!N18 -> 0 | F18: ='4'!N18 -> 0 | G18: ='5'!N18 -> 0 | H18: ='6'!N18 -> 0 | I18: ='7'!N18 -> 0 | J18: ='8'!N18 -> 0 | K18: ='9'!N18 -> 0 | L18: ='10'!N18 -> 0 | M18: 0 | O18: =SUMIF(Navires!$B$2:$BE$2,$A$2&O$2,Navires!$B18:$BE18)/0.54*IF($AB18>$B18,$B18/$AB18,1) -> 0 | P18: =SUMIF(Navires!$B$2:$BE$2,$A$2&P$2,Navires!$B18:$BE18)/0.54*IF($AB18>$B18,$B18/$AB18,1) -> 0 | Q18: =SUMIF(Navires!$B$2:$BE$2,$A$2&Q$2,Navires!$B18:$BE18)/0.54*IF($AB18>$B18,$B18/$AB18,1) -> 0 | R18: =SUMIF(Navires!$B$2:$BE$2,$A$2&R$2,Navires!$B18:$BE18)/0.54*IF($AB18>$B18,$B18/$AB18,1) -> 0 | S18: =SUMIF(Navires!$B$2:$BE$2,$A$2&S$2,Navires!$B18:$BE18)/0.54*IF($AB18>$B18,$B18/$AB18,1) -> 0 | T18: =SUMIF(Navires!$B$2:$BE$2,$A$2&T$2,Navires!$B18:$BE18)/0.54*IF($AB18>$B18,$B18/$AB18,1) -> 0 | U18: =SUMIF(Navires!$B$2:$BE$2,$A$2&U$2,Navires!$B18:$BE18)/0.54*IF($AB18>$B18,$B18/$AB18,1) -> 0 | V18: =SUMIF(Navires!$B$2:$BE$2,$A$2&V$2,Navires!$B18:$BE18)/0.54*IF($AB18>$B18,$B18/$AB18,1) -> 0 | W18: =SUMIF(Navires!$B$2:$BE$2,$A$2&W$2,Navires!$B18:$BE18)/0.54*IF($AB18>$B18,$B18/$AB18,1) -> 0 | X18: 0 | Y18: =ProdBesoins!C20 -> 0 | AA18: =(SUMIF(Navires!$B$2:$BE$2,">9",Navires!$B18:$BE18)-SUMIF(Navires!$B$2:$BE$2,">19",Navires!$B18:$BE18))/0.54/(IF(ISERR((B18+'2'!N18+'3'!N18+'4'!N18+'5'!N18+'6'!N18+'7'!N18+'8'!N18+'9'!N18+'10'!N18)/B18),1,(B18+'2'!N18+'3'!N18+'4'!N18+'5'!N18+'6'!N18+'7'!N18+'8'!N18+'9'!N18+'10'!N18)/B18))+Y18 -> 0 | AB18: 0
A19: Epices | B19: =ProdBesoins!B21 -> 0 | D19: ='2'!N19 -> 0 | E19: ='3'!N19 -> 0 | F19: ='4'!N19 -> 0 | G19: ='5'!N19 -> 0 | H19: ='6'!N19 -> 0 | I19: ='7'!N19 -> 0 | J19: ='8'!N19 -> 0 | K19: ='9'!N19 -> 0 | L19: ='10'!N19 -> 0 | M19: =SUM(B19:K19) -> 0 | O19: =SUMIF(Navires!$B$2:$BE$2,$A$2&O$2,Navires!$B19:$BE19)/0.54*IF($AB19>$B19,$B19/$AB19,1) -> 0 | P19: =SUMIF(Navires!$B$2:$BE$2,$A$2&P$2,Navires!$B19:$BE19)/0.54*IF($AB19>$B19,$B19/$AB19,1) -> 0 | Q19: =SUMIF(Navires!$B$2:$BE$2,$A$2&Q$2,Navires!$B19:$BE19)/0.54*IF($AB19>$B19,$B19/$AB19,1) -> 0 | R19: =SUMIF(Navires!$B$2:$BE$2,$A$2&R$2,Navires!$B19:$BE19)/0.54*IF($AB19>$B19,$B19/$AB19,1) -> 0 | S19: =SUMIF(Navires!$B$2:$BE$2,$A$2&S$2,Navires!$B19:$BE19)/0.54*IF($AB19>$B19,$B19/$AB19,1) -> 0 | T19: =SUMIF(Navires!$B$2:$BE$2,$A$2&T$2,Navires!$B19:$BE19)/0.54*IF($AB19>$B19,$B19/$AB19,1) -> 0 | U19: =SUMIF(Navires!$B$2:$BE$2,$A$2&U$2,Navires!$B19:$BE19)/0.54*IF($AB19>$B19,$B19/$AB19,1) -> 0 | V19: =SUMIF(Navires!$B$2:$BE$2,$A$2&V$2,Navires!$B19:$BE19)/0.54*IF($AB19>$B19,$B19/$AB19,1) -> 0 | W19: =SUMIF(Navires!$B$2:$BE$2,$A$2&W$2,Navires!$B19:$BE19)/0.54*IF($AB19>$B19,$B19/$AB19,1) -> 0 | X19: 0 | Y19: =ProdBesoins!C21 -> 0 | AA19: =(SUMIF(Navires!$B$2:$BE$2,">9",Navires!$B19:$BE19)-SUMIF(Navires!$B$2:$BE$2,">19",Navires!$B19:$BE19))/0.54/(IF(ISERR((B19+'2'!N19+'3'!N19+'4'!N19+'5'!N19+'6'!N19+'7'!N19+'8'!N19+'9'!N19+'10'!N19)/B19),1,(B19+'2'!N19+'3'!N19+'4'!N19+'5'!N19+'6'!N19+'7'!N19+'8'!N19+'9'!N19+'10'!N19)/B19))+Y19 -> 0 | AB19: 0
A20: Charbon | B20: =ProdBesoins!B22 -> 0 | D20: =FIXED(D$7,0) -> 0 | E20: 0 | F20: 0 | G20: 0 | H20: 0 | I20: 0 | J20: 0 | K20: 0 | L20: 0 | M20: =FIXED(M$7,2) -> 0.00 | O20: =FIXED(O$7,0) -> 0 | P20: 0 | Q20: 0 | R20: 0 | S20: 0 | T20: 0 | U20: 0 | V20: 0 | W20: 0 | X20: =FIXED(X$7,2) -> 0.00 | Y20: =ProdBesoins!C22 -> 0
A21: Saumure | B21: =ProdBesoins!B23 -> 0 | D21: ='2'!N21 -> 0 | E21: ='3'!N21 -> 0 | F21: ='4'!N21 -> 0 | G21: ='5'!N21 -> 0 | H21: ='6'!N21 -> 0 | I21: ='7'!N21 -> 0 | J21: ='8'!N21 -> 0 | K21: ='9'!N21 -> 0 | L21: ='10'!N21 -> 0 | M21: =SUM(B21:L21) -> 0 | O21: =SUMIF(Navires!$B$2:$BE$2,$A$2&O$2,Navires!$B21:$BE21)/0.54*IF($AB21>$B21,$B21/$AB21,1) -> 0 | P21: =SUMIF(Navires!$B$2:$BE$2,$A$2&P$2,Navires!$B21:$BE21)/0.54*IF($AB21>$B21,$B21/$AB21,1) -> 0 | Q21: =SUMIF(Navires!$B$2:$BE$2,$A$2&Q$2,Navires!$B21:$BE21)/0.54*IF($AB21>$B21,$B21/$AB21,1) -> 0 | R21: =SUMIF(Navires!$B$2:$BE$2,$A$2&R$2,Navires!$B21:$BE21)/0.54*IF($AB21>$B21,$B21/$AB21,1) -> 0 | S21: =SUMIF(Navires!$B$2:$BE$2,$A$2&S$2,Navires!$B21:$BE21)/0.54*IF($AB21>$B21,$B21/$AB21,1) -> 0 | T21: =SUMIF(Navires!$B$2:$BE$2,$A$2&T$2,Navires!$B21:$BE21)/0.54*IF($AB21>$B21,$B21/$AB21,1) -> 0 | U21: =SUMIF(Navires!$B$2:$BE$2,$A$2&U$2,Navires!$B21:$BE21)/0.54*IF($AB21>$B21,$B21/$AB21,1) -> 0 | V21: =SUMIF(Navires!$B$2:$BE$2,$A$2&V$2,Navires!$B21:$BE21)/0.54*IF($AB21>$B21,$B21/$AB21,1) -> 0 | W21: =SUMIF(Navires!$B$2:$BE$2,$A$2&W$2,Navires!$B21:$BE21)/0.54*IF($AB21>$B21,$B21/$AB21,1) -> 0 | X21: 0 | Y21: =ProdBesoins!C23 -> 0 | AA21: =(SUMIF(Navires!$B$2:$BE$2,">9",Navires!$B21:$BE21)-SUMIF(Navires!$B$2:$BE$2,">19",Navires!$B21:$BE21))/0.54/(IF(ISERR((B21+'2'!N21+'3'!N21+'4'!N21+'5'!N21+'6'!N21+'7'!N21+'8'!N21+'9'!N21+'10'!N21)/B21),1,(B21+'2'!N21+'3'!N21+'4'!N21+'5'!N21+'6'!N21+'7'!N21+'8'!N21+'9'!N21+'10'!N21)/B21))+Y21 -> 0 | AB21: 0
A22: Sel | B22: =ProdBesoins!B24 -> 0 | D22: ='2'!N22 -> 0 | E22: ='3'!N22 -> 0 | F22: ='4'!N22 -> 0 | G22: ='5'!N22 -> 0 | H22: ='6'!N22 -> 0 | I22: ='7'!N22 -> 0 | J22: ='8'!N22 -> 0 | K22: ='9'!N22 -> 0 | L22: ='10'!N22 -> 0 | M22: =SUM(B22:L22) -> 0 | O22: =SUMIF(Navires!$B$2:$BE$2,$A$2&O$2,Navires!$B22:$BE22)/0.54*IF($AB22>$B22,$B22/$AB22,1) -> 0 | P22: =SUMIF(Navires!$B$2:$BE$2,$A$2&P$2,Navires!$B22:$BE22)/0.54*IF($AB22>$B22,$B22/$AB22,1) -> 0 | Q22: =SUMIF(Navires!$B$2:$BE$2,$A$2&Q$2,Navires!$B22:$BE22)/0.54*IF($AB22>$B22,$B22/$AB22,1) -> 0 | R22: =SUMIF(Navires!$B$2:$BE$2,$A$2&R$2,Navires!$B22:$BE22)/0.54*IF($AB22>$B22,$B22/$AB22,1) -> 0 | S22: =SUMIF(Navires!$B$2:$BE$2,$A$2&S$2,Navires!$B22:$BE22)/0.54*IF($AB22>$B22,$B22/$AB22,1) -> 0 | T22: =SUMIF(Navires!$B$2:$BE$2,$A$2&T$2,Navires!$B22:$BE22)/0.54*IF($AB22>$B22,$B22/$AB22,1) -> 0 | U22: =SUMIF(Navires!$B$2:$BE$2,$A$2&U$2,Navires!$B22:$BE22)/0.54*IF($AB22>$B22,$B22/$AB22,1) -> 0 | V22: =SUMIF(Navires!$B$2:$BE$2,$A$2&V$2,Navires!$B22:$BE22)/0.54*IF($AB22>$B22,$B22/$AB22,1) -> 0 | W22: =SUMIF(Navires!$B$2:$BE$2,$A$2&W$2,Navires!$B22:$BE22)/0.54*IF($AB22>$B22,$B22/$AB22,1) -> 0 | X22: 0 | Y22: =ProdBesoins!C24 -> 0 | AA22: =(SUMIF(Navires!$B$2:$BE$2,">9",Navires!$B22:$BE22)-SUMIF(Navires!$B$2:$BE$2,">19",Navires!$B22:$BE22))/0.54/(IF(ISERR((B22+'2'!N22+'3'!N22+'4'!N22+'5'!N22+'6'!N22+'7'!N22+'8'!N22+'9'!N22+'10'!N22)/B22),1,(B22+'2'!N22+'3'!N22+'4'!N22+'5'!N22+'6'!N22+'7'!N22+'8'!N22+'9'!N22+'10'!N22)/B22))+Y22 -> 0 | AB22: 0
A23: Bétail | B23: =ProdBesoins!B25 -> 0 | D23: ='2'!N23 -> 0 | E23: ='3'!N23 -> 0 | F23: ='4'!N23 -> 0 | G23: ='5'!N23 -> 0 | H23: ='6'!N23 -> 0 | I23: ='7'!N23 -> 0 | J23: ='8'!N23 -> 0 | K23: ='9'!N23 -> 0 | L23: ='10'!N23 -> 0 | M23: 0 | O23: =SUMIF(Navires!$B$2:$BE$2,$A$2&O$2,Navires!$B23:$BE23)/0.54*IF($AB23>$B23,$B23/$AB23,1) -> 0 | P23: =SUMIF(Navires!$B$2:$BE$2,$A$2&P$2,Navires!$B23:$BE23)/0.54*IF($AB23>$B23,$B23/$AB23,1) -> 0 | Q23: =SUMIF(Navires!$B$2:$BE$2,$A$2&Q$2,Navires!$B23:$BE23)/0.54*IF($AB23>$B23,$B23/$AB23,1) -> 0 | R23: =SUMIF(Navires!$B$2:$BE$2,$A$2&R$2,Navires!$B23:$BE23)/0.54*IF($AB23>$B23,$B23/$AB23,1) -> 0 | S23: =SUMIF(Navires!$B$2:$BE$2,$A$2&S$2,Navires!$B23:$BE23)/0.54*IF($AB23>$B23,$B23/$AB23,1) -> 0 | T23: =SUMIF(Navires!$B$2:$BE$2,$A$2&T$2,Navires!$B23:$BE23)/0.54*IF($AB23>$B23,$B23/$AB23,1) -> 0 | U23: =SUMIF(Navires!$B$2:$BE$2,$A$2&U$2,Navires!$B23:$BE23)/0.54*IF($AB23>$B23,$B23/$AB23,1) -> 0 | V23: =SUMIF(Navires!$B$2:$BE$2,$A$2&V$2,Navires!$B23:$BE23)/0.54*IF($AB23>$B23,$B23/$AB23,1) -> 0 | W23: =SUMIF(Navires!$B$2:$BE$2,$A$2&W$2,Navires!$B23:$BE23)/0.54*IF($AB23>$B23,$B23/$AB23,1) -> 0 | X23: 0 | Y23: =ProdBesoins!C25 -> 0 | AA23: =(SUMIF(Navires!$B$2:$BE$2,">9",Navires!$B23:$BE23)-SUMIF(Navires!$B$2:$BE$2,">19",Navires!$B23:$BE23))/0.54/(IF(ISERR((B23+'2'!N23+'3'!N23+'4'!N23+'5'!N23+'6'!N23+'7'!N23+'8'!N23+'9'!N23+'10'!N23)/B23),1,(B23+'2'!N23+'3'!N23+'4'!N23+'5'!N23+'6'!N23+'7'!N23+'8'!N23+'9'!N23+'10'!N23)/B23))+Y23 -> 0 | AB23: 0
A24: Viande | B24: =ProdBesoins!B26 -> 0 | D24: ='2'!N24 -> 0 | E24: ='3'!N24 -> 0 | F24: ='4'!N24 -> 0 | G24: ='5'!N24 -> 0 | H24: ='6'!N24 -> 0 | I24: ='7'!N24 -> 0 | J24: ='8'!N24 -> 0 | K24: ='9'!N24 -> 0 | L24: ='10'!N24 -> 0 | M24: 0 | O24: =SUMIF(Navires!$B$2:$BE$2,$A$2&O$2,Navires!$B24:$BE24)/0.54*IF($AB24>$B24,$B24/$AB24,1) -> 0 | P24: =SUMIF(Navires!$B$2:$BE$2,$A$2&P$2,Navires!$B24:$BE24)/0.54*IF($AB24>$B24,$B24/$AB24,1) -> 0 | Q24: =SUMIF(Navires!$B$2:$BE$2,$A$2&Q$2,Navires!$B24:$BE24)/0.54*IF($AB24>$B24,$B24/$AB24,1) -> 0 | R24: =SUMIF(Navires!$B$2:$BE$2,$A$2&R$2,Navires!$B24:$BE24)/0.54*IF($AB24>$B24,$B24/$AB24,1) -> 0 | S24: =SUMIF(Navires!$B$2:$BE$2,$A$2&S$2,Navires!$B24:$BE24)/0.54*IF($AB24>$B24,$B24/$AB24,1) -> 0 | T24: =SUMIF(Navires!$B$2:$BE$2,$A$2&T$2,Navires!$B24:$BE24)/0.54*IF($AB24>$B24,$B24/$AB24,1) -> 0 | U24: =SUMIF(Navires!$B$2:$BE$2,$A$2&U$2,Navires!$B24:$BE24)/0.54*IF($AB24>$B24,$B24/$AB24,1) -> 0 | V24: =SUMIF(Navires!$B$2:$BE$2,$A$2&V$2,Navires!$B24:$BE24)/0.54*IF($AB24>$B24,$B24/$AB24,1) -> 0 | W24: =SUMIF(Navires!$B$2:$BE$2,$A$2&W$2,Navires!$B24:$BE24)/0.54*IF($AB24>$B24,$B24/$AB24,1) -> 0 | X24: 0 | Y24: =ProdBesoins!C26 -> 0 | AA24: =(SUMIF(Navires!$B$2:$BE$2,">9",Navires!$B24:$BE24)-SUMIF(Navires!$B$2:$BE$2,">19",Navires!$B24:$BE24))/0.54/(IF(ISERR((B24+'2'!N24+'3'!N24+'4'!N24+'5'!N24+'6'!N24+'7'!N24+'8'!N24+'9'!N24+'10'!N24)/B24),1,(B24+'2'!N24+'3'!N24+'4'!N24+'5'!N24+'6'!N24+'7'!N24+'8'!N24+'9'!N24+'10'!N24)/B24))+Y24 -> 0 | AB24: 0
B25: =ProdBesoins!B27 -> 0 | Y25: =ProdBesoins!C27 -> 0
A26: Lait | B26: =ProdBesoins!B28 -> 0 | D26: ='2'!N26 -> 0 | E26: ='3'!N26 -> 0 | F26: ='4'!N26 -> 0 | G26: ='5'!N26 -> 0 | H26: ='6'!N26 -> 0 | I26: ='7'!N26 -> 0 | J26: ='8'!N26 -> 0 | K26: ='9'!N26 -> 0 | L26: ='10'!N26 -> 0 | M26: =SUM(B26:L26) -> 0 | O26: =SUMIF(Navires!$B$2:$BE$2,$A$2&O$2,Navires!$B26:$BE26)/0.54*IF($AB26>$B26,$B26/$AB26,1) -> 0 | P26: =SUMIF(Navires!$B$2:$BE$2,$A$2&P$2,Navires!$B26:$BE26)/0.54*IF($AB26>$B26,$B26/$AB26,1) -> 0 | Q26: =SUMIF(Navires!$B$2:$BE$2,$A$2&Q$2,Navires!$B26:$BE26)/0.54*IF($AB26>$B26,$B26/$AB26,1) -> 0 | R26: =SUMIF(Navires!$B$2:$BE$2,$A$2&R$2,Navires!$B26:$BE26)/0.54*IF($AB26>$B26,$B26/$AB26,1) -> 0 | S26: =SUMIF(Navires!$B$2:$BE$2,$A$2&S$2,Navires!$B26:$BE26)/0.54*IF($AB26>$B26,$B26/$AB26,1) -> 0 | T26: =SUMIF(Navires!$B$2:$BE$2,$A$2&T$2,Navires!$B26:$BE26)/0.54*IF($AB26>$B26,$B26/$AB26,1) -> 0 | U26: =SUMIF(Navires!$B$2:$BE$2,$A$2&U$2,Navires!$B26:$BE26)/0.54*IF($AB26>$B26,$B26/$AB26,1) -> 0 | V26: =SUMIF(Navires!$B$2:$BE$2,$A$2&V$2,Navires!$B26:$BE26)/0.54*IF($AB26>$B26,$B26/$AB26,1) -> 0 | W26: =SUMIF(Navires!$B$2:$BE$2,$A$2&W$2,Navires!$B26:$BE26)/0.54*IF($AB26>$B26,$B26/$AB26,1) -> 0 | X26: 0 | Y26: =ProdBesoins!C28 -> 0 | AA26: =(SUMIF(Navires!$B$2:$BE$2,">9",Navires!$B26:$BE26)-SUMIF(Navires!$B$2:$BE$2,">19",Navires!$B26:$BE26))/0.54/(IF(ISERR((B26+'2'!N26+'3'!N26+'4'!N26+'5'!N26+'6'!N26+'7'!N26+'8'!N26+'9'!N26+'10'!N26)/B26),1,(B26+'2'!N26+'3'!N26+'4'!N26+'5'!N26+'6'!N26+'7'!N26+'8'!N26+'9'!N26+'10'!N26)/B26))+Y26 -> 0 | AB26: 0
A27: Pommes | B27: =ProdBesoins!B29 -> 0 | D27: ='2'!N27 -> 0 | E27: ='3'!N27 -> 0 | F27: ='4'!N27 -> 0 | G27: ='5'!N27 -> 0 | H27: ='6'!N27 -> 0 | I27: ='7'!N27 -> 0 | J27: ='8'!N27 -> 0 | K27: ='9'!N27 -> 0 | L27: ='10'!N27 -> 0 | M27: 0 | O27: =SUMIF(Navires!$B$2:$BE$2,$A$2&O$2,Navires!$B27:$BE27)/0.54*IF($AB27>$B27,$B27/$AB27,1) -> 0 | P27: =SUMIF(Navires!$B$2:$BE$2,$A$2&P$2,Navires!$B27:$BE27)/0.54*IF($AB27>$B27,$B27/$AB27,1) -> 0 | Q27: =SUMIF(Navires!$B$2:$BE$2,$A$2&Q$2,Navires!$B27:$BE27)/0.54*IF($AB27>$B27,$B27/$AB27,1) -> 0 | R27: =SUMIF(Navires!$B$2:$BE$2,$A$2&R$2,Navires!$B27:$BE27)/0.54*IF($AB27>$B27,$B27/$AB27,1) -> 0 | S27: =SUMIF(Navires!$B$2:$BE$2,$A$2&S$2,Navires!$B27:$BE27)/0.54*IF($AB27>$B27,$B27/$AB27,1) -> 0 | T27: =SUMIF(Navires!$B$2:$BE$2,$A$2&T$2,Navires!$B27:$BE27)/0.54*IF($AB27>$B27,$B27/$AB27,1) -> 0 | U27: =SUMIF(Navires!$B$2:$BE$2,$A$2&U$2,Navires!$B27:$BE27)/0.54*IF($AB27>$B27,$B27/$AB27,1) -> 0 | V27: =SUMIF(Navires!$B$2:$BE$2,$A$2&V$2,Navires!$B27:$BE27)/0.54*IF($AB27>$B27,$B27/$AB27,1) -> 0 | W27: =SUMIF(Navires!$B$2:$BE$2,$A$2&W$2,Navires!$B27:$BE27)/0.54*IF($AB27>$B27,$B27/$AB27,1) -> 0 | X27: 0 | Y27: =ProdBesoins!C29 -> 0 | AA27: =(SUMIF(Navires!$B$2:$BE$2,">9",Navires!$B27:$BE27)-SUMIF(Navires!$B$2:$BE$2,">19",Navires!$B27:$BE27))/0.54/(IF(ISERR((B27+'2'!N27+'3'!N27+'4'!N27+'5'!N27+'6'!N27+'7'!N27+'8'!N27+'9'!N27+'10'!N27)/B27),1,(B27+'2'!N27+'3'!N27+'4'!N27+'5'!N27+'6'!N27+'7'!N27+'8'!N27+'9'!N27+'10'!N27)/B27))+Y27 -> 0 | AB27: 0
A28: Cidre | B28: =ProdBesoins!B30 -> 0 | D28: ='2'!N28 -> 0 | E28: ='3'!N28 -> 0 | F28: ='4'!N28 -> 0 | G28: ='5'!N28 -> 0 | H28: ='6'!N28 -> 0 | I28: ='7'!N28 -> 0 | J28: ='8'!N28 -> 0 | K28: ='9'!N28 -> 0 | L28: ='10'!N28 -> 0 | M28: 0 | O28: =SUMIF(Navires!$B$2:$BE$2,$A$2&O$2,Navires!$B28:$BE28)/0.54*IF($AB28>$B28,$B28/$AB28,1) -> 0 | P28: =SUMIF(Navires!$B$2:$BE$2,$A$2&P$2,Navires!$B28:$BE28)/0.54*IF($AB28>$B28,$B28/$AB28,1) -> 0 | Q28: =SUMIF(Navires!$B$2:$BE$2,$A$2&Q$2,Navires!$B28:$BE28)/0.54*IF($AB28>$B28,$B28/$AB28,1) -> 0 | R28: =SUMIF(Navires!$B$2:$BE$2,$A$2&R$2,Navires!$B28:$BE28)/0.54*IF($AB28>$B28,$B28/$AB28,1) -> 0 | S28: =SUMIF(Navires!$B$2:$BE$2,$A$2&S$2,Navires!$B28:$BE28)/0.54*IF($AB28>$B28,$B28/$AB28,1) -> 0 | T28: =SUMIF(Navires!$B$2:$BE$2,$A$2&T$2,Navires!$B28:$BE28)/0.54*IF($AB28>$B28,$B28/$AB28,1) -> 0 | U28: =SUMIF(Navires!$B$2:$BE$2,$A$2&U$2,Navires!$B28:$BE28)/0.54*IF($AB28>$B28,$B28/$AB28,1) -> 0 | V28: =SUMIF(Navires!$B$2:$BE$2,$A$2&V$2,Navires!$B28:$BE28)/0.54*IF($AB28>$B28,$B28/$AB28,1) -> 0 | W28: =SUMIF(Navires!$B$2:$BE$2,$A$2&W$2,Navires!$B28:$BE28)/0.54*IF($AB28>$B28,$B28/$AB28,1) -> 0 | X28: 0 | Y28: =ProdBesoins!C30 -> 0 | AA28: =(SUMIF(Navires!$B$2:$BE$2,">9",Navires!$B28:$BE28)-SUMIF(Navires!$B$2:$BE$2,">19",Navires!$B28:$BE28))/0.54/(IF(ISERR((B28+'2'!N28+'3'!N28+'4'!N28+'5'!N28+'6'!N28+'7'!N28+'8'!N28+'9'!N28+'10'!N28)/B28),1,(B28+'2'!N28+'3'!N28+'4'!N28+'5'!N28+'6'!N28+'7'!N28+'8'!N28+'9'!N28+'10'!N28)/B28))+Y28 -> 0 | AB28: 0
A29: Herbes | B29: =ProdBesoins!B31 -> 0 | D29: ='2'!N29 -> 0 | E29: ='3'!N29 -> 0 | F29: ='4'!N29 -> 0 | G29: ='5'!N29 -> 0 | H29: ='6'!N29 -> 0 | I29: ='7'!N29 -> 0 | J29: ='8'!N29 -> 0 | K29: ='9'!N29 -> 0 | L29: ='10'!N29 -> 0 | M29: 0 | O29: =SUMIF(Navires!$B$2:$BE$2,$A$2&O$2,Navires!$B29:$BE29)/0.54*IF($AB29>$B29,$B29/$AB29,1) -> 0 | P29: =SUMIF(Navires!$B$2:$BE$2,$A$2&P$2,Navires!$B29:$BE29)/0.54*IF($AB29>$B29,$B29/$AB29,1) -> 0 | Q29: =SUMIF(Navires!$B$2:$BE$2,$A$2&Q$2,Navires!$B29:$BE29)/0.54*IF($AB29>$B29,$B29/$AB29,1) -> 0 | R29: =SUMIF(Navires!$B$2:$BE$2,$A$2&R$2,Navires!$B29:$BE29)/0.54*IF($AB29>$B29,$B29/$AB29,1) -> 0 | S29: =SUMIF(Navires!$B$2:$BE$2,$A$2&S$2,Navires!$B29:$BE29)/0.54*IF($AB29>$B29,$B29/$AB29,1) -> 0 | T29: =SUMIF(Navires!$B$2:$BE$2,$A$2&T$2,Navires!$B29:$BE29)/0.54*IF($AB29>$B29,$B29/$AB29,1) -> 0 | U29: =SUMIF(Navires!$B$2:$BE$2,$A$2&U$2,Navires!$B29:$BE29)/0.54*IF($AB29>$B29,$B29/$AB29,1) -> 0 | V29: =SUMIF(Navires!$B$2:$BE$2,$A$2&V$2,Navires!$B29:$BE29)/0.54*IF($AB29>$B29,$B29/$AB29,1) -> 0 | W29: =SUMIF(Navires!$B$2:$BE$2,$A$2&W$2,Navires!$B29:$BE29)/0.54*IF($AB29>$B29,$B29/$AB29,1) -> 0 | X29: 0 | Y29: =ProdBesoins!C31 -> 0 | AA29: =(SUMIF(Navires!$B$2:$BE$2,">9",Navires!$B29:$BE29)-SUMIF(Navires!$B$2:$BE$2,">19",Navires!$B29:$BE29))/0.54/(IF(ISERR((B29+'2'!N29+'3'!N29+'4'!N29+'5'!N29+'6'!N29+'7'!N29+'8'!N29+'9'!N29+'10'!N29)/B29),1,(B29+'2'!N29+'3'!N29+'4'!N29+'5'!N29+'6'!N29+'7'!N29+'8'!N29+'9'!N29+'10'!N29)/B29))+Y29 -> 0 | AB29: 0
A30: Céréales | B30: =ProdBesoins!B32 -> 0 | D30: =FIXED(D$16,0) -> 0 | E30: 0 | F30: 0 | G30: 0 | H30: 0 | I30: 0 | J30: 0 | K30: 0 | L30: 0 | M30: 0 | O30: 0 | P30: 0 | Q30: 0 | R30: 0 | S30: 0 | T30: 0 | U30: 0 | V30: 0 | W30: 0 | X30: =FIXED(X$16,0) -> 0 | Y30: =ProdBesoins!C32 -> 0
A31: Bière | B31: =ProdBesoins!B33 -> 0 | D31: ='2'!N31 -> 0 | E31: ='3'!N31 -> 0 | F31: ='4'!N31 -> 0 | G31: ='5'!N31 -> 0 | H31: ='6'!N31 -> 0 | I31: ='7'!N31 -> 0 | J31: ='8'!N31 -> 0 | K31: ='9'!N31 -> 0 | L31: ='10'!N31 -> 0 | M31: =SUM(B31:L31) -> 0 | O31: =SUMIF(Navires!$B$2:$BE$2,$A$2&O$2,Navires!$B31:$BE31)/0.54*IF($AB31>$B31,$B31/$AB31,1) -> 0 | P31: =SUMIF(Navires!$B$2:$BE$2,$A$2&P$2,Navires!$B31:$BE31)/0.54*IF($AB31>$B31,$B31/$AB31,1) -> 0 | Q31: =SUMIF(Navires!$B$2:$BE$2,$A$2&Q$2,Navires!$B31:$BE31)/0.54*IF($AB31>$B31,$B31/$AB31,1) -> 0 | R31: =SUMIF(Navires!$B$2:$BE$2,$A$2&R$2,Navires!$B31:$BE31)/0.54*IF($AB31>$B31,$B31/$AB31,1) -> 0 | S31: =SUMIF(Navires!$B$2:$BE$2,$A$2&S$2,Navires!$B31:$BE31)/0.54*IF($AB31>$B31,$B31/$AB31,1) -> 0 | T31: =SUMIF(Navires!$B$2:$BE$2,$A$2&T$2,Navires!$B31:$BE31)/0.54*IF($AB31>$B31,$B31/$AB31,1) -> 0 | U31: =SUMIF(Navires!$B$2:$BE$2,$A$2&U$2,Navires!$B31:$BE31)/0.54*IF($AB31>$B31,$B31/$AB31,1) -> 0 | V31: =SUMIF(Navires!$B$2:$BE$2,$A$2&V$2,Navires!$B31:$BE31)/0.54*IF($AB31>$B31,$B31/$AB31,1) -> 0 | W31: =SUMIF(Navires!$B$2:$BE$2,$A$2&W$2,Navires!$B31:$BE31)/0.54*IF($AB31>$B31,$B31/$AB31,1) -> 0 | X31: 0 | Y31: =ProdBesoins!C33 -> 0 | AA31: =(SUMIF(Navires!$B$2:$BE$2,">9",Navires!$B31:$BE31)-SUMIF(Navires!$B$2:$BE$2,">19",Navires!$B31:$BE31))/0.54/(IF(ISERR((B31+'2'!N31+'3'!N31+'4'!N31+'5'!N31+'6'!N31+'7'!N31+'8'!N31+'9'!N31+'10'!N31)/B31),1,(B31+'2'!N31+'3'!N31+'4'!N31+'5'!N31+'6'!N31+'7'!N31+'8'!N31+'9'!N31+'10'!N31)/B31))+Y31 -> 0 | AB31: 0
A32: Fer | B32: =ProdBesoins!B34 -> 0 | D32: =FIXED(D$9,0) -> 0 | E32: 0 | F32: 0 | G32: 0 | H32: 0 | I32: 0 | J32: 0 | K32: 0 | L32: 0 | M32: 0 | O32: 0 | P32: 0 | Q32: 0 | R32: 0 | S32: 0 | T32: 0 | U32: 0 | V32: 0 | W32: 0 | X32: =FIXED(X$9,0) -> 0 | Y32: =ProdBesoins!C34 -> 0
A33: Bois | B33: =ProdBesoins!B35 -> 0 | D33: =FIXED(D$5,0) -> 0 | E33: 0 | F33: 0 | G33: 0 | H33: 0 | I33: 0 | J33: 0 | K33: 0 | L33: 0 | M33: 0 | O33: 0 | P33: 0 | Q33: 0 | R33: 0 | S33: 0 | T33: 0 | U33: 0 | V33: 0 | W33: 0 | X33: =FIXED(X$5,0) -> 0 | Y33: =ProdBesoins!C35 -> 0
A34: Tonneaux | B34: =ProdBesoins!B36 -> 0 | D34: ='2'!N34 -> 0 | E34: ='3'!N34 -> 0 | F34: ='4'!N34 -> 0 | G34: ='5'!N34 -> 0 | H34: ='6'!N34 -> 0 | I34: ='7'!N34 -> 0 | J34: ='8'!N34 -> 0 | K34: ='9'!N34 -> 0 | L34: ='10'!N34 -> 0 | M34: =SUM(B34:L34) -> 0 | O34: =SUMIF(Navires!$B$2:$BE$2,$A$2&O$2,Navires!$B34:$BE34)/0.54*IF($AB34>$B34,$B34/$AB34,1) -> 0 | P34: =SUMIF(Navires!$B$2:$BE$2,$A$2&P$2,Navires!$B34:$BE34)/0.54*IF($AB34>$B34,$B34/$AB34,1) -> 0 | Q34: =SUMIF(Navires!$B$2:$BE$2,$A$2&Q$2,Navires!$B34:$BE34)/0.54*IF($AB34>$B34,$B34/$AB34,1) -> 0 | R34: =SUMIF(Navires!$B$2:$BE$2,$A$2&R$2,Navires!$B34:$BE34)/0.54*IF($AB34>$B34,$B34/$AB34,1) -> 0 | S34: =SUMIF(Navires!$B$2:$BE$2,$A$2&S$2,Navires!$B34:$BE34)/0.54*IF($AB34>$B34,$B34/$AB34,1) -> 0 | T34: =SUMIF(Navires!$B$2:$BE$2,$A$2&T$2,Navires!$B34:$BE34)/0.54*IF($AB34>$B34,$B34/$AB34,1) -> 0 | U34: =SUMIF(Navires!$B$2:$BE$2,$A$2&U$2,Navires!$B34:$BE34)/0.54*IF($AB34>$B34,$B34/$AB34,1) -> 0 | V34: =SUMIF(Navires!$B$2:$BE$2,$A$2&V$2,Navires!$B34:$BE34)/0.54*IF($AB34>$B34,$B34/$AB34,1) -> 0 | W34: =SUMIF(Navires!$B$2:$BE$2,$A$2&W$2,Navires!$B34:$BE34)/0.54*IF($AB34>$B34,$B34/$AB34,1) -> 0 | X34: =M34-SUM(N34:W34) -> 0 | Y34: =ProdBesoins!C36 -> 0 | AA34: =(SUMIF(Navires!$B$2:$BE$2,">9",Navires!$B34:$BE34)-SUMIF(Navires!$B$2:$BE$2,">19",Navires!$B34:$BE34))/0.54/(IF(ISERR((B34+'2'!N34+'3'!N34+'4'!N34+'5'!N34+'6'!N34+'7'!N34+'8'!N34+'9'!N34+'10'!N34)/B34),1,(B34+'2'!N34+'3'!N34+'4'!N34+'5'!N34+'6'!N34+'7'!N34+'8'!N34+'9'!N34+'10'!N34)/B34))+Y34 -> 0 | AB34: 0
A35: Raisins | B35: =ProdBesoins!B37 -> 0 | D35: ='2'!N35 -> 0 | E35: ='3'!N35 -> 0 | F35: ='4'!N35 -> 0 | G35: ='5'!N35 -> 0 | H35: ='6'!N35 -> 0 | I35: ='7'!N35 -> 0 | J35: ='8'!N35 -> 0 | K35: ='9'!N35 -> 0 | L35: ='10'!N35 -> 0 | M35: 0 | O35: =SUMIF(Navires!$B$2:$BE$2,$A$2&O$2,Navires!$B35:$BE35)/0.54*IF($AB35>$B35,$B35/$AB35,1) -> 0 | P35: =SUMIF(Navires!$B$2:$BE$2,$A$2&P$2,Navires!$B35:$BE35)/0.54*IF($AB35>$B35,$B35/$AB35,1) -> 0 | Q35: =SUMIF(Navires!$B$2:$BE$2,$A$2&Q$2,Navires!$B35:$BE35)/0.54*IF($AB35>$B35,$B35/$AB35,1) -> 0 | R35: =SUMIF(Navires!$B$2:$BE$2,$A$2&R$2,Navires!$B35:$BE35)/0.54*IF($AB35>$B35,$B35/$AB35,1) -> 0 | S35: =SUMIF(Navires!$B$2:$BE$2,$A$2&S$2,Navires!$B35:$BE35)/0.54*IF($AB35>$B35,$B35/$AB35,1) -> 0 | T35: =SUMIF(Navires!$B$2:$BE$2,$A$2&T$2,Navires!$B35:$BE35)/0.54*IF($AB35>$B35,$B35/$AB35,1) -> 0 | U35: =SUMIF(Navires!$B$2:$BE$2,$A$2&U$2,Navires!$B35:$BE35)/0.54*IF($AB35>$B35,$B35/$AB35,1) -> 0 | V35: =SUMIF(Navires!$B$2:$BE$2,$A$2&V$2,Navires!$B35:$BE35)/0.54*IF($AB35>$B35,$B35/$AB35,1) -> 0 | W35: =SUMIF(Navires!$B$2:$BE$2,$A$2&W$2,Navires!$B35:$BE35)/0.54*IF($AB35>$B35,$B35/$AB35,1) -> 0 | X35: 0 | Y35: =ProdBesoins!C37 -> 0 | AA35: =(SUMIF(Navires!$B$2:$BE$2,">9",Navires!$B35:$BE35)-SUMIF(Navires!$B$2:$BE$2,">19",Navires!$B35:$BE35))/0.54/(IF(ISERR((B35+'2'!N35+'3'!N35+'4'!N35+'5'!N35+'6'!N35+'7'!N35+'8'!N35+'9'!N35+'10'!N35)/B35),1,(B35+'2'!N35+'3'!N35+'4'!N35+'5'!N35+'6'!N35+'7'!N35+'8'!N35+'9'!N35+'10'!N35)/B35))+Y35 -> 0 | AB35: 0
A36: Vin | B36: =ProdBesoins!B38 -> 0 | D36: ='2'!N36 -> 0 | E36: ='3'!N36 -> 0 | F36: ='4'!N36 -> 0 | G36: ='5'!N36 -> 0 | H36: ='6'!N36 -> 0 | I36: ='7'!N36 -> 0 | J36: ='8'!N36 -> 0 | K36: ='9'!N36 -> 0 | L36: ='10'!N36 -> 0 | M36: 0 | O36: =SUMIF(Navires!$B$2:$BE$2,$A$2&O$2,Navires!$B36:$BE36)/0.54*IF($AB36>$B36,$B36/$AB36,1) -> 0 | P36: =SUMIF(Navires!$B$2:$BE$2,$A$2&P$2,Navires!$B36:$BE36)/0.54*IF($AB36>$B36,$B36/$AB36,1) -> 0 | Q36: =SUMIF(Navires!$B$2:$BE$2,$A$2&Q$2,Navires!$B36:$BE36)/0.54*IF($AB36>$B36,$B36/$AB36,1) -> 0 | R36: =SUMIF(Navires!$B$2:$BE$2,$A$2&R$2,Navires!$B36:$BE36)/0.54*IF($AB36>$B36,$B36/$AB36,1) -> 0 | S36: =SUMIF(Navires!$B$2:$BE$2,$A$2&S$2,Navires!$B36:$BE36)/0.54*IF($AB36>$B36,$B36/$AB36,1) -> 0 | T36: =SUMIF(Navires!$B$2:$BE$2,$A$2&T$2,Navires!$B36:$BE36)/0.54*IF($AB36>$B36,$B36/$AB36,1) -> 0 | U36: =SUMIF(Navires!$B$2:$BE$2,$A$2&U$2,Navires!$B36:$BE36)/0.54*IF($AB36>$B36,$B36/$AB36,1) -> 0 | V36: =SUMIF(Navires!$B$2:$BE$2,$A$2&V$2,Navires!$B36:$BE36)/0.54*IF($AB36>$B36,$B36/$AB36,1) -> 0 | W36: =SUMIF(Navires!$B$2:$BE$2,$A$2&W$2,Navires!$B36:$BE36)/0.54*IF($AB36>$B36,$B36/$AB36,1) -> 0 | X36: 0 | Y36: =ProdBesoins!C38 -> 0 | AA36: =(SUMIF(Navires!$B$2:$BE$2,">9",Navires!$B36:$BE36)-SUMIF(Navires!$B$2:$BE$2,">19",Navires!$B36:$BE36))/0.54/(IF(ISERR((B36+'2'!N36+'3'!N36+'4'!N36+'5'!N36+'6'!N36+'7'!N36+'8'!N36+'9'!N36+'10'!N36)/B36),1,(B36+'2'!N36+'3'!N36+'4'!N36+'5'!N36+'6'!N36+'7'!N36+'8'!N36+'9'!N36+'10'!N36)/B36))+Y36 -> 0 | AB36: 0
B37: =ProdBesoins!B39 -> 0 | Y37: =ProdBesoins!C39 -> 0
A38: Laine | B38: =ProdBesoins!B40 -> 0 | D38: ='2'!N38 -> 0 | E38: ='3'!N38 -> 0 | F38: ='4'!N38 -> 0 | G38: ='5'!N38 -> 0 | H38: ='6'!N38 -> 0 | I38: ='7'!N38 -> 0 | J38: ='8'!N38 -> 0 | K38: ='9'!N38 -> 0 | L38: ='10'!N38 -> 0 | M38: =SUM(B38:L38) -> 0 | O38: =SUMIF(Navires!$B$2:$BE$2,$A$2&O$2,Navires!$B38:$BE38)/0.54*IF($AB38>$B38,$B38/$AB38,1) -> 0 | P38: =SUMIF(Navires!$B$2:$BE$2,$A$2&P$2,Navires!$B38:$BE38)/0.54*IF($AB38>$B38,$B38/$AB38,1) -> 0 | Q38: =SUMIF(Navires!$B$2:$BE$2,$A$2&Q$2,Navires!$B38:$BE38)/0.54*IF($AB38>$B38,$B38/$AB38,1) -> 0 | R38: =SUMIF(Navires!$B$2:$BE$2,$A$2&R$2,Navires!$B38:$BE38)/0.54*IF($AB38>$B38,$B38/$AB38,1) -> 0 | S38: =SUMIF(Navires!$B$2:$BE$2,$A$2&S$2,Navires!$B38:$BE38)/0.54*IF($AB38>$B38,$B38/$AB38,1) -> 0 | T38: =SUMIF(Navires!$B$2:$BE$2,$A$2&T$2,Navires!$B38:$BE38)/0.54*IF($AB38>$B38,$B38/$AB38,1) -> 0 | U38: =SUMIF(Navires!$B$2:$BE$2,$A$2&U$2,Navires!$B38:$BE38)/0.54*IF($AB38>$B38,$B38/$AB38,1) -> 0 | V38: =SUMIF(Navires!$B$2:$BE$2,$A$2&V$2,Navires!$B38:$BE38)/0.54*IF($AB38>$B38,$B38/$AB38,1) -> 0 | W38: =SUMIF(Navires!$B$2:$BE$2,$A$2&W$2,Navires!$B38:$BE38)/0.54*IF($AB38>$B38,$B38/$AB38,1) -> 0 | X38: =M38-SUM(N38:W38) -> 0 | Y38: =ProdBesoins!C40 -> 0 | AA38: =(SUMIF(Navires!$B$2:$BE$2,">9",Navires!$B38:$BE38)-SUMIF(Navires!$B$2:$BE$2,">19",Navires!$B38:$BE38))/0.54/(IF(ISERR((B38+'2'!N38+'3'!N38+'4'!N38+'5'!N38+'6'!N38+'7'!N38+'8'!N38+'9'!N38+'10'!N38)/B38),1,(B38+'2'!N38+'3'!N38+'4'!N38+'5'!N38+'6'!N38+'7'!N38+'8'!N38+'9'!N38+'10'!N38)/B38))+Y38 -> 0 | AB38: 0
A39: Vêtements en laine | B39: =ProdBesoins!B41 -> 0 | D39: ='2'!N39 -> 0 | E39: ='3'!N39 -> 0 | F39: ='4'!N39 -> 0 | G39: ='5'!N39 -> 0 | H39: ='6'!N39 -> 0 | I39: ='7'!N39 -> 0 | J39: ='8'!N39 -> 0 | K39: ='9'!N39 -> 0 | L39: ='10'!N39 -> 0 | M39: 0 | O39: =SUMIF(Navires!$B$2:$BE$2,$A$2&O$2,Navires!$B39:$BE39)/0.54*IF($AB39>$B39,$B39/$AB39,1) -> 0 | P39: =SUMIF(Navires!$B$2:$BE$2,$A$2&P$2,Navires!$B39:$BE39)/0.54*IF($AB39>$B39,$B39/$AB39,1) -> 0 | Q39: =SUMIF(Navires!$B$2:$BE$2,$A$2&Q$2,Navires!$B39:$BE39)/0.54*IF($AB39>$B39,$B39/$AB39,1) -> 0 | R39: =SUMIF(Navires!$B$2:$BE$2,$A$2&R$2,Navires!$B39:$BE39)/0.54*IF($AB39>$B39,$B39/$AB39,1) -> 0 | S39: =SUMIF(Navires!$B$2:$BE$2,$A$2&S$2,Navires!$B39:$BE39)/0.54*IF($AB39>$B39,$B39/$AB39,1) -> 0 | T39: =SUMIF(Navires!$B$2:$BE$2,$A$2&T$2,Navires!$B39:$BE39)/0.54*IF($AB39>$B39,$B39/$AB39,1) -> 0 | U39: =SUMIF(Navires!$B$2:$BE$2,$A$2&U$2,Navires!$B39:$BE39)/0.54*IF($AB39>$B39,$B39/$AB39,1) -> 0 | V39: =SUMIF(Navires!$B$2:$BE$2,$A$2&V$2,Navires!$B39:$BE39)/0.54*IF($AB39>$B39,$B39/$AB39,1) -> 0 | W39: =SUMIF(Navires!$B$2:$BE$2,$A$2&W$2,Navires!$B39:$BE39)/0.54*IF($AB39>$B39,$B39/$AB39,1) -> 0 | X39: 0 | Y39: =ProdBesoins!C41 -> 0 | AA39: =(SUMIF(Navires!$B$2:$BE$2,">9",Navires!$B39:$BE39)-SUMIF(Navires!$B$2:$BE$2,">19",Navires!$B39:$BE39))/0.54/(IF(ISERR((B39+'2'!N39+'3'!N39+'4'!N39+'5'!N39+'6'!N39+'7'!N39+'8'!N39+'9'!N39+'10'!N39)/B39),1,(B39+'2'!N39+'3'!N39+'4'!N39+'5'!N39+'6'!N39+'7'!N39+'8'!N39+'9'!N39+'10'!N39)/B39))+Y39 -> 0 | AB39: 0
A40: Chanvre | B40: =ProdBesoins!B42 -> 0 | D40: ='2'!N40 -> 0 | E40: ='3'!N40 -> 0 | F40: ='4'!N40 -> 0 | G40: ='5'!N40 -> 0 | H40: ='6'!N40 -> 0 | I40: ='7'!N40 -> 0 | J40: ='8'!N40 -> 0 | K40: ='9'!N40 -> 0 | L40: ='10'!N40 -> 0 | M40: 0 | O40: =SUMIF(Navires!$B$2:$BE$2,$A$2&O$2,Navires!$B40:$BE40)/0.54*IF($AB40>$B40,$B40/$AB40,1) -> 0 | P40: =SUMIF(Navires!$B$2:$BE$2,$A$2&P$2,Navires!$B40:$BE40)/0.54*IF($AB40>$B40,$B40/$AB40,1) -> 0 | Q40: =SUMIF(Navires!$B$2:$BE$2,$A$2&Q$2,Navires!$B40:$BE40)/0.54*IF($AB40>$B40,$B40/$AB40,1) -> 0 | R40: =SUMIF(Navires!$B$2:$BE$2,$A$2&R$2,Navires!$B40:$BE40)/0.54*IF($AB40>$B40,$B40/$AB40,1) -> 0 | S40: =SUMIF(Navires!$B$2:$BE$2,$A$2&S$2,Navires!$B40:$BE40)/0.54*IF($AB40>$B40,$B40/$AB40,1) -> 0 | T40: =SUMIF(Navires!$B$2:$BE$2,$A$2&T$2,Navires!$B40:$BE40)/0.54*IF($AB40>$B40,$B40/$AB40,1) -> 0 | U40: =SUMIF(Navires!$B$2:$BE$2,$A$2&U$2,Navires!$B40:$BE40)/0.54*IF($AB40>$B40,$B40/$AB40,1) -> 0 | V40: =SUMIF(Navires!$B$2:$BE$2,$A$2&V$2,Navires!$B40:$BE40)/0.54*IF($AB40>$B40,$B40/$AB40,1) -> 0 | W40: =SUMIF(Navires!$B$2:$BE$2,$A$2&W$2,Navires!$B40:$BE40)/0.54*IF($AB40>$B40,$B40/$AB40,1) -> 0 | X40: 0 | Y40: =ProdBesoins!C42 -> 0 | AA40: =(SUMIF(Navires!$B$2:$BE$2,">9",Navires!$B40:$BE40)-SUMIF(Navires!$B$2:$BE$2,">19",Navires!$B40:$BE40))/0.54/(IF(ISERR((B40+'2'!N40+'3'!N40+'4'!N40+'5'!N40+'6'!N40+'7'!N40+'8'!N40+'9'!N40+'10'!N40)/B40),1,(B40+'2'!N40+'3'!N40+'4'!N40+'5'!N40+'6'!N40+'7'!N40+'8'!N40+'9'!N40+'10'!N40)/B40))+Y40 -> 0 | AB40: 0
A41: Vêtements en lin | B41: =ProdBesoins!B43 -> 0 | D41: ='2'!N41 -> 0 | E41: ='3'!N41 -> 0 | F41: ='4'!N41 -> 0 | G41: ='5'!N41 -> 0 | H41: ='6'!N41 -> 0 | I41: ='7'!N41 -> 0 | J41: ='8'!N41 -> 0 | K41: ='9'!N41 -> 0 | L41: ='10'!N41 -> 0 | M41: 0 | O41: =SUMIF(Navires!$B$2:$BE$2,$A$2&O$2,Navires!$B41:$BE41)/0.54*IF($AB41>$B41,$B41/$AB41,1) -> 0 | P41: =SUMIF(Navires!$B$2:$BE$2,$A$2&P$2,Navires!$B41:$BE41)/0.54*IF($AB41>$B41,$B41/$AB41,1) -> 0 | Q41: =SUMIF(Navires!$B$2:$BE$2,$A$2&Q$2,Navires!$B41:$BE41)/0.54*IF($AB41>$B41,$B41/$AB41,1) -> 0 | R41: =SUMIF(Navires!$B$2:$BE$2,$A$2&R$2,Navires!$B41:$BE41)/0.54*IF($AB41>$B41,$B41/$AB41,1) -> 0 | S41: =SUMIF(Navires!$B$2:$BE$2,$A$2&S$2,Navires!$B41:$BE41)/0.54*IF($AB41>$B41,$B41/$AB41,1) -> 0 | T41: =SUMIF(Navires!$B$2:$BE$2,$A$2&T$2,Navires!$B41:$BE41)/0.54*IF($AB41>$B41,$B41/$AB41,1) -> 0 | U41: =SUMIF(Navires!$B$2:$BE$2,$A$2&U$2,Navires!$B41:$BE41)/0.54*IF($AB41>$B41,$B41/$AB41,1) -> 0 | V41: =SUMIF(Navires!$B$2:$BE$2,$A$2&V$2,Navires!$B41:$BE41)/0.54*IF($AB41>$B41,$B41/$AB41,1) -> 0 | W41: =SUMIF(Navires!$B$2:$BE$2,$A$2&W$2,Navires!$B41:$BE41)/0.54*IF($AB41>$B41,$B41/$AB41,1) -> 0 | X41: 0 | Y41: =ProdBesoins!C43 -> 0 | AA41: =(SUMIF(Navires!$B$2:$BE$2,">9",Navires!$B41:$BE41)-SUMIF(Navires!$B$2:$BE$2,">19",Navires!$B41:$BE41))/0.54/(IF(ISERR((B41+'2'!N41+'3'!N41+'4'!N41+'5'!N41+'6'!N41+'7'!N41+'8'!N41+'9'!N41+'10'!N41)/B41),1,(B41+'2'!N41+'3'!N41+'4'!N41+'5'!N41+'6'!N41+'7'!N41+'8'!N41+'9'!N41+'10'!N41)/B41))+Y41 -> 0 | AB41: 0
A42: Charbon | B42: =ProdBesoins!B44 -> 0 | D42: =FIXED(D$7,0) -> 0 | E42: 0 | F42: 0 | G42: 0 | H42: 0 | I42: 0 | J42: 0 | K42: 0 | L42: 0 | M42: 0 | O42: 0 | P42: 0 | Q42: 0 | R42: 0 | S42: 0 | T42: 0 | U42: 0 | V42: 0 | W42: 0 | X42: =FIXED(X$7,0) -> 0 | Y42: =ProdBesoins!C44 -> 0
A43: Saumure | B43: =ProdBesoins!B45 -> 0 | D43: =FIXED(D$21,0) -> 0 | E43: 0 | F43: 0 | G43: 0 | H43: 0 | I43: 0 | J43: 0 | K43: 0 | L43: 0 | M43: 0 | O43: 0 | P43: 0 | Q43: 0 | R43: 0 | S43: 0 | T43: 0 | U43: 0 | V43: 0 | W43: 0 | X43: =FIXED(X$21,0) -> 0 | Y43: =ProdBesoins!C45 -> 0
A44: Sel | B44: =ProdBesoins!B46 -> 0 | D44: =FIXED(D$22,0) -> 0 | E44: 0 | F44: 0 | G44: 0 | H44: 0 | I44: 0 | J44: 0 | K44: 0 | L44: 0 | M44: 0 | O44: 0 | P44: 0 | Q44: 0 | R44: 0 | S44: 0 | T44: 0 | U44: 0 | V44: 0 | W44: 0 | X44: =FIXED(X$22,0) -> 0 | Y44: =ProdBesoins!C46 -> 0
A45: Peaux animales | B45: =ProdBesoins!B47 -> 0 | D45: ='2'!N45 -> 0 | E45: ='3'!N45 -> 0 | F45: ='4'!N45 -> 0 | G45: ='5'!N45 -> 0 | H45: ='6'!N45 -> 0 | I45: ='7'!N45 -> 0 | J45: ='8'!N45 -> 0 | K45: ='9'!N45 -> 0 | L45: ='10'!N45 -> 0 | M45: =SUM(B45:L45) -> 0 | O45: =SUMIF(Navires!$B$2:$BE$2,$A$2&O$2,Navires!$B45:$BE45)/0.54*IF($AB45>$B45,$B45/$AB45,1) -> 0 | P45: =SUMIF(Navires!$B$2:$BE$2,$A$2&P$2,Navires!$B45:$BE45)/0.54*IF($AB45>$B45,$B45/$AB45,1) -> 0 | Q45: =SUMIF(Navires!$B$2:$BE$2,$A$2&Q$2,Navires!$B45:$BE45)/0.54*IF($AB45>$B45,$B45/$AB45,1) -> 0 | R45: =SUMIF(Navires!$B$2:$BE$2,$A$2&R$2,Navires!$B45:$BE45)/0.54*IF($AB45>$B45,$B45/$AB45,1) -> 0 | S45: =SUMIF(Navires!$B$2:$BE$2,$A$2&S$2,Navires!$B45:$BE45)/0.54*IF($AB45>$B45,$B45/$AB45,1) -> 0 | T45: =SUMIF(Navires!$B$2:$BE$2,$A$2&T$2,Navires!$B45:$BE45)/0.54*IF($AB45>$B45,$B45/$AB45,1) -> 0 | U45: =SUMIF(Navires!$B$2:$BE$2,$A$2&U$2,Navires!$B45:$BE45)/0.54*IF($AB45>$B45,$B45/$AB45,1) -> 0 | V45: =SUMIF(Navires!$B$2:$BE$2,$A$2&V$2,Navires!$B45:$BE45)/0.54*IF($AB45>$B45,$B45/$AB45,1) -> 0 | W45: =SUMIF(Navires!$B$2:$BE$2,$A$2&W$2,Navires!$B45:$BE45)/0.54*IF($AB45>$B45,$B45/$AB45,1) -> 0 | X45: =M45-SUM(N45:W45) -> 0 | Y45: =ProdBesoins!C47 -> 0 | AA45: =(SUMIF(Navires!$B$2:$BE$2,">9",Navires!$B45:$BE45)-SUMIF(Navires!$B$2:$BE$2,">19",Navires!$B45:$BE45))/0.54/(IF(ISERR((B45+'2'!N45+'3'!N45+'4'!N45+'5'!N45+'6'!N45+'7'!N45+'8'!N45+'9'!N45+'10'!N45)/B45),1,(B45+'2'!N45+'3'!N45+'4'!N45+'5'!N45+'6'!N45+'7'!N45+'8'!N45+'9'!N45+'10'!N45)/B45))+Y45 -> 0 | AB45: 0
A46: Justaucorps en cuir | B46: =ProdBesoins!B48 -> 0 | D46: ='2'!N46 -> 0 | E46: ='3'!N46 -> 0 | F46: ='4'!N46 -> 0 | G46: ='5'!N46 -> 0 | H46: ='6'!N46 -> 0 | I46: ='7'!N46 -> 0 | J46: ='8'!N46 -> 0 | K46: ='9'!N46 -> 0 | L46: ='10'!N46 -> 0 | M46: 0 | O46: =SUMIF(Navires!$B$2:$BE$2,$A$2&O$2,Navires!$B46:$BE46)/0.54*IF($AB46>$B46,$B46/$AB46,1) -> 0 | P46: =SUMIF(Navires!$B$2:$BE$2,$A$2&P$2,Navires!$B46:$BE46)/0.54*IF($AB46>$B46,$B46/$AB46,1) -> 0 | Q46: =SUMIF(Navires!$B$2:$BE$2,$A$2&Q$2,Navires!$B46:$BE46)/0.54*IF($AB46>$B46,$B46/$AB46,1) -> 0 | R46: =SUMIF(Navires!$B$2:$BE$2,$A$2&R$2,Navires!$B46:$BE46)/0.54*IF($AB46>$B46,$B46/$AB46,1) -> 0 | S46: =SUMIF(Navires!$B$2:$BE$2,$A$2&S$2,Navires!$B46:$BE46)/0.54*IF($AB46>$B46,$B46/$AB46,1) -> 0 | T46: =SUMIF(Navires!$B$2:$BE$2,$A$2&T$2,Navires!$B46:$BE46)/0.54*IF($AB46>$B46,$B46/$AB46,1) -> 0 | U46: =SUMIF(Navires!$B$2:$BE$2,$A$2&U$2,Navires!$B46:$BE46)/0.54*IF($AB46>$B46,$B46/$AB46,1) -> 0 | V46: =SUMIF(Navires!$B$2:$BE$2,$A$2&V$2,Navires!$B46:$BE46)/0.54*IF($AB46>$B46,$B46/$AB46,1) -> 0 | W46: =SUMIF(Navires!$B$2:$BE$2,$A$2&W$2,Navires!$B46:$BE46)/0.54*IF($AB46>$B46,$B46/$AB46,1) -> 0 | X46: 0 | Y46: =ProdBesoins!C48 -> 0 | AA46: =(SUMIF(Navires!$B$2:$BE$2,">9",Navires!$B46:$BE46)-SUMIF(Navires!$B$2:$BE$2,">19",Navires!$B46:$BE46))/0.54/(IF(ISERR((B46+'2'!N46+'3'!N46+'4'!N46+'5'!N46+'6'!N46+'7'!N46+'8'!N46+'9'!N46+'10'!N46)/B46),1,(B46+'2'!N46+'3'!N46+'4'!N46+'5'!N46+'6'!N46+'7'!N46+'8'!N46+'9'!N46+'10'!N46)/B46))+Y46 -> 0 | AB46: 0
A47: Fourrures | B47: =ProdBesoins!B49 -> 0 | D47: ='2'!N47 -> 0 | E47: ='3'!N47 -> 0 | F47: ='4'!N47 -> 0 | G47: ='5'!N47 -> 0 | H47: ='6'!N47 -> 0 | I47: ='7'!N47 -> 0 | J47: ='8'!N47 -> 0 | K47: ='9'!N47 -> 0 | L47: ='10'!N47 -> 0 | M47: 0 | O47: =SUMIF(Navires!$B$2:$BE$2,$A$2&O$2,Navires!$B47:$BE47)/0.54*IF($AB47>$B47,$B47/$AB47,1) -> 0 | P47: =SUMIF(Navires!$B$2:$BE$2,$A$2&P$2,Navires!$B47:$BE47)/0.54*IF($AB47>$B47,$B47/$AB47,1) -> 0 | Q47: =SUMIF(Navires!$B$2:$BE$2,$A$2&Q$2,Navires!$B47:$BE47)/0.54*IF($AB47>$B47,$B47/$AB47,1) -> 0 | R47: =SUMIF(Navires!$B$2:$BE$2,$A$2&R$2,Navires!$B47:$BE47)/0.54*IF($AB47>$B47,$B47/$AB47,1) -> 0 | S47: =SUMIF(Navires!$B$2:$BE$2,$A$2&S$2,Navires!$B47:$BE47)/0.54*IF($AB47>$B47,$B47/$AB47,1) -> 0 | T47: =SUMIF(Navires!$B$2:$BE$2,$A$2&T$2,Navires!$B47:$BE47)/0.54*IF($AB47>$B47,$B47/$AB47,1) -> 0 | U47: =SUMIF(Navires!$B$2:$BE$2,$A$2&U$2,Navires!$B47:$BE47)/0.54*IF($AB47>$B47,$B47/$AB47,1) -> 0 | V47: =SUMIF(Navires!$B$2:$BE$2,$A$2&V$2,Navires!$B47:$BE47)/0.54*IF($AB47>$B47,$B47/$AB47,1) -> 0 | W47: =SUMIF(Navires!$B$2:$BE$2,$A$2&W$2,Navires!$B47:$BE47)/0.54*IF($AB47>$B47,$B47/$AB47,1) -> 0 | X47: 0 | Y47: =ProdBesoins!C49 -> 0 | AA47: =(SUMIF(Navires!$B$2:$BE$2,">9",Navires!$B47:$BE47)-SUMIF(Navires!$B$2:$BE$2,">19",Navires!$B47:$BE47))/0.54/(IF(ISERR((B47+'2'!N47+'3'!N47+'4'!N47+'5'!N47+'6'!N47+'7'!N47+'8'!N47+'9'!N47+'10'!N47)/B47),1,(B47+'2'!N47+'3'!N47+'4'!N47+'5'!N47+'6'!N47+'7'!N47+'8'!N47+'9'!N47+'10'!N47)/B47))+Y47 -> 0 | AB47: 0
A48: Manteaux de fourrure | B48: =ProdBesoins!B50 -> 0 | D48: ='2'!N48 -> 0 | E48: ='3'!N48 -> 0 | F48: ='4'!N48 -> 0 | G48: ='5'!N48 -> 0 | H48: ='6'!N48 -> 0 | I48: ='7'!N48 -> 0 | J48: ='8'!N48 -> 0 | K48: ='9'!N48 -> 0 | L48: ='10'!N48 -> 0 | M48: 0 | O48: =SUMIF(Navires!$B$2:$BE$2,$A$2&O$2,Navires!$B48:$BE48)/0.54*IF($AB48>$B48,$B48/$AB48,1) -> 0 | P48: =SUMIF(Navires!$B$2:$BE$2,$A$2&P$2,Navires!$B48:$BE48)/0.54*IF($AB48>$B48,$B48/$AB48,1) -> 0 | Q48: =SUMIF(Navires!$B$2:$BE$2,$A$2&Q$2,Navires!$B48:$BE48)/0.54*IF($AB48>$B48,$B48/$AB48,1) -> 0 | R48: =SUMIF(Navires!$B$2:$BE$2,$A$2&R$2,Navires!$B48:$BE48)/0.54*IF($AB48>$B48,$B48/$AB48,1) -> 0 | S48: =SUMIF(Navires!$B$2:$BE$2,$A$2&S$2,Navires!$B48:$BE48)/0.54*IF($AB48>$B48,$B48/$AB48,1) -> 0 | T48: =SUMIF(Navires!$B$2:$BE$2,$A$2&T$2,Navires!$B48:$BE48)/0.54*IF($AB48>$B48,$B48/$AB48,1) -> 0 | U48: =SUMIF(Navires!$B$2:$BE$2,$A$2&U$2,Navires!$B48:$BE48)/0.54*IF($AB48>$B48,$B48/$AB48,1) -> 0 | V48: =SUMIF(Navires!$B$2:$BE$2,$A$2&V$2,Navires!$B48:$BE48)/0.54*IF($AB48>$B48,$B48/$AB48,1) -> 0 | W48: =SUMIF(Navires!$B$2:$BE$2,$A$2&W$2,Navires!$B48:$BE48)/0.54*IF($AB48>$B48,$B48/$AB48,1) -> 0 | X48: 0 | Y48: =ProdBesoins!C50 -> 0 | AA48: =(SUMIF(Navires!$B$2:$BE$2,">9",Navires!$B48:$BE48)-SUMIF(Navires!$B$2:$BE$2,">19",Navires!$B48:$BE48))/0.54/(IF(ISERR((B48+'2'!N48+'3'!N48+'4'!N48+'5'!N48+'6'!N48+'7'!N48+'8'!N48+'9'!N48+'10'!N48)/B48),1,(B48+'2'!N48+'3'!N48+'4'!N48+'5'!N48+'6'!N48+'7'!N48+'8'!N48+'9'!N48+'10'!N48)/B48))+Y48 -> 0 | AB48: 0
A49: Charbon | B49: =ProdBesoins!B51 -> 0 | D49: =FIXED(D$7,0) -> 0 | E49: 0 | F49: 0 | G49: 0 | H49: 0 | I49: 0 | J49: 0 | K49: 0 | L49: 0 | M49: 0 | O49: 0 | P49: 0 | Q49: 0 | R49: 0 | S49: 0 | T49: 0 | U49: 0 | V49: 0 | W49: 0 | X49: =FIXED(X$7,0) -> 0 | Y49: =ProdBesoins!C51 -> 0
A50: Minerai d'or | B50: =ProdBesoins!B52 -> 0 | D50: ='2'!N50 -> 0 | E50: ='3'!N50 -> 0 | F50: ='4'!N50 -> 0 | G50: ='5'!N50 -> 0 | H50: ='6'!N50 -> 0 | I50: ='7'!N50 -> 0 | J50: ='8'!N50 -> 0 | K50: ='9'!N50 -> 0 | L50: ='10'!N50 -> 0 | M50: =SUM(B50:L50) -> 0 | O50: =SUMIF(Navires!$B$2:$BE$2,$A$2&O$2,Navires!$B50:$BE50)/0.54*IF($AB50>$B50,$B50/$AB50,1) -> 0 | P50: =SUMIF(Navires!$B$2:$BE$2,$A$2&P$2,Navires!$B50:$BE50)/0.54*IF($AB50>$B50,$B50/$AB50,1) -> 0 | Q50: =SUMIF(Navires!$B$2:$BE$2,$A$2&Q$2,Navires!$B50:$BE50)/0.54*IF($AB50>$B50,$B50/$AB50,1) -> 0 | R50: =SUMIF(Navires!$B$2:$BE$2,$A$2&R$2,Navires!$B50:$BE50)/0.54*IF($AB50>$B50,$B50/$AB50,1) -> 0 | S50: =SUMIF(Navires!$B$2:$BE$2,$A$2&S$2,Navires!$B50:$BE50)/0.54*IF($AB50>$B50,$B50/$AB50,1) -> 0 | T50: =SUMIF(Navires!$B$2:$BE$2,$A$2&T$2,Navires!$B50:$BE50)/0.54*IF($AB50>$B50,$B50/$AB50,1) -> 0 | U50: =SUMIF(Navires!$B$2:$BE$2,$A$2&U$2,Navires!$B50:$BE50)/0.54*IF($AB50>$B50,$B50/$AB50,1) -> 0 | V50: =SUMIF(Navires!$B$2:$BE$2,$A$2&V$2,Navires!$B50:$BE50)/0.54*IF($AB50>$B50,$B50/$AB50,1) -> 0 | W50: =SUMIF(Navires!$B$2:$BE$2,$A$2&W$2,Navires!$B50:$BE50)/0.54*IF($AB50>$B50,$B50/$AB50,1) -> 0 | X50: =M50-SUM(N50:W50) -> 0 | Y50: =ProdBesoins!C52 -> 0 | AA50: =(SUMIF(Navires!$B$2:$BE$2,">9",Navires!$B50:$BE50)-SUMIF(Navires!$B$2:$BE$2,">19",Navires!$B50:$BE50))/0.54/(IF(ISERR((B50+'2'!N50+'3'!N50+'4'!N50+'5'!N50+'6'!N50+'7'!N50+'8'!N50+'9'!N50+'10'!N50)/B50),1,(B50+'2'!N50+'3'!N50+'4'!N50+'5'!N50+'6'!N50+'7'!N50+'8'!N50+'9'!N50+'10'!N50)/B50))+Y50 -> 0 | AB50: 0
A51: Or | B51: =ProdBesoins!B53 -> 0 | D51: ='2'!N51 -> 0 | E51: ='3'!N51 -> 0 | F51: ='4'!N51 -> 0 | G51: ='5'!N51 -> 0 | H51: ='6'!N51 -> 0 | I51: ='7'!N51 -> 0 | J51: ='8'!N51 -> 0 | K51: ='9'!N51 -> 0 | L51: ='10'!N51 -> 0 | M51: =SUM(B51:L51) -> 0 | O51: =SUMIF(Navires!$B$2:$BE$2,$A$2&O$2,Navires!$B51:$BE51)/0.54*IF($AB51>$B51,$B51/$AB51,1) -> 0 | P51: =SUMIF(Navires!$B$2:$BE$2,$A$2&P$2,Navires!$B51:$BE51)/0.54*IF($AB51>$B51,$B51/$AB51,1) -> 0 | Q51: =SUMIF(Navires!$B$2:$BE$2,$A$2&Q$2,Navires!$B51:$BE51)/0.54*IF($AB51>$B51,$B51/$AB51,1) -> 0 | R51: =SUMIF(Navires!$B$2:$BE$2,$A$2&R$2,Navires!$B51:$BE51)/0.54*IF($AB51>$B51,$B51/$AB51,1) -> 0 | S51: =SUMIF(Navires!$B$2:$BE$2,$A$2&S$2,Navires!$B51:$BE51)/0.54*IF($AB51>$B51,$B51/$AB51,1) -> 0 | T51: =SUMIF(Navires!$B$2:$BE$2,$A$2&T$2,Navires!$B51:$BE51)/0.54*IF($AB51>$B51,$B51/$AB51,1) -> 0 | U51: =SUMIF(Navires!$B$2:$BE$2,$A$2&U$2,Navires!$B51:$BE51)/0.54*IF($AB51>$B51,$B51/$AB51,1) -> 0 | V51: =SUMIF(Navires!$B$2:$BE$2,$A$2&V$2,Navires!$B51:$BE51)/0.54*IF($AB51>$B51,$B51/$AB51,1) -> 0 | W51: =SUMIF(Navires!$B$2:$BE$2,$A$2&W$2,Navires!$B51:$BE51)/0.54*IF($AB51>$B51,$B51/$AB51,1) -> 0 | X51: 0 | Y51: =ProdBesoins!C53 -> 0 | AA51: =(SUMIF(Navires!$B$2:$BE$2,">9",Navires!$B51:$BE51)-SUMIF(Navires!$B$2:$BE$2,">19",Navires!$B51:$BE51))/0.54/(IF(ISERR((B51+'2'!N51+'3'!N51+'4'!N51+'5'!N51+'6'!N51+'7'!N51+'8'!N51+'9'!N51+'10'!N51)/B51),1,(B51+'2'!N51+'3'!N51+'4'!N51+'5'!N51+'6'!N51+'7'!N51+'8'!N51+'9'!N51+'10'!N51)/B51))+Y51 -> 0 | AB51: 0
A52: Soierie | B52: =ProdBesoins!B54 -> 0 | D52: ='2'!N52 -> 0 | E52: ='3'!N52 -> 0 | F52: ='4'!N52 -> 0 | G52: ='5'!N52 -> 0 | H52: ='6'!N52 -> 0 | I52: ='7'!N52 -> 0 | J52: ='8'!N52 -> 0 | K52: ='9'!N52 -> 0 | L52: ='10'!N52 -> 0 | M52: 0 | O52: =SUMIF(Navires!$B$2:$BE$2,$A$2&O$2,Navires!$B52:$BE52)/0.54*IF($AB52>$B52,$B52/$AB52,1) -> 0 | P52: =SUMIF(Navires!$B$2:$BE$2,$A$2&P$2,Navires!$B52:$BE52)/0.54*IF($AB52>$B52,$B52/$AB52,1) -> 0 | Q52: =SUMIF(Navires!$B$2:$BE$2,$A$2&Q$2,Navires!$B52:$BE52)/0.54*IF($AB52>$B52,$B52/$AB52,1) -> 0 | R52: =SUMIF(Navires!$B$2:$BE$2,$A$2&R$2,Navires!$B52:$BE52)/0.54*IF($AB52>$B52,$B52/$AB52,1) -> 0 | S52: =SUMIF(Navires!$B$2:$BE$2,$A$2&S$2,Navires!$B52:$BE52)/0.54*IF($AB52>$B52,$B52/$AB52,1) -> 0 | T52: =SUMIF(Navires!$B$2:$BE$2,$A$2&T$2,Navires!$B52:$BE52)/0.54*IF($AB52>$B52,$B52/$AB52,1) -> 0 | U52: =SUMIF(Navires!$B$2:$BE$2,$A$2&U$2,Navires!$B52:$BE52)/0.54*IF($AB52>$B52,$B52/$AB52,1) -> 0 | V52: =SUMIF(Navires!$B$2:$BE$2,$A$2&V$2,Navires!$B52:$BE52)/0.54*IF($AB52>$B52,$B52/$AB52,1) -> 0 | W52: =SUMIF(Navires!$B$2:$BE$2,$A$2&W$2,Navires!$B52:$BE52)/0.54*IF($AB52>$B52,$B52/$AB52,1) -> 0 | X52: 0 | Y52: =ProdBesoins!C54 -> 0 | AA52: =(SUMIF(Navires!$B$2:$BE$2,">9",Navires!$B52:$BE52)-SUMIF(Navires!$B$2:$BE$2,">19",Navires!$B52:$BE52))/0.54/(IF(ISERR((B52+'2'!N52+'3'!N52+'4'!N52+'5'!N52+'6'!N52+'7'!N52+'8'!N52+'9'!N52+'10'!N52)/B52),1,(B52+'2'!N52+'3'!N52+'4'!N52+'5'!N52+'6'!N52+'7'!N52+'8'!N52+'9'!N52+'10'!N52)/B52))+Y52 -> 0 | AB52: 0
A53: Robes en brocart | B53: =ProdBesoins!B55 -> 0 | D53: ='2'!N53 -> 0 | E53: ='3'!N53 -> 0 | F53: ='4'!N53 -> 0 | G53: ='5'!N53 -> 0 | H53: ='6'!N53 -> 0 | I53: ='7'!N53 -> 0 | J53: ='8'!N53 -> 0 | K53: ='9'!N53 -> 0 | L53: ='10'!N53 -> 0 | M53: 0 | O53: =SUMIF(Navires!$B$2:$BE$2,$A$2&O$2,Navires!$B53:$BE53)/0.54*IF($AB53>$B53,$B53/$AB53,1) -> 0 | P53: =SUMIF(Navires!$B$2:$BE$2,$A$2&P$2,Navires!$B53:$BE53)/0.54*IF($AB53>$B53,$B53/$AB53,1) -> 0 | Q53: =SUMIF(Navires!$B$2:$BE$2,$A$2&Q$2,Navires!$B53:$BE53)/0.54*IF($AB53>$B53,$B53/$AB53,1) -> 0 | R53: =SUMIF(Navires!$B$2:$BE$2,$A$2&R$2,Navires!$B53:$BE53)/0.54*IF($AB53>$B53,$B53/$AB53,1) -> 0 | S53: =SUMIF(Navires!$B$2:$BE$2,$A$2&S$2,Navires!$B53:$BE53)/0.54*IF($AB53>$B53,$B53/$AB53,1) -> 0 | T53: =SUMIF(Navires!$B$2:$BE$2,$A$2&T$2,Navires!$B53:$BE53)/0.54*IF($AB53>$B53,$B53/$AB53,1) -> 0 | U53: =SUMIF(Navires!$B$2:$BE$2,$A$2&U$2,Navires!$B53:$BE53)/0.54*IF($AB53>$B53,$B53/$AB53,1) -> 0 | V53: =SUMIF(Navires!$B$2:$BE$2,$A$2&V$2,Navires!$B53:$BE53)/0.54*IF($AB53>$B53,$B53/$AB53,1) -> 0 | W53: =SUMIF(Navires!$B$2:$BE$2,$A$2&W$2,Navires!$B53:$BE53)/0.54*IF($AB53>$B53,$B53/$AB53,1) -> 0 | X53: 0 | Y53: =ProdBesoins!C55 -> 0 | AA53: =(SUMIF(Navires!$B$2:$BE$2,">9",Navires!$B53:$BE53)-SUMIF(Navires!$B$2:$BE$2,">19",Navires!$B53:$BE53))/0.54/(IF(ISERR((B53+'2'!N53+'3'!N53+'4'!N53+'5'!N53+'6'!N53+'7'!N53+'8'!N53+'9'!N53+'10'!N53)/B53),1,(B53+'2'!N53+'3'!N53+'4'!N53+'5'!N53+'6'!N53+'7'!N53+'8'!N53+'9'!N53+'10'!N53)/B53))+Y53 -> 0 | AB53: 0
B54: =ProdBesoins!B56 -> 0 | Y54: =ProdBesoins!C56 -> 0
A55: Bois | B55: =ProdBesoins!B57 -> 0 | D55: =FIXED(D$5,0) -> 0 | E55: 0 | F55: 0 | G55: 0 | H55: 0 | I55: 0 | J55: 0 | K55: 0 | L55: 0 | M55: 0 | O55: 0 | P55: 0 | Q55: 0 | R55: 0 | S55: 0 | T55: 0 | U55: 0 | V55: 0 | W55: 0 | X55: =FIXED(X$5,0) -> 0 | Y55: =ProdBesoins!C57 -> 0
A56: Papier | B56: =ProdBesoins!B58 -> 0 | D56: ='2'!N56 -> 0 | E56: ='3'!N56 -> 0 | F56: ='4'!N56 -> 0 | G56: ='5'!N56 -> 0 | H56: ='6'!N56 -> 0 | I56: ='7'!N56 -> 0 | J56: ='8'!N56 -> 0 | K56: ='9'!N56 -> 0 | L56: ='10'!N56 -> 0 | M56: =SUM(B56:L56) -> 0 | O56: =SUMIF(Navires!$B$2:$BE$2,$A$2&O$2,Navires!$B56:$BE56)/0.54*IF($AB56>$B56,$B56/$AB56,1) -> 0 | P56: =SUMIF(Navires!$B$2:$BE$2,$A$2&P$2,Navires!$B56:$BE56)/0.54*IF($AB56>$B56,$B56/$AB56,1) -> 0 | Q56: =SUMIF(Navires!$B$2:$BE$2,$A$2&Q$2,Navires!$B56:$BE56)/0.54*IF($AB56>$B56,$B56/$AB56,1) -> 0 | R56: =SUMIF(Navires!$B$2:$BE$2,$A$2&R$2,Navires!$B56:$BE56)/0.54*IF($AB56>$B56,$B56/$AB56,1) -> 0 | S56: =SUMIF(Navires!$B$2:$BE$2,$A$2&S$2,Navires!$B56:$BE56)/0.54*IF($AB56>$B56,$B56/$AB56,1) -> 0 | T56: =SUMIF(Navires!$B$2:$BE$2,$A$2&T$2,Navires!$B56:$BE56)/0.54*IF($AB56>$B56,$B56/$AB56,1) -> 0 | U56: =SUMIF(Navires!$B$2:$BE$2,$A$2&U$2,Navires!$B56:$BE56)/0.54*IF($AB56>$B56,$B56/$AB56,1) -> 0 | V56: =SUMIF(Navires!$B$2:$BE$2,$A$2&V$2,Navires!$B56:$BE56)/0.54*IF($AB56>$B56,$B56/$AB56,1) -> 0 | W56: =SUMIF(Navires!$B$2:$BE$2,$A$2&W$2,Navires!$B56:$BE56)/0.54*IF($AB56>$B56,$B56/$AB56,1) -> 0 | X56: =M56-SUM(N56:W56) -> 0 | Y56: =ProdBesoins!C58 -> 0 | AA56: =(SUMIF(Navires!$B$2:$BE$2,">9",Navires!$B56:$BE56)-SUMIF(Navires!$B$2:$BE$2,">19",Navires!$B56:$BE56))/0.54/(IF(ISERR((B56+'2'!N56+'3'!N56+'4'!N56+'5'!N56+'6'!N56+'7'!N56+'8'!N56+'9'!N56+'10'!N56)/B56),1,(B56+'2'!N56+'3'!N56+'4'!N56+'5'!N56+'6'!N56+'7'!N56+'8'!N56+'9'!N56+'10'!N56)/B56))+Y56 -> 0 | AB56: 0
A57: Teinturerie | B57: =ProdBesoins!B59 -> 0 | D57: ='2'!N57 -> 0 | E57: ='3'!N57 -> 0 | F57: ='4'!N57 -> 0 | G57: ='5'!N57 -> 0 | H57: ='6'!N57 -> 0 | I57: ='7'!N57 -> 0 | J57: ='8'!N57 -> 0 | K57: ='9'!N57 -> 0 | L57: ='10'!N57 -> 0 | M57: 0 | O57: =SUMIF(Navires!$B$2:$BE$2,$A$2&O$2,Navires!$B57:$BE57)/0.54*IF($AB57>$B57,$B57/$AB57,1) -> 0 | P57: =SUMIF(Navires!$B$2:$BE$2,$A$2&P$2,Navires!$B57:$BE57)/0.54*IF($AB57>$B57,$B57/$AB57,1) -> 0 | Q57: =SUMIF(Navires!$B$2:$BE$2,$A$2&Q$2,Navires!$B57:$BE57)/0.54*IF($AB57>$B57,$B57/$AB57,1) -> 0 | R57: =SUMIF(Navires!$B$2:$BE$2,$A$2&R$2,Navires!$B57:$BE57)/0.54*IF($AB57>$B57,$B57/$AB57,1) -> 0 | S57: =SUMIF(Navires!$B$2:$BE$2,$A$2&S$2,Navires!$B57:$BE57)/0.54*IF($AB57>$B57,$B57/$AB57,1) -> 0 | T57: =SUMIF(Navires!$B$2:$BE$2,$A$2&T$2,Navires!$B57:$BE57)/0.54*IF($AB57>$B57,$B57/$AB57,1) -> 0 | U57: =SUMIF(Navires!$B$2:$BE$2,$A$2&U$2,Navires!$B57:$BE57)/0.54*IF($AB57>$B57,$B57/$AB57,1) -> 0 | V57: =SUMIF(Navires!$B$2:$BE$2,$A$2&V$2,Navires!$B57:$BE57)/0.54*IF($AB57>$B57,$B57/$AB57,1) -> 0 | W57: =SUMIF(Navires!$B$2:$BE$2,$A$2&W$2,Navires!$B57:$BE57)/0.54*IF($AB57>$B57,$B57/$AB57,1) -> 0 | X57: 0 | Y57: =ProdBesoins!C59 -> 0 | AA57: =(SUMIF(Navires!$B$2:$BE$2,">9",Navires!$B57:$BE57)-SUMIF(Navires!$B$2:$BE$2,">19",Navires!$B57:$BE57))/0.54/(IF(ISERR((B57+'2'!N57+'3'!N57+'4'!N57+'5'!N57+'6'!N57+'7'!N57+'8'!N57+'9'!N57+'10'!N57)/B57),1,(B57+'2'!N57+'3'!N57+'4'!N57+'5'!N57+'6'!N57+'7'!N57+'8'!N57+'9'!N57+'10'!N57)/B57))+Y57 -> 0 | AB57: 0
A58: Livres | B58: =ProdBesoins!B60 -> 0 | D58: ='2'!N58 -> 0 | E58: ='3'!N58 -> 0 | F58: ='4'!N58 -> 0 | G58: ='5'!N58 -> 0 | H58: ='6'!N58 -> 0 | I58: ='7'!N58 -> 0 | J58: ='8'!N58 -> 0 | K58: ='9'!N58 -> 0 | L58: ='10'!N58 -> 0 | M58: 0 | O58: =SUMIF(Navires!$B$2:$BE$2,$A$2&O$2,Navires!$B58:$BE58)/0.54*IF($AB58>$B58,$B58/$AB58,1) -> 0 | P58: =SUMIF(Navires!$B$2:$BE$2,$A$2&P$2,Navires!$B58:$BE58)/0.54*IF($AB58>$B58,$B58/$AB58,1) -> 0 | Q58: =SUMIF(Navires!$B$2:$BE$2,$A$2&Q$2,Navires!$B58:$BE58)/0.54*IF($AB58>$B58,$B58/$AB58,1) -> 0 | R58: =SUMIF(Navires!$B$2:$BE$2,$A$2&R$2,Navires!$B58:$BE58)/0.54*IF($AB58>$B58,$B58/$AB58,1) -> 0 | S58: =SUMIF(Navires!$B$2:$BE$2,$A$2&S$2,Navires!$B58:$BE58)/0.54*IF($AB58>$B58,$B58/$AB58,1) -> 0 | T58: =SUMIF(Navires!$B$2:$BE$2,$A$2&T$2,Navires!$B58:$BE58)/0.54*IF($AB58>$B58,$B58/$AB58,1) -> 0 | U58: =SUMIF(Navires!$B$2:$BE$2,$A$2&U$2,Navires!$B58:$BE58)/0.54*IF($AB58>$B58,$B58/$AB58,1) -> 0 | V58: =SUMIF(Navires!$B$2:$BE$2,$A$2&V$2,Navires!$B58:$BE58)/0.54*IF($AB58>$B58,$B58/$AB58,1) -> 0 | W58: =SUMIF(Navires!$B$2:$BE$2,$A$2&W$2,Navires!$B58:$BE58)/0.54*IF($AB58>$B58,$B58/$AB58,1) -> 0 | X58: 0 | Y58: =ProdBesoins!C60 -> 0 | AA58: =(SUMIF(Navires!$B$2:$BE$2,">9",Navires!$B58:$BE58)-SUMIF(Navires!$B$2:$BE$2,">19",Navires!$B58:$BE58))/0.54/(IF(ISERR((B58+'2'!N58+'3'!N58+'4'!N58+'5'!N58+'6'!N58+'7'!N58+'8'!N58+'9'!N58+'10'!N58)/B58),1,(B58+'2'!N58+'3'!N58+'4'!N58+'5'!N58+'6'!N58+'7'!N58+'8'!N58+'9'!N58+'10'!N58)/B58))+Y58 -> 0 | AB58: 0
A59: Charbon | B59: =ProdBesoins!B61 -> 0 | D59: =FIXED(D$7,0) -> 0 | E59: 0 | F59: 0 | G59: 0 | H59: 0 | I59: 0 | J59: 0 | K59: 0 | L59: 0 | M59: 0 | O59: 0 | P59: 0 | Q59: 0 | R59: 0 | S59: 0 | T59: 0 | U59: 0 | V59: 0 | W59: 0 | X59: =FIXED(X$7,0) -> 0 | Y59: =ProdBesoins!C61 -> 0
A60: Minerai de cuivre | B60: =ProdBesoins!B62 -> 0 | D60: ='2'!N60 -> 0 | E60: ='3'!N60 -> 0 | F60: ='4'!N60 -> 0 | G60: ='5'!N60 -> 0 | H60: ='6'!N60 -> 0 | I60: ='7'!N60 -> 0 | J60: ='8'!N60 -> 0 | K60: ='9'!N60 -> 0 | L60: ='10'!N60 -> 0 | M60: =SUM(B60:L60) -> 0 | O60: =SUMIF(Navires!$B$2:$BE$2,$A$2&O$2,Navires!$B60:$BE60)/0.54*IF($AB60>$B60,$B60/$AB60,1) -> 0 | P60: =SUMIF(Navires!$B$2:$BE$2,$A$2&P$2,Navires!$B60:$BE60)/0.54*IF($AB60>$B60,$B60/$AB60,1) -> 0 | Q60: =SUMIF(Navires!$B$2:$BE$2,$A$2&Q$2,Navires!$B60:$BE60)/0.54*IF($AB60>$B60,$B60/$AB60,1) -> 0 | R60: =SUMIF(Navires!$B$2:$BE$2,$A$2&R$2,Navires!$B60:$BE60)/0.54*IF($AB60>$B60,$B60/$AB60,1) -> 0 | S60: =SUMIF(Navires!$B$2:$BE$2,$A$2&S$2,Navires!$B60:$BE60)/0.54*IF($AB60>$B60,$B60/$AB60,1) -> 0 | T60: =SUMIF(Navires!$B$2:$BE$2,$A$2&T$2,Navires!$B60:$BE60)/0.54*IF($AB60>$B60,$B60/$AB60,1) -> 0 | U60: =SUMIF(Navires!$B$2:$BE$2,$A$2&U$2,Navires!$B60:$BE60)/0.54*IF($AB60>$B60,$B60/$AB60,1) -> 0 | V60: =SUMIF(Navires!$B$2:$BE$2,$A$2&V$2,Navires!$B60:$BE60)/0.54*IF($AB60>$B60,$B60/$AB60,1) -> 0 | W60: =SUMIF(Navires!$B$2:$BE$2,$A$2&W$2,Navires!$B60:$BE60)/0.54*IF($AB60>$B60,$B60/$AB60,1) -> 0 | X60: =M60-SUM(N60:W60) -> 0 | Y60: =ProdBesoins!C62 -> 0 | AA60: =(SUMIF(Navires!$B$2:$BE$2,">9",Navires!$B60:$BE60)-SUMIF(Navires!$B$2:$BE$2,">19",Navires!$B60:$BE60))/0.54/(IF(ISERR((B60+'2'!N60+'3'!N60+'4'!N60+'5'!N60+'6'!N60+'7'!N60+'8'!N60+'9'!N60+'10'!N60)/B60),1,(B60+'2'!N60+'3'!N60+'4'!N60+'5'!N60+'6'!N60+'7'!N60+'8'!N60+'9'!N60+'10'!N60)/B60))+Y60 -> 0 | AB60: 0
A61: Bronze | B61: =ProdBesoins!B63 -> 0 | D61: ='2'!N61 -> 0 | E61: ='3'!N61 -> 0 | F61: ='4'!N61 -> 0 | G61: ='5'!N61 -> 0 | H61: ='6'!N61 -> 0 | I61: ='7'!N61 -> 0 | J61: ='8'!N61 -> 0 | K61: ='9'!N61 -> 0 | L61: ='10'!N61 -> 0 | M61: =SUM(B61:L61) -> 0 | O61: =SUMIF(Navires!$B$2:$BE$2,$A$2&O$2,Navires!$B61:$BE61)/0.54*IF($AB61>$B61,$B61/$AB61,1) -> 0 | P61: =SUMIF(Navires!$B$2:$BE$2,$A$2&P$2,Navires!$B61:$BE61)/0.54*IF($AB61>$B61,$B61/$AB61,1) -> 0 | Q61: =SUMIF(Navires!$B$2:$BE$2,$A$2&Q$2,Navires!$B61:$BE61)/0.54*IF($AB61>$B61,$B61/$AB61,1) -> 0 | R61: =SUMIF(Navires!$B$2:$BE$2,$A$2&R$2,Navires!$B61:$BE61)/0.54*IF($AB61>$B61,$B61/$AB61,1) -> 0 | S61: =SUMIF(Navires!$B$2:$BE$2,$A$2&S$2,Navires!$B61:$BE61)/0.54*IF($AB61>$B61,$B61/$AB61,1) -> 0 | T61: =SUMIF(Navires!$B$2:$BE$2,$A$2&T$2,Navires!$B61:$BE61)/0.54*IF($AB61>$B61,$B61/$AB61,1) -> 0 | U61: =SUMIF(Navires!$B$2:$BE$2,$A$2&U$2,Navires!$B61:$BE61)/0.54*IF($AB61>$B61,$B61/$AB61,1) -> 0 | V61: =SUMIF(Navires!$B$2:$BE$2,$A$2&V$2,Navires!$B61:$BE61)/0.54*IF($AB61>$B61,$B61/$AB61,1) -> 0 | W61: =SUMIF(Navires!$B$2:$BE$2,$A$2&W$2,Navires!$B61:$BE61)/0.54*IF($AB61>$B61,$B61/$AB61,1) -> 0 | X61: 0 | Y61: =ProdBesoins!C63 -> 0 | AA61: =(SUMIF(Navires!$B$2:$BE$2,">9",Navires!$B61:$BE61)-SUMIF(Navires!$B$2:$BE$2,">19",Navires!$B61:$BE61))/0.54/(IF(ISERR((B61+'2'!N61+'3'!N61+'4'!N61+'5'!N61+'6'!N61+'7'!N61+'8'!N61+'9'!N61+'10'!N61)/B61),1,(B61+'2'!N61+'3'!N61+'4'!N61+'5'!N61+'6'!N61+'7'!N61+'8'!N61+'9'!N61+'10'!N61)/B61))+Y61 -> 0 | AB61: 0
A62: Chanvre | B62: =ProdBesoins!B64 -> 0 | D62: =FIXED(D$40,0) -> 0 | E62: 0 | F62: 0 | G62: 0 | H62: 0 | I62: 0 | J62: 0 | K62: 0 | L62: 0 | M62: 0 | O62: 0 | P62: 0 | Q62: 0 | R62: 0 | S62: 0 | T62: 0 | U62: 0 | V62: 0 | W62: 0 | X62: =FIXED(X$40,0) -> 0 | Y62: =ProdBesoins!C64 -> 0
A63: Cire d'abeille | B63: =ProdBesoins!B65 -> 0 | D63: ='2'!N63 -> 0 | E63: ='3'!N63 -> 0 | F63: ='4'!N63 -> 0 | G63: ='5'!N63 -> 0 | H63: ='6'!N63 -> 0 | I63: ='7'!N63 -> 0 | J63: ='8'!N63 -> 0 | K63: ='9'!N63 -> 0 | L63: ='10'!N63 -> 0 | M63: =SUM(B63:L63) -> 0 | O63: =SUMIF(Navires!$B$2:$BE$2,$A$2&O$2,Navires!$B63:$BE63)/0.54*IF($AB63>$B63,$B63/$AB63,1) -> 0 | P63: =SUMIF(Navires!$B$2:$BE$2,$A$2&P$2,Navires!$B63:$BE63)/0.54*IF($AB63>$B63,$B63/$AB63,1) -> 0 | Q63: =SUMIF(Navires!$B$2:$BE$2,$A$2&Q$2,Navires!$B63:$BE63)/0.54*IF($AB63>$B63,$B63/$AB63,1) -> 0 | R63: =SUMIF(Navires!$B$2:$BE$2,$A$2&R$2,Navires!$B63:$BE63)/0.54*IF($AB63>$B63,$B63/$AB63,1) -> 0 | S63: =SUMIF(Navires!$B$2:$BE$2,$A$2&S$2,Navires!$B63:$BE63)/0.54*IF($AB63>$B63,$B63/$AB63,1) -> 0 | T63: =SUMIF(Navires!$B$2:$BE$2,$A$2&T$2,Navires!$B63:$BE63)/0.54*IF($AB63>$B63,$B63/$AB63,1) -> 0 | U63: =SUMIF(Navires!$B$2:$BE$2,$A$2&U$2,Navires!$B63:$BE63)/0.54*IF($AB63>$B63,$B63/$AB63,1) -> 0 | V63: =SUMIF(Navires!$B$2:$BE$2,$A$2&V$2,Navires!$B63:$BE63)/0.54*IF($AB63>$B63,$B63/$AB63,1) -> 0 | W63: =SUMIF(Navires!$B$2:$BE$2,$A$2&W$2,Navires!$B63:$BE63)/0.54*IF($AB63>$B63,$B63/$AB63,1) -> 0 | X63: =M63-SUM(N63:W63) -> 0 | Y63: =ProdBesoins!C65 -> 0 | AA63: =(SUMIF(Navires!$B$2:$BE$2,">9",Navires!$B63:$BE63)-SUMIF(Navires!$B$2:$BE$2,">19",Navires!$B63:$BE63))/0.54/(IF(ISERR((B63+'2'!N63+'3'!N63+'4'!N63+'5'!N63+'6'!N63+'7'!N63+'8'!N63+'9'!N63+'10'!N63)/B63),1,(B63+'2'!N63+'3'!N63+'4'!N63+'5'!N63+'6'!N63+'7'!N63+'8'!N63+'9'!N63+'10'!N63)/B63))+Y63 -> 0 | AB63: 0
A64: Bougies | B64: =ProdBesoins!B66 -> 0 | D64: ='2'!N64 -> 0 | E64: ='3'!N64 -> 0 | F64: ='4'!N64 -> 0 | G64: ='5'!N64 -> 0 | H64: ='6'!N64 -> 0 | I64: ='7'!N64 -> 0 | J64: ='8'!N64 -> 0 | K64: ='9'!N64 -> 0 | L64: ='10'!N64 -> 0 | M64: 0 | O64: =SUMIF(Navires!$B$2:$BE$2,$A$2&O$2,Navires!$B64:$BE64)/0.54*IF($AB64>$B64,$B64/$AB64,1) -> 0 | P64: =SUMIF(Navires!$B$2:$BE$2,$A$2&P$2,Navires!$B64:$BE64)/0.54*IF($AB64>$B64,$B64/$AB64,1) -> 0 | Q64: =SUMIF(Navires!$B$2:$BE$2,$A$2&Q$2,Navires!$B64:$BE64)/0.54*IF($AB64>$B64,$B64/$AB64,1) -> 0 | R64: =SUMIF(Navires!$B$2:$BE$2,$A$2&R$2,Navires!$B64:$BE64)/0.54*IF($AB64>$B64,$B64/$AB64,1) -> 0 | S64: =SUMIF(Navires!$B$2:$BE$2,$A$2&S$2,Navires!$B64:$BE64)/0.54*IF($AB64>$B64,$B64/$AB64,1) -> 0 | T64: =SUMIF(Navires!$B$2:$BE$2,$A$2&T$2,Navires!$B64:$BE64)/0.54*IF($AB64>$B64,$B64/$AB64,1) -> 0 | U64: =SUMIF(Navires!$B$2:$BE$2,$A$2&U$2,Navires!$B64:$BE64)/0.54*IF($AB64>$B64,$B64/$AB64,1) -> 0 | V64: =SUMIF(Navires!$B$2:$BE$2,$A$2&V$2,Navires!$B64:$BE64)/0.54*IF($AB64>$B64,$B64/$AB64,1) -> 0 | W64: =SUMIF(Navires!$B$2:$BE$2,$A$2&W$2,Navires!$B64:$BE64)/0.54*IF($AB64>$B64,$B64/$AB64,1) -> 0 | X64: 0 | Y64: =ProdBesoins!C66 -> 0 | AA64: =(SUMIF(Navires!$B$2:$BE$2,">9",Navires!$B64:$BE64)-SUMIF(Navires!$B$2:$BE$2,">19",Navires!$B64:$BE64))/0.54/(IF(ISERR((B64+'2'!N64+'3'!N64+'4'!N64+'5'!N64+'6'!N64+'7'!N64+'8'!N64+'9'!N64+'10'!N64)/B64),1,(B64+'2'!N64+'3'!N64+'4'!N64+'5'!N64+'6'!N64+'7'!N64+'8'!N64+'9'!N64+'10'!N64)/B64))+Y64 -> 0 | AB64: 0
A65: Bougeoirs | B65: =ProdBesoins!B67 -> 0 | D65: ='2'!N65 -> 0 | E65: ='3'!N65 -> 0 | F65: ='4'!N65 -> 0 | G65: ='5'!N65 -> 0 | H65: ='6'!N65 -> 0 | I65: ='7'!N65 -> 0 | J65: ='8'!N65 -> 0 | K65: ='9'!N65 -> 0 | L65: ='10'!N65 -> 0 | M65: 0 | O65: =SUMIF(Navires!$B$2:$BE$2,$A$2&O$2,Navires!$B65:$BE65)/0.54*IF($AB65>$B65,$B65/$AB65,1) -> 0 | P65: =SUMIF(Navires!$B$2:$BE$2,$A$2&P$2,Navires!$B65:$BE65)/0.54*IF($AB65>$B65,$B65/$AB65,1) -> 0 | Q65: =SUMIF(Navires!$B$2:$BE$2,$A$2&Q$2,Navires!$B65:$BE65)/0.54*IF($AB65>$B65,$B65/$AB65,1) -> 0 | R65: =SUMIF(Navires!$B$2:$BE$2,$A$2&R$2,Navires!$B65:$BE65)/0.54*IF($AB65>$B65,$B65/$AB65,1) -> 0 | S65: =SUMIF(Navires!$B$2:$BE$2,$A$2&S$2,Navires!$B65:$BE65)/0.54*IF($AB65>$B65,$B65/$AB65,1) -> 0 | T65: =SUMIF(Navires!$B$2:$BE$2,$A$2&T$2,Navires!$B65:$BE65)/0.54*IF($AB65>$B65,$B65/$AB65,1) -> 0 | U65: =SUMIF(Navires!$B$2:$BE$2,$A$2&U$2,Navires!$B65:$BE65)/0.54*IF($AB65>$B65,$B65/$AB65,1) -> 0 | V65: =SUMIF(Navires!$B$2:$BE$2,$A$2&V$2,Navires!$B65:$BE65)/0.54*IF($AB65>$B65,$B65/$AB65,1) -> 0 | W65: =SUMIF(Navires!$B$2:$BE$2,$A$2&W$2,Navires!$B65:$BE65)/0.54*IF($AB65>$B65,$B65/$AB65,1) -> 0 | X65: 0 | Y65: =ProdBesoins!C67 -> 0 | AA65: =(SUMIF(Navires!$B$2:$BE$2,">9",Navires!$B65:$BE65)-SUMIF(Navires!$B$2:$BE$2,">19",Navires!$B65:$BE65))/0.54/(IF(ISERR((B65+'2'!N65+'3'!N65+'4'!N65+'5'!N65+'6'!N65+'7'!N65+'8'!N65+'9'!N65+'10'!N65)/B65),1,(B65+'2'!N65+'3'!N65+'4'!N65+'5'!N65+'6'!N65+'7'!N65+'8'!N65+'9'!N65+'10'!N65)/B65))+Y65 -> 0 | AB65: 0
A66: Charbon | B66: =ProdBesoins!B68 -> 0 | D66: =FIXED(D$7,0) -> 0 | E66: 0 | F66: 0 | G66: 0 | H66: 0 | I66: 0 | J66: 0 | K66: 0 | L66: 0 | M66: 0 | O66: 0 | P66: 0 | Q66: 0 | R66: 0 | S66: 0 | T66: 0 | U66: 0 | V66: 0 | W66: 0 | X66: =FIXED(X$7,0) -> 0 | Y66: =ProdBesoins!C68 -> 0
A67: Minerai de cuivre | B67: =ProdBesoins!B69 -> 0 | D67: =FIXED(D$60,0) -> 0 | E67: 0 | F67: 0 | G67: 0 | H67: 0 | I67: 0 | J67: 0 | K67: 0 | L67: 0 | M67: 0 | O67: 0 | P67: 0 | Q67: 0 | R67: 0 | S67: 0 | T67: 0 | U67: 0 | V67: 0 | W67: 0 | X67: =FIXED(X$60,0) -> 0 | Y67: =ProdBesoins!C69 -> 0
A68: Bronze | B68: =ProdBesoins!B70 -> 0 | D68: =FIXED(D$61,0) -> 0 | E68: 0 | F68: 0 | G68: 0 | H68: 0 | I68: 0 | J68: 0 | K68: 0 | L68: 0 | M68: 0 | O68: 0 | P68: 0 | Q68: 0 | R68: 0 | S68: 0 | T68: 0 | U68: 0 | V68: 0 | W68: 0 | X68: =FIXED(X$61,0) -> 0 | Y68: =ProdBesoins!C70 -> 0
A69: Quartz | B69: =ProdBesoins!B71 -> 0 | D69: =FIXED(D$12,0) -> 0 | E69: 0 | F69: 0 | G69: 0 | H69: 0 | I69: 0 | J69: 0 | K69: 0 | L69: 0 | M69: 0 | O69: 0 | P69: 0 | Q69: 0 | R69: 0 | S69: 0 | T69: 0 | U69: 0 | V69: 0 | W69: 0 | X69: =FIXED(X$12,0) -> 0 | Y69: =ProdBesoins!C71 -> 0
A70: Lunettes | B70: =ProdBesoins!B72 -> 0 | D70: ='2'!N70 -> 0 | E70: ='3'!N70 -> 0 | F70: ='4'!N70 -> 0 | G70: ='5'!N70 -> 0 | H70: ='6'!N70 -> 0 | I70: ='7'!N70 -> 0 | J70: ='8'!N70 -> 0 | K70: ='9'!N70 -> 0 | L70: ='10'!N70 -> 0 | M70: =SUM(B70:L70) -> 0 | O70: =SUMIF(Navires!$B$2:$BE$2,$A$2&O$2,Navires!$B70:$BE70)/0.54*IF($AB70>$B70,$B70/$AB70,1) -> 0 | P70: =SUMIF(Navires!$B$2:$BE$2,$A$2&P$2,Navires!$B70:$BE70)/0.54*IF($AB70>$B70,$B70/$AB70,1) -> 0 | Q70: =SUMIF(Navires!$B$2:$BE$2,$A$2&Q$2,Navires!$B70:$BE70)/0.54*IF($AB70>$B70,$B70/$AB70,1) -> 0 | R70: =SUMIF(Navires!$B$2:$BE$2,$A$2&R$2,Navires!$B70:$BE70)/0.54*IF($AB70>$B70,$B70/$AB70,1) -> 0 | S70: =SUMIF(Navires!$B$2:$BE$2,$A$2&S$2,Navires!$B70:$BE70)/0.54*IF($AB70>$B70,$B70/$AB70,1) -> 0 | T70: =SUMIF(Navires!$B$2:$BE$2,$A$2&T$2,Navires!$B70:$BE70)/0.54*IF($AB70>$B70,$B70/$AB70,1) -> 0 | U70: =SUMIF(Navires!$B$2:$BE$2,$A$2&U$2,Navires!$B70:$BE70)/0.54*IF($AB70>$B70,$B70/$AB70,1) -> 0 | V70: =SUMIF(Navires!$B$2:$BE$2,$A$2&V$2,Navires!$B70:$BE70)/0.54*IF($AB70>$B70,$B70/$AB70,1) -> 0 | W70: =SUMIF(Navires!$B$2:$BE$2,$A$2&W$2,Navires!$B70:$BE70)/0.54*IF($AB70>$B70,$B70/$AB70,1) -> 0 | X70: =M70-SUM(N70:W70) -> 0 | Y70: =ProdBesoins!C72 -> 0 | AA70: =(SUMIF(Navires!$B$2:$BE$2,">9",Navires!$B70:$BE70)-SUMIF(Navires!$B$2:$BE$2,">19",Navires!$B70:$BE70))/0.54/(IF(ISERR((B70+'2'!N70+'3'!N70+'4'!N70+'5'!N70+'6'!N70+'7'!N70+'8'!N70+'9'!N70+'10'!N70)/B70),1,(B70+'2'!N70+'3'!N70+'4'!N70+'5'!N70+'6'!N70+'7'!N70+'8'!N70+'9'!N70+'10'!N70)/B70))+Y70 -> 0 | AB70: 0

Sheet 2
A1: Belle-Ile | B1: Production | C1: Importations de | M1: Dispo 1 | N1: Exportations vers | X1: Dispo 2 | Y1: Besoins | Z1: Couverture | AA1: Exp+Besoin
A2: 2 | C2: 1 | D2: 2 | E2: 3 | F2: 4 | G2: 5 | H2: 6 | I2: 7 | J2: 8 | K2: 9 | L2: 10 | N2: 1 | O2: 2 | P2: 3 | Q2: 4 | R2: 5 | S2: 6 | T2: 7 | U2: 8 | V2: 9 | W2: 10
A5: Bois | B5: =ProdBesoins!D7 -> 126.8571429 | C5: ='1'!O5 -> 0 | E5: ='3'!O5 -> 0 | F5: ='4'!O5 -> 0 | G5: ='5'!O5 -> 0 | H5: ='6'!O5 -> 0 | I5: ='7'!O5 -> 0 | J5: ='8'!O5 -> 0 | K5: ='9'!O5 -> 0 | L5: ='10'!O5 -> 0 | M5: =SUM(B5:L5) -> 126.8571429 | N5: =SUMIF(Navires!$B$2:$BE$2,$A$2&N$2,Navires!$B5:$BE5)/0.54*IF($AB5>$B5,$B5/$AB5,1) -> 0 | P5: =SUMIF(Navires!$B$2:$BE$2,$A$2&P$2,Navires!$B5:$BE5)/0.54*IF($AB5>$B5,$B5/$AB5,1) -> 0 | Q5: =SUMIF(Navires!$B$2:$BE$2,$A$2&Q$2,Navires!$B5:$BE5)/0.54*IF($AB5>$B5,$B5/$AB5,1) -> 0 | R5: =SUMIF(Navires!$B$2:$BE$2,$A$2&R$2,Navires!$B5:$BE5)/0.54*IF($AB5>$B5,$B5/$AB5,1) -> 0 | S5: =SUMIF(Navires!$B$2:$BE$2,$A$2&S$2,Navires!$B5:$BE5)/0.54*IF($AB5>$B5,$B5/$AB5,1) -> 0 | T5: =SUMIF(Navires!$B$2:$BE$2,$A$2&T$2,Navires!$B5:$BE5)/0.54*IF($AB5>$B5,$B5/$AB5,1) -> 0 | U5: =SUMIF(Navires!$B$2:$BE$2,$A$2&U$2,Navires!$B5:$BE5)/0.54*IF($AB5>$B5,$B5/$AB5,1) -> 0 | V5: =SUMIF(Navires!$B$2:$BE$2,$A$2&V$2,Navires!$B5:$BE5)/0.54*IF($AB5>$B5,$B5/$AB5,1) -> 0 | W5: =SUMIF(Navires!$B$2:$BE$2,$A$2&W$2,Navires!$B5:$BE5)/0.54*IF($AB5>$B5,$B5/$AB5,1) -> 0 | X5: =M5-SUM(N5:W5) -> 126.8571429 | Y5: =ProdBesoins!E7 -> 0 | Z5: =IF(Y5>0,X5/Y5,IF(X5>0,"A exporter","")) -> A exporter | AA5: =(SUMIF(Navires!$B$2:$BE$2,">19",Navires!$B5:$BE5)-SUMIF(Navires!$B$2:$BE$2,">29",Navires!$B5:$BE5))/0.54/(IF(ISERR((B5+'1'!O5+'3'!O5+'4'!O5+'5'!O5+'6'!O5+'7'!O5+'8'!O5+'9'!O5+'10'!O5)/B5),1,(B5+'1'!O5+'3'!O5+'4'!O5+'5'!O5+'6'!O5+'7'!O5+'8'!O5+'9'!O5+'10'!O5)/B5))+Y5 -> 0 | AB5: 0
A6: Pierre | B6: =ProdBesoins!D8 -> 0 | C6: ='1'!O6 -> 0 | E6: ='3'!O6 -> 0 | F6: ='4'!O6 -> 0 | G6: ='5'!O6 -> 0 | H6: ='6'!O6 -> 0 | I6: ='7'!O6 -> 0 | J6: ='8'!O6 -> 0 | K6: ='9'!O6 -> 0 | L6: ='10'!O6 -> 0 | M6: 0 | N6: =SUMIF(Navires!$B$2:$BE$2,$A$2&N$2,Navires!$B6:$BE6)/0.54*IF($AB6>$B6,$B6/$AB6,1) -> 0 | P6: =SUMIF(Navires!$B$2:$BE$2,$A$2&P$2,Navires!$B6:$BE6)/0.54*IF($AB6>$B6,$B6/$AB6,1) -> 0 | Q6: =SUMIF(Navires!$B$2:$BE$2,$A$2&Q$2,Navires!$B6:$BE6)/0.54*IF($AB6>$B6,$B6/$AB6,1) -> 0 | R6: =SUMIF(Navires!$B$2:$BE$2,$A$2&R$2,Navires!$B6:$BE6)/0.54*IF($AB6>$B6,$B6/$AB6,1) -> 0 | S6: =SUMIF(Navires!$B$2:$BE$2,$A$2&S$2,Navires!$B6:$BE6)/0.54*IF($AB6>$B6,$B6/$AB6,1) -> 0 | T6: =SUMIF(Navires!$B$2:$BE$2,$A$2&T$2,Navires!$B6:$BE6)/0.54*IF($AB6>$B6,$B6/$AB6,1) -> 0 | U6: =SUMIF(Navires!$B$2:$BE$2,$A$2&U$2,Navires!$B6:$BE6)/0.54*IF($AB6>$B6,$B6/$AB6,1) -> 0 | V6: =SUMIF(Navires!$B$2:$BE$2,$A$2&V$2,Navires!$B6:$BE6)/0.54*IF($AB6>$B6,$B6/$AB6,1) -> 0 | W6: =SUMIF(Navires!$B$2:$BE$2,$A$2&W$2,Navires!$B6:$BE6)/0.54*IF($AB6>$B6,$B6/$AB6,1) -> 0 | X6: =M6-SUM(N6:W6) -> 0 | Y6: =ProdBesoins!E8 -> 0 | Z6: =IF(Y6>0,X6/Y6,IF(X6>0,"Excédent","")) ->  | AA6: =(SUMIF(Navires!$B$2:$BE$2,">19",Navires!$B6:$BE6)-SUMIF(Navires!$B$2:$BE$2,">29",Navires!$B6:$BE6))/0.54/(IF(ISERR((B6+'1'!O6+'3'!O6+'4'!O6+'5'!O6+'6'!O6+'7'!O6+'8'!O6+'9'!O6+'10'!O6)/B6),1,(B6+'1'!O6+'3'!O6+'4'!O6+'5'!O6+'6'!O6+'7'!O6+'8'!O6+'9'!O6+'10'!O6)/B6))+Y6 -> 0 | AB6: 0
A7: Charbon | B7: =ProdBesoins!D9 -> 68.57142857 | C7: ='1'!O7 -> 0 | E7: ='3'!O7 -> 0 | F7: ='4'!O7 -> 0 | G7: ='5'!O7 -> 0 | H7: ='6'!O7 -> 0 | I7: ='7'!O7 -> 0 | J7: ='8'!O7 -> 0 | K7: ='9'!O7 -> 0 | L7: ='10'!O7 -> 0 | M7: 68.57142857 | N7: =SUMIF(Navires!$B$2:$BE$2,$A$2&N$2,Navires!$B7:$BE7)/0.54*IF($AB7>$B7,$B7/$AB7,1) -> 0 | P7: =SUMIF(Navires!$B$2:$BE$2,$A$2&P$2,Navires!$B7:$BE7)/0.54*IF($AB7>$B7,$B7/$AB7,1) -> 0 | Q7: =SUMIF(Navires!$B$2:$BE$2,$A$2&Q$2,Navires!$B7:$BE7)/0.54*IF($AB7>$B7,$B7/$AB7,1) -> 0 | R7: =SUMIF(Navires!$B$2:$BE$2,$A$2&R$2,Navires!$B7:$BE7)/0.54*IF($AB7>$B7,$B7/$AB7,1) -> 0 | S7: =SUMIF(Navires!$B$2:$BE$2,$A$2&S$2,Navires!$B7:$BE7)/0.54*IF($AB7>$B7,$B7/$AB7,1) -> 0 | T7: =SUMIF(Navires!$B$2:$BE$2,$A$2&T$2,Navires!$B7:$BE7)/0.54*IF($AB7>$B7,$B7/$AB7,1) -> 68.57142857 | U7: =SUMIF(Navires!$B$2:$BE$2,$A$2&U$2,Navires!$B7:$BE7)/0.54*IF($AB7>$B7,$B7/$AB7,1) -> 0 | V7: =SUMIF(Navires!$B$2:$BE$2,$A$2&V$2,Navires!$B7:$BE7)/0.54*IF($AB7>$B7,$B7/$AB7,1) -> 0 | W7: =SUMIF(Navires!$B$2:$BE$2,$A$2&W$2,Navires!$B7:$BE7)/0.54*IF($AB7>$B7,$B7/$AB7,1) -> 0 | X7: 0 | Y7: =ProdBesoins!E9 -> 0 | Z7: =IF(Y7>0,X7/Y7,IF(X7>0,"Excédent","")) ->  | AA7: =(SUMIF(Navires!$B$2:$BE$2,">19",Navires!$B7:$BE7)-SUMIF(Navires!$B$2:$BE$2,">29",Navires!$B7:$BE7))/0.54/(IF(ISERR((B7+'1'!O7+'3'!O7+'4'!O7+'5'!O7+'6'!O7+'7'!O7+'8'!O7+'9'!O7+'10'!O7)/B7),1,(B7+'1'!O7+'3'!O7+'4'!O7+'5'!O7+'6'!O7+'7'!O7+'8'!O7+'9'!O7+'10'!O7)/B7))+Y7 -> 74.07407407 | AB7: 74.07407407
A8: Minerai de fer | B8: =ProdBesoins!D10 -> 0 | C8: ='1'!O8 -> 0 | E8: ='3'!O8 -> 0 | F8: ='4'!O8 -> 0 | G8: ='5'!O8 -> 0 | H8: ='6'!O8 -> 0 | I8: ='7'!O8 -> 0 | J8: ='8'!O8 -> 0 | K8: ='9'!O8 -> 0 | L8: ='10'!O8 -> 0 | M8: 0 | N8: =SUMIF(Navires!$B$2:$BE$2,$A$2&N$2,Navires!$B8:$BE8)/0.54*IF($AB8>$B8,$B8/$AB8,1) -> 0 | P8: =SUMIF(Navires!$B$2:$BE$2,$A$2&P$2,Navires!$B8:$BE8)/0.54*IF($AB8>$B8,$B8/$AB8,1) -> 0 | Q8: =SUMIF(Navires!$B$2:$BE$2,$A$2&Q$2,Navires!$B8:$BE8)/0.54*IF($AB8>$B8,$B8/$AB8,1) -> 0 | R8: =SUMIF(Navires!$B$2:$BE$2,$A$2&R$2,Navires!$B8:$BE8)/0.54*IF($AB8>$B8,$B8/$AB8,1) -> 0 | S8: =SUMIF(Navires!$B$2:$BE$2,$A$2&S$2,Navires!$B8:$BE8)/0.54*IF($AB8>$B8,$B8/$AB8,1) -> 0 | T8: =SUMIF(Navires!$B$2:$BE$2,$A$2&T$2,Navires!$B8:$BE8)/0.54*IF($AB8>$B8,$B8/$AB8,1) -> 0 | U8: =SUMIF(Navires!$B$2:$BE$2,$A$2&U$2,Navires!$B8:$BE8)/0.54*IF($AB8>$B8,$B8/$AB8,1) -> 0 | V8: =SUMIF(Navires!$B$2:$BE$2,$A$2&V$2,Navires!$B8:$BE8)/0.54*IF($AB8>$B8,$B8/$AB8,1) -> 0 | W8: =SUMIF(Navires!$B$2:$BE$2,$A$2&W$2,Navires!$B8:$BE8)/0.54*IF($AB8>$B8,$B8/$AB8,1) -> 0 | X8: 0 | Y8: =ProdBesoins!E10 -> 0 | AA8: =(SUMIF(Navires!$B$2:$BE$2,">19",Navires!$B8:$BE8)-SUMIF(Navires!$B$2:$BE$2,">29",Navires!$B8:$BE8))/0.54/(IF(ISERR((B8+'1'!O8+'3'!O8+'4'!O8+'5'!O8+'6'!O8+'7'!O8+'8'!O8+'9'!O8+'10'!O8)/B8),1,(B8+'1'!O8+'3'!O8+'4'!O8+'5'!O8+'6'!O8+'7'!O8+'8'!O8+'9'!O8+'10'!O8)/B8))+Y8 -> 0 | AB8: 0
A9: Fer | B9: =ProdBesoins!D11 -> 0 | C9: ='1'!O9 -> 0 | E9: ='3'!O9 -> 0 | F9: ='4'!O9 -> 0 | G9: ='5'!O9 -> 0 | H9: ='6'!O9 -> 0 | I9: ='7'!O9 -> 0 | J9: ='8'!O9 -> 0 | K9: ='9'!O9 -> 0 | L9: ='10'!O9 -> 0 | M9: 0 | N9: =SUMIF(Navires!$B$2:$BE$2,$A$2&N$2,Navires!$B9:$BE9)/0.54*IF($AB9>$B9,$B9/$AB9,1) -> 0 | P9: =SUMIF(Navires!$B$2:$BE$2,$A$2&P$2,Navires!$B9:$BE9)/0.54*IF($AB9>$B9,$B9/$AB9,1) -> 0 | Q9: =SUMIF(Navires!$B$2:$BE$2,$A$2&Q$2,Navires!$B9:$BE9)/0.54*IF($AB9>$B9,$B9/$AB9,1) -> 0 | R9: =SUMIF(Navires!$B$2:$BE$2,$A$2&R$2,Navires!$B9:$BE9)/0.54*IF($AB9>$B9,$B9/$AB9,1) -> 0 | S9: =SUMIF(Navires!$B$2:$BE$2,$A$2&S$2,Navires!$B9:$BE9)/0.54*IF($AB9>$B9,$B9/$AB9,1) -> 0 | T9: =SUMIF(Navires!$B$2:$BE$2,$A$2&T$2,Navires!$B9:$BE9)/0.54*IF($AB9>$B9,$B9/$AB9,1) -> 0 | U9: =SUMIF(Navires!$B$2:$BE$2,$A$2&U$2,Navires!$B9:$BE9)/0.54*IF($AB9>$B9,$B9/$AB9,1) -> 0 | V9: =SUMIF(Navires!$B$2:$BE$2,$A$2&V$2,Navires!$B9:$BE9)/0.54*IF($AB9>$B9,$B9/$AB9,1) -> 0 | W9: =SUMIF(Navires!$B$2:$BE$2,$A$2&W$2,Navires!$B9:$BE9)/0.54*IF($AB9>$B9,$B9/$AB9,1) -> 0 | X9: 0 | Y9: =ProdBesoins!E11 -> 0 | AA9: =(SUMIF(Navires!$B$2:$BE$2,">19",Navires!$B9:$BE9)-SUMIF(Navires!$B$2:$BE$2,">29",Navires!$B9:$BE9))/0.54/(IF(ISERR((B9+'1'!O9+'3'!O9+'4'!O9+'5'!O9+'6'!O9+'7'!O9+'8'!O9+'9'!O9+'10'!O9)/B9),1,(B9+'1'!O9+'3'!O9+'4'!O9+'5'!O9+'6'!O9+'7'!O9+'8'!O9+'9'!O9+'10'!O9)/B9))+Y9 -> 0 | AB9: 0
A10: Outils | B10: =ProdBesoins!D12 -> 0 | C10: ='1'!O10 -> 0 | E10: ='3'!O10 -> 0 | F10: ='4'!O10 -> 0 | G10: ='5'!O10 -> 0 | H10: ='6'!O10 -> 0 | I10: ='7'!O10 -> 0 | J10: ='8'!O10 -> 0 | K10: ='9'!O10 -> 0 | L10: ='10'!O10 -> 0 | M10: 0 | N10: =SUMIF(Navires!$B$2:$BE$2,$A$2&N$2,Navires!$B10:$BE10)/0.54*IF($AB10>$B10,$B10/$AB10,1) -> 0 | P10: =SUMIF(Navires!$B$2:$BE$2,$A$2&P$2,Navires!$B10:$BE10)/0.54*IF($AB10>$B10,$B10/$AB10,1) -> 0 | Q10: =SUMIF(Navires!$B$2:$BE$2,$A$2&Q$2,Navires!$B10:$BE10)/0.54*IF($AB10>$B10,$B10/$AB10,1) -> 0 | R10: =SUMIF(Navires!$B$2:$BE$2,$A$2&R$2,Navires!$B10:$BE10)/0.54*IF($AB10>$B10,$B10/$AB10,1) -> 0 | S10: =SUMIF(Navires!$B$2:$BE$2,$A$2&S$2,Navires!$B10:$BE10)/0.54*IF($AB10>$B10,$B10/$AB10,1) -> 0 | T10: =SUMIF(Navires!$B$2:$BE$2,$A$2&T$2,Navires!$B10:$BE10)/0.54*IF($AB10>$B10,$B10/$AB10,1) -> 0 | U10: =SUMIF(Navires!$B$2:$BE$2,$A$2&U$2,Navires!$B10:$BE10)/0.54*IF($AB10>$B10,$B10/$AB10,1) -> 0 | V10: =SUMIF(Navires!$B$2:$BE$2,$A$2&V$2,Navires!$B10:$BE10)/0.54*IF($AB10>$B10,$B10/$AB10,1) -> 0 | W10: =SUMIF(Navires!$B$2:$BE$2,$A$2&W$2,Navires!$B10:$BE10)/0.54*IF($AB10>$B10,$B10/$AB10,1) -> 0 | X10: 0 | Y10: =ProdBesoins!E12 -> 0 | AA10: =(SUMIF(Navires!$B$2:$BE$2,">19",Navires!$B10:$BE10)-SUMIF(Navires!$B$2:$BE$2,">29",Navires!$B10:$BE10))/0.54/(IF(ISERR((B10+'1'!O10+'3'!O10+'4'!O10+'5'!O10+'6'!O10+'7'!O10+'8'!O10+'9'!O10+'10'!O10)/B10),1,(B10+'1'!O10+'3'!O10+'4'!O10+'5'!O10+'6'!O10+'7'!O10+'8'!O10+'9'!O10+'10'!O10)/B10))+Y10 -> 0 | AB10: 0
A11: Potasse | B11: =ProdBesoins!D13 -> 0 | C11: ='1'!O11 -> 0 | E11: ='3'!O11 -> 0 | F11: ='4'!O11 -> 0 | G11: ='5'!O11 -> 0 | H11: ='6'!O11 -> 0 | I11: ='7'!O11 -> 0 | J11: ='8'!O11 -> 0 | K11: ='9'!O11 -> 0 | L11: ='10'!O11 -> 0 | M11: 0 | N11: =SUMIF(Navires!$B$2:$BE$2,$A$2&N$2,Navires!$B11:$BE11)/0.54*IF($AB11>$B11,$B11/$AB11,1) -> 0 | P11: =SUMIF(Navires!$B$2:$BE$2,$A$2&P$2,Navires!$B11:$BE11)/0.54*IF($AB11>$B11,$B11/$AB11,1) -> 0 | Q11: =SUMIF(Navires!$B$2:$BE$2,$A$2&Q$2,Navires!$B11:$BE11)/0.54*IF($AB11>$B11,$B11/$AB11,1) -> 0 | R11: =SUMIF(Navires!$B$2:$BE$2,$A$2&R$2,Navires!$B11:$BE11)/0.54*IF($AB11>$B11,$B11/$AB11,1) -> 0 | S11: =SUMIF(Navires!$B$2:$BE$2,$A$2&S$2,Navires!$B11:$BE11)/0.54*IF($AB11>$B11,$B11/$AB11,1) -> 0 | T11: =SUMIF(Navires!$B$2:$BE$2,$A$2&T$2,Navires!$B11:$BE11)/0.54*IF($AB11>$B11,$B11/$AB11,1) -> 0 | U11: =SUMIF(Navires!$B$2:$BE$2,$A$2&U$2,Navires!$B11:$BE11)/0.54*IF($AB11>$B11,$B11/$AB11,1) -> 0 | V11: =SUMIF(Navires!$B$2:$BE$2,$A$2&V$2,Navires!$B11:$BE11)/0.54*IF($AB11>$B11,$B11/$AB11,1) -> 0 | W11: =SUMIF(Navires!$B$2:$BE$2,$A$2&W$2,Navires!$B11:$BE11)/0.54*IF($AB11>$B11,$B11/$AB11,1) -> 0 | X11: 0 | Y11: =ProdBesoins!E13 -> 0 | AA11: =(SUMIF(Navires!$B$2:$BE$2,">19",Navires!$B11:$BE11)-SUMIF(Navires!$B$2:$BE$2,">29",Navires!$B11:$BE11))/0.54/(IF(ISERR((B11+'1'!O11+'3'!O11+'4'!O11+'5'!O11+'6'!O11+'7'!O11+'8'!O11+'9'!O11+'10'!O11)/B11),1,(B11+'1'!O11+'3'!O11+'4'!O11+'5'!O11+'6'!O11+'7'!O11+'8'!O11+'9'!O11+'10'!O11)/B11))+Y11 -> 0 | AB11: 0
A12: Quartz | B12: =ProdBesoins!D14 -> 5.714285714 | C12: ='1'!O12 -> 0 | E12: ='3'!O12 -> 0 | F12: ='4'!O12 -> 0 | G12: ='5'!O12 -> 0 | H12: ='6'!O12 -> 0 | I12: ='7'!O12 -> 0 | J12: ='8'!O12 -> 0 | K12: ='9'!O12 -> 0 | L12: ='10'!O12 -> 0 | M12: 5.714285714 | N12: =SUMIF(Navires!$B$2:$BE$2,$A$2&N$2,Navires!$B12:$BE12)/0.54*IF($AB12>$B12,$B12/$AB12,1) -> 0 | P12: =SUMIF(Navires!$B$2:$BE$2,$A$2&P$2,Navires!$B12:$BE12)/0.54*IF($AB12>$B12,$B12/$AB12,1) -> 0 | Q12: =SUMIF(Navires!$B$2:$BE$2,$A$2&Q$2,Navires!$B12:$BE12)/0.54*IF($AB12>$B12,$B12/$AB12,1) -> 0 | R12: =SUMIF(Navires!$B$2:$BE$2,$A$2&R$2,Navires!$B12:$BE12)/0.54*IF($AB12>$B12,$B12/$AB12,1) -> 0 | S12: =SUMIF(Navires!$B$2:$BE$2,$A$2&S$2,Navires!$B12:$BE12)/0.54*IF($AB12>$B12,$B12/$AB12,1) -> 5.714285714 | T12: =SUMIF(Navires!$B$2:$BE$2,$A$2&T$2,Navires!$B12:$BE12)/0.54*IF($AB12>$B12,$B12/$AB12,1) -> 0 | U12: =SUMIF(Navires!$B$2:$BE$2,$A$2&U$2,Navires!$B12:$BE12)/0.54*IF($AB12>$B12,$B12/$AB12,1) -> 0 | V12: =SUMIF(Navires!$B$2:$BE$2,$A$2&V$2,Navires!$B12:$BE12)/0.54*IF($AB12>$B12,$B12/$AB12,1) -> 0 | W12: =SUMIF(Navires!$B$2:$BE$2,$A$2&W$2,Navires!$B12:$BE12)/0.54*IF($AB12>$B12,$B12/$AB12,1) -> 0 | X12: 0 | Y12: =ProdBesoins!E14 -> 0 | AA12: =(SUMIF(Navires!$B$2:$BE$2,">19",Navires!$B12:$BE12)-SUMIF(Navires!$B$2:$BE$2,">29",Navires!$B12:$BE12))/0.54/(IF(ISERR((B12+'1'!O12+'3'!O12+'4'!O12+'5'!O12+'6'!O12+'7'!O12+'8'!O12+'9'!O12+'10'!O12)/B12),1,(B12+'1'!O12+'3'!O12+'4'!O12+'5'!O12+'6'!O12+'7'!O12+'8'!O12+'9'!O12+'10'!O12)/B12))+Y12 -> 9.259259259 | AB12: 9.259259259
A13: Verre | B13: =ProdBesoins!D15 -> 0 | C13: ='1'!O13 -> 0 | E13: ='3'!O13 -> 0 | F13: ='4'!O13 -> 0 | G13: ='5'!O13 -> 0 | H13: ='6'!O13 -> 0 | I13: ='7'!O13 -> 0 | J13: ='8'!O13 -> 0 | K13: ='9'!O13 -> 0 | L13: ='10'!O13 -> 0 | M13: 0 | N13: =SUMIF(Navires!$B$2:$BE$2,$A$2&N$2,Navires!$B13:$BE13)/0.54*IF($AB13>$B13,$B13/$AB13,1) -> 0 | P13: =SUMIF(Navires!$B$2:$BE$2,$A$2&P$2,Navires!$B13:$BE13)/0.54*IF($AB13>$B13,$B13/$AB13,1) -> 0 | Q13: =SUMIF(Navires!$B$2:$BE$2,$A$2&Q$2,Navires!$B13:$BE13)/0.54*IF($AB13>$B13,$B13/$AB13,1) -> 0 | R13: =SUMIF(Navires!$B$2:$BE$2,$A$2&R$2,Navires!$B13:$BE13)/0.54*IF($AB13>$B13,$B13/$AB13,1) -> 0 | S13: =SUMIF(Navires!$B$2:$BE$2,$A$2&S$2,Navires!$B13:$BE13)/0.54*IF($AB13>$B13,$B13/$AB13,1) -> 0 | T13: =SUMIF(Navires!$B$2:$BE$2,$A$2&T$2,Navires!$B13:$BE13)/0.54*IF($AB13>$B13,$B13/$AB13,1) -> 0 | U13: =SUMIF(Navires!$B$2:$BE$2,$A$2&U$2,Navires!$B13:$BE13)/0.54*IF($AB13>$B13,$B13/$AB13,1) -> 0 | V13: =SUMIF(Navires!$B$2:$BE$2,$A$2&V$2,Navires!$B13:$BE13)/0.54*IF($AB13>$B13,$B13/$AB13,1) -> 0 | W13: =SUMIF(Navires!$B$2:$BE$2,$A$2&W$2,Navires!$B13:$BE13)/0.54*IF($AB13>$B13,$B13/$AB13,1) -> 0 | X13: 0 | Y13: =ProdBesoins!E15 -> 0 | AA13: =(SUMIF(Navires!$B$2:$BE$2,">19",Navires!$B13:$BE13)-SUMIF(Navires!$B$2:$BE$2,">29",Navires!$B13:$BE13))/0.54/(IF(ISERR((B13+'1'!O13+'3'!O13+'4'!O13+'5'!O13+'6'!O13+'7'!O13+'8'!O13+'9'!O13+'10'!O13)/B13),1,(B13+'1'!O13+'3'!O13+'4'!O13+'5'!O13+'6'!O13+'7'!O13+'8'!O13+'9'!O13+'10'!O13)/B13))+Y13 -> 0 | AB13: 0
B14: =ProdBesoins!D16 -> 0 | Y14: =ProdBesoins!E16 -> 0
A15: Poisson | B15: =ProdBesoins!D17 -> 360 | C15: ='1'!O15 -> 0 | E15: ='3'!O15 -> 0 | F15: ='4'!O15 -> 0 | G15: ='5'!O15 -> 0 | H15: ='6'!O15 -> 0 | I15: ='7'!O15 -> 0 | J15: ='8'!O15 -> 0 | K15: ='9'!O15 -> 0 | L15: ='10'!O15 -> 0 | M15: =SUM(B15:L15) -> 360 | N15: =SUMIF(Navires!$B$2:$BE$2,$A$2&N$2,Navires!$B15:$BE15)/0.54*IF($AB15>$B15,$B15/$AB15,1) -> 0 | P15: =SUMIF(Navires!$B$2:$BE$2,$A$2&P$2,Navires!$B15:$BE15)/0.54*IF($AB15>$B15,$B15/$AB15,1) -> 0 | Q15: =SUMIF(Navires!$B$2:$BE$2,$A$2&Q$2,Navires!$B15:$BE15)/0.54*IF($AB15>$B15,$B15/$AB15,1) -> 0 | R15: =SUMIF(Navires!$B$2:$BE$2,$A$2&R$2,Navires!$B15:$BE15)/0.54*IF($AB15>$B15,$B15/$AB15,1) -> 0 | S15: =SUMIF(Navires!$B$2:$BE$2,$A$2&S$2,Navires!$B15:$BE15)/0.54*IF($AB15>$B15,$B15/$AB15,1) -> 0 | T15: =SUMIF(Navires!$B$2:$BE$2,$A$2&T$2,Navires!$B15:$BE15)/0.54*IF($AB15>$B15,$B15/$AB15,1) -> 0 | U15: =SUMIF(Navires!$B$2:$BE$2,$A$2&U$2,Navires!$B15:$BE15)/0.54*IF($AB15>$B15,$B15/$AB15,1) -> 0 | V15: =SUMIF(Navires!$B$2:$BE$2,$A$2&V$2,Navires!$B15:$BE15)/0.54*IF($AB15>$B15,$B15/$AB15,1) -> 0 | W15: =SUMIF(Navires!$B$2:$BE$2,$A$2&W$2,Navires!$B15:$BE15)/0.54*IF($AB15>$B15,$B15/$AB15,1) -> 0 | X15: 360 | Y15: =ProdBesoins!E17 -> 328.326 | Z15: 1.09647119 | AA15: =(SUMIF(Navires!$B$2:$BE$2,">19",Navires!$B15:$BE15)-SUMIF(Navires!$B$2:$BE$2,">29",Navires!$B15:$BE15))/0.54/(IF(ISERR((B15+'1'!O15+'3'!O15+'4'!O15+'5'!O15+'6'!O15+'7'!O15+'8'!O15+'9'!O15+'10'!O15)/B15),1,(B15+'1'!O15+'3'!O15+'4'!O15+'5'!O15+'6'!O15+'7'!O15+'8'!O15+'9'!O15+'10'!O15)/B15))+Y15 -> 328.326 | AB15: 328.326
A16: Céréales | B16: =ProdBesoins!D18 -> 0 | C16: ='1'!O16 -> 0 | E16: ='3'!O16 -> 0 | F16: ='4'!O16 -> 0 | G16: ='5'!O16 -> 0 | H16: ='6'!O16 -> 0 | I16: ='7'!O16 -> 0 | J16: ='8'!O16 -> 0 | K16: ='9'!O16 -> 0 | L16: ='10'!O16 -> 0 | M16: 0 | N16: =SUMIF(Navires!$B$2:$BE$2,$A$2&N$2,Navires!$B16:$BE16)/0.54*IF($AB16>$B16,$B16/$AB16,1) -> 0 | P16: =SUMIF(Navires!$B$2:$BE$2,$A$2&P$2,Navires!$B16:$BE16)/0.54*IF($AB16>$B16,$B16/$AB16,1) -> 0 | Q16: =SUMIF(Navires!$B$2:$BE$2,$A$2&Q$2,Navires!$B16:$BE16)/0.54*IF($AB16>$B16,$B16/$AB16,1) -> 0 | R16: =SUMIF(Navires!$B$2:$BE$2,$A$2&R$2,Navires!$B16:$BE16)/0.54*IF($AB16>$B16,$B16/$AB16,1) -> 0 | S16: =SUMIF(Navires!$B$2:$BE$2,$A$2&S$2,Navires!$B16:$BE16)/0.54*IF($AB16>$B16,$B16/$AB16,1) -> 0 | T16: =SUMIF(Navires!$B$2:$BE$2,$A$2&T$2,Navires!$B16:$BE16)/0.54*IF($AB16>$B16,$B16/$AB16,1) -> 0 | U16: =SUMIF(Navires!$B$2:$BE$2,$A$2&U$2,Navires!$B16:$BE16)/0.54*IF($AB16>$B16,$B16/$AB16,1) -> 0 | V16: =SUMIF(Navires!$B$2:$BE$2,$A$2&V$2,Navires!$B16:$BE16)/0.54*IF($AB16>$B16,$B16/$AB16,1) -> 0 | W16: =SUMIF(Navires!$B$2:$BE$2,$A$2&W$2,Navires!$B16:$BE16)/0.54*IF($AB16>$B16,$B16/$AB16,1) -> 0 | X16: 0 | Y16: =ProdBesoins!E18 -> 0 | AA16: =(SUMIF(Navires!$B$2:$BE$2,">19",Navires!$B16:$BE16)-SUMIF(Navires!$B$2:$BE$2,">29",Navires!$B16:$BE16))/0.54/(IF(ISERR((B16+'1'!O16+'3'!O16+'4'!O16+'5'!O16+'6'!O16+'7'!O16+'8'!O16+'9'!O16+'10'!O16)/B16),1,(B16+'1'!O16+'3'!O16+'4'!O16+'5'!O16+'6'!O16+'7'!O16+'8'!O16+'9'!O16+'10'!O16)/B16))+Y16 -> 0 | AB16: 0
A17: Farine | B17: =ProdBesoins!D19 -> 0 | C17: ='1'!O17 -> 0 | E17: ='3'!O17 -> 0 | F17: ='4'!O17 -> 0 | G17: ='5'!O17 -> 0 | H17: ='6'!O17 -> 0 | I17: ='7'!O17 -> 0 | J17: ='8'!O17 -> 0 | K17: ='9'!O17 -> 0 | L17: ='10'!O17 -> 0 | M17: 0 | N17: =SUMIF(Navires!$B$2:$BE$2,$A$2&N$2,Navires!$B17:$BE17)/0.54*IF($AB17>$B17,$B17/$AB17,1) -> 0 | P17: =SUMIF(Navires!$B$2:$BE$2,$A$2&P$2,Navires!$B17:$BE17)/0.54*IF($AB17>$B17,$B17/$AB17,1) -> 0 | Q17: =SUMIF(Navires!$B$2:$BE$2,$A$2&Q$2,Navires!$B17:$BE17)/0.54*IF($AB17>$B17,$B17/$AB17,1) -> 0 | R17: =SUMIF(Navires!$B$2:$BE$2,$A$2&R$2,Navires!$B17:$BE17)/0.54*IF($AB17>$B17,$B17/$AB17,1) -> 0 | S17: =SUMIF(Navires!$B$2:$BE$2,$A$2&S$2,Navires!$B17:$BE17)/0.54*IF($AB17>$B17,$B17/$AB17,1) -> 0 | T17: =SUMIF(Navires!$B$2:$BE$2,$A$2&T$2,Navires!$B17:$BE17)/0.54*IF($AB17>$B17,$B17/$AB17,1) -> 0 | U17: =SUMIF(Navires!$B$2:$BE$2,$A$2&U$2,Navires!$B17:$BE17)/0.54*IF($AB17>$B17,$B17/$AB17,1) -> 0 | V17: =SUMIF(Navires!$B$2:$BE$2,$A$2&V$2,Navires!$B17:$BE17)/0.54*IF($AB17>$B17,$B17/$AB17,1) -> 0 | W17: =SUMIF(Navires!$B$2:$BE$2,$A$2&W$2,Navires!$B17:$BE17)/0.54*IF($AB17>$B17,$B17/$AB17,1) -> 0 | X17: 0 | Y17: =ProdBesoins!E19 -> 0 | AA17: =(SUMIF(Navires!$B$2:$BE$2,">19",Navires!$B17:$BE17)-SUMIF(Navires!$B$2:$BE$2,">29",Navires!$B17:$BE17))/0.54/(IF(ISERR((B17+'1'!O17+'3'!O17+'4'!O17+'5'!O17+'6'!O17+'7'!O17+'8'!O17+'9'!O17+'10'!O17)/B17),1,(B17+'1'!O17+'3'!O17+'4'!O17+'5'!O17+'6'!O17+'7'!O17+'8'!O17+'9'!O17+'10'!O17)/B17))+Y17 -> 0 | AB17: 0
A18: Pain | B18: =ProdBesoins!D20 -> 0 | C18: ='1'!O18 -> 0 | E18: ='3'!O18 -> 0 | F18: ='4'!O18 -> 0 | G18: ='5'!O18 -> 0 | H18: ='6'!O18 -> 0 | I18: ='7'!O18 -> 0 | J18: ='8'!O18 -> 276.4632628 | K18: ='9'!O18 -> 0 | L18: ='10'!O18 -> 0 | M18: 276.4632628 | N18: =SUMIF(Navires!$B$2:$BE$2,$A$2&N$2,Navires!$B18:$BE18)/0.54*IF($AB18>$B18,$B18/$AB18,1) -> 0 | P18: =SUMIF(Navires!$B$2:$BE$2,$A$2&P$2,Navires!$B18:$BE18)/0.54*IF($AB18>$B18,$B18/$AB18,1) -> 0 | Q18: =SUMIF(Navires!$B$2:$BE$2,$A$2&Q$2,Navires!$B18:$BE18)/0.54*IF($AB18>$B18,$B18/$AB18,1) -> 0 | R18: =SUMIF(Navires!$B$2:$BE$2,$A$2&R$2,Navires!$B18:$BE18)/0.54*IF($AB18>$B18,$B18/$AB18,1) -> 0 | S18: =SUMIF(Navires!$B$2:$BE$2,$A$2&S$2,Navires!$B18:$BE18)/0.54*IF($AB18>$B18,$B18/$AB18,1) -> 0 | T18: =SUMIF(Navires!$B$2:$BE$2,$A$2&T$2,Navires!$B18:$BE18)/0.54*IF($AB18>$B18,$B18/$AB18,1) -> 0 | U18: =SUMIF(Navires!$B$2:$BE$2,$A$2&U$2,Navires!$B18:$BE18)/0.54*IF($AB18>$B18,$B18/$AB18,1) -> 0 | V18: =SUMIF(Navires!$B$2:$BE$2,$A$2&V$2,Navires!$B18:$BE18)/0.54*IF($AB18>$B18,$B18/$AB18,1) -> 0 | W18: =SUMIF(Navires!$B$2:$BE$2,$A$2&W$2,Navires!$B18:$BE18)/0.54*IF($AB18>$B18,$B18/$AB18,1) -> 0 | X18: 276.4632628 | Y18: =ProdBesoins!E20 -> 265.2 | Z18: 1.042470825 | AA18: =(SUMIF(Navires!$B$2:$BE$2,">19",Navires!$B18:$BE18)-SUMIF(Navires!$B$2:$BE$2,">29",Navires!$B18:$BE18))/0.54/(IF(ISERR((B18+'1'!O18+'3'!O18+'4'!O18+'5'!O18+'6'!O18+'7'!O18+'8'!O18+'9'!O18+'10'!O18)/B18),1,(B18+'1'!O18+'3'!O18+'4'!O18+'5'!O18+'6'!O18+'7'!O18+'8'!O18+'9'!O18+'10'!O18)/B18))+Y18 -> 265.2 | AB18: 265.2
A19: Epices | B19: =ProdBesoins!D21 -> 0 | C19: ='1'!O19 -> 0 | E19: ='3'!O19 -> 0 | F19: ='4'!O19 -> 0 | G19: ='5'!O19 -> 0 | H19: ='6'!O19 -> 0 | I19: ='7'!O19 -> 0 | J19: ='8'!O19 -> 0 | K19: ='9'!O19 -> 0 | L19: ='10'!O19 -> 0 | M19: =SUM(B19:K19) -> 0 | N19: =SUMIF(Navires!$B$2:$BE$2,$A$2&N$2,Navires!$B19:$BE19)/0.54*IF($AB19>$B19,$B19/$AB19,1) -> 0 | P19: =SUMIF(Navires!$B$2:$BE$2,$A$2&P$2,Navires!$B19:$BE19)/0.54*IF($AB19>$B19,$B19/$AB19,1) -> 0 | Q19: =SUMIF(Navires!$B$2:$BE$2,$A$2&Q$2,Navires!$B19:$BE19)/0.54*IF($AB19>$B19,$B19/$AB19,1) -> 0 | R19: =SUMIF(Navires!$B$2:$BE$2,$A$2&R$2,Navires!$B19:$BE19)/0.54*IF($AB19>$B19,$B19/$AB19,1) -> 0 | S19: =SUMIF(Navires!$B$2:$BE$2,$A$2&S$2,Navires!$B19:$BE19)/0.54*IF($AB19>$B19,$B19/$AB19,1) -> 0 | T19: =SUMIF(Navires!$B$2:$BE$2,$A$2&T$2,Navires!$B19:$BE19)/0.54*IF($AB19>$B19,$B19/$AB19,1) -> 0 | U19: =SUMIF(Navires!$B$2:$BE$2,$A$2&U$2,Navires!$B19:$BE19)/0.54*IF($AB19>$B19,$B19/$AB19,1) -> 0 | V19: =SUMIF(Navires!$B$2:$BE$2,$A$2&V$2,Navires!$B19:$BE19)/0.54*IF($AB19>$B19,$B19/$AB19,1) -> 0 | W19: =SUMIF(Navires!$B$2:$BE$2,$A$2&W$2,Navires!$B19:$BE19)/0.54*IF($AB19>$B19,$B19/$AB19,1) -> 0 | X19: 0 | Y19: =ProdBesoins!E21 -> 160.3896 | Z19: 0 | AA19: =(SUMIF(Navires!$B$2:$BE$2,">19",Navires!$B19:$BE19)-SUMIF(Navires!$B$2:$BE$2,">29",Navires!$B19:$BE19))/0.54/(IF(ISERR((B19+'1'!O19+'3'!O19+'4'!O19+'5'!O19+'6'!O19+'7'!O19+'8'!O19+'9'!O19+'10'!O19)/B19),1,(B19+'1'!O19+'3'!O19+'4'!O19+'5'!O19+'6'!O19+'7'!O19+'8'!O19+'9'!O19+'10'!O19)/B19))+Y19 -> 160.3896 | AB19: 160.3896
A20: Charbon | B20: =ProdBesoins!D22 -> 68.57142857 | C20: =FIXED(C$7,0) -> 0 | E20: 0 | F20: 0 | G20: 0 | H20: 0 | I20: 0 | J20: 0 | K20: 0 | L20: 0 | M20: =FIXED(M$7,2) -> 68.57 | N20: =FIXED(N$7,0) -> 0 | P20: 0 | Q20: 0 | R20: 0 | S20: 0 | T20: 69 | U20: 0 | V20: 0 | W20: 0 | X20: =FIXED(X$7,2) -> 0.00 | Y20: =ProdBesoins!E22 -> 0
A21: Saumure | B21: =ProdBesoins!D23 -> 25.71428571 | C21: ='1'!O21 -> 0 | E21: ='3'!O21 -> 0 | F21: ='4'!O21 -> 0 | G21: ='5'!O21 -> 0 | H21: ='6'!O21 -> 0 | I21: ='7'!O21 -> 0 | J21: ='8'!O21 -> 25.71428571 | K21: ='9'!O21 -> 0 | L21: ='10'!O21 -> 0 | M21: =SUM(B21:L21) -> 51.42857143 | N21: =SUMIF(Navires!$B$2:$BE$2,$A$2&N$2,Navires!$B21:$BE21)/0.54*IF($AB21>$B21,$B21/$AB21,1) -> 0 | P21: =SUMIF(Navires!$B$2:$BE$2,$A$2&P$2,Navires!$B21:$BE21)/0.54*IF($AB21>$B21,$B21/$AB21,1) -> 0 | Q21: =SUMIF(Navires!$B$2:$BE$2,$A$2&Q$2,Navires!$B21:$BE21)/0.54*IF($AB21>$B21,$B21/$AB21,1) -> 0 | R21: =SUMIF(Navires!$B$2:$BE$2,$A$2&R$2,Navires!$B21:$BE21)/0.54*IF($AB21>$B21,$B21/$AB21,1) -> 0 | S21: =SUMIF(Navires!$B$2:$BE$2,$A$2&S$2,Navires!$B21:$BE21)/0.54*IF($AB21>$B21,$B21/$AB21,1) -> 0 | T21: =SUMIF(Navires!$B$2:$BE$2,$A$2&T$2,Navires!$B21:$BE21)/0.54*IF($AB21>$B21,$B21/$AB21,1) -> 51.42857143 | U21: =SUMIF(Navires!$B$2:$BE$2,$A$2&U$2,Navires!$B21:$BE21)/0.54*IF($AB21>$B21,$B21/$AB21,1) -> 0 | V21: =SUMIF(Navires!$B$2:$BE$2,$A$2&V$2,Navires!$B21:$BE21)/0.54*IF($AB21>$B21,$B21/$AB21,1) -> 0 | W21: =SUMIF(Navires!$B$2:$BE$2,$A$2&W$2,Navires!$B21:$BE21)/0.54*IF($AB21>$B21,$B21/$AB21,1) -> 0 | X21: 0 | Y21: =ProdBesoins!E23 -> 0 | AA21: =(SUMIF(Navires!$B$2:$BE$2,">19",Navires!$B21:$BE21)-SUMIF(Navires!$B$2:$BE$2,">29",Navires!$B21:$BE21))/0.54/(IF(ISERR((B21+'1'!O21+'3'!O21+'4'!O21+'5'!O21+'6'!O21+'7'!O21+'8'!O21+'9'!O21+'10'!O21)/B21),1,(B21+'1'!O21+'3'!O21+'4'!O21+'5'!O21+'6'!O21+'7'!O21+'8'!O21+'9'!O21+'10'!O21)/B21))+Y21 -> 37.03703704 | AB21: 37.03703704
A22: Sel | B22: =ProdBesoins!D24 -> 0 | C22: ='1'!O22 -> 0 | E22: ='3'!O22 -> 0 | F22: ='4'!O22 -> 0 | G22: ='5'!O22 -> 0 | H22: ='6'!O22 -> 0 | I22: ='7'!O22 -> 0 | J22: ='8'!O22 -> 0 | K22: ='9'!O22 -> 0 | L22: ='10'!O22 -> 0 | M22: =SUM(B22:L22) -> 0 | N22: =SUMIF(Navires!$B$2:$BE$2,$A$2&N$2,Navires!$B22:$BE22)/0.54*IF($AB22>$B22,$B22/$AB22,1) -> 0 | P22: =SUMIF(Navires!$B$2:$BE$2,$A$2&P$2,Navires!$B22:$BE22)/0.54*IF($AB22>$B22,$B22/$AB22,1) -> 0 | Q22: =SUMIF(Navires!$B$2:$BE$2,$A$2&Q$2,Navires!$B22:$BE22)/0.54*IF($AB22>$B22,$B22/$AB22,1) -> 0 | R22: =SUMIF(Navires!$B$2:$BE$2,$A$2&R$2,Navires!$B22:$BE22)/0.54*IF($AB22>$B22,$B22/$AB22,1) -> 0 | S22: =SUMIF(Navires!$B$2:$BE$2,$A$2&S$2,Navires!$B22:$BE22)/0.54*IF($AB22>$B22,$B22/$AB22,1) -> 0 | T22: =SUMIF(Navires!$B$2:$BE$2,$A$2&T$2,Navires!$B22:$BE22)/0.54*IF($AB22>$B22,$B22/$AB22,1) -> 0 | U22: =SUMIF(Navires!$B$2:$BE$2,$A$2&U$2,Navires!$B22:$BE22)/0.54*IF($AB22>$B22,$B22/$AB22,1) -> 0 | V22: =SUMIF(Navires!$B$2:$BE$2,$A$2&V$2,Navires!$B22:$BE22)/0.54*IF($AB22>$B22,$B22/$AB22,1) -> 0 | W22: =SUMIF(Navires!$B$2:$BE$2,$A$2&W$2,Navires!$B22:$BE22)/0.54*IF($AB22>$B22,$B22/$AB22,1) -> 0 | X22: 0 | Y22: =ProdBesoins!E24 -> 0 | AA22: =(SUMIF(Navires!$B$2:$BE$2,">19",Navires!$B22:$BE22)-SUMIF(Navires!$B$2:$BE$2,">29",Navires!$B22:$BE22))/0.54/(IF(ISERR((B22+'1'!O22+'3'!O22+'4'!O22+'5'!O22+'6'!O22+'7'!O22+'8'!O22+'9'!O22+'10'!O22)/B22),1,(B22+'1'!O22+'3'!O22+'4'!O22+'5'!O22+'6'!O22+'7'!O22+'8'!O22+'9'!O22+'10'!O22)/B22))+Y22 -> 0 | AB22: 0
A23: Bétail | B23: =ProdBesoins!D25 -> 0 | C23: ='1'!O23 -> 0 | E23: ='3'!O23 -> 0 | F23: ='4'!O23 -> 0 | G23: ='5'!O23 -> 0 | H23: ='6'!O23 -> 0 | I23: ='7'!O23 -> 0 | J23: ='8'!O23 -> 0 | K23: ='9'!O23 -> 0 | L23: ='10'!O23 -> 0 | M23: 0 | N23: =SUMIF(Navires!$B$2:$BE$2,$A$2&N$2,Navires!$B23:$BE23)/0.54*IF($AB23>$B23,$B23/$AB23,1) -> 0 | P23: =SUMIF(Navires!$B$2:$BE$2,$A$2&P$2,Navires!$B23:$BE23)/0.54*IF($AB23>$B23,$B23/$AB23,1) -> 0 | Q23: =SUMIF(Navires!$B$2:$BE$2,$A$2&Q$2,Navires!$B23:$BE23)/0.54*IF($AB23>$B23,$B23/$AB23,1) -> 0 | R23: =SUMIF(Navires!$B$2:$BE$2,$A$2&R$2,Navires!$B23:$BE23)/0.54*IF($AB23>$B23,$B23/$AB23,1) -> 0 | S23: =SUMIF(Navires!$B$2:$BE$2,$A$2&S$2,Navires!$B23:$BE23)/0.54*IF($AB23>$B23,$B23/$AB23,1) -> 0 | T23: =SUMIF(Navires!$B$2:$BE$2,$A$2&T$2,Navires!$B23:$BE23)/0.54*IF($AB23>$B23,$B23/$AB23,1) -> 0 | U23: =SUMIF(Navires!$B$2:$BE$2,$A$2&U$2,Navires!$B23:$BE23)/0.54*IF($AB23>$B23,$B23/$AB23,1) -> 0 | V23: =SUMIF(Navires!$B$2:$BE$2,$A$2&V$2,Navires!$B23:$BE23)/0.54*IF($AB23>$B23,$B23/$AB23,1) -> 0 | W23: =SUMIF(Navires!$B$2:$BE$2,$A$2&W$2,Navires!$B23:$BE23)/0.54*IF($AB23>$B23,$B23/$AB23,1) -> 0 | X23: 0 | Y23: =ProdBesoins!E25 -> 0 | AA23: =(SUMIF(Navires!$B$2:$BE$2,">19",Navires!$B23:$BE23)-SUMIF(Navires!$B$2:$BE$2,">29",Navires!$B23:$BE23))/0.54/(IF(ISERR((B23+'1'!O23+'3'!O23+'4'!O23+'5'!O23+'6'!O23+'7'!O23+'8'!O23+'9'!O23+'10'!O23)/B23),1,(B23+'1'!O23+'3'!O23+'4'!O23+'5'!O23+'6'!O23+'7'!O23+'8'!O23+'9'!O23+'10'!O23)/B23))+Y23 -> 0 | AB23: 0
A24: Viande | B24: =ProdBesoins!D26 -> 0 | C24: ='1'!O24 -> 0 | E24: ='3'!O24 -> 0 | F24: ='4'!O24 -> 0 | G24: ='5'!O24 -> 0 | H24: ='6'!O24 -> 0 | I24: ='7'!O24 -> 0 | J24: ='8'!O24 -> 0 | K24: ='9'!O24 -> 0 | L24: ='10'!O24 -> 0 | M24: 0 | N24: =SUMIF(Navires!$B$2:$BE$2,$A$2&N$2,Navires!$B24:$BE24)/0.54*IF($AB24>$B24,$B24/$AB24,1) -> 0 | P24: =SUMIF(Navires!$B$2:$BE$2,$A$2&P$2,Navires!$B24:$BE24)/0.54*IF($AB24>$B24,$B24/$AB24,1) -> 0 | Q24: =SUMIF(Navires!$B$2:$BE$2,$A$2&Q$2,Navires!$B24:$BE24)/0.54*IF($AB24>$B24,$B24/$AB24,1) -> 0 | R24: =SUMIF(Navires!$B$2:$BE$2,$A$2&R$2,Navires!$B24:$BE24)/0.54*IF($AB24>$B24,$B24/$AB24,1) -> 0 | S24: =SUMIF(Navires!$B$2:$BE$2,$A$2&S$2,Navires!$B24:$BE24)/0.54*IF($AB24>$B24,$B24/$AB24,1) -> 0 | T24: =SUMIF(Navires!$B$2:$BE$2,$A$2&T$2,Navires!$B24:$BE24)/0.54*IF($AB24>$B24,$B24/$AB24,1) -> 0 | U24: =SUMIF(Navires!$B$2:$BE$2,$A$2&U$2,Navires!$B24:$BE24)/0.54*IF($AB24>$B24,$B24/$AB24,1) -> 0 | V24: =SUMIF(Navires!$B$2:$BE$2,$A$2&V$2,Navires!$B24:$BE24)/0.54*IF($AB24>$B24,$B24/$AB24,1) -> 0 | W24: =SUMIF(Navires!$B$2:$BE$2,$A$2&W$2,Navires!$B24:$BE24)/0.54*IF($AB24>$B24,$B24/$AB24,1) -> 0 | X24: 0 | Y24: =ProdBesoins!E26 -> 107.916 | Z24: 0 | AA24: =(SUMIF(Navires!$B$2:$BE$2,">19",Navires!$B24:$BE24)-SUMIF(Navires!$B$2:$BE$2,">29",Navires!$B24:$BE24))/0.54/(IF(ISERR((B24+'1'!O24+'3'!O24+'4'!O24+'5'!O24+'6'!O24+'7'!O24+'8'!O24+'9'!O24+'10'!O24)/B24),1,(B24+'1'!O24+'3'!O24+'4'!O24+'5'!O24+'6'!O24+'7'!O24+'8'!O24+'9'!O24+'10'!O24)/B24))+Y24 -> 107.916 | AB24: 107.916
B25: =ProdBesoins!D27 -> 0 | Y25: =ProdBesoins!E27 -> 0
A26: Lait | B26: =ProdBesoins!D28 -> 398.2978723 | C26: ='1'!O26 -> 0 | E26: ='3'!O26 -> 0 | F26: ='4'!O26 -> 0 | G26: ='5'!O26 -> 0 | H26: ='6'!O26 -> 0 | I26: ='7'!O26 -> 0 | J26: ='8'!O26 -> 0 | K26: ='9'!O26 -> 0 | L26: ='10'!O26 -> 0 | M26: =SUM(B26:L26) -> 398.2978723 | N26: =SUMIF(Navires!$B$2:$BE$2,$A$2&N$2,Navires!$B26:$BE26)/0.54*IF($AB26>$B26,$B26/$AB26,1) -> 0 | P26: =SUMIF(Navires!$B$2:$BE$2,$A$2&P$2,Navires!$B26:$BE26)/0.54*IF($AB26>$B26,$B26/$AB26,1) -> 0 | Q26: =SUMIF(Navires!$B$2:$BE$2,$A$2&Q$2,Navires!$B26:$BE26)/0.54*IF($AB26>$B26,$B26/$AB26,1) -> 0 | R26: =SUMIF(Navires!$B$2:$BE$2,$A$2&R$2,Navires!$B26:$BE26)/0.54*IF($AB26>$B26,$B26/$AB26,1) -> 0 | S26: =SUMIF(Navires!$B$2:$BE$2,$A$2&S$2,Navires!$B26:$BE26)/0.54*IF($AB26>$B26,$B26/$AB26,1) -> 0 | T26: =SUMIF(Navires!$B$2:$BE$2,$A$2&T$2,Navires!$B26:$BE26)/0.54*IF($AB26>$B26,$B26/$AB26,1) -> 0 | U26: =SUMIF(Navires!$B$2:$BE$2,$A$2&U$2,Navires!$B26:$BE26)/0.54*IF($AB26>$B26,$B26/$AB26,1) -> 0 | V26: =SUMIF(Navires!$B$2:$BE$2,$A$2&V$2,Navires!$B26:$BE26)/0.54*IF($AB26>$B26,$B26/$AB26,1) -> 0 | W26: =SUMIF(Navires!$B$2:$BE$2,$A$2&W$2,Navires!$B26:$BE26)/0.54*IF($AB26>$B26,$B26/$AB26,1) -> 0 | X26: 398.2978723 | Y26: =ProdBesoins!E28 -> 391.452 | Z26: 1.017488408 | AA26: =(SUMIF(Navires!$B$2:$BE$2,">19",Navires!$B26:$BE26)-SUMIF(Navires!$B$2:$BE$2,">29",Navires!$B26:$BE26))/0.54/(IF(ISERR((B26+'1'!O26+'3'!O26+'4'!O26+'5'!O26+'6'!O26+'7'!O26+'8'!O26+'9'!O26+'10'!O26)/B26),1,(B26+'1'!O26+'3'!O26+'4'!O26+'5'!O26+'6'!O26+'7'!O26+'8'!O26+'9'!O26+'10'!O26)/B26))+Y26 -> 391.452 | AB26: 391.452
A27: Pommes | B27: =ProdBesoins!D29 -> 511.5789474 | C27: ='1'!O27 -> 0 | E27: ='3'!O27 -> 0 | F27: ='4'!O27 -> 0 | G27: ='5'!O27 -> 0 | H27: ='6'!O27 -> 0 | I27: ='7'!O27 -> 0 | J27: ='8'!O27 -> 0 | K27: ='9'!O27 -> 0 | L27: ='10'!O27 -> 0 | M27: 511.5789474 | N27: =SUMIF(Navires!$B$2:$BE$2,$A$2&N$2,Navires!$B27:$BE27)/0.54*IF($AB27>$B27,$B27/$AB27,1) -> 0 | P27: =SUMIF(Navires!$B$2:$BE$2,$A$2&P$2,Navires!$B27:$BE27)/0.54*IF($AB27>$B27,$B27/$AB27,1) -> 0 | Q27: =SUMIF(Navires!$B$2:$BE$2,$A$2&Q$2,Navires!$B27:$BE27)/0.54*IF($AB27>$B27,$B27/$AB27,1) -> 0 | R27: =SUMIF(Navires!$B$2:$BE$2,$A$2&R$2,Navires!$B27:$BE27)/0.54*IF($AB27>$B27,$B27/$AB27,1) -> 0 | S27: =SUMIF(Navires!$B$2:$BE$2,$A$2&S$2,Navires!$B27:$BE27)/0.54*IF($AB27>$B27,$B27/$AB27,1) -> 0 | T27: =SUMIF(Navires!$B$2:$BE$2,$A$2&T$2,Navires!$B27:$BE27)/0.54*IF($AB27>$B27,$B27/$AB27,1) -> 0 | U27: =SUMIF(Navires!$B$2:$BE$2,$A$2&U$2,Navires!$B27:$BE27)/0.54*IF($AB27>$B27,$B27/$AB27,1) -> 0 | V27: =SUMIF(Navires!$B$2:$BE$2,$A$2&V$2,Navires!$B27:$BE27)/0.54*IF($AB27>$B27,$B27/$AB27,1) -> 0 | W27: =SUMIF(Navires!$B$2:$BE$2,$A$2&W$2,Navires!$B27:$BE27)/0.54*IF($AB27>$B27,$B27/$AB27,1) -> 0 | X27: 511.5789474 | Y27: =ProdBesoins!E29 -> 237.4104 | Z27: 2.154829558 | AA27: =(SUMIF(Navires!$B$2:$BE$2,">19",Navires!$B27:$BE27)-SUMIF(Navires!$B$2:$BE$2,">29",Navires!$B27:$BE27))/0.54/(IF(ISERR((B27+'1'!O27+'3'!O27+'4'!O27+'5'!O27+'6'!O27+'7'!O27+'8'!O27+'9'!O27+'10'!O27)/B27),1,(B27+'1'!O27+'3'!O27+'4'!O27+'5'!O27+'6'!O27+'7'!O27+'8'!O27+'9'!O27+'10'!O27)/B27))+Y27 -> 237.4104 | AB27: 237.4104
A28: Cidre | B28: =ProdBesoins!D30 -> 511.5789474 | C28: ='1'!O28 -> 0 | E28: ='3'!O28 -> 0 | F28: ='4'!O28 -> 0 | G28: ='5'!O28 -> 0 | H28: ='6'!O28 -> 0 | I28: ='7'!O28 -> 0 | J28: ='8'!O28 -> 0 | K28: ='9'!O28 -> 0 | L28: ='10'!O28 -> 0 | M28: 511.5789474 | N28: =SUMIF(Navires!$B$2:$BE$2,$A$2&N$2,Navires!$B28:$BE28)/0.54*IF($AB28>$B28,$B28/$AB28,1) -> 0 | P28: =SUMIF(Navires!$B$2:$BE$2,$A$2&P$2,Navires!$B28:$BE28)/0.54*IF($AB28>$B28,$B28/$AB28,1) -> 0 | Q28: =SUMIF(Navires!$B$2:$BE$2,$A$2&Q$2,Navires!$B28:$BE28)/0.54*IF($AB28>$B28,$B28/$AB28,1) -> 0 | R28: =SUMIF(Navires!$B$2:$BE$2,$A$2&R$2,Navires!$B28:$BE28)/0.54*IF($AB28>$B28,$B28/$AB28,1) -> 0 | S28: =SUMIF(Navires!$B$2:$BE$2,$A$2&S$2,Navires!$B28:$BE28)/0.54*IF($AB28>$B28,$B28/$AB28,1) -> 275.8317626 | T28: =SUMIF(Navires!$B$2:$BE$2,$A$2&T$2,Navires!$B28:$BE28)/0.54*IF($AB28>$B28,$B28/$AB28,1) -> 0 | U28: =SUMIF(Navires!$B$2:$BE$2,$A$2&U$2,Navires!$B28:$BE28)/0.54*IF($AB28>$B28,$B28/$AB28,1) -> 0 | V28: =SUMIF(Navires!$B$2:$BE$2,$A$2&V$2,Navires!$B28:$BE28)/0.54*IF($AB28>$B28,$B28/$AB28,1) -> 0 | W28: =SUMIF(Navires!$B$2:$BE$2,$A$2&W$2,Navires!$B28:$BE28)/0.54*IF($AB28>$B28,$B28/$AB28,1) -> 0 | X28: 235.7471847 | Y28: =ProdBesoins!E30 -> 237.4104 | Z28: 0.9929943454 | AA28: =(SUMIF(Navires!$B$2:$BE$2,">19",Navires!$B28:$BE28)-SUMIF(Navires!$B$2:$BE$2,">29",Navires!$B28:$BE28))/0.54/(IF(ISERR((B28+'1'!O28+'3'!O28+'4'!O28+'5'!O28+'6'!O28+'7'!O28+'8'!O28+'9'!O28+'10'!O28)/B28),1,(B28+'1'!O28+'3'!O28+'4'!O28+'5'!O28+'6'!O28+'7'!O28+'8'!O28+'9'!O28+'10'!O28)/B28))+Y28 -> 515.1881778 | AB28: 515.1881778
A29: Herbes | B29: =ProdBesoins!D31 -> 0 | C29: ='1'!O29 -> 0 | E29: ='3'!O29 -> 0 | F29: ='4'!O29 -> 0 | G29: ='5'!O29 -> 0 | H29: ='6'!O29 -> 0 | I29: ='7'!O29 -> 0 | J29: ='8'!O29 -> 0 | K29: ='9'!O29 -> 0 | L29: ='10'!O29 -> 0 | M29: 0 | N29: =SUMIF(Navires!$B$2:$BE$2,$A$2&N$2,Navires!$B29:$BE29)/0.54*IF($AB29>$B29,$B29/$AB29,1) -> 0 | P29: =SUMIF(Navires!$B$2:$BE$2,$A$2&P$2,Navires!$B29:$BE29)/0.54*IF($AB29>$B29,$B29/$AB29,1) -> 0 | Q29: =SUMIF(Navires!$B$2:$BE$2,$A$2&Q$2,Navires!$B29:$BE29)/0.54*IF($AB29>$B29,$B29/$AB29,1) -> 0 | R29: =SUMIF(Navires!$B$2:$BE$2,$A$2&R$2,Navires!$B29:$BE29)/0.54*IF($AB29>$B29,$B29/$AB29,1) -> 0 | S29: =SUMIF(Navires!$B$2:$BE$2,$A$2&S$2,Navires!$B29:$BE29)/0.54*IF($AB29>$B29,$B29/$AB29,1) -> 0 | T29: =SUMIF(Navires!$B$2:$BE$2,$A$2&T$2,Navires!$B29:$BE29)/0.54*IF($AB29>$B29,$B29/$AB29,1) -> 0 | U29: =SUMIF(Navires!$B$2:$BE$2,$A$2&U$2,Navires!$B29:$BE29)/0.54*IF($AB29>$B29,$B29/$AB29,1) -> 0 | V29: =SUMIF(Navires!$B$2:$BE$2,$A$2&V$2,Navires!$B29:$BE29)/0.54*IF($AB29>$B29,$B29/$AB29,1) -> 0 | W29: =SUMIF(Navires!$B$2:$BE$2,$A$2&W$2,Navires!$B29:$BE29)/0.54*IF($AB29>$B29,$B29/$AB29,1) -> 0 | X29: 0 | Y29: =ProdBesoins!E31 -> 0 | AA29: =(SUMIF(Navires!$B$2:$BE$2,">19",Navires!$B29:$BE29)-SUMIF(Navires!$B$2:$BE$2,">29",Navires!$B29:$BE29))/0.54/(IF(ISERR((B29+'1'!O29+'3'!O29+'4'!O29+'5'!O29+'6'!O29+'7'!O29+'8'!O29+'9'!O29+'10'!O29)/B29),1,(B29+'1'!O29+'3'!O29+'4'!O29+'5'!O29+'6'!O29+'7'!O29+'8'!O29+'9'!O29+'10'!O29)/B29))+Y29 -> 0 | AB29: 0
A30: Céréales | B30: =ProdBesoins!D32 -> 0 | C30: =FIXED(C$16,0) -> 0 | E30: 0 | F30: 0 | G30: 0 | H30: 0 | I30: 0 | J30: 0 | K30: 0 | L30: 0 | M30: 0 | N30: 0 | P30: 0 | Q30: 0 | R30: 0 | S30: 0 | T30: 0 | U30: 0 | V30: 0 | W30: 0 | X30: =FIXED(X$16,0) -> 0 | Y30: =ProdBesoins!E32 -> 0
A31: Bière | B31: =ProdBesoins!D33 -> 0 | C31: ='1'!O31 -> 0 | E31: ='3'!O31 -> 0 | F31: ='4'!O31 -> 0 | G31: ='5'!O31 -> 0 | H31: ='6'!O31 -> 180.9064564 | I31: ='7'!O31 -> 0 | J31: ='8'!O31 -> 0 | K31: ='9'!O31 -> 0 | L31: ='10'!O31 -> 0 | M31: =SUM(B31:L31) -> 180.9064564 | N31: =SUMIF(Navires!$B$2:$BE$2,$A$2&N$2,Navires!$B31:$BE31)/0.54*IF($AB31>$B31,$B31/$AB31,1) -> 0 | P31: =SUMIF(Navires!$B$2:$BE$2,$A$2&P$2,Navires!$B31:$BE31)/0.54*IF($AB31>$B31,$B31/$AB31,1) -> 0 | Q31: =SUMIF(Navires!$B$2:$BE$2,$A$2&Q$2,Navires!$B31:$BE31)/0.54*IF($AB31>$B31,$B31/$AB31,1) -> 0 | R31: =SUMIF(Navires!$B$2:$BE$2,$A$2&R$2,Navires!$B31:$BE31)/0.54*IF($AB31>$B31,$B31/$AB31,1) -> 0 | S31: =SUMIF(Navires!$B$2:$BE$2,$A$2&S$2,Navires!$B31:$BE31)/0.54*IF($AB31>$B31,$B31/$AB31,1) -> 0 | T31: =SUMIF(Navires!$B$2:$BE$2,$A$2&T$2,Navires!$B31:$BE31)/0.54*IF($AB31>$B31,$B31/$AB31,1) -> 0 | U31: =SUMIF(Navires!$B$2:$BE$2,$A$2&U$2,Navires!$B31:$BE31)/0.54*IF($AB31>$B31,$B31/$AB31,1) -> 0 | V31: =SUMIF(Navires!$B$2:$BE$2,$A$2&V$2,Navires!$B31:$BE31)/0.54*IF($AB31>$B31,$B31/$AB31,1) -> 0 | W31: =SUMIF(Navires!$B$2:$BE$2,$A$2&W$2,Navires!$B31:$BE31)/0.54*IF($AB31>$B31,$B31/$AB31,1) -> 0 | X31: 180.9064564 | Y31: =ProdBesoins!E33 -> 160.3896 | Z31: 1.12791887 | AA31: =(SUMIF(Navires!$B$2:$BE$2,">19",Navires!$B31:$BE31)-SUMIF(Navires!$B$2:$BE$2,">29",Navires!$B31:$BE31))/0.54/(IF(ISERR((B31+'1'!O31+'3'!O31+'4'!O31+'5'!O31+'6'!O31+'7'!O31+'8'!O31+'9'!O31+'10'!O31)/B31),1,(B31+'1'!O31+'3'!O31+'4'!O31+'5'!O31+'6'!O31+'7'!O31+'8'!O31+'9'!O31+'10'!O31)/B31))+Y31 -> 160.3896 | AB31: 160.3896
A32: Fer | B32: =ProdBesoins!D34 -> 0 | C32: =FIXED(C$9,0) -> 0 | E32: 0 | F32: 0 | G32: 0 | H32: 0 | I32: 0 | J32: 0 | K32: 0 | L32: 0 | M32: 0 | N32: 0 | P32: 0 | Q32: 0 | R32: 0 | S32: 0 | T32: 0 | U32: 0 | V32: 0 | W32: 0 | X32: =FIXED(X$9,0) -> 0 | Y32: =ProdBesoins!E34 -> 0
A33: Bois | B33: =ProdBesoins!D35 -> 126.8571429 | C33: =FIXED(C$5,0) -> 0 | E33: 0 | F33: 0 | G33: 0 | H33: 0 | I33: 0 | J33: 0 | K33: 0 | L33: 0 | M33: 127 | N33: 0 | P33: 0 | Q33: 0 | R33: 0 | S33: 0 | T33: 0 | U33: 0 | V33: 0 | W33: 0 | X33: =FIXED(X$5,0) -> 127 | Y33: =ProdBesoins!E35 -> 0
A34: Tonneaux | B34: =ProdBesoins!D36 -> 0 | C34: ='1'!O34 -> 0 | E34: ='3'!O34 -> 0 | F34: ='4'!O34 -> 0 | G34: ='5'!O34 -> 0 | H34: ='6'!O34 -> 0 | I34: ='7'!O34 -> 0 | J34: ='8'!O34 -> 0 | K34: ='9'!O34 -> 0 | L34: ='10'!O34 -> 0 | M34: =SUM(B34:L34) -> 0 | N34: =SUMIF(Navires!$B$2:$BE$2,$A$2&N$2,Navires!$B34:$BE34)/0.54*IF($AB34>$B34,$B34/$AB34,1) -> 0 | P34: =SUMIF(Navires!$B$2:$BE$2,$A$2&P$2,Navires!$B34:$BE34)/0.54*IF($AB34>$B34,$B34/$AB34,1) -> 0 | Q34: =SUMIF(Navires!$B$2:$BE$2,$A$2&Q$2,Navires!$B34:$BE34)/0.54*IF($AB34>$B34,$B34/$AB34,1) -> 0 | R34: =SUMIF(Navires!$B$2:$BE$2,$A$2&R$2,Navires!$B34:$BE34)/0.54*IF($AB34>$B34,$B34/$AB34,1) -> 0 | S34: =SUMIF(Navires!$B$2:$BE$2,$A$2&S$2,Navires!$B34:$BE34)/0.54*IF($AB34>$B34,$B34/$AB34,1) -> 0 | T34: =SUMIF(Navires!$B$2:$BE$2,$A$2&T$2,Navires!$B34:$BE34)/0.54*IF($AB34>$B34,$B34/$AB34,1) -> 0 | U34: =SUMIF(Navires!$B$2:$BE$2,$A$2&U$2,Navires!$B34:$BE34)/0.54*IF($AB34>$B34,$B34/$AB34,1) -> 0 | V34: =SUMIF(Navires!$B$2:$BE$2,$A$2&V$2,Navires!$B34:$BE34)/0.54*IF($AB34>$B34,$B34/$AB34,1) -> 0 | W34: =SUMIF(Navires!$B$2:$BE$2,$A$2&W$2,Navires!$B34:$BE34)/0.54*IF($AB34>$B34,$B34/$AB34,1) -> 0 | X34: =M34-SUM(N34:W34) -> 0 | Y34: =ProdBesoins!E36 -> 0 | AA34: =(SUMIF(Navires!$B$2:$BE$2,">19",Navires!$B34:$BE34)-SUMIF(Navires!$B$2:$BE$2,">29",Navires!$B34:$BE34))/0.54/(IF(ISERR((B34+'1'!O34+'3'!O34+'4'!O34+'5'!O34+'6'!O34+'7'!O34+'8'!O34+'9'!O34+'10'!O34)/B34),1,(B34+'1'!O34+'3'!O34+'4'!O34+'5'!O34+'6'!O34+'7'!O34+'8'!O34+'9'!O34+'10'!O34)/B34))+Y34 -> 0 | AB34: 0
A35: Raisins | B35: =ProdBesoins!D37 -> 0 | C35: ='1'!O35 -> 0 | E35: ='3'!O35 -> 0 | F35: ='4'!O35 -> 0 | G35: ='5'!O35 -> 0 | H35: ='6'!O35 -> 0 | I35: ='7'!O35 -> 0 | J35: ='8'!O35 -> 0 | K35: ='9'!O35 -> 0 | L35: ='10'!O35 -> 0 | M35: 0 | N35: =SUMIF(Navires!$B$2:$BE$2,$A$2&N$2,Navires!$B35:$BE35)/0.54*IF($AB35>$B35,$B35/$AB35,1) -> 0 | P35: =SUMIF(Navires!$B$2:$BE$2,$A$2&P$2,Navires!$B35:$BE35)/0.54*IF($AB35>$B35,$B35/$AB35,1) -> 0 | Q35: =SUMIF(Navires!$B$2:$BE$2,$A$2&Q$2,Navires!$B35:$BE35)/0.54*IF($AB35>$B35,$B35/$AB35,1) -> 0 | R35: =SUMIF(Navires!$B$2:$BE$2,$A$2&R$2,Navires!$B35:$BE35)/0.54*IF($AB35>$B35,$B35/$AB35,1) -> 0 | S35: =SUMIF(Navires!$B$2:$BE$2,$A$2&S$2,Navires!$B35:$BE35)/0.54*IF($AB35>$B35,$B35/$AB35,1) -> 0 | T35: =SUMIF(Navires!$B$2:$BE$2,$A$2&T$2,Navires!$B35:$BE35)/0.54*IF($AB35>$B35,$B35/$AB35,1) -> 0 | U35: =SUMIF(Navires!$B$2:$BE$2,$A$2&U$2,Navires!$B35:$BE35)/0.54*IF($AB35>$B35,$B35/$AB35,1) -> 0 | V35: =SUMIF(Navires!$B$2:$BE$2,$A$2&V$2,Navires!$B35:$BE35)/0.54*IF($AB35>$B35,$B35/$AB35,1) -> 0 | W35: =SUMIF(Navires!$B$2:$BE$2,$A$2&W$2,Navires!$B35:$BE35)/0.54*IF($AB35>$B35,$B35/$AB35,1) -> 0 | X35: 0 | Y35: =ProdBesoins!E37 -> 0 | AA35: =(SUMIF(Navires!$B$2:$BE$2,">19",Navires!$B35:$BE35)-SUMIF(Navires!$B$2:$BE$2,">29",Navires!$B35:$BE35))/0.54/(IF(ISERR((B35+'1'!O35+'3'!O35+'4'!O35+'5'!O35+'6'!O35+'7'!O35+'8'!O35+'9'!O35+'10'!O35)/B35),1,(B35+'1'!O35+'3'!O35+'4'!O35+'5'!O35+'6'!O35+'7'!O35+'8'!O35+'9'!O35+'10'!O35)/B35))+Y35 -> 0 | AB35: 0
A36: Vin | B36: =ProdBesoins!D38 -> 0 | C36: ='1'!O36 -> 0 | E36: ='3'!O36 -> 0 | F36: ='4'!O36 -> 0 | G36: ='5'!O36 -> 0 | H36: ='6'!O36 -> 0 | I36: ='7'!O36 -> 0 | J36: ='8'!O36 -> 0 | K36: ='9'!O36 -> 0 | L36: ='10'!O36 -> 0 | M36: 0 | N36: =SUMIF(Navires!$B$2:$BE$2,$A$2&N$2,Navires!$B36:$BE36)/0.54*IF($AB36>$B36,$B36/$AB36,1) -> 0 | P36: =SUMIF(Navires!$B$2:$BE$2,$A$2&P$2,Navires!$B36:$BE36)/0.54*IF($AB36>$B36,$B36/$AB36,1) -> 0 | Q36: =SUMIF(Navires!$B$2:$BE$2,$A$2&Q$2,Navires!$B36:$BE36)/0.54*IF($AB36>$B36,$B36/$AB36,1) -> 0 | R36: =SUMIF(Navires!$B$2:$BE$2,$A$2&R$2,Navires!$B36:$BE36)/0.54*IF($AB36>$B36,$B36/$AB36,1) -> 0 | S36: =SUMIF(Navires!$B$2:$BE$2,$A$2&S$2,Navires!$B36:$BE36)/0.54*IF($AB36>$B36,$B36/$AB36,1) -> 0 | T36: =SUMIF(Navires!$B$2:$BE$2,$A$2&T$2,Navires!$B36:$BE36)/0.54*IF($AB36>$B36,$B36/$AB36,1) -> 0 | U36: =SUMIF(Navires!$B$2:$BE$2,$A$2&U$2,Navires!$B36:$BE36)/0.54*IF($AB36>$B36,$B36/$AB36,1) -> 0 | V36: =SUMIF(Navires!$B$2:$BE$2,$A$2&V$2,Navires!$B36:$BE36)/0.54*IF($AB36>$B36,$B36/$AB36,1) -> 0 | W36: =SUMIF(Navires!$B$2:$BE$2,$A$2&W$2,Navires!$B36:$BE36)/0.54*IF($AB36>$B36,$B36/$AB36,1) -> 0 | X36: 0 | Y36: =ProdBesoins!E38 -> 57.132 | Z36: 0 | AA36: =(SUMIF(Navires!$B$2:$BE$2,">19",Navires!$B36:$BE36)-SUMIF(Navires!$B$2:$BE$2,">29",Navires!$B36:$BE36))/0.54/(IF(ISERR((B36+'1'!O36+'3'!O36+'4'!O36+'5'!O36+'6'!O36+'7'!O36+'8'!O36+'9'!O36+'10'!O36)/B36),1,(B36+'1'!O36+'3'!O36+'4'!O36+'5'!O36+'6'!O36+'7'!O36+'8'!O36+'9'!O36+'10'!O36)/B36))+Y36 -> 57.132 | AB36: 57.132
B37: =ProdBesoins!D39 -> 0 | Y37: =ProdBesoins!E39 -> 0
A38: Laine | B38: =ProdBesoins!D40 -> 216 | C38: ='1'!O38 -> 0 | E38: ='3'!O38 -> 0 | F38: ='4'!O38 -> 0 | G38: ='5'!O38 -> 0 | H38: ='6'!O38 -> 0 | I38: ='7'!O38 -> 0 | J38: ='8'!O38 -> 0 | K38: ='9'!O38 -> 0 | L38: ='10'!O38 -> 0 | M38: =SUM(B38:L38) -> 216 | N38: =SUMIF(Navires!$B$2:$BE$2,$A$2&N$2,Navires!$B38:$BE38)/0.54*IF($AB38>$B38,$B38/$AB38,1) -> 0 | P38: =SUMIF(Navires!$B$2:$BE$2,$A$2&P$2,Navires!$B38:$BE38)/0.54*IF($AB38>$B38,$B38/$AB38,1) -> 0 | Q38: =SUMIF(Navires!$B$2:$BE$2,$A$2&Q$2,Navires!$B38:$BE38)/0.54*IF($AB38>$B38,$B38/$AB38,1) -> 0 | R38: =SUMIF(Navires!$B$2:$BE$2,$A$2&R$2,Navires!$B38:$BE38)/0.54*IF($AB38>$B38,$B38/$AB38,1) -> 0 | S38: =SUMIF(Navires!$B$2:$BE$2,$A$2&S$2,Navires!$B38:$BE38)/0.54*IF($AB38>$B38,$B38/$AB38,1) -> 0 | T38: =SUMIF(Navires!$B$2:$BE$2,$A$2&T$2,Navires!$B38:$BE38)/0.54*IF($AB38>$B38,$B38/$AB38,1) -> 0 | U38: =SUMIF(Navires!$B$2:$BE$2,$A$2&U$2,Navires!$B38:$BE38)/0.54*IF($AB38>$B38,$B38/$AB38,1) -> 0 | V38: =SUMIF(Navires!$B$2:$BE$2,$A$2&V$2,Navires!$B38:$BE38)/0.54*IF($AB38>$B38,$B38/$AB38,1) -> 0 | W38: =SUMIF(Navires!$B$2:$BE$2,$A$2&W$2,Navires!$B38:$BE38)/0.54*IF($AB38>$B38,$B38/$AB38,1) -> 0 | X38: =M38-SUM(N38:W38) -> 216 | Y38: =ProdBesoins!E40 -> 216 | Z38: 1 | AA38: =(SUMIF(Navires!$B$2:$BE$2,">19",Navires!$B38:$BE38)-SUMIF(Navires!$B$2:$BE$2,">29",Navires!$B38:$BE38))/0.54/(IF(ISERR((B38+'1'!O38+'3'!O38+'4'!O38+'5'!O38+'6'!O38+'7'!O38+'8'!O38+'9'!O38+'10'!O38)/B38),1,(B38+'1'!O38+'3'!O38+'4'!O38+'5'!O38+'6'!O38+'7'!O38+'8'!O38+'9'!O38+'10'!O38)/B38))+Y38 -> 216 | AB38: 216
A39: Vêtements en laine | B39: =ProdBesoins!D41 -> 216 | C39: ='1'!O39 -> 0 | E39: ='3'!O39 -> 0 | F39: ='4'!O39 -> 0 | G39: ='5'!O39 -> 0 | H39: ='6'!O39 -> 0 | I39: ='7'!O39 -> 0 | J39: ='8'!O39 -> 0 | K39: ='9'!O39 -> 0 | L39: ='10'!O39 -> 0 | M39: 216 | N39: =SUMIF(Navires!$B$2:$BE$2,$A$2&N$2,Navires!$B39:$BE39)/0.54*IF($AB39>$B39,$B39/$AB39,1) -> 0 | P39: =SUMIF(Navires!$B$2:$BE$2,$A$2&P$2,Navires!$B39:$BE39)/0.54*IF($AB39>$B39,$B39/$AB39,1) -> 0 | Q39: =SUMIF(Navires!$B$2:$BE$2,$A$2&Q$2,Navires!$B39:$BE39)/0.54*IF($AB39>$B39,$B39/$AB39,1) -> 0 | R39: =SUMIF(Navires!$B$2:$BE$2,$A$2&R$2,Navires!$B39:$BE39)/0.54*IF($AB39>$B39,$B39/$AB39,1) -> 0 | S39: =SUMIF(Navires!$B$2:$BE$2,$A$2&S$2,Navires!$B39:$BE39)/0.54*IF($AB39>$B39,$B39/$AB39,1) -> 0 | T39: =SUMIF(Navires!$B$2:$BE$2,$A$2&T$2,Navires!$B39:$BE39)/0.54*IF($AB39>$B39,$B39/$AB39,1) -> 0 | U39: =SUMIF(Navires!$B$2:$BE$2,$A$2&U$2,Navires!$B39:$BE39)/0.54*IF($AB39>$B39,$B39/$AB39,1) -> 0 | V39: =SUMIF(Navires!$B$2:$BE$2,$A$2&V$2,Navires!$B39:$BE39)/0.54*IF($AB39>$B39,$B39/$AB39,1) -> 0 | W39: =SUMIF(Navires!$B$2:$BE$2,$A$2&W$2,Navires!$B39:$BE39)/0.54*IF($AB39>$B39,$B39/$AB39,1) -> 0 | X39: 216 | Y39: =ProdBesoins!E41 -> 209.6208 | Z39: 1.030432095 | AA39: =(SUMIF(Navires!$B$2:$BE$2,">19",Navires!$B39:$BE39)-SUMIF(Navires!$B$2:$BE$2,">29",Navires!$B39:$BE39))/0.54/(IF(ISERR((B39+'1'!O39+'3'!O39+'4'!O39+'5'!O39+'6'!O39+'7'!O39+'8'!O39+'9'!O39+'10'!O39)/B39),1,(B39+'1'!O39+'3'!O39+'4'!O39+'5'!O39+'6'!O39+'7'!O39+'8'!O39+'9'!O39+'10'!O39)/B39))+Y39 -> 209.6208 | AB39: 209.6208
A40: Chanvre | B40: =ProdBesoins!D42 -> 325.7142857 | C40: ='1'!O40 -> 0 | E40: ='3'!O40 -> 0 | F40: ='4'!O40 -> 0 | G40: ='5'!O40 -> 0 | H40: ='6'!O40 -> 0 | I40: ='7'!O40 -> 0 | J40: ='8'!O40 -> 0 | K40: ='9'!O40 -> 0 | L40: ='10'!O40 -> 0 | M40: 325.7142857 | N40: =SUMIF(Navires!$B$2:$BE$2,$A$2&N$2,Navires!$B40:$BE40)/0.54*IF($AB40>$B40,$B40/$AB40,1) -> 0 | P40: =SUMIF(Navires!$B$2:$BE$2,$A$2&P$2,Navires!$B40:$BE40)/0.54*IF($AB40>$B40,$B40/$AB40,1) -> 0 | Q40: =SUMIF(Navires!$B$2:$BE$2,$A$2&Q$2,Navires!$B40:$BE40)/0.54*IF($AB40>$B40,$B40/$AB40,1) -> 0 | R40: =SUMIF(Navires!$B$2:$BE$2,$A$2&R$2,Navires!$B40:$BE40)/0.54*IF($AB40>$B40,$B40/$AB40,1) -> 0 | S40: =SUMIF(Navires!$B$2:$BE$2,$A$2&S$2,Navires!$B40:$BE40)/0.54*IF($AB40>$B40,$B40/$AB40,1) -> 0 | T40: =SUMIF(Navires!$B$2:$BE$2,$A$2&T$2,Navires!$B40:$BE40)/0.54*IF($AB40>$B40,$B40/$AB40,1) -> 0 | U40: =SUMIF(Navires!$B$2:$BE$2,$A$2&U$2,Navires!$B40:$BE40)/0.54*IF($AB40>$B40,$B40/$AB40,1) -> 0 | V40: =SUMIF(Navires!$B$2:$BE$2,$A$2&V$2,Navires!$B40:$BE40)/0.54*IF($AB40>$B40,$B40/$AB40,1) -> 0 | W40: =SUMIF(Navires!$B$2:$BE$2,$A$2&W$2,Navires!$B40:$BE40)/0.54*IF($AB40>$B40,$B40/$AB40,1) -> 0 | X40: 325.7142857 | Y40: =ProdBesoins!E42 -> 325.7142857 | Z40: 1 | AA40: =(SUMIF(Navires!$B$2:$BE$2,">19",Navires!$B40:$BE40)-SUMIF(Navires!$B$2:$BE$2,">29",Navires!$B40:$BE40))/0.54/(IF(ISERR((B40+'1'!O40+'3'!O40+'4'!O40+'5'!O40+'6'!O40+'7'!O40+'8'!O40+'9'!O40+'10'!O40)/B40),1,(B40+'1'!O40+'3'!O40+'4'!O40+'5'!O40+'6'!O40+'7'!O40+'8'!O40+'9'!O40+'10'!O40)/B40))+Y40 -> 325.7142857 | AB40: 325.7142857
A41: Vêtements en lin | B41: =ProdBesoins!D43 -> 325.7142857 | C41: ='1'!O41 -> 0 | E41: ='3'!O41 -> 0 | F41: ='4'!O41 -> 0 | G41: ='5'!O41 -> 0 | H41: ='6'!O41 -> 0 | I41: ='7'!O41 -> 0 | J41: ='8'!O41 -> 0 | K41: ='9'!O41 -> 0 | L41: ='10'!O41 -> 0 | M41: 325.7142857 | N41: =SUMIF(Navires!$B$2:$BE$2,$A$2&N$2,Navires!$B41:$BE41)/0.54*IF($AB41>$B41,$B41/$AB41,1) -> 0 | P41: =SUMIF(Navires!$B$2:$BE$2,$A$2&P$2,Navires!$B41:$BE41)/0.54*IF($AB41>$B41,$B41/$AB41,1) -> 0 | Q41: =SUMIF(Navires!$B$2:$BE$2,$A$2&Q$2,Navires!$B41:$BE41)/0.54*IF($AB41>$B41,$B41/$AB41,1) -> 0 | R41: =SUMIF(Navires!$B$2:$BE$2,$A$2&R$2,Navires!$B41:$BE41)/0.54*IF($AB41>$B41,$B41/$AB41,1) -> 0 | S41: =SUMIF(Navires!$B$2:$BE$2,$A$2&S$2,Navires!$B41:$BE41)/0.54*IF($AB41>$B41,$B41/$AB41,1) -> 177.8086606 | T41: =SUMIF(Navires!$B$2:$BE$2,$A$2&T$2,Navires!$B41:$BE41)/0.54*IF($AB41>$B41,$B41/$AB41,1) -> 0 | U41: =SUMIF(Navires!$B$2:$BE$2,$A$2&U$2,Navires!$B41:$BE41)/0.54*IF($AB41>$B41,$B41/$AB41,1) -> 0 | V41: =SUMIF(Navires!$B$2:$BE$2,$A$2&V$2,Navires!$B41:$BE41)/0.54*IF($AB41>$B41,$B41/$AB41,1) -> 0 | W41: =SUMIF(Navires!$B$2:$BE$2,$A$2&W$2,Navires!$B41:$BE41)/0.54*IF($AB41>$B41,$B41/$AB41,1) -> 0 | X41: 147.9056251 | Y41: =ProdBesoins!E43 -> 154.0416 | Z41: 0.9601667673 | AA41: =(SUMIF(Navires!$B$2:$BE$2,">19",Navires!$B41:$BE41)-SUMIF(Navires!$B$2:$BE$2,">29",Navires!$B41:$BE41))/0.54/(IF(ISERR((B41+'1'!O41+'3'!O41+'4'!O41+'5'!O41+'6'!O41+'7'!O41+'8'!O41+'9'!O41+'10'!O41)/B41),1,(B41+'1'!O41+'3'!O41+'4'!O41+'5'!O41+'6'!O41+'7'!O41+'8'!O41+'9'!O41+'10'!O41)/B41))+Y41 -> 339.2267852 | AB41: 339.2267852
A42: Charbon | B42: =ProdBesoins!D44 -> 68.57142857 | C42: =FIXED(C$7,0) -> 0 | E42: 0 | F42: 0 | G42: 0 | H42: 0 | I42: 0 | J42: 0 | K42: 0 | L42: 0 | M42: 69 | N42: 0 | P42: 0 | Q42: 0 | R42: 0 | S42: 0 | T42: 69 | U42: 0 | V42: 0 | W42: 0 | X42: =FIXED(X$7,0) -> 0 | Y42: =ProdBesoins!E44 -> 0
A43: Saumure | B43: =ProdBesoins!D45 -> 25.71428571 | C43: =FIXED(C$21,0) -> 0 | E43: 0 | F43: 0 | G43: 0 | H43: 0 | I43: 0 | J43: 26 | K43: 0 | L43: 0 | M43: 51 | N43: 0 | P43: 0 | Q43: 0 | R43: 0 | S43: 0 | T43: 51 | U43: 0 | V43: 0 | W43: 0 | X43: =FIXED(X$21,0) -> 0 | Y43: =ProdBesoins!E45 -> 0
A44: Sel | B44: =ProdBesoins!D46 -> 0 | C44: =FIXED(C$22,0) -> 0 | E44: 0 | F44: 0 | G44: 0 | H44: 0 | I44: 0 | J44: 0 | K44: 0 | L44: 0 | M44: 0 | N44: 0 | P44: 0 | Q44: 0 | R44: 0 | S44: 0 | T44: 0 | U44: 0 | V44: 0 | W44: 0 | X44: =FIXED(X$22,0) -> 0 | Y44: =ProdBesoins!E46 -> 0
A45: Peaux animales | B45: =ProdBesoins!D47 -> 0 | C45: ='1'!O45 -> 0 | E45: ='3'!O45 -> 0 | F45: ='4'!O45 -> 0 | G45: ='5'!O45 -> 0 | H45: ='6'!O45 -> 0 | I45: ='7'!O45 -> 0 | J45: ='8'!O45 -> 0 | K45: ='9'!O45 -> 0 | L45: ='10'!O45 -> 0 | M45: =SUM(B45:L45) -> 0 | N45: =SUMIF(Navires!$B$2:$BE$2,$A$2&N$2,Navires!$B45:$BE45)/0.54*IF($AB45>$B45,$B45/$AB45,1) -> 0 | P45: =SUMIF(Navires!$B$2:$BE$2,$A$2&P$2,Navires!$B45:$BE45)/0.54*IF($AB45>$B45,$B45/$AB45,1) -> 0 | Q45: =SUMIF(Navires!$B$2:$BE$2,$A$2&Q$2,Navires!$B45:$BE45)/0.54*IF($AB45>$B45,$B45/$AB45,1) -> 0 | R45: =SUMIF(Navires!$B$2:$BE$2,$A$2&R$2,Navires!$B45:$BE45)/0.54*IF($AB45>$B45,$B45/$AB45,1) -> 0 | S45: =SUMIF(Navires!$B$2:$BE$2,$A$2&S$2,Navires!$B45:$BE45)/0.54*IF($AB45>$B45,$B45/$AB45,1) -> 0 | T45: =SUMIF(Navires!$B$2:$BE$2,$A$2&T$2,Navires!$B45:$BE45)/0.54*IF($AB45>$B45,$B45/$AB45,1) -> 0 | U45: =SUMIF(Navires!$B$2:$BE$2,$A$2&U$2,Navires!$B45:$BE45)/0.54*IF($AB45>$B45,$B45/$AB45,1) -> 0 | V45: =SUMIF(Navires!$B$2:$BE$2,$A$2&V$2,Navires!$B45:$BE45)/0.54*IF($AB45>$B45,$B45/$AB45,1) -> 0 | W45: =SUMIF(Navires!$B$2:$BE$2,$A$2&W$2,Navires!$B45:$BE45)/0.54*IF($AB45>$B45,$B45/$AB45,1) -> 0 | X45: =M45-SUM(N45:W45) -> 0 | Y45: =ProdBesoins!E47 -> 0 | AA45: =(SUMIF(Navires!$B$2:$BE$2,">19",Navires!$B45:$BE45)-SUMIF(Navires!$B$2:$BE$2,">29",Navires!$B45:$BE45))/0.54/(IF(ISERR((B45+'1'!O45+'3'!O45+'4'!O45+'5'!O45+'6'!O45+'7'!O45+'8'!O45+'9'!O45+'10'!O45)/B45),1,(B45+'1'!O45+'3'!O45+'4'!O45+'5'!O45+'6'!O45+'7'!O45+'8'!O45+'9'!O45+'10'!O45)/B45))+Y45 -> 0 | AB45: 0
A46: Justaucorps en cuir | B46: =ProdBesoins!D48 -> 0 | C46: ='1'!O46 -> 0 | E46: ='3'!O46 -> 0 | F46: ='4'!O46 -> 0 | G46: ='5'!O46 -> 0 | H46: ='6'!O46 -> 0 | I46: ='7'!O46 -> 0 | J46: ='8'!O46 -> 0 | K46: ='9'!O46 -> 0 | L46: ='10'!O46 -> 0 | M46: 0 | N46: =SUMIF(Navires!$B$2:$BE$2,$A$2&N$2,Navires!$B46:$BE46)/0.54*IF($AB46>$B46,$B46/$AB46,1) -> 0 | P46: =SUMIF(Navires!$B$2:$BE$2,$A$2&P$2,Navires!$B46:$BE46)/0.54*IF($AB46>$B46,$B46/$AB46,1) -> 0 | Q46: =SUMIF(Navires!$B$2:$BE$2,$A$2&Q$2,Navires!$B46:$BE46)/0.54*IF($AB46>$B46,$B46/$AB46,1) -> 0 | R46: =SUMIF(Navires!$B$2:$BE$2,$A$2&R$2,Navires!$B46:$BE46)/0.54*IF($AB46>$B46,$B46/$AB46,1) -> 0 | S46: =SUMIF(Navires!$B$2:$BE$2,$A$2&S$2,Navires!$B46:$BE46)/0.54*IF($AB46>$B46,$B46/$AB46,1) -> 0 | T46: =SUMIF(Navires!$B$2:$BE$2,$A$2&T$2,Navires!$B46:$BE46)/0.54*IF($AB46>$B46,$B46/$AB46,1) -> 0 | U46: =SUMIF(Navires!$B$2:$BE$2,$A$2&U$2,Navires!$B46:$BE46)/0.54*IF($AB46>$B46,$B46/$AB46,1) -> 0 | V46: =SUMIF(Navires!$B$2:$BE$2,$A$2&V$2,Navires!$B46:$BE46)/0.54*IF($AB46>$B46,$B46/$AB46,1) -> 0 | W46: =SUMIF(Navires!$B$2:$BE$2,$A$2&W$2,Navires!$B46:$BE46)/0.54*IF($AB46>$B46,$B46/$AB46,1) -> 0 | X46: 0 | Y46: =ProdBesoins!E48 -> 49.2312 | Z46: 0 | AA46: =(SUMIF(Navires!$B$2:$BE$2,">19",Navires!$B46:$BE46)-SUMIF(Navires!$B$2:$BE$2,">29",Navires!$B46:$BE46))/0.54/(IF(ISERR((B46+'1'!O46+'3'!O46+'4'!O46+'5'!O46+'6'!O46+'7'!O46+'8'!O46+'9'!O46+'10'!O46)/B46),1,(B46+'1'!O46+'3'!O46+'4'!O46+'5'!O46+'6'!O46+'7'!O46+'8'!O46+'9'!O46+'10'!O46)/B46))+Y46 -> 49.2312 | AB46: 49.2312
A47: Fourrures | B47: =ProdBesoins!D49 -> 12 | C47: ='1'!O47 -> 0 | E47: ='3'!O47 -> 0 | F47: ='4'!O47 -> 0 | G47: ='5'!O47 -> 0 | H47: ='6'!O47 -> 0 | I47: ='7'!O47 -> 0 | J47: ='8'!O47 -> 0 | K47: ='9'!O47 -> 0 | L47: ='10'!O47 -> 0 | M47: 12 | N47: =SUMIF(Navires!$B$2:$BE$2,$A$2&N$2,Navires!$B47:$BE47)/0.54*IF($AB47>$B47,$B47/$AB47,1) -> 0 | P47: =SUMIF(Navires!$B$2:$BE$2,$A$2&P$2,Navires!$B47:$BE47)/0.54*IF($AB47>$B47,$B47/$AB47,1) -> 0 | Q47: =SUMIF(Navires!$B$2:$BE$2,$A$2&Q$2,Navires!$B47:$BE47)/0.54*IF($AB47>$B47,$B47/$AB47,1) -> 0 | R47: =SUMIF(Navires!$B$2:$BE$2,$A$2&R$2,Navires!$B47:$BE47)/0.54*IF($AB47>$B47,$B47/$AB47,1) -> 0 | S47: =SUMIF(Navires!$B$2:$BE$2,$A$2&S$2,Navires!$B47:$BE47)/0.54*IF($AB47>$B47,$B47/$AB47,1) -> 0 | T47: =SUMIF(Navires!$B$2:$BE$2,$A$2&T$2,Navires!$B47:$BE47)/0.54*IF($AB47>$B47,$B47/$AB47,1) -> 0 | U47: =SUMIF(Navires!$B$2:$BE$2,$A$2&U$2,Navires!$B47:$BE47)/0.54*IF($AB47>$B47,$B47/$AB47,1) -> 0 | V47: =SUMIF(Navires!$B$2:$BE$2,$A$2&V$2,Navires!$B47:$BE47)/0.54*IF($AB47>$B47,$B47/$AB47,1) -> 0 | W47: =SUMIF(Navires!$B$2:$BE$2,$A$2&W$2,Navires!$B47:$BE47)/0.54*IF($AB47>$B47,$B47/$AB47,1) -> 0 | X47: 12 | Y47: =ProdBesoins!E49 -> 12 | Z47: 1 | AA47: =(SUMIF(Navires!$B$2:$BE$2,">19",Navires!$B47:$BE47)-SUMIF(Navires!$B$2:$BE$2,">29",Navires!$B47:$BE47))/0.54/(IF(ISERR((B47+'1'!O47+'3'!O47+'4'!O47+'5'!O47+'6'!O47+'7'!O47+'8'!O47+'9'!O47+'10'!O47)/B47),1,(B47+'1'!O47+'3'!O47+'4'!O47+'5'!O47+'6'!O47+'7'!O47+'8'!O47+'9'!O47+'10'!O47)/B47))+Y47 -> 12 | AB47: 12
A48: Manteaux de fourrure | B48: =ProdBesoins!D50 -> 12 | C48: ='1'!O48 -> 0 | E48: ='3'!O48 -> 0 | F48: ='4'!O48 -> 0 | G48: ='5'!O48 -> 0 | H48: ='6'!O48 -> 0 | I48: ='7'!O48 -> 0 | J48: ='8'!O48 -> 0 | K48: ='9'!O48 -> 0 | L48: ='10'!O48 -> 0 | M48: 12 | N48: =SUMIF(Navires!$B$2:$BE$2,$A$2&N$2,Navires!$B48:$BE48)/0.54*IF($AB48>$B48,$B48/$AB48,1) -> 0 | P48: =SUMIF(Navires!$B$2:$BE$2,$A$2&P$2,Navires!$B48:$BE48)/0.54*IF($AB48>$B48,$B48/$AB48,1) -> 0 | Q48: =SUMIF(Navires!$B$2:$BE$2,$A$2&Q$2,Navires!$B48:$BE48)/0.54*IF($AB48>$B48,$B48/$AB48,1) -> 0 | R48: =SUMIF(Navires!$B$2:$BE$2,$A$2&R$2,Navires!$B48:$BE48)/0.54*IF($AB48>$B48,$B48/$AB48,1) -> 0 | S48: =SUMIF(Navires!$B$2:$BE$2,$A$2&S$2,Navires!$B48:$BE48)/0.54*IF($AB48>$B48,$B48/$AB48,1) -> 0 | T48: =SUMIF(Navires!$B$2:$BE$2,$A$2&T$2,Navires!$B48:$BE48)/0.54*IF($AB48>$B48,$B48/$AB48,1) -> 0 | U48: =SUMIF(Navires!$B$2:$BE$2,$A$2&U$2,Navires!$B48:$BE48)/0.54*IF($AB48>$B48,$B48/$AB48,1) -> 0 | V48: =SUMIF(Navires!$B$2:$BE$2,$A$2&V$2,Navires!$B48:$BE48)/0.54*IF($AB48>$B48,$B48/$AB48,1) -> 0 | W48: =SUMIF(Navires!$B$2:$BE$2,$A$2&W$2,Navires!$B48:$BE48)/0.54*IF($AB48>$B48,$B48/$AB48,1) -> 0 | X48: 12 | Y48: =ProdBesoins!E50 -> 49.2312 | Z48: 0.2437478672 | AA48: =(SUMIF(Navires!$B$2:$BE$2,">19",Navires!$B48:$BE48)-SUMIF(Navires!$B$2:$BE$2,">29",Navires!$B48:$BE48))/0.54/(IF(ISERR((B48+'1'!O48+'3'!O48+'4'!O48+'5'!O48+'6'!O48+'7'!O48+'8'!O48+'9'!O48+'10'!O48)/B48),1,(B48+'1'!O48+'3'!O48+'4'!O48+'5'!O48+'6'!O48+'7'!O48+'8'!O48+'9'!O48+'10'!O48)/B48))+Y48 -> 49.2312 | AB48: 49.2312
A49: Charbon | B49: =ProdBesoins!D51 -> 68.57142857 | C49: =FIXED(C$7,0) -> 0 | E49: 0 | F49: 0 | G49: 0 | H49: 0 | I49: 0 | J49: 0 | K49: 0 | L49: 0 | M49: 69 | N49: 0 | P49: 0 | Q49: 0 | R49: 0 | S49: 0 | T49: 69 | U49: 0 | V49: 0 | W49: 0 | X49: =FIXED(X$7,0) -> 0 | Y49: =ProdBesoins!E51 -> 0
A50: Minerai d'or | B50: =ProdBesoins!D52 -> 2.857142857 | C50: ='1'!O50 -> 0 | E50: ='3'!O50 -> 0 | F50: ='4'!O50 -> 0 | G50: ='5'!O50 -> 0 | H50: ='6'!O50 -> 0 | I50: ='7'!O50 -> 0 | J50: ='8'!O50 -> 0 | K50: ='9'!O50 -> 0 | L50: ='10'!O50 -> 0 | M50: =SUM(B50:L50) -> 2.857142857 | N50: =SUMIF(Navires!$B$2:$BE$2,$A$2&N$2,Navires!$B50:$BE50)/0.54*IF($AB50>$B50,$B50/$AB50,1) -> 0 | P50: =SUMIF(Navires!$B$2:$BE$2,$A$2&P$2,Navires!$B50:$BE50)/0.54*IF($AB50>$B50,$B50/$AB50,1) -> 0 | Q50: =SUMIF(Navires!$B$2:$BE$2,$A$2&Q$2,Navires!$B50:$BE50)/0.54*IF($AB50>$B50,$B50/$AB50,1) -> 0 | R50: =SUMIF(Navires!$B$2:$BE$2,$A$2&R$2,Navires!$B50:$BE50)/0.54*IF($AB50>$B50,$B50/$AB50,1) -> 0 | S50: =SUMIF(Navires!$B$2:$BE$2,$A$2&S$2,Navires!$B50:$BE50)/0.54*IF($AB50>$B50,$B50/$AB50,1) -> 0 | T50: =SUMIF(Navires!$B$2:$BE$2,$A$2&T$2,Navires!$B50:$BE50)/0.54*IF($AB50>$B50,$B50/$AB50,1) -> 0 | U50: =SUMIF(Navires!$B$2:$BE$2,$A$2&U$2,Navires!$B50:$BE50)/0.54*IF($AB50>$B50,$B50/$AB50,1) -> 2.857142857 | V50: =SUMIF(Navires!$B$2:$BE$2,$A$2&V$2,Navires!$B50:$BE50)/0.54*IF($AB50>$B50,$B50/$AB50,1) -> 0 | W50: =SUMIF(Navires!$B$2:$BE$2,$A$2&W$2,Navires!$B50:$BE50)/0.54*IF($AB50>$B50,$B50/$AB50,1) -> 0 | X50: =M50-SUM(N50:W50) -> 0 | Y50: =ProdBesoins!E52 -> 0 | AA50: =(SUMIF(Navires!$B$2:$BE$2,">19",Navires!$B50:$BE50)-SUMIF(Navires!$B$2:$BE$2,">29",Navires!$B50:$BE50))/0.54/(IF(ISERR((B50+'1'!O50+'3'!O50+'4'!O50+'5'!O50+'6'!O50+'7'!O50+'8'!O50+'9'!O50+'10'!O50)/B50),1,(B50+'1'!O50+'3'!O50+'4'!O50+'5'!O50+'6'!O50+'7'!O50+'8'!O50+'9'!O50+'10'!O50)/B50))+Y50 -> 18.51851852 | AB50: 18.51851852
A51: Or | B51: =ProdBesoins!D53 -> 0 | C51: ='1'!O51 -> 0 | E51: ='3'!O51 -> 0 | F51: ='4'!O51 -> 0 | G51: ='5'!O51 -> 0 | H51: ='6'!O51 -> 0 | I51: ='7'!O51 -> 0 | J51: ='8'!O51 -> 0 | K51: ='9'!O51 -> 0 | L51: ='10'!O51 -> 0 | M51: =SUM(B51:L51) -> 0 | N51: =SUMIF(Navires!$B$2:$BE$2,$A$2&N$2,Navires!$B51:$BE51)/0.54*IF($AB51>$B51,$B51/$AB51,1) -> 0 | P51: =SUMIF(Navires!$B$2:$BE$2,$A$2&P$2,Navires!$B51:$BE51)/0.54*IF($AB51>$B51,$B51/$AB51,1) -> 0 | Q51: =SUMIF(Navires!$B$2:$BE$2,$A$2&Q$2,Navires!$B51:$BE51)/0.54*IF($AB51>$B51,$B51/$AB51,1) -> 0 | R51: =SUMIF(Navires!$B$2:$BE$2,$A$2&R$2,Navires!$B51:$BE51)/0.54*IF($AB51>$B51,$B51/$AB51,1) -> 0 | S51: =SUMIF(Navires!$B$2:$BE$2,$A$2&S$2,Navires!$B51:$BE51)/0.54*IF($AB51>$B51,$B51/$AB51,1) -> 0 | T51: =SUMIF(Navires!$B$2:$BE$2,$A$2&T$2,Navires!$B51:$BE51)/0.54*IF($AB51>$B51,$B51/$AB51,1) -> 0 | U51: =SUMIF(Navires!$B$2:$BE$2,$A$2&U$2,Navires!$B51:$BE51)/0.54*IF($AB51>$B51,$B51/$AB51,1) -> 0 | V51: =SUMIF(Navires!$B$2:$BE$2,$A$2&V$2,Navires!$B51:$BE51)/0.54*IF($AB51>$B51,$B51/$AB51,1) -> 0 | W51: =SUMIF(Navires!$B$2:$BE$2,$A$2&W$2,Navires!$B51:$BE51)/0.54*IF($AB51>$B51,$B51/$AB51,1) -> 0 | X51: 0 | Y51: =ProdBesoins!E53 -> 0 | AA51: =(SUMIF(Navires!$B$2:$BE$2,">19",Navires!$B51:$BE51)-SUMIF(Navires!$B$2:$BE$2,">29",Navires!$B51:$BE51))/0.54/(IF(ISERR((B51+'1'!O51+'3'!O51+'4'!O51+'5'!O51+'6'!O51+'7'!O51+'8'!O51+'9'!O51+'10'!O51)/B51),1,(B51+'1'!O51+'3'!O51+'4'!O51+'5'!O51+'6'!O51+'7'!O51+'8'!O51+'9'!O51+'10'!O51)/B51))+Y51 -> 0 | AB51: 0
A52: Soierie | B52: =ProdBesoins!D54 -> 0 | C52: ='1'!O52 -> 0 | E52: ='3'!O52 -> 0 | F52: ='4'!O52 -> 0 | G52: ='5'!O52 -> 0 | H52: ='6'!O52 -> 0 | I52: ='7'!O52 -> 0 | J52: ='8'!O52 -> 0 | K52: ='9'!O52 -> 0 | L52: ='10'!O52 -> 0 | M52: 0 | N52: =SUMIF(Navires!$B$2:$BE$2,$A$2&N$2,Navires!$B52:$BE52)/0.54*IF($AB52>$B52,$B52/$AB52,1) -> 0 | P52: =SUMIF(Navires!$B$2:$BE$2,$A$2&P$2,Navires!$B52:$BE52)/0.54*IF($AB52>$B52,$B52/$AB52,1) -> 0 | Q52: =SUMIF(Navires!$B$2:$BE$2,$A$2&Q$2,Navires!$B52:$BE52)/0.54*IF($AB52>$B52,$B52/$AB52,1) -> 0 | R52: =SUMIF(Navires!$B$2:$BE$2,$A$2&R$2,Navires!$B52:$BE52)/0.54*IF($AB52>$B52,$B52/$AB52,1) -> 0 | S52: =SUMIF(Navires!$B$2:$BE$2,$A$2&S$2,Navires!$B52:$BE52)/0.54*IF($AB52>$B52,$B52/$AB52,1) -> 0 | T52: =SUMIF(Navires!$B$2:$BE$2,$A$2&T$2,Navires!$B52:$BE52)/0.54*IF($AB52>$B52,$B52/$AB52,1) -> 0 | U52: =SUMIF(Navires!$B$2:$BE$2,$A$2&U$2,Navires!$B52:$BE52)/0.54*IF($AB52>$B52,$B52/$AB52,1) -> 0 | V52: =SUMIF(Navires!$B$2:$BE$2,$A$2&V$2,Navires!$B52:$BE52)/0.54*IF($AB52>$B52,$B52/$AB52,1) -> 0 | W52: =SUMIF(Navires!$B$2:$BE$2,$A$2&W$2,Navires!$B52:$BE52)/0.54*IF($AB52>$B52,$B52/$AB52,1) -> 0 | X52: 0 | Y52: =ProdBesoins!E54 -> 0 | AA52: =(SUMIF(Navires!$B$2:$BE$2,">19",Navires!$B52:$BE52)-SUMIF(Navires!$B$2:$BE$2,">29",Navires!$B52:$BE52))/0.54/(IF(ISERR((B52+'1'!O52+'3'!O52+'4'!O52+'5'!O52+'6'!O52+'7'!O52+'8'!O52+'9'!O52+'10'!O52)/B52),1,(B52+'1'!O52+'3'!O52+'4'!O52+'5'!O52+'6'!O52+'7'!O52+'8'!O52+'9'!O52+'10'!O52)/B52))+Y52 -> 0 | AB52: 0
A53: Robes en brocart | B53: =ProdBesoins!D55 -> 0 | C53: ='1'!O53 -> 0 | E53: ='3'!O53 -> 0 | F53: ='4'!O53 -> 0 | G53: ='5'!O53 -> 0 | H53: ='6'!O53 -> 0 | I53: ='7'!O53 -> 0 | J53: ='8'!O53 -> 0 | K53: ='9'!O53 -> 0 | L53: ='10'!O53 -> 0 | M53: 0 | N53: =SUMIF(Navires!$B$2:$BE$2,$A$2&N$2,Navires!$B53:$BE53)/0.54*IF($AB53>$B53,$B53/$AB53,1) -> 0 | P53: =SUMIF(Navires!$B$2:$BE$2,$A$2&P$2,Navires!$B53:$BE53)/0.54*IF($AB53>$B53,$B53/$AB53,1) -> 0 | Q53: =SUMIF(Navires!$B$2:$BE$2,$A$2&Q$2,Navires!$B53:$BE53)/0.54*IF($AB53>$B53,$B53/$AB53,1) -> 0 | R53: =SUMIF(Navires!$B$2:$BE$2,$A$2&R$2,Navires!$B53:$BE53)/0.54*IF($AB53>$B53,$B53/$AB53,1) -> 0 | S53: =SUMIF(Navires!$B$2:$BE$2,$A$2&S$2,Navires!$B53:$BE53)/0.54*IF($AB53>$B53,$B53/$AB53,1) -> 0 | T53: =SUMIF(Navires!$B$2:$BE$2,$A$2&T$2,Navires!$B53:$BE53)/0.54*IF($AB53>$B53,$B53/$AB53,1) -> 0 | U53: =SUMIF(Navires!$B$2:$BE$2,$A$2&U$2,Navires!$B53:$BE53)/0.54*IF($AB53>$B53,$B53/$AB53,1) -> 0 | V53: =SUMIF(Navires!$B$2:$BE$2,$A$2&V$2,Navires!$B53:$BE53)/0.54*IF($AB53>$B53,$B53/$AB53,1) -> 0 | W53: =SUMIF(Navires!$B$2:$BE$2,$A$2&W$2,Navires!$B53:$BE53)/0.54*IF($AB53>$B53,$B53/$AB53,1) -> 0 | X53: 0 | Y53: =ProdBesoins!E55 -> 12.696 | Z53: 0 | AA53: =(SUMIF(Navires!$B$2:$BE$2,">19",Navires!$B53:$BE53)-SUMIF(Navires!$B$2:$BE$2,">29",Navires!$B53:$BE53))/0.54/(IF(ISERR((B53+'1'!O53+'3'!O53+'4'!O53+'5'!O53+'6'!O53+'7'!O53+'8'!O53+'9'!O53+'10'!O53)/B53),1,(B53+'1'!O53+'3'!O53+'4'!O53+'5'!O53+'6'!O53+'7'!O53+'8'!O53+'9'!O53+'10'!O53)/B53))+Y53 -> 12.696 | AB53: 12.696
B54: =ProdBesoins!D56 -> 0 | Y54: =ProdBesoins!E56 -> 0
A55: Bois | B55: =ProdBesoins!D57 -> 126.8571429 | C55: =FIXED(C$5,0) -> 0 | E55: 0 | F55: 0 | G55: 0 | H55: 0 | I55: 0 | J55: 0 | K55: 0 | L55: 0 | M55: 127 | N55: 0 | P55: 0 | Q55: 0 | R55: 0 | S55: 0 | T55: 0 | U55: 0 | V55: 0 | W55: 0 | X55: =FIXED(X$5,0) -> 127 | Y55: =ProdBesoins!E57 -> 0
A56: Papier | B56: =ProdBesoins!D58 -> 0 | C56: ='1'!O56 -> 0 | E56: ='3'!O56 -> 0 | F56: ='4'!O56 -> 0 | G56: ='5'!O56 -> 0 | H56: ='6'!O56 -> 0 | I56: ='7'!O56 -> 0 | J56: ='8'!O56 -> 0 | K56: ='9'!O56 -> 0 | L56: ='10'!O56 -> 0 | M56: =SUM(B56:L56) -> 0 | N56: =SUMIF(Navires!$B$2:$BE$2,$A$2&N$2,Navires!$B56:$BE56)/0.54*IF($AB56>$B56,$B56/$AB56,1) -> 0 | P56: =SUMIF(Navires!$B$2:$BE$2,$A$2&P$2,Navires!$B56:$BE56)/0.54*IF($AB56>$B56,$B56/$AB56,1) -> 0 | Q56: =SUMIF(Navires!$B$2:$BE$2,$A$2&Q$2,Navires!$B56:$BE56)/0.54*IF($AB56>$B56,$B56/$AB56,1) -> 0 | R56: =SUMIF(Navires!$B$2:$BE$2,$A$2&R$2,Navires!$B56:$BE56)/0.54*IF($AB56>$B56,$B56/$AB56,1) -> 0 | S56: =SUMIF(Navires!$B$2:$BE$2,$A$2&S$2,Navires!$B56:$BE56)/0.54*IF($AB56>$B56,$B56/$AB56,1) -> 0 | T56: =SUMIF(Navires!$B$2:$BE$2,$A$2&T$2,Navires!$B56:$BE56)/0.54*IF($AB56>$B56,$B56/$AB56,1) -> 0 | U56: =SUMIF(Navires!$B$2:$BE$2,$A$2&U$2,Navires!$B56:$BE56)/0.54*IF($AB56>$B56,$B56/$AB56,1) -> 0 | V56: =SUMIF(Navires!$B$2:$BE$2,$A$2&V$2,Navires!$B56:$BE56)/0.54*IF($AB56>$B56,$B56/$AB56,1) -> 0 | W56: =SUMIF(Navires!$B$2:$BE$2,$A$2&W$2,Navires!$B56:$BE56)/0.54*IF($AB56>$B56,$B56/$AB56,1) -> 0 | X56: =M56-SUM(N56:W56) -> 0 | Y56: =ProdBesoins!E58 -> 0 | AA56: =(SUMIF(Navires!$B$2:$BE$2,">19",Navires!$B56:$BE56)-SUMIF(Navires!$B$2:$BE$2,">29",Navires!$B56:$BE56))/0.54/(IF(ISERR((B56+'1'!O56+'3'!O56+'4'!O56+'5'!O56+'6'!O56+'7'!O56+'8'!O56+'9'!O56+'10'!O56)/B56),1,(B56+'1'!O56+'3'!O56+'4'!O56+'5'!O56+'6'!O56+'7'!O56+'8'!O56+'9'!O56+'10'!O56)/B56))+Y56 -> 0 | AB56: 0
A57: Teinturerie | B57: =ProdBesoins!D59 -> 0 | C57: ='1'!O57 -> 0 | E57: ='3'!O57 -> 0 | F57: ='4'!O57 -> 0 | G57: ='5'!O57 -> 0 | H57: ='6'!O57 -> 0 | I57: ='7'!O57 -> 0 | J57: ='8'!O57 -> 0 | K57: ='9'!O57 -> 0 | L57: ='10'!O57 -> 0 | M57: 0 | N57: =SUMIF(Navires!$B$2:$BE$2,$A$2&N$2,Navires!$B57:$BE57)/0.54*IF($AB57>$B57,$B57/$AB57,1) -> 0 | P57: =SUMIF(Navires!$B$2:$BE$2,$A$2&P$2,Navires!$B57:$BE57)/0.54*IF($AB57>$B57,$B57/$AB57,1) -> 0 | Q57: =SUMIF(Navires!$B$2:$BE$2,$A$2&Q$2,Navires!$B57:$BE57)/0.54*IF($AB57>$B57,$B57/$AB57,1) -> 0 | R57: =SUMIF(Navires!$B$2:$BE$2,$A$2&R$2,Navires!$B57:$BE57)/0.54*IF($AB57>$B57,$B57/$AB57,1) -> 0 | S57: =SUMIF(Navires!$B$2:$BE$2,$A$2&S$2,Navires!$B57:$BE57)/0.54*IF($AB57>$B57,$B57/$AB57,1) -> 0 | T57: =SUMIF(Navires!$B$2:$BE$2,$A$2&T$2,Navires!$B57:$BE57)/0.54*IF($AB57>$B57,$B57/$AB57,1) -> 0 | U57: =SUMIF(Navires!$B$2:$BE$2,$A$2&U$2,Navires!$B57:$BE57)/0.54*IF($AB57>$B57,$B57/$AB57,1) -> 0 | V57: =SUMIF(Navires!$B$2:$BE$2,$A$2&V$2,Navires!$B57:$BE57)/0.54*IF($AB57>$B57,$B57/$AB57,1) -> 0 | W57: =SUMIF(Navires!$B$2:$BE$2,$A$2&W$2,Navires!$B57:$BE57)/0.54*IF($AB57>$B57,$B57/$AB57,1) -> 0 | X57: 0 | Y57: =ProdBesoins!E59 -> 0 | AA57: =(SUMIF(Navires!$B$2:$BE$2,">19",Navires!$B57:$BE57)-SUMIF(Navires!$B$2:$BE$2,">29",Navires!$B57:$BE57))/0.54/(IF(ISERR((B57+'1'!O57+'3'!O57+'4'!O57+'5'!O57+'6'!O57+'7'!O57+'8'!O57+'9'!O57+'10'!O57)/B57),1,(B57+'1'!O57+'3'!O57+'4'!O57+'5'!O57+'6'!O57+'7'!O57+'8'!O57+'9'!O57+'10'!O57)/B57))+Y57 -> 0 | AB57: 0
A58: Livres | B58: =ProdBesoins!D60 -> 0 | C58: ='1'!O58 -> 0 | E58: ='3'!O58 -> 0 | F58: ='4'!O58 -> 0 | G58: ='5'!O58 -> 0 | H58: ='6'!O58 -> 0 | I58: ='7'!O58 -> 0 | J58: ='8'!O58 -> 0 | K58: ='9'!O58 -> 0 | L58: ='10'!O58 -> 0 | M58: 0 | N58: =SUMIF(Navires!$B$2:$BE$2,$A$2&N$2,Navires!$B58:$BE58)/0.54*IF($AB58>$B58,$B58/$AB58,1) -> 0 | P58: =SUMIF(Navires!$B$2:$BE$2,$A$2&P$2,Navires!$B58:$BE58)/0.54*IF($AB58>$B58,$B58/$AB58,1) -> 0 | Q58: =SUMIF(Navires!$B$2:$BE$2,$A$2&Q$2,Navires!$B58:$BE58)/0.54*IF($AB58>$B58,$B58/$AB58,1) -> 0 | R58: =SUMIF(Navires!$B$2:$BE$2,$A$2&R$2,Navires!$B58:$BE58)/0.54*IF($AB58>$B58,$B58/$AB58,1) -> 0 | S58: =SUMIF(Navires!$B$2:$BE$2,$A$2&S$2,Navires!$B58:$BE58)/0.54*IF($AB58>$B58,$B58/$AB58,1) -> 0 | T58: =SUMIF(Navires!$B$2:$BE$2,$A$2&T$2,Navires!$B58:$BE58)/0.54*IF($AB58>$B58,$B58/$AB58,1) -> 0 | U58: =SUMIF(Navires!$B$2:$BE$2,$A$2&U$2,Navires!$B58:$BE58)/0.54*IF($AB58>$B58,$B58/$AB58,1) -> 0 | V58: =SUMIF(Navires!$B$2:$BE$2,$A$2&V$2,Navires!$B58:$BE58)/0.54*IF($AB58>$B58,$B58/$AB58,1) -> 0 | W58: =SUMIF(Navires!$B$2:$BE$2,$A$2&W$2,Navires!$B58:$BE58)/0.54*IF($AB58>$B58,$B58/$AB58,1) -> 0 | X58: 0 | Y58: =ProdBesoins!E60 -> 160.3896 | Z58: 0 | AA58: =(SUMIF(Navires!$B$2:$BE$2,">19",Navires!$B58:$BE58)-SUMIF(Navires!$B$2:$BE$2,">29",Navires!$B58:$BE58))/0.54/(IF(ISERR((B58+'1'!O58+'3'!O58+'4'!O58+'5'!O58+'6'!O58+'7'!O58+'8'!O58+'9'!O58+'10'!O58)/B58),1,(B58+'1'!O58+'3'!O58+'4'!O58+'5'!O58+'6'!O58+'7'!O58+'8'!O58+'9'!O58+'10'!O58)/B58))+Y58 -> 160.3896 | AB58: 160.3896
A59: Charbon | B59: =ProdBesoins!D61 -> 68.57142857 | C59: =FIXED(C$7,0) -> 0 | E59: 0 | F59: 0 | G59: 0 | H59: 0 | I59: 0 | J59: 0 | K59: 0 | L59: 0 | M59: 69 | N59: 0 | P59: 0 | Q59: 0 | R59: 0 | S59: 0 | T59: 69 | U59: 0 | V59: 0 | W59: 0 | X59: =FIXED(X$7,0) -> 0 | Y59: =ProdBesoins!E61 -> 0
A60: Minerai de cuivre | B60: =ProdBesoins!D62 -> 0 | C60: ='1'!O60 -> 0 | E60: ='3'!O60 -> 0 | F60: ='4'!O60 -> 0 | G60: ='5'!O60 -> 0 | H60: ='6'!O60 -> 0 | I60: ='7'!O60 -> 0 | J60: ='8'!O60 -> 0 | K60: ='9'!O60 -> 0 | L60: ='10'!O60 -> 0 | M60: =SUM(B60:L60) -> 0 | N60: =SUMIF(Navires!$B$2:$BE$2,$A$2&N$2,Navires!$B60:$BE60)/0.54*IF($AB60>$B60,$B60/$AB60,1) -> 0 | P60: =SUMIF(Navires!$B$2:$BE$2,$A$2&P$2,Navires!$B60:$BE60)/0.54*IF($AB60>$B60,$B60/$AB60,1) -> 0 | Q60: =SUMIF(Navires!$B$2:$BE$2,$A$2&Q$2,Navires!$B60:$BE60)/0.54*IF($AB60>$B60,$B60/$AB60,1) -> 0 | R60: =SUMIF(Navires!$B$2:$BE$2,$A$2&R$2,Navires!$B60:$BE60)/0.54*IF($AB60>$B60,$B60/$AB60,1) -> 0 | S60: =SUMIF(Navires!$B$2:$BE$2,$A$2&S$2,Navires!$B60:$BE60)/0.54*IF($AB60>$B60,$B60/$AB60,1) -> 0 | T60: =SUMIF(Navires!$B$2:$BE$2,$A$2&T$2,Navires!$B60:$BE60)/0.54*IF($AB60>$B60,$B60/$AB60,1) -> 0 | U60: =SUMIF(Navires!$B$2:$BE$2,$A$2&U$2,Navires!$B60:$BE60)/0.54*IF($AB60>$B60,$B60/$AB60,1) -> 0 | V60: =SUMIF(Navires!$B$2:$BE$2,$A$2&V$2,Navires!$B60:$BE60)/0.54*IF($AB60>$B60,$B60/$AB60,1) -> 0 | W60: =SUMIF(Navires!$B$2:$BE$2,$A$2&W$2,Navires!$B60:$BE60)/0.54*IF($AB60>$B60,$B60/$AB60,1) -> 0 | X60: =M60-SUM(N60:W60) -> 0 | Y60: =ProdBesoins!E62 -> 0 | AA60: =(SUMIF(Navires!$B$2:$BE$2,">19",Navires!$B60:$BE60)-SUMIF(Navires!$B$2:$BE$2,">29",Navires!$B60:$BE60))/0.54/(IF(ISERR((B60+'1'!O60+'3'!O60+'4'!O60+'5'!O60+'6'!O60+'7'!O60+'8'!O60+'9'!O60+'10'!O60)/B60),1,(B60+'1'!O60+'3'!O60+'4'!O60+'5'!O60+'6'!O60+'7'!O60+'8'!O60+'9'!O60+'10'!O60)/B60))+Y60 -> 0 | AB60: 0
A61: Bronze | B61: =ProdBesoins!D63 -> 0 | C61: ='1'!O61 -> 0 | E61: ='3'!O61 -> 0 | F61: ='4'!O61 -> 0 | G61: ='5'!O61 -> 0 | H61: ='6'!O61 -> 0 | I61: ='7'!O61 -> 0 | J61: ='8'!O61 -> 0 | K61: ='9'!O61 -> 0 | L61: ='10'!O61 -> 0 | M61: =SUM(B61:L61) -> 0 | N61: =SUMIF(Navires!$B$2:$BE$2,$A$2&N$2,Navires!$B61:$BE61)/0.54*IF($AB61>$B61,$B61/$AB61,1) -> 0 | P61: =SUMIF(Navires!$B$2:$BE$2,$A$2&P$2,Navires!$B61:$BE61)/0.54*IF($AB61>$B61,$B61/$AB61,1) -> 0 | Q61: =SUMIF(Navires!$B$2:$BE$2,$A$2&Q$2,Navires!$B61:$BE61)/0.54*IF($AB61>$B61,$B61/$AB61,1) -> 0 | R61: =SUMIF(Navires!$B$2:$BE$2,$A$2&R$2,Navires!$B61:$BE61)/0.54*IF($AB61>$B61,$B61/$AB61,1) -> 0 | S61: =SUMIF(Navires!$B$2:$BE$2,$A$2&S$2,Navires!$B61:$BE61)/0.54*IF($AB61>$B61,$B61/$AB61,1) -> 0 | T61: =SUMIF(Navires!$B$2:$BE$2,$A$2&T$2,Navires!$B61:$BE61)/0.54*IF($AB61>$B61,$B61/$AB61,1) -> 0 | U61: =SUMIF(Navires!$B$2:$BE$2,$A$2&U$2,Navires!$B61:$BE61)/0.54*IF($AB61>$B61,$B61/$AB61,1) -> 0 | V61: =SUMIF(Navires!$B$2:$BE$2,$A$2&V$2,Navires!$B61:$BE61)/0.54*IF($AB61>$B61,$B61/$AB61,1) -> 0 | W61: =SUMIF(Navires!$B$2:$BE$2,$A$2&W$2,Navires!$B61:$BE61)/0.54*IF($AB61>$B61,$B61/$AB61,1) -> 0 | X61: 0 | Y61: =ProdBesoins!E63 -> 0 | AA61: =(SUMIF(Navires!$B$2:$BE$2,">19",Navires!$B61:$BE61)-SUMIF(Navires!$B$2:$BE$2,">29",Navires!$B61:$BE61))/0.54/(IF(ISERR((B61+'1'!O61+'3'!O61+'4'!O61+'5'!O61+'6'!O61+'7'!O61+'8'!O61+'9'!O61+'10'!O61)/B61),1,(B61+'1'!O61+'3'!O61+'4'!O61+'5'!O61+'6'!O61+'7'!O61+'8'!O61+'9'!O61+'10'!O61)/B61))+Y61 -> 0 | AB61: 0
A62: Chanvre | B62: =ProdBesoins!D64 -> 325.7142857 | C62: =FIXED(C$40,0) -> 0 | E62: 0 | F62: 0 | G62: 0 | H62: 0 | I62: 0 | J62: 0 | K62: 0 | L62: 0 | M62: 326 | N62: 0 | P62: 0 | Q62: 0 | R62: 0 | S62: 0 | T62: 0 | U62: 0 | V62: 0 | W62: 0 | X62: =FIXED(X$40,0) -> 326 | Y62: =ProdBesoins!E64 -> 325.7142857
A63: Cire d'abeille | B63: =ProdBesoins!D65 -> 0 | C63: ='1'!O63 -> 0 | E63: ='3'!O63 -> 0 | F63: ='4'!O63 -> 0 | G63: ='5'!O63 -> 0 | H63: ='6'!O63 -> 0 | I63: ='7'!O63 -> 0 | J63: ='8'!O63 -> 0 | K63: ='9'!O63 -> 0 | L63: ='10'!O63 -> 0 | M63: =SUM(B63:L63) -> 0 | N63: =SUMIF(Navires!$B$2:$BE$2,$A$2&N$2,Navires!$B63:$BE63)/0.54*IF($AB63>$B63,$B63/$AB63,1) -> 0 | P63: =SUMIF(Navires!$B$2:$BE$2,$A$2&P$2,Navires!$B63:$BE63)/0.54*IF($AB63>$B63,$B63/$AB63,1) -> 0 | Q63: =SUMIF(Navires!$B$2:$BE$2,$A$2&Q$2,Navires!$B63:$BE63)/0.54*IF($AB63>$B63,$B63/$AB63,1) -> 0 | R63: =SUMIF(Navires!$B$2:$BE$2,$A$2&R$2,Navires!$B63:$BE63)/0.54*IF($AB63>$B63,$B63/$AB63,1) -> 0 | S63: =SUMIF(Navires!$B$2:$BE$2,$A$2&S$2,Navires!$B63:$BE63)/0.54*IF($AB63>$B63,$B63/$AB63,1) -> 0 | T63: =SUMIF(Navires!$B$2:$BE$2,$A$2&T$2,Navires!$B63:$BE63)/0.54*IF($AB63>$B63,$B63/$AB63,1) -> 0 | U63: =SUMIF(Navires!$B$2:$BE$2,$A$2&U$2,Navires!$B63:$BE63)/0.54*IF($AB63>$B63,$B63/$AB63,1) -> 0 | V63: =SUMIF(Navires!$B$2:$BE$2,$A$2&V$2,Navires!$B63:$BE63)/0.54*IF($AB63>$B63,$B63/$AB63,1) -> 0 | W63: =SUMIF(Navires!$B$2:$BE$2,$A$2&W$2,Navires!$B63:$BE63)/0.54*IF($AB63>$B63,$B63/$AB63,1) -> 0 | X63: =M63-SUM(N63:W63) -> 0 | Y63: =ProdBesoins!E65 -> 0 | AA63: =(SUMIF(Navires!$B$2:$BE$2,">19",Navires!$B63:$BE63)-SUMIF(Navires!$B$2:$BE$2,">29",Navires!$B63:$BE63))/0.54/(IF(ISERR((B63+'1'!O63+'3'!O63+'4'!O63+'5'!O63+'6'!O63+'7'!O63+'8'!O63+'9'!O63+'10'!O63)/B63),1,(B63+'1'!O63+'3'!O63+'4'!O63+'5'!O63+'6'!O63+'7'!O63+'8'!O63+'9'!O63+'10'!O63)/B63))+Y63 -> 0 | AB63: 0
A64: Bougies | B64: =ProdBesoins!D66 -> 0 | C64: ='1'!O64 -> 0 | E64: ='3'!O64 -> 0 | F64: ='4'!O64 -> 0 | G64: ='5'!O64 -> 0 | H64: ='6'!O64 -> 0 | I64: ='7'!O64 -> 0 | J64: ='8'!O64 -> 0 | K64: ='9'!O64 -> 0 | L64: ='10'!O64 -> 0 | M64: 0 | N64: =SUMIF(Navires!$B$2:$BE$2,$A$2&N$2,Navires!$B64:$BE64)/0.54*IF($AB64>$B64,$B64/$AB64,1) -> 0 | P64: =SUMIF(Navires!$B$2:$BE$2,$A$2&P$2,Navires!$B64:$BE64)/0.54*IF($AB64>$B64,$B64/$AB64,1) -> 0 | Q64: =SUMIF(Navires!$B$2:$BE$2,$A$2&Q$2,Navires!$B64:$BE64)/0.54*IF($AB64>$B64,$B64/$AB64,1) -> 0 | R64: =SUMIF(Navires!$B$2:$BE$2,$A$2&R$2,Navires!$B64:$BE64)/0.54*IF($AB64>$B64,$B64/$AB64,1) -> 0 | S64: =SUMIF(Navires!$B$2:$BE$2,$A$2&S$2,Navires!$B64:$BE64)/0.54*IF($AB64>$B64,$B64/$AB64,1) -> 0 | T64: =SUMIF(Navires!$B$2:$BE$2,$A$2&T$2,Navires!$B64:$BE64)/0.54*IF($AB64>$B64,$B64/$AB64,1) -> 0 | U64: =SUMIF(Navires!$B$2:$BE$2,$A$2&U$2,Navires!$B64:$BE64)/0.54*IF($AB64>$B64,$B64/$AB64,1) -> 0 | V64: =SUMIF(Navires!$B$2:$BE$2,$A$2&V$2,Navires!$B64:$BE64)/0.54*IF($AB64>$B64,$B64/$AB64,1) -> 0 | W64: =SUMIF(Navires!$B$2:$BE$2,$A$2&W$2,Navires!$B64:$BE64)/0.54*IF($AB64>$B64,$B64/$AB64,1) -> 0 | X64: 0 | Y64: =ProdBesoins!E66 -> 0 | AA64: =(SUMIF(Navires!$B$2:$BE$2,">19",Navires!$B64:$BE64)-SUMIF(Navires!$B$2:$BE$2,">29",Navires!$B64:$BE64))/0.54/(IF(ISERR((B64+'1'!O64+'3'!O64+'4'!O64+'5'!O64+'6'!O64+'7'!O64+'8'!O64+'9'!O64+'10'!O64)/B64),1,(B64+'1'!O64+'3'!O64+'4'!O64+'5'!O64+'6'!O64+'7'!O64+'8'!O64+'9'!O64+'10'!O64)/B64))+Y64 -> 0 | AB64: 0
A65: Bougeoirs | B65: =ProdBesoins!D67 -> 0 | C65: ='1'!O65 -> 0 | E65: ='3'!O65 -> 0 | F65: ='4'!O65 -> 0 | G65: ='5'!O65 -> 0 | H65: ='6'!O65 -> 0 | I65: ='7'!O65 -> 0 | J65: ='8'!O65 -> 0 | K65: ='9'!O65 -> 0 | L65: ='10'!O65 -> 0 | M65: 0 | N65: =SUMIF(Navires!$B$2:$BE$2,$A$2&N$2,Navires!$B65:$BE65)/0.54*IF($AB65>$B65,$B65/$AB65,1) -> 0 | P65: =SUMIF(Navires!$B$2:$BE$2,$A$2&P$2,Navires!$B65:$BE65)/0.54*IF($AB65>$B65,$B65/$AB65,1) -> 0 | Q65: =SUMIF(Navires!$B$2:$BE$2,$A$2&Q$2,Navires!$B65:$BE65)/0.54*IF($AB65>$B65,$B65/$AB65,1) -> 0 | R65: =SUMIF(Navires!$B$2:$BE$2,$A$2&R$2,Navires!$B65:$BE65)/0.54*IF($AB65>$B65,$B65/$AB65,1) -> 0 | S65: =SUMIF(Navires!$B$2:$BE$2,$A$2&S$2,Navires!$B65:$BE65)/0.54*IF($AB65>$B65,$B65/$AB65,1) -> 0 | T65: =SUMIF(Navires!$B$2:$BE$2,$A$2&T$2,Navires!$B65:$BE65)/0.54*IF($AB65>$B65,$B65/$AB65,1) -> 0 | U65: =SUMIF(Navires!$B$2:$BE$2,$A$2&U$2,Navires!$B65:$BE65)/0.54*IF($AB65>$B65,$B65/$AB65,1) -> 0 | V65: =SUMIF(Navires!$B$2:$BE$2,$A$2&V$2,Navires!$B65:$BE65)/0.54*IF($AB65>$B65,$B65/$AB65,1) -> 0 | W65: =SUMIF(Navires!$B$2:$BE$2,$A$2&W$2,Navires!$B65:$BE65)/0.54*IF($AB65>$B65,$B65/$AB65,1) -> 0 | X65: 0 | Y65: =ProdBesoins!E67 -> 50.784 | Z65: 0 | AA65: =(SUMIF(Navires!$B$2:$BE$2,">19",Navires!$B65:$BE65)-SUMIF(Navires!$B$2:$BE$2,">29",Navires!$B65:$BE65))/0.54/(IF(ISERR((B65+'1'!O65+'3'!O65+'4'!O65+'5'!O65+'6'!O65+'7'!O65+'8'!O65+'9'!O65+'10'!O65)/B65),1,(B65+'1'!O65+'3'!O65+'4'!O65+'5'!O65+'6'!O65+'7'!O65+'8'!O65+'9'!O65+'10'!O65)/B65))+Y65 -> 50.784 | AB65: 50.784
A66: Charbon | B66: =ProdBesoins!D68 -> 68.57142857 | C66: =FIXED(C$7,0) -> 0 | E66: 0 | F66: 0 | G66: 0 | H66: 0 | I66: 0 | J66: 0 | K66: 0 | L66: 0 | M66: 69 | N66: 0 | P66: 0 | Q66: 0 | R66: 0 | S66: 0 | T66: 69 | U66: 0 | V66: 0 | W66: 0 | X66: =FIXED(X$7,0) -> 0 | Y66: =ProdBesoins!E68 -> 0
A67: Minerai de cuivre | B67: =ProdBesoins!D69 -> 0 | C67: =FIXED(C$60,0) -> 0 | E67: 0 | F67: 0 | G67: 0 | H67: 0 | I67: 0 | J67: 0 | K67: 0 | L67: 0 | M67: 0 | N67: 0 | P67: 0 | Q67: 0 | R67: 0 | S67: 0 | T67: 0 | U67: 0 | V67: 0 | W67: 0 | X67: =FIXED(X$60,0) -> 0 | Y67: =ProdBesoins!E69 -> 0
A68: Bronze | B68: =ProdBesoins!D70 -> 0 | C68: =FIXED(C$61,0) -> 0 | E68: 0 | F68: 0 | G68: 0 | H68: 0 | I68: 0 | J68: 0 | K68: 0 | L68: 0 | M68: 0 | N68: 0 | P68: 0 | Q68: 0 | R68: 0 | S68: 0 | T68: 0 | U68: 0 | V68: 0 | W68: 0 | X68: =FIXED(X$61,0) -> 0 | Y68: =ProdBesoins!E70 -> 0
A69: Quartz | B69: =ProdBesoins!D71 -> 5.714285714 | C69: =FIXED(C$12,0) -> 0 | E69: 0 | F69: 0 | G69: 0 | H69: 0 | I69: 0 | J69: 0 | K69: 0 | L69: 0 | M69: 6 | N69: 0 | P69: 0 | Q69: 0 | R69: 0 | S69: 6 | T69: 0 | U69: 0 | V69: 0 | W69: 0 | X69: =FIXED(X$12,0) -> 0 | Y69: =ProdBesoins!E71 -> 0
A70: Lunettes | B70: =ProdBesoins!D72 -> 0 | C70: ='1'!O70 -> 0 | E70: ='3'!O70 -> 0 | F70: ='4'!O70 -> 0 | G70: ='5'!O70 -> 0 | H70: ='6'!O70 -> 0 | I70: ='7'!O70 -> 0 | J70: ='8'!O70 -> 0 | K70: ='9'!O70 -> 0 | L70: ='10'!O70 -> 0 | M70: =SUM(B70:L70) -> 0 | N70: =SUMIF(Navires!$B$2:$BE$2,$A$2&N$2,Navires!$B70:$BE70)/0.54*IF($AB70>$B70,$B70/$AB70,1) -> 0 | P70: =SUMIF(Navires!$B$2:$BE$2,$A$2&P$2,Navires!$B70:$BE70)/0.54*IF($AB70>$B70,$B70/$AB70,1) -> 0 | Q70: =SUMIF(Navires!$B$2:$BE$2,$A$2&Q$2,Navires!$B70:$BE70)/0.54*IF($AB70>$B70,$B70/$AB70,1) -> 0 | R70: =SUMIF(Navires!$B$2:$BE$2,$A$2&R$2,Navires!$B70:$BE70)/0.54*IF($AB70>$B70,$B70/$AB70,1) -> 0 | S70: =SUMIF(Navires!$B$2:$BE$2,$A$2&S$2,Navires!$B70:$BE70)/0.54*IF($AB70>$B70,$B70/$AB70,1) -> 0 | T70: =SUMIF(Navires!$B$2:$BE$2,$A$2&T$2,Navires!$B70:$BE70)/0.54*IF($AB70>$B70,$B70/$AB70,1) -> 0 | U70: =SUMIF(Navires!$B$2:$BE$2,$A$2&U$2,Navires!$B70:$BE70)/0.54*IF($AB70>$B70,$B70/$AB70,1) -> 0 | V70: =SUMIF(Navires!$B$2:$BE$2,$A$2&V$2,Navires!$B70:$BE70)/0.54*IF($AB70>$B70,$B70/$AB70,1) -> 0 | W70: =SUMIF(Navires!$B$2:$BE$2,$A$2&W$2,Navires!$B70:$BE70)/0.54*IF($AB70>$B70,$B70/$AB70,1) -> 0 | X70: =M70-SUM(N70:W70) -> 0 | Y70: =ProdBesoins!E72 -> 19.044 | Z70: 0 | AA70: =(SUMIF(Navires!$B$2:$BE$2,">19",Navires!$B70:$BE70)-SUMIF(Navires!$B$2:$BE$2,">29",Navires!$B70:$BE70))/0.54/(IF(ISERR((B70+'1'!O70+'3'!O70+'4'!O70+'5'!O70+'6'!O70+'7'!O70+'8'!O70+'9'!O70+'10'!O70)/B70),1,(B70+'1'!O70+'3'!O70+'4'!O70+'5'!O70+'6'!O70+'7'!O70+'8'!O70+'9'!O70+'10'!O70)/B70))+Y70 -> 19.044 | AB70: 19.044

Sheet 3
B1: Production | C1: Importations de | M1: Dispo 1 | N1: Exportations vers | X1: Dispo 2 | Y1: Besoins | Z1: Couverture | AA1: Exp+Besoin
A2: 3 | C2: 1 | D2: 2 | E2: 3 | F2: 4 | G2: 5 | H2: 6 | I2: 7 | J2: 8 | K2: 9 | L2: 10 | N2: 1 | O2: 2 | P2: 3 | Q2: 4 | R2: 5 | S2: 6 | T2: 7 | U2: 8 | V2: 9 | W2: 10
A5: Bois | B5: =ProdBesoins!F7 -> 0 | C5: ='1'!P5 -> 0 | D5: ='2'!P5 -> 0 | F5: ='4'!P5 -> 0 | G5: ='5'!P5 -> 0 | H5: ='6'!P5 -> 0 | I5: ='7'!P5 -> 0 | J5: ='8'!P5 -> 0 | K5: ='9'!P5 -> 0 | L5: ='10'!P5 -> 0 | M5: =SUM(B5:L5) -> 0 | N5: =SUMIF(Navires!$B$2:$BE$2,$A$2&N$2,Navires!$B5:$BE5)/0.54*IF($AB5>$B5,$B5/$AB5,1) -> 0 | O5: =SUMIF(Navires!$B$2:$BE$2,$A$2&O$2,Navires!$B5:$BE5)/0.54*IF($AB5>$B5,$B5/$AB5,1) -> 0 | Q5: =SUMIF(Navires!$B$2:$BE$2,$A$2&Q$2,Navires!$B5:$BE5)/0.54*IF($AB5>$B5,$B5/$AB5,1) -> 0 | R5: =SUMIF(Navires!$B$2:$BE$2,$A$2&R$2,Navires!$B5:$BE5)/0.54*IF($AB5>$B5,$B5/$AB5,1) -> 0 | S5: =SUMIF(Navires!$B$2:$BE$2,$A$2&S$2,Navires!$B5:$BE5)/0.54*IF($AB5>$B5,$B5/$AB5,1) -> 0 | T5: =SUMIF(Navires!$B$2:$BE$2,$A$2&T$2,Navires!$B5:$BE5)/0.54*IF($AB5>$B5,$B5/$AB5,1) -> 0 | U5: =SUMIF(Navires!$B$2:$BE$2,$A$2&U$2,Navires!$B5:$BE5)/0.54*IF($AB5>$B5,$B5/$AB5,1) -> 0 | V5: =SUMIF(Navires!$B$2:$BE$2,$A$2&V$2,Navires!$B5:$BE5)/0.54*IF($AB5>$B5,$B5/$AB5,1) -> 0 | W5: =SUMIF(Navires!$B$2:$BE$2,$A$2&W$2,Navires!$B5:$BE5)/0.54*IF($AB5>$B5,$B5/$AB5,1) -> 0 | X5: =M5-SUM(N5:W5) -> 0 | Y5: =ProdBesoins!G7 -> 0 | Z5: =IF(Y5>0,X5/Y5,IF(X5>0,"A exporter","")) ->  | AA5: =(SUMIF(Navires!$B$2:$BE$2,">29",Navires!$B5:$BE5)-SUMIF(Navires!$B$2:$BE$2,">39",Navires!$B5:$BE5))/0.54/(IF(ISERR((B5+'1'!P5+'2'!P5+'4'!P5+'5'!P5+'6'!P5+'7'!P5+'8'!P5+'9'!P5+'10'!P5)/B5),1,(B5+'1'!P5+'2'!P5+'4'!P5+'5'!P5+'6'!P5+'7'!P5+'8'!P5+'9'!P5+'10'!P5)/B5))+Y5 -> 0 | AB5: 0
A6: Pierre | B6: =ProdBesoins!F8 -> 0 | C6: ='1'!P6 -> 0 | D6: ='2'!P6 -> 0 | F6: ='4'!P6 -> 0 | G6: ='5'!P6 -> 0 | H6: ='6'!P6 -> 0 | I6: ='7'!P6 -> 0 | J6: ='8'!P6 -> 0 | K6: ='9'!P6 -> 0 | L6: ='10'!P6 -> 0 | M6: 0 | N6: =SUMIF(Navires!$B$2:$BE$2,$A$2&N$2,Navires!$B6:$BE6)/0.54*IF($AB6>$B6,$B6/$AB6,1) -> 0 | O6: =SUMIF(Navires!$B$2:$BE$2,$A$2&O$2,Navires!$B6:$BE6)/0.54*IF($AB6>$B6,$B6/$AB6,1) -> 0 | Q6: =SUMIF(Navires!$B$2:$BE$2,$A$2&Q$2,Navires!$B6:$BE6)/0.54*IF($AB6>$B6,$B6/$AB6,1) -> 0 | R6: =SUMIF(Navires!$B$2:$BE$2,$A$2&R$2,Navires!$B6:$BE6)/0.54*IF($AB6>$B6,$B6/$AB6,1) -> 0 | S6: =SUMIF(Navires!$B$2:$BE$2,$A$2&S$2,Navires!$B6:$BE6)/0.54*IF($AB6>$B6,$B6/$AB6,1) -> 0 | T6: =SUMIF(Navires!$B$2:$BE$2,$A$2&T$2,Navires!$B6:$BE6)/0.54*IF($AB6>$B6,$B6/$AB6,1) -> 0 | U6: =SUMIF(Navires!$B$2:$BE$2,$A$2&U$2,Navires!$B6:$BE6)/0.54*IF($AB6>$B6,$B6/$AB6,1) -> 0 | V6: =SUMIF(Navires!$B$2:$BE$2,$A$2&V$2,Navires!$B6:$BE6)/0.54*IF($AB6>$B6,$B6/$AB6,1) -> 0 | W6: =SUMIF(Navires!$B$2:$BE$2,$A$2&W$2,Navires!$B6:$BE6)/0.54*IF($AB6>$B6,$B6/$AB6,1) -> 0 | X6: =M6-SUM(N6:W6) -> 0 | Y6: =ProdBesoins!G8 -> 0 | Z6: =IF(Y6>0,X6/Y6,IF(X6>0,"Excédent","")) ->  | AA6: =(SUMIF(Navires!$B$2:$BE$2,">29",Navires!$B6:$BE6)-SUMIF(Navires!$B$2:$BE$2,">39",Navires!$B6:$BE6))/0.54/(IF(ISERR((B6+'1'!P6+'2'!P6+'4'!P6+'5'!P6+'6'!P6+'7'!P6+'8'!P6+'9'!P6+'10'!P6)/B6),1,(B6+'1'!P6+'2'!P6+'4'!P6+'5'!P6+'6'!P6+'7'!P6+'8'!P6+'9'!P6+'10'!P6)/B6))+Y6 -> 0 | AB6: 0
A7: Charbon | B7: =ProdBesoins!F9 -> 0 | C7: ='1'!P7 -> 0 | D7: ='2'!P7 -> 0 | F7: ='4'!P7 -> 0 | G7: ='5'!P7 -> 0 | H7: ='6'!P7 -> 0 | I7: ='7'!P7 -> 0 | J7: ='8'!P7 -> 0 | K7: ='9'!P7 -> 0 | L7: ='10'!P7 -> 0 | M7: 0 | N7: =SUMIF(Navires!$B$2:$BE$2,$A$2&N$2,Navires!$B7:$BE7)/0.54*IF($AB7>$B7,$B7/$AB7,1) -> 0 | O7: =SUMIF(Navires!$B$2:$BE$2,$A$2&O$2,Navires!$B7:$BE7)/0.54*IF($AB7>$B7,$B7/$AB7,1) -> 0 | Q7: =SUMIF(Navires!$B$2:$BE$2,$A$2&Q$2,Navires!$B7:$BE7)/0.54*IF($AB7>$B7,$B7/$AB7,1) -> 0 | R7: =SUMIF(Navires!$B$2:$BE$2,$A$2&R$2,Navires!$B7:$BE7)/0.54*IF($AB7>$B7,$B7/$AB7,1) -> 0 | S7: =SUMIF(Navires!$B$2:$BE$2,$A$2&S$2,Navires!$B7:$BE7)/0.54*IF($AB7>$B7,$B7/$AB7,1) -> 0 | T7: =SUMIF(Navires!$B$2:$BE$2,$A$2&T$2,Navires!$B7:$BE7)/0.54*IF($AB7>$B7,$B7/$AB7,1) -> 0 | U7: =SUMIF(Navires!$B$2:$BE$2,$A$2&U$2,Navires!$B7:$BE7)/0.54*IF($AB7>$B7,$B7/$AB7,1) -> 0 | V7: =SUMIF(Navires!$B$2:$BE$2,$A$2&V$2,Navires!$B7:$BE7)/0.54*IF($AB7>$B7,$B7/$AB7,1) -> 0 | W7: =SUMIF(Navires!$B$2:$BE$2,$A$2&W$2,Navires!$B7:$BE7)/0.54*IF($AB7>$B7,$B7/$AB7,1) -> 0 | X7: 0 | Y7: =ProdBesoins!G9 -> 0 | Z7: =IF(Y7>0,X7/Y7,IF(X7>0,"Excédent","")) ->  | AA7: =(SUMIF(Navires!$B$2:$BE$2,">29",Navires!$B7:$BE7)-SUMIF(Navires!$B$2:$BE$2,">39",Navires!$B7:$BE7))/0.54/(IF(ISERR((B7+'1'!P7+'2'!P7+'4'!P7+'5'!P7+'6'!P7+'7'!P7+'8'!P7+'9'!P7+'10'!P7)/B7),1,(B7+'1'!P7+'2'!P7+'4'!P7+'5'!P7+'6'!P7+'7'!P7+'8'!P7+'9'!P7+'10'!P7)/B7))+Y7 -> 0 | AB7: 0
A8: Minerai de fer | B8: =ProdBesoins!F10 -> 0 | C8: ='1'!P8 -> 0 | D8: ='2'!P8 -> 0 | F8: ='4'!P8 -> 0 | G8: ='5'!P8 -> 0 | H8: ='6'!P8 -> 0 | I8: ='7'!P8 -> 0 | J8: ='8'!P8 -> 0 | K8: ='9'!P8 -> 0 | L8: ='10'!P8 -> 0 | M8: 0 | N8: =SUMIF(Navires!$B$2:$BE$2,$A$2&N$2,Navires!$B8:$BE8)/0.54*IF($AB8>$B8,$B8/$AB8,1) -> 0 | O8: =SUMIF(Navires!$B$2:$BE$2,$A$2&O$2,Navires!$B8:$BE8)/0.54*IF($AB8>$B8,$B8/$AB8,1) -> 0 | Q8: =SUMIF(Navires!$B$2:$BE$2,$A$2&Q$2,Navires!$B8:$BE8)/0.54*IF($AB8>$B8,$B8/$AB8,1) -> 0 | R8: =SUMIF(Navires!$B$2:$BE$2,$A$2&R$2,Navires!$B8:$BE8)/0.54*IF($AB8>$B8,$B8/$AB8,1) -> 0 | S8: =SUMIF(Navires!$B$2:$BE$2,$A$2&S$2,Navires!$B8:$BE8)/0.54*IF($AB8>$B8,$B8/$AB8,1) -> 0 | T8: =SUMIF(Navires!$B$2:$BE$2,$A$2&T$2,Navires!$B8:$BE8)/0.54*IF($AB8>$B8,$B8/$AB8,1) -> 0 | U8: =SUMIF(Navires!$B$2:$BE$2,$A$2&U$2,Navires!$B8:$BE8)/0.54*IF($AB8>$B8,$B8/$AB8,1) -> 0 | V8: =SUMIF(Navires!$B$2:$BE$2,$A$2&V$2,Navires!$B8:$BE8)/0.54*IF($AB8>$B8,$B8/$AB8,1) -> 0 | W8: =SUMIF(Navires!$B$2:$BE$2,$A$2&W$2,Navires!$B8:$BE8)/0.54*IF($AB8>$B8,$B8/$AB8,1) -> 0 | X8: 0 | Y8: =ProdBesoins!G10 -> 0 | AA8: =(SUMIF(Navires!$B$2:$BE$2,">29",Navires!$B8:$BE8)-SUMIF(Navires!$B$2:$BE$2,">39",Navires!$B8:$BE8))/0.54/(IF(ISERR((B8+'1'!P8+'2'!P8+'4'!P8+'5'!P8+'6'!P8+'7'!P8+'8'!P8+'9'!P8+'10'!P8)/B8),1,(B8+'1'!P8+'2'!P8+'4'!P8+'5'!P8+'6'!P8+'7'!P8+'8'!P8+'9'!P8+'10'!P8)/B8))+Y8 -> 0 | AB8: 0
A9: Fer | B9: =ProdBesoins!F11 -> 0 | C9: ='1'!P9 -> 0 | D9: ='2'!P9 -> 0 | F9: ='4'!P9 -> 0 | G9: ='5'!P9 -> 0 | H9: ='6'!P9 -> 0 | I9: ='7'!P9 -> 0 | J9: ='8'!P9 -> 0 | K9: ='9'!P9 -> 0 | L9: ='10'!P9 -> 0 | M9: 0 | N9: =SUMIF(Navires!$B$2:$BE$2,$A$2&N$2,Navires!$B9:$BE9)/0.54*IF($AB9>$B9,$B9/$AB9,1) -> 0 | O9: =SUMIF(Navires!$B$2:$BE$2,$A$2&O$2,Navires!$B9:$BE9)/0.54*IF($AB9>$B9,$B9/$AB9,1) -> 0 | Q9: =SUMIF(Navires!$B$2:$BE$2,$A$2&Q$2,Navires!$B9:$BE9)/0.54*IF($AB9>$B9,$B9/$AB9,1) -> 0 | R9: =SUMIF(Navires!$B$2:$BE$2,$A$2&R$2,Navires!$B9:$BE9)/0.54*IF($AB9>$B9,$B9/$AB9,1) -> 0 | S9: =SUMIF(Navires!$B$2:$BE$2,$A$2&S$2,Navires!$B9:$BE9)/0.54*IF($AB9>$B9,$B9/$AB9,1) -> 0 | T9: =SUMIF(Navires!$B$2:$BE$2,$A$2&T$2,Navires!$B9:$BE9)/0.54*IF($AB9>$B9,$B9/$AB9,1) -> 0 | U9: =SUMIF(Navires!$B$2:$BE$2,$A$2&U$2,Navires!$B9:$BE9)/0.54*IF($AB9>$B9,$B9/$AB9,1) -> 0 | V9: =SUMIF(Navires!$B$2:$BE$2,$A$2&V$2,Navires!$B9:$BE9)/0.54*IF($AB9>$B9,$B9/$AB9,1) -> 0 | W9: =SUMIF(Navires!$B$2:$BE$2,$A$2&W$2,Navires!$B9:$BE9)/0.54*IF($AB9>$B9,$B9/$AB9,1) -> 0 | X9: 0 | Y9: =ProdBesoins!G11 -> 0 | AA9: =(SUMIF(Navires!$B$2:$BE$2,">29",Navires!$B9:$BE9)-SUMIF(Navires!$B$2:$BE$2,">39",Navires!$B9:$BE9))/0.54/(IF(ISERR((B9+'1'!P9+'2'!P9+'4'!P9+'5'!P9+'6'!P9+'7'!P9+'8'!P9+'9'!P9+'10'!P9)/B9),1,(B9+'1'!P9+'2'!P9+'4'!P9+'5'!P9+'6'!P9+'7'!P9+'8'!P9+'9'!P9+'10'!P9)/B9))+Y9 -> 0 | AB9: 0
A10: Outils | B10: =ProdBesoins!F12 -> 0 | C10: ='1'!P10 -> 0 | D10: ='2'!P10 -> 0 | F10: ='4'!P10 -> 0 | G10: ='5'!P10 -> 0 | H10: ='6'!P10 -> 0 | I10: ='7'!P10 -> 0 | J10: ='8'!P10 -> 0 | K10: ='9'!P10 -> 0 | L10: ='10'!P10 -> 0 | M10: 0 | N10: =SUMIF(Navires!$B$2:$BE$2,$A$2&N$2,Navires!$B10:$BE10)/0.54*IF($AB10>$B10,$B10/$AB10,1) -> 0 | O10: =SUMIF(Navires!$B$2:$BE$2,$A$2&O$2,Navires!$B10:$BE10)/0.54*IF($AB10>$B10,$B10/$AB10,1) -> 0 | Q10: =SUMIF(Navires!$B$2:$BE$2,$A$2&Q$2,Navires!$B10:$BE10)/0.54*IF($AB10>$B10,$B10/$AB10,1) -> 0 | R10: =SUMIF(Navires!$B$2:$BE$2,$A$2&R$2,Navires!$B10:$BE10)/0.54*IF($AB10>$B10,$B10/$AB10,1) -> 0 | S10: =SUMIF(Navires!$B$2:$BE$2,$A$2&S$2,Navires!$B10:$BE10)/0.54*IF($AB10>$B10,$B10/$AB10,1) -> 0 | T10: =SUMIF(Navires!$B$2:$BE$2,$A$2&T$2,Navires!$B10:$BE10)/0.54*IF($AB10>$B10,$B10/$AB10,1) -> 0 | U10: =SUMIF(Navires!$B$2:$BE$2,$A$2&U$2,Navires!$B10:$BE10)/0.54*IF($AB10>$B10,$B10/$AB10,1) -> 0 | V10: =SUMIF(Navires!$B$2:$BE$2,$A$2&V$2,Navires!$B10:$BE10)/0.54*IF($AB10>$B10,$B10/$AB10,1) -> 0 | W10: =SUMIF(Navires!$B$2:$BE$2,$A$2&W$2,Navires!$B10:$BE10)/0.54*IF($AB10>$B10,$B10/$AB10,1) -> 0 | X10: 0 | Y10: =ProdBesoins!G12 -> 0 | AA10: =(SUMIF(Navires!$B$2:$BE$2,">29",Navires!$B10:$BE10)-SUMIF(Navires!$B$2:$BE$2,">39",Navires!$B10:$BE10))/0.54/(IF(ISERR((B10+'1'!P10+'2'!P10+'4'!P10+'5'!P10+'6'!P10+'7'!P10+'8'!P10+'9'!P10+'10'!P10)/B10),1,(B10+'1'!P10+'2'!P10+'4'!P10+'5'!P10+'6'!P10+'7'!P10+'8'!P10+'9'!P10+'10'!P10)/B10))+Y10 -> 0 | AB10: 0
A11: Potasse | B11: =ProdBesoins!F13 -> 0 | C11: ='1'!P11 -> 0 | D11: ='2'!P11 -> 0 | F11: ='4'!P11 -> 0 | G11: ='5'!P11 -> 0 | H11: ='6'!P11 -> 0 | I11: ='7'!P11 -> 0 | J11: ='8'!P11 -> 0 | K11: ='9'!P11 -> 0 | L11: ='10'!P11 -> 0 | M11: 0 | N11: =SUMIF(Navires!$B$2:$BE$2,$A$2&N$2,Navires!$B11:$BE11)/0.54*IF($AB11>$B11,$B11/$AB11,1) -> 0 | O11: =SUMIF(Navires!$B$2:$BE$2,$A$2&O$2,Navires!$B11:$BE11)/0.54*IF($AB11>$B11,$B11/$AB11,1) -> 0 | Q11: =SUMIF(Navires!$B$2:$BE$2,$A$2&Q$2,Navires!$B11:$BE11)/0.54*IF($AB11>$B11,$B11/$AB11,1) -> 0 | R11: =SUMIF(Navires!$B$2:$BE$2,$A$2&R$2,Navires!$B11:$BE11)/0.54*IF($AB11>$B11,$B11/$AB11,1) -> 0 | S11: =SUMIF(Navires!$B$2:$BE$2,$A$2&S$2,Navires!$B11:$BE11)/0.54*IF($AB11>$B11,$B11/$AB11,1) -> 0 | T11: =SUMIF(Navires!$B$2:$BE$2,$A$2&T$2,Navires!$B11:$BE11)/0.54*IF($AB11>$B11,$B11/$AB11,1) -> 0 | U11: =SUMIF(Navires!$B$2:$BE$2,$A$2&U$2,Navires!$B11:$BE11)/0.54*IF($AB11>$B11,$B11/$AB11,1) -> 0 | V11: =SUMIF(Navires!$B$2:$BE$2,$A$2&V$2,Navires!$B11:$BE11)/0.54*IF($AB11>$B11,$B11/$AB11,1) -> 0 | W11: =SUMIF(Navires!$B$2:$BE$2,$A$2&W$2,Navires!$B11:$BE11)/0.54*IF($AB11>$B11,$B11/$AB11,1) -> 0 | X11: 0 | Y11: =ProdBesoins!G13 -> 0 | AA11: =(SUMIF(Navires!$B$2:$BE$2,">29",Navires!$B11:$BE11)-SUMIF(Navires!$B$2:$BE$2,">39",Navires!$B11:$BE11))/0.54/(IF(ISERR((B11+'1'!P11+'2'!P11+'4'!P11+'5'!P11+'6'!P11+'7'!P11+'8'!P11+'9'!P11+'10'!P11)/B11),1,(B11+'1'!P11+'2'!P11+'4'!P11+'5'!P11+'6'!P11+'7'!P11+'8'!P11+'9'!P11+'10'!P11)/B11))+Y11 -> 0 | AB11: 0
A12: Quartz | B12: =ProdBesoins!F14 -> 0 | C12: ='1'!P12 -> 0 | D12: ='2'!P12 -> 0 | F12: ='4'!P12 -> 0 | G12: ='5'!P12 -> 0 | H12: ='6'!P12 -> 0 | I12: ='7'!P12 -> 0 | J12: ='8'!P12 -> 0 | K12: ='9'!P12 -> 0 | L12: ='10'!P12 -> 0 | M12: 0 | N12: =SUMIF(Navires!$B$2:$BE$2,$A$2&N$2,Navires!$B12:$BE12)/0.54*IF($AB12>$B12,$B12/$AB12,1) -> 0 | O12: =SUMIF(Navires!$B$2:$BE$2,$A$2&O$2,Navires!$B12:$BE12)/0.54*IF($AB12>$B12,$B12/$AB12,1) -> 0 | Q12: =SUMIF(Navires!$B$2:$BE$2,$A$2&Q$2,Navires!$B12:$BE12)/0.54*IF($AB12>$B12,$B12/$AB12,1) -> 0 | R12: =SUMIF(Navires!$B$2:$BE$2,$A$2&R$2,Navires!$B12:$BE12)/0.54*IF($AB12>$B12,$B12/$AB12,1) -> 0 | S12: =SUMIF(Navires!$B$2:$BE$2,$A$2&S$2,Navires!$B12:$BE12)/0.54*IF($AB12>$B12,$B12/$AB12,1) -> 0 | T12: =SUMIF(Navires!$B$2:$BE$2,$A$2&T$2,Navires!$B12:$BE12)/0.54*IF($AB12>$B12,$B12/$AB12,1) -> 0 | U12: =SUMIF(Navires!$B$2:$BE$2,$A$2&U$2,Navires!$B12:$BE12)/0.54*IF($AB12>$B12,$B12/$AB12,1) -> 0 | V12: =SUMIF(Navires!$B$2:$BE$2,$A$2&V$2,Navires!$B12:$BE12)/0.54*IF($AB12>$B12,$B12/$AB12,1) -> 0 | W12: =SUMIF(Navires!$B$2:$BE$2,$A$2&W$2,Navires!$B12:$BE12)/0.54*IF($AB12>$B12,$B12/$AB12,1) -> 0 | X12: 0 | Y12: =ProdBesoins!G14 -> 0 | AA12: =(SUMIF(Navires!$B$2:$BE$2,">29",Navires!$B12:$BE12)-SUMIF(Navires!$B$2:$BE$2,">39",Navires!$B12:$BE12))/0.54/(IF(ISERR((B12+'1'!P12+'2'!P12+'4'!P12+'5'!P12+'6'!P12+'7'!P12+'8'!P12+'9'!P12+'10'!P12)/B12),1,(B12+'1'!P12+'2'!P12+'4'!P12+'5'!P12+'6'!P12+'7'!P12+'8'!P12+'9'!P12+'10'!P12)/B12))+Y12 -> 0 | AB12: 0
A13: Verre | B13: =ProdBesoins!F15 -> 0 | C13: ='1'!P13 -> 0 | D13: ='2'!P13 -> 0 | F13: ='4'!P13 -> 0 | G13: ='5'!P13 -> 0 | H13: ='6'!P13 -> 0 | I13: ='7'!P13 -> 0 | J13: ='8'!P13 -> 0 | K13: ='9'!P13 -> 0 | L13: ='10'!P13 -> 0 | M13: 0 | N13: =SUMIF(Navires!$B$2:$BE$2,$A$2&N$2,Navires!$B13:$BE13)/0.54*IF($AB13>$B13,$B13/$AB13,1) -> 0 | O13: =SUMIF(Navires!$B$2:$BE$2,$A$2&O$2,Navires!$B13:$BE13)/0.54*IF($AB13>$B13,$B13/$AB13,1) -> 0 | Q13: =SUMIF(Navires!$B$2:$BE$2,$A$2&Q$2,Navires!$B13:$BE13)/0.54*IF($AB13>$B13,$B13/$AB13,1) -> 0 | R13: =SUMIF(Navires!$B$2:$BE$2,$A$2&R$2,Navires!$B13:$BE13)/0.54*IF($AB13>$B13,$B13/$AB13,1) -> 0 | S13: =SUMIF(Navires!$B$2:$BE$2,$A$2&S$2,Navires!$B13:$BE13)/0.54*IF($AB13>$B13,$B13/$AB13,1) -> 0 | T13: =SUMIF(Navires!$B$2:$BE$2,$A$2&T$2,Navires!$B13:$BE13)/0.54*IF($AB13>$B13,$B13/$AB13,1) -> 0 | U13: =SUMIF(Navires!$B$2:$BE$2,$A$2&U$2,Navires!$B13:$BE13)/0.54*IF($AB13>$B13,$B13/$AB13,1) -> 0 | V13: =SUMIF(Navires!$B$2:$BE$2,$A$2&V$2,Navires!$B13:$BE13)/0.54*IF($AB13>$B13,$B13/$AB13,1) -> 0 | W13: =SUMIF(Navires!$B$2:$BE$2,$A$2&W$2,Navires!$B13:$BE13)/0.54*IF($AB13>$B13,$B13/$AB13,1) -> 0 | X13: 0 | Y13: =ProdBesoins!G15 -> 0 | AA13: =(SUMIF(Navires!$B$2:$BE$2,">29",Navires!$B13:$BE13)-SUMIF(Navires!$B$2:$BE$2,">39",Navires!$B13:$BE13))/0.54/(IF(ISERR((B13+'1'!P13+'2'!P13+'4'!P13+'5'!P13+'6'!P13+'7'!P13+'8'!P13+'9'!P13+'10'!P13)/B13),1,(B13+'1'!P13+'2'!P13+'4'!P13+'5'!P13+'6'!P13+'7'!P13+'8'!P13+'9'!P13+'10'!P13)/B13))+Y13 -> 0 | AB13: 0
B14: =ProdBesoins!F16 -> 0 | Y14: =ProdBesoins!G16 -> 0
A15: Poisson | B15: =ProdBesoins!F17 -> 0 | C15: ='1'!P15 -> 0 | D15: ='2'!P15 -> 0 | F15: ='4'!P15 -> 0 | G15: ='5'!P15 -> 0 | H15: ='6'!P15 -> 0 | I15: ='7'!P15 -> 0 | J15: ='8'!P15 -> 0 | K15: ='9'!P15 -> 0 | L15: ='10'!P15 -> 0 | M15: =SUM(B15:L15) -> 0 | N15: =SUMIF(Navires!$B$2:$BE$2,$A$2&N$2,Navires!$B15:$BE15)/0.54*IF($AB15>$B15,$B15/$AB15,1) -> 0 | O15: =SUMIF(Navires!$B$2:$BE$2,$A$2&O$2,Navires!$B15:$BE15)/0.54*IF($AB15>$B15,$B15/$AB15,1) -> 0 | Q15: =SUMIF(Navires!$B$2:$BE$2,$A$2&Q$2,Navires!$B15:$BE15)/0.54*IF($AB15>$B15,$B15/$AB15,1) -> 0 | R15: =SUMIF(Navires!$B$2:$BE$2,$A$2&R$2,Navires!$B15:$BE15)/0.54*IF($AB15>$B15,$B15/$AB15,1) -> 0 | S15: =SUMIF(Navires!$B$2:$BE$2,$A$2&S$2,Navires!$B15:$BE15)/0.54*IF($AB15>$B15,$B15/$AB15,1) -> 0 | T15: =SUMIF(Navires!$B$2:$BE$2,$A$2&T$2,Navires!$B15:$BE15)/0.54*IF($AB15>$B15,$B15/$AB15,1) -> 0 | U15: =SUMIF(Navires!$B$2:$BE$2,$A$2&U$2,Navires!$B15:$BE15)/0.54*IF($AB15>$B15,$B15/$AB15,1) -> 0 | V15: =SUMIF(Navires!$B$2:$BE$2,$A$2&V$2,Navires!$B15:$BE15)/0.54*IF($AB15>$B15,$B15/$AB15,1) -> 0 | W15: =SUMIF(Navires!$B$2:$BE$2,$A$2&W$2,Navires!$B15:$BE15)/0.54*IF($AB15>$B15,$B15/$AB15,1) -> 0 | X15: 0 | Y15: =ProdBesoins!G17 -> 0 | AA15: =(SUMIF(Navires!$B$2:$BE$2,">29",Navires!$B15:$BE15)-SUMIF(Navires!$B$2:$BE$2,">39",Navires!$B15:$BE15))/0.54/(IF(ISERR((B15+'1'!P15+'2'!P15+'4'!P15+'5'!P15+'6'!P15+'7'!P15+'8'!P15+'9'!P15+'10'!P15)/B15),1,(B15+'1'!P15+'2'!P15+'4'!P15+'5'!P15+'6'!P15+'7'!P15+'8'!P15+'9'!P15+'10'!P15)/B15))+Y15 -> 0 | AB15: 0
A16: Céréales | B16: =ProdBesoins!F18 -> 0 | C16: ='1'!P16 -> 0 | D16: ='2'!P16 -> 0 | F16: ='4'!P16 -> 0 | G16: ='5'!P16 -> 0 | H16: ='6'!P16 -> 0 | I16: ='7'!P16 -> 0 | J16: ='8'!P16 -> 0 | K16: ='9'!P16 -> 0 | L16: ='10'!P16 -> 0 | M16: 0 | N16: =SUMIF(Navires!$B$2:$BE$2,$A$2&N$2,Navires!$B16:$BE16)/0.54*IF($AB16>$B16,$B16/$AB16,1) -> 0 | O16: =SUMIF(Navires!$B$2:$BE$2,$A$2&O$2,Navires!$B16:$BE16)/0.54*IF($AB16>$B16,$B16/$AB16,1) -> 0 | Q16: =SUMIF(Navires!$B$2:$BE$2,$A$2&Q$2,Navires!$B16:$BE16)/0.54*IF($AB16>$B16,$B16/$AB16,1) -> 0 | R16: =SUMIF(Navires!$B$2:$BE$2,$A$2&R$2,Navires!$B16:$BE16)/0.54*IF($AB16>$B16,$B16/$AB16,1) -> 0 | S16: =SUMIF(Navires!$B$2:$BE$2,$A$2&S$2,Navires!$B16:$BE16)/0.54*IF($AB16>$B16,$B16/$AB16,1) -> 0 | T16: =SUMIF(Navires!$B$2:$BE$2,$A$2&T$2,Navires!$B16:$BE16)/0.54*IF($AB16>$B16,$B16/$AB16,1) -> 0 | U16: =SUMIF(Navires!$B$2:$BE$2,$A$2&U$2,Navires!$B16:$BE16)/0.54*IF($AB16>$B16,$B16/$AB16,1) -> 0 | V16: =SUMIF(Navires!$B$2:$BE$2,$A$2&V$2,Navires!$B16:$BE16)/0.54*IF($AB16>$B16,$B16/$AB16,1) -> 0 | W16: =SUMIF(Navires!$B$2:$BE$2,$A$2&W$2,Navires!$B16:$BE16)/0.54*IF($AB16>$B16,$B16/$AB16,1) -> 0 | X16: 0 | Y16: =ProdBesoins!G18 -> 0 | AA16: =(SUMIF(Navires!$B$2:$BE$2,">29",Navires!$B16:$BE16)-SUMIF(Navires!$B$2:$BE$2,">39",Navires!$B16:$BE16))/0.54/(IF(ISERR((B16+'1'!P16+'2'!P16+'4'!P16+'5'!P16+'6'!P16+'7'!P16+'8'!P16+'9'!P16+'10'!P16)/B16),1,(B16+'1'!P16+'2'!P16+'4'!P16+'5'!P16+'6'!P16+'7'!P16+'8'!P16+'9'!P16+'10'!P16)/B16))+Y16 -> 0 | AB16: 0
A17: Farine | B17: =ProdBesoins!F19 -> 0 | C17: ='1'!P17 -> 0 | D17: ='2'!P17 -> 0 | F17: ='4'!P17 -> 0 | G17: ='5'!P17 -> 0 | H17: ='6'!P17 -> 0 | I17: ='7'!P17 -> 0 | J17: ='8'!P17 -> 0 | K17: ='9'!P17 -> 0 | L17: ='10'!P17 -> 0 | M17: 0 | N17: =SUMIF(Navires!$B$2:$BE$2,$A$2&N$2,Navires!$B17:$BE17)/0.54*IF($AB17>$B17,$B17/$AB17,1) -> 0 | O17: =SUMIF(Navires!$B$2:$BE$2,$A$2&O$2,Navires!$B17:$BE17)/0.54*IF($AB17>$B17,$B17/$AB17,1) -> 0 | Q17: =SUMIF(Navires!$B$2:$BE$2,$A$2&Q$2,Navires!$B17:$BE17)/0.54*IF($AB17>$B17,$B17/$AB17,1) -> 0 | R17: =SUMIF(Navires!$B$2:$BE$2,$A$2&R$2,Navires!$B17:$BE17)/0.54*IF($AB17>$B17,$B17/$AB17,1) -> 0 | S17: =SUMIF(Navires!$B$2:$BE$2,$A$2&S$2,Navires!$B17:$BE17)/0.54*IF($AB17>$B17,$B17/$AB17,1) -> 0 | T17: =SUMIF(Navires!$B$2:$BE$2,$A$2&T$2,Navires!$B17:$BE17)/0.54*IF($AB17>$B17,$B17/$AB17,1) -> 0 | U17: =SUMIF(Navires!$B$2:$BE$2,$A$2&U$2,Navires!$B17:$BE17)/0.54*IF($AB17>$B17,$B17/$AB17,1) -> 0 | V17: =SUMIF(Navires!$B$2:$BE$2,$A$2&V$2,Navires!$B17:$BE17)/0.54*IF($AB17>$B17,$B17/$AB17,1) -> 0 | W17: =SUMIF(Navires!$B$2:$BE$2,$A$2&W$2,Navires!$B17:$BE17)/0.54*IF($AB17>$B17,$B17/$AB17,1) -> 0 | X17: 0 | Y17: =ProdBesoins!G19 -> 0 | AA17: =(SUMIF(Navires!$B$2:$BE$2,">29",Navires!$B17:$BE17)-SUMIF(Navires!$B$2:$BE$2,">39",Navires!$B17:$BE17))/0.54/(IF(ISERR((B17+'1'!P17+'2'!P17+'4'!P17+'5'!P17+'6'!P17+'7'!P17+'8'!P17+'9'!P17+'10'!P17)/B17),1,(B17+'1'!P17+'2'!P17+'4'!P17+'5'!P17+'6'!P17+'7'!P17+'8'!P17+'9'!P17+'10'!P17)/B17))+Y17 -> 0 | AB17: 0
A18: Pain | B18: =ProdBesoins!F20 -> 0 | C18: ='1'!P18 -> 0 | D18: ='2'!P18 -> 0 | F18: ='4'!P18 -> 0 | G18: ='5'!P18 -> 0 | H18: ='6'!P18 -> 0 | I18: ='7'!P18 -> 0 | J18: ='8'!P18 -> 0 | K18: ='9'!P18 -> 0 | L18: ='10'!P18 -> 0 | M18: 0 | N18: =SUMIF(Navires!$B$2:$BE$2,$A$2&N$2,Navires!$B18:$BE18)/0.54*IF($AB18>$B18,$B18/$AB18,1) -> 0 | O18: =SUMIF(Navires!$B$2:$BE$2,$A$2&O$2,Navires!$B18:$BE18)/0.54*IF($AB18>$B18,$B18/$AB18,1) -> 0 | Q18: =SUMIF(Navires!$B$2:$BE$2,$A$2&Q$2,Navires!$B18:$BE18)/0.54*IF($AB18>$B18,$B18/$AB18,1) -> 0 | R18: =SUMIF(Navires!$B$2:$BE$2,$A$2&R$2,Navires!$B18:$BE18)/0.54*IF($AB18>$B18,$B18/$AB18,1) -> 0 | S18: =SUMIF(Navires!$B$2:$BE$2,$A$2&S$2,Navires!$B18:$BE18)/0.54*IF($AB18>$B18,$B18/$AB18,1) -> 0 | T18: =SUMIF(Navires!$B$2:$BE$2,$A$2&T$2,Navires!$B18:$BE18)/0.54*IF($AB18>$B18,$B18/$AB18,1) -> 0 | U18: =SUMIF(Navires!$B$2:$BE$2,$A$2&U$2,Navires!$B18:$BE18)/0.54*IF($AB18>$B18,$B18/$AB18,1) -> 0 | V18: =SUMIF(Navires!$B$2:$BE$2,$A$2&V$2,Navires!$B18:$BE18)/0.54*IF($AB18>$B18,$B18/$AB18,1) -> 0 | W18: =SUMIF(Navires!$B$2:$BE$2,$A$2&W$2,Navires!$B18:$BE18)/0.54*IF($AB18>$B18,$B18/$AB18,1) -> 0 | X18: 0 | Y18: =ProdBesoins!G20 -> 0 | AA18: =(SUMIF(Navires!$B$2:$BE$2,">29",Navires!$B18:$BE18)-SUMIF(Navires!$B$2:$BE$2,">39",Navires!$B18:$BE18))/0.54/(IF(ISERR((B18+'1'!P18+'2'!P18+'4'!P18+'5'!P18+'6'!P18+'7'!P18+'8'!P18+'9'!P18+'10'!P18)/B18),1,(B18+'1'!P18+'2'!P18+'4'!P18+'5'!P18+'6'!P18+'7'!P18+'8'!P18+'9'!P18+'10'!P18)/B18))+Y18 -> 0 | AB18: 0
A19: Epices | B19: =ProdBesoins!F21 -> 0 | C19: ='1'!P19 -> 0 | D19: ='2'!P19 -> 0 | F19: ='4'!P19 -> 0 | G19: ='5'!P19 -> 0 | H19: ='6'!P19 -> 0 | I19: ='7'!P19 -> 0 | J19: ='8'!P19 -> 0 | K19: ='9'!P19 -> 0 | L19: ='10'!P19 -> 0 | M19: =SUM(B19:K19) -> 0 | N19: =SUMIF(Navires!$B$2:$BE$2,$A$2&N$2,Navires!$B19:$BE19)/0.54*IF($AB19>$B19,$B19/$AB19,1) -> 0 | O19: =SUMIF(Navires!$B$2:$BE$2,$A$2&O$2,Navires!$B19:$BE19)/0.54*IF($AB19>$B19,$B19/$AB19,1) -> 0 | Q19: =SUMIF(Navires!$B$2:$BE$2,$A$2&Q$2,Navires!$B19:$BE19)/0.54*IF($AB19>$B19,$B19/$AB19,1) -> 0 | R19: =SUMIF(Navires!$B$2:$BE$2,$A$2&R$2,Navires!$B19:$BE19)/0.54*IF($AB19>$B19,$B19/$AB19,1) -> 0 | S19: =SUMIF(Navires!$B$2:$BE$2,$A$2&S$2,Navires!$B19:$BE19)/0.54*IF($AB19>$B19,$B19/$AB19,1) -> 0 | T19: =SUMIF(Navires!$B$2:$BE$2,$A$2&T$2,Navires!$B19:$BE19)/0.54*IF($AB19>$B19,$B19/$AB19,1) -> 0 | U19: =SUMIF(Navires!$B$2:$BE$2,$A$2&U$2,Navires!$B19:$BE19)/0.54*IF($AB19>$B19,$B19/$AB19,1) -> 0 | V19: =SUMIF(Navires!$B$2:$BE$2,$A$2&V$2,Navires!$B19:$BE19)/0.54*IF($AB19>$B19,$B19/$AB19,1) -> 0 | W19: =SUMIF(Navires!$B$2:$BE$2,$A$2&W$2,Navires!$B19:$BE19)/0.54*IF($AB19>$B19,$B19/$AB19,1) -> 0 | X19: 0 | Y19: =ProdBesoins!G21 -> 0 | AA19: =(SUMIF(Navires!$B$2:$BE$2,">29",Navires!$B19:$BE19)-SUMIF(Navires!$B$2:$BE$2,">39",Navires!$B19:$BE19))/0.54/(IF(ISERR((B19+'1'!P19+'2'!P19+'4'!P19+'5'!P19+'6'!P19+'7'!P19+'8'!P19+'9'!P19+'10'!P19)/B19),1,(B19+'1'!P19+'2'!P19+'4'!P19+'5'!P19+'6'!P19+'7'!P19+'8'!P19+'9'!P19+'10'!P19)/B19))+Y19 -> 0 | AB19: 0
A20: Charbon | B20: =ProdBesoins!F22 -> 0 | C20: =FIXED(C$7,0) -> 0 | D20: 0 | F20: 0 | G20: 0 | H20: 0 | I20: 0 | J20: 0 | K20: 0 | L20: 0 | M20: =FIXED(M$7,2) -> 0.00 | N20: =FIXED(N$7,0) -> 0 | O20: 0 | Q20: 0 | R20: 0 | S20: 0 | T20: 0 | U20: 0 | V20: 0 | W20: 0 | X20: =FIXED(X$7,2) -> 0.00 | Y20: =ProdBesoins!G22 -> 0
A21: Saumure | B21: =ProdBesoins!F23 -> 0 | C21: ='1'!P21 -> 0 | D21: ='2'!P21 -> 0 | F21: ='4'!P21 -> 0 | G21: ='5'!P21 -> 0 | H21: ='6'!P21 -> 0 | I21: ='7'!P21 -> 0 | J21: ='8'!P21 -> 0 | K21: ='9'!P21 -> 0 | L21: ='10'!P21 -> 0 | M21: =SUM(B21:L21) -> 0 | N21: =SUMIF(Navires!$B$2:$BE$2,$A$2&N$2,Navires!$B21:$BE21)/0.54*IF($AB21>$B21,$B21/$AB21,1) -> 0 | O21: =SUMIF(Navires!$B$2:$BE$2,$A$2&O$2,Navires!$B21:$BE21)/0.54*IF($AB21>$B21,$B21/$AB21,1) -> 0 | Q21: =SUMIF(Navires!$B$2:$BE$2,$A$2&Q$2,Navires!$B21:$BE21)/0.54*IF($AB21>$B21,$B21/$AB21,1) -> 0 | R21: =SUMIF(Navires!$B$2:$BE$2,$A$2&R$2,Navires!$B21:$BE21)/0.54*IF($AB21>$B21,$B21/$AB21,1) -> 0 | S21: =SUMIF(Navires!$B$2:$BE$2,$A$2&S$2,Navires!$B21:$BE21)/0.54*IF($AB21>$B21,$B21/$AB21,1) -> 0 | T21: =SUMIF(Navires!$B$2:$BE$2,$A$2&T$2,Navires!$B21:$BE21)/0.54*IF($AB21>$B21,$B21/$AB21,1) -> 0 | U21: =SUMIF(Navires!$B$2:$BE$2,$A$2&U$2,Navires!$B21:$BE21)/0.54*IF($AB21>$B21,$B21/$AB21,1) -> 0 | V21: =SUMIF(Navires!$B$2:$BE$2,$A$2&V$2,Navires!$B21:$BE21)/0.54*IF($AB21>$B21,$B21/$AB21,1) -> 0 | W21: =SUMIF(Navires!$B$2:$BE$2,$A$2&W$2,Navires!$B21:$BE21)/0.54*IF($AB21>$B21,$B21/$AB21,1) -> 0 | X21: 0 | Y21: =ProdBesoins!G23 -> 0 | AA21: =(SUMIF(Navires!$B$2:$BE$2,">29",Navires!$B21:$BE21)-SUMIF(Navires!$B$2:$BE$2,">39",Navires!$B21:$BE21))/0.54/(IF(ISERR((B21+'1'!P21+'2'!P21+'4'!P21+'5'!P21+'6'!P21+'7'!P21+'8'!P21+'9'!P21+'10'!P21)/B21),1,(B21+'1'!P21+'2'!P21+'4'!P21+'5'!P21+'6'!P21+'7'!P21+'8'!P21+'9'!P21+'10'!P21)/B21))+Y21 -> 0 | AB21: 0
A22: Sel | B22: =ProdBesoins!F24 -> 0 | C22: ='1'!P22 -> 0 | D22: ='2'!P22 -> 0 | F22: ='4'!P22 -> 0 | G22: ='5'!P22 -> 0 | H22: ='6'!P22 -> 0 | I22: ='7'!P22 -> 0 | J22: ='8'!P22 -> 0 | K22: ='9'!P22 -> 0 | L22: ='10'!P22 -> 0 | M22: =SUM(B22:L22) -> 0 | N22: =SUMIF(Navires!$B$2:$BE$2,$A$2&N$2,Navires!$B22:$BE22)/0.54*IF($AB22>$B22,$B22/$AB22,1) -> 0 | O22: =SUMIF(Navires!$B$2:$BE$2,$A$2&O$2,Navires!$B22:$BE22)/0.54*IF($AB22>$B22,$B22/$AB22,1) -> 0 | Q22: =SUMIF(Navires!$B$2:$BE$2,$A$2&Q$2,Navires!$B22:$BE22)/0.54*IF($AB22>$B22,$B22/$AB22,1) -> 0 | R22: =SUMIF(Navires!$B$2:$BE$2,$A$2&R$2,Navires!$B22:$BE22)/0.54*IF($AB22>$B22,$B22/$AB22,1) -> 0 | S22: =SUMIF(Navires!$B$2:$BE$2,$A$2&S$2,Navires!$B22:$BE22)/0.54*IF($AB22>$B22,$B22/$AB22,1) -> 0 | T22: =SUMIF(Navires!$B$2:$BE$2,$A$2&T$2,Navires!$B22:$BE22)/0.54*IF($AB22>$B22,$B22/$AB22,1) -> 0 | U22: =SUMIF(Navires!$B$2:$BE$2,$A$2&U$2,Navires!$B22:$BE22)/0.54*IF($AB22>$B22,$B22/$AB22,1) -> 0 | V22: =SUMIF(Navires!$B$2:$BE$2,$A$2&V$2,Navires!$B22:$BE22)/0.54*IF($AB22>$B22,$B22/$AB22,1) -> 0 | W22: =SUMIF(Navires!$B$2:$BE$2,$A$2&W$2,Navires!$B22:$BE22)/0.54*IF($AB22>$B22,$B22/$AB22,1) -> 0 | X22: 0 | Y22: =ProdBesoins!G24 -> 0 | AA22: =(SUMIF(Navires!$B$2:$BE$2,">29",Navires!$B22:$BE22)-SUMIF(Navires!$B$2:$BE$2,">39",Navires!$B22:$BE22))/0.54/(IF(ISERR((B22+'1'!P22+'2'!P22+'4'!P22+'5'!P22+'6'!P22+'7'!P22+'8'!P22+'9'!P22+'10'!P22)/B22),1,(B22+'1'!P22+'2'!P22+'4'!P22+'5'!P22+'6'!P22+'7'!P22+'8'!P22+'9'!P22+'10'!P22)/B22))+Y22 -> 0 | AB22: 0
A23: Bétail | B23: =ProdBesoins!F25 -> 0 | C23: ='1'!P23 -> 0 | D23: ='2'!P23 -> 0 | F23: ='4'!P23 -> 0 | G23: ='5'!P23 -> 0 | H23: ='6'!P23 -> 0 | I23: ='7'!P23 -> 0 | J23: ='8'!P23 -> 0 | K23: ='9'!P23 -> 0 | L23: ='10'!P23 -> 0 | M23: 0 | N23: =SUMIF(Navires!$B$2:$BE$2,$A$2&N$2,Navires!$B23:$BE23)/0.54*IF($AB23>$B23,$B23/$AB23,1) -> 0 | O23: =SUMIF(Navires!$B$2:$BE$2,$A$2&O$2,Navires!$B23:$BE23)/0.54*IF($AB23>$B23,$B23/$AB23,1) -> 0 | Q23: =SUMIF(Navires!$B$2:$BE$2,$A$2&Q$2,Navires!$B23:$BE23)/0.54*IF($AB23>$B23,$B23/$AB23,1) -> 0 | R23: =SUMIF(Navires!$B$2:$BE$2,$A$2&R$2,Navires!$B23:$BE23)/0.54*IF($AB23>$B23,$B23/$AB23,1) -> 0 | S23: =SUMIF(Navires!$B$2:$BE$2,$A$2&S$2,Navires!$B23:$BE23)/0.54*IF($AB23>$B23,$B23/$AB23,1) -> 0 | T23: =SUMIF(Navires!$B$2:$BE$2,$A$2&T$2,Navires!$B23:$BE23)/0.54*IF($AB23>$B23,$B23/$AB23,1) -> 0 | U23: =SUMIF(Navires!$B$2:$BE$2,$A$2&U$2,Navires!$B23:$BE23)/0.54*IF($AB23>$B23,$B23/$AB23,1) -> 0 | V23: =SUMIF(Navires!$B$2:$BE$2,$A$2&V$2,Navires!$B23:$BE23)/0.54*IF($AB23>$B23,$B23/$AB23,1) -> 0 | W23: =SUMIF(Navires!$B$2:$BE$2,$A$2&W$2,Navires!$B23:$BE23)/0.54*IF($AB23>$B23,$B23/$AB23,1) -> 0 | X23: 0 | Y23: =ProdBesoins!G25 -> 0 | AA23: =(SUMIF(Navires!$B$2:$BE$2,">29",Navires!$B23:$BE23)-SUMIF(Navires!$B$2:$BE$2,">39",Navires!$B23:$BE23))/0.54/(IF(ISERR((B23+'1'!P23+'2'!P23+'4'!P23+'5'!P23+'6'!P23+'7'!P23+'8'!P23+'9'!P23+'10'!P23)/B23),1,(B23+'1'!P23+'2'!P23+'4'!P23+'5'!P23+'6'!P23+'7'!P23+'8'!P23+'9'!P23+'10'!P23)/B23))+Y23 -> 0 | AB23: 0
A24: Viande | B24: =ProdBesoins!F26 -> 0 | C24: ='1'!P24 -> 0 | D24: ='2'!P24 -> 0 | F24: ='4'!P24 -> 0 | G24: ='5'!P24 -> 0 | H24: ='6'!P24 -> 0 | I24: ='7'!P24 -> 0 | J24: ='8'!P24 -> 0 | K24: ='9'!P24 -> 0 | L24: ='10'!P24 -> 0 | M24: 0 | N24: =SUMIF(Navires!$B$2:$BE$2,$A$2&N$2,Navires!$B24:$BE24)/0.54*IF($AB24>$B24,$B24/$AB24,1) -> 0 | O24: =SUMIF(Navires!$B$2:$BE$2,$A$2&O$2,Navires!$B24:$BE24)/0.54*IF($AB24>$B24,$B24/$AB24,1) -> 0 | Q24: =SUMIF(Navires!$B$2:$BE$2,$A$2&Q$2,Navires!$B24:$BE24)/0.54*IF($AB24>$B24,$B24/$AB24,1) -> 0 | R24: =SUMIF(Navires!$B$2:$BE$2,$A$2&R$2,Navires!$B24:$BE24)/0.54*IF($AB24>$B24,$B24/$AB24,1) -> 0 | S24: =SUMIF(Navires!$B$2:$BE$2,$A$2&S$2,Navires!$B24:$BE24)/0.54*IF($AB24>$B24,$B24/$AB24,1) -> 0 | T24: =SUMIF(Navires!$B$2:$BE$2,$A$2&T$2,Navires!$B24:$BE24)/0.54*IF($AB24>$B24,$B24/$AB24,1) -> 0 | U24: =SUMIF(Navires!$B$2:$BE$2,$A$2&U$2,Navires!$B24:$BE24)/0.54*IF($AB24>$B24,$B24/$AB24,1) -> 0 | V24: =SUMIF(Navires!$B$2:$BE$2,$A$2&V$2,Navires!$B24:$BE24)/0.54*IF($AB24>$B24,$B24/$AB24,1) -> 0 | W24: =SUMIF(Navires!$B$2:$BE$2,$A$2&W$2,Navires!$B24:$BE24)/0.54*IF($AB24>$B24,$B24/$AB24,1) -> 0 | X24: 0 | Y24: =ProdBesoins!G26 -> 0 | AA24: =(SUMIF(Navires!$B$2:$BE$2,">29",Navires!$B24:$BE24)-SUMIF(Navires!$B$2:$BE$2,">39",Navires!$B24:$BE24))/0.54/(IF(ISERR((B24+'1'!P24+'2'!P24+'4'!P24+'5'!P24+'6'!P24+'7'!P24+'8'!P24+'9'!P24+'10'!P24)/B24),1,(B24+'1'!P24+'2'!P24+'4'!P24+'5'!P24+'6'!P24+'7'!P24+'8'!P24+'9'!P24+'10'!P24)/B24))+Y24 -> 0 | AB24: 0
B25: =ProdBesoins!F27 -> 0 | Y25: =ProdBesoins!G27 -> 0
A26: Lait | B26: =ProdBesoins!F28 -> 0 | C26: ='1'!P26 -> 0 | D26: ='2'!P26 -> 0 | F26: ='4'!P26 -> 0 | G26: ='5'!P26 -> 0 | H26: ='6'!P26 -> 0 | I26: ='7'!P26 -> 0 | J26: ='8'!P26 -> 0 | K26: ='9'!P26 -> 0 | L26: ='10'!P26 -> 0 | M26: =SUM(B26:L26) -> 0 | N26: =SUMIF(Navires!$B$2:$BE$2,$A$2&N$2,Navires!$B26:$BE26)/0.54*IF($AB26>$B26,$B26/$AB26,1) -> 0 | O26: =SUMIF(Navires!$B$2:$BE$2,$A$2&O$2,Navires!$B26:$BE26)/0.54*IF($AB26>$B26,$B26/$AB26,1) -> 0 | Q26: =SUMIF(Navires!$B$2:$BE$2,$A$2&Q$2,Navires!$B26:$BE26)/0.54*IF($AB26>$B26,$B26/$AB26,1) -> 0 | R26: =SUMIF(Navires!$B$2:$BE$2,$A$2&R$2,Navires!$B26:$BE26)/0.54*IF($AB26>$B26,$B26/$AB26,1) -> 0 | S26: =SUMIF(Navires!$B$2:$BE$2,$A$2&S$2,Navires!$B26:$BE26)/0.54*IF($AB26>$B26,$B26/$AB26,1) -> 0 | T26: =SUMIF(Navires!$B$2:$BE$2,$A$2&T$2,Navires!$B26:$BE26)/0.54*IF($AB26>$B26,$B26/$AB26,1) -> 0 | U26: =SUMIF(Navires!$B$2:$BE$2,$A$2&U$2,Navires!$B26:$BE26)/0.54*IF($AB26>$B26,$B26/$AB26,1) -> 0 | V26: =SUMIF(Navires!$B$2:$BE$2,$A$2&V$2,Navires!$B26:$BE26)/0.54*IF($AB26>$B26,$B26/$AB26,1) -> 0 | W26: =SUMIF(Navires!$B$2:$BE$2,$A$2&W$2,Navires!$B26:$BE26)/0.54*IF($AB26>$B26,$B26/$AB26,1) -> 0 | X26: 0 | Y26: =ProdBesoins!G28 -> 0 | AA26: =(SUMIF(Navires!$B$2:$BE$2,">29",Navires!$B26:$BE26)-SUMIF(Navires!$B$2:$BE$2,">39",Navires!$B26:$BE26))/0.54/(IF(ISERR((B26+'1'!P26+'2'!P26+'4'!P26+'5'!P26+'6'!P26+'7'!P26+'8'!P26+'9'!P26+'10'!P26)/B26),1,(B26+'1'!P26+'2'!P26+'4'!P26+'5'!P26+'6'!P26+'7'!P26+'8'!P26+'9'!P26+'10'!P26)/B26))+Y26 -> 0 | AB26: 0
A27: Pommes | B27: =ProdBesoins!F29 -> 0 | C27: ='1'!P27 -> 0 | D27: ='2'!P27 -> 0 | F27: ='4'!P27 -> 0 | G27: ='5'!P27 -> 0 | H27: ='6'!P27 -> 0 | I27: ='7'!P27 -> 0 | J27: ='8'!P27 -> 0 | K27: ='9'!P27 -> 0 | L27: ='10'!P27 -> 0 | M27: 0 | N27: =SUMIF(Navires!$B$2:$BE$2,$A$2&N$2,Navires!$B27:$BE27)/0.54*IF($AB27>$B27,$B27/$AB27,1) -> 0 | O27: =SUMIF(Navires!$B$2:$BE$2,$A$2&O$2,Navires!$B27:$BE27)/0.54*IF($AB27>$B27,$B27/$AB27,1) -> 0 | Q27: =SUMIF(Navires!$B$2:$BE$2,$A$2&Q$2,Navires!$B27:$BE27)/0.54*IF($AB27>$B27,$B27/$AB27,1) -> 0 | R27: =SUMIF(Navires!$B$2:$BE$2,$A$2&R$2,Navires!$B27:$BE27)/0.54*IF($AB27>$B27,$B27/$AB27,1) -> 0 | S27: =SUMIF(Navires!$B$2:$BE$2,$A$2&S$2,Navires!$B27:$BE27)/0.54*IF($AB27>$B27,$B27/$AB27,1) -> 0 | T27: =SUMIF(Navires!$B$2:$BE$2,$A$2&T$2,Navires!$B27:$BE27)/0.54*IF($AB27>$B27,$B27/$AB27,1) -> 0 | U27: =SUMIF(Navires!$B$2:$BE$2,$A$2&U$2,Navires!$B27:$BE27)/0.54*IF($AB27>$B27,$B27/$AB27,1) -> 0 | V27: =SUMIF(Navires!$B$2:$BE$2,$A$2&V$2,Navires!$B27:$BE27)/0.54*IF($AB27>$B27,$B27/$AB27,1) -> 0 | W27: =SUMIF(Navires!$B$2:$BE$2,$A$2&W$2,Navires!$B27:$BE27)/0.54*IF($AB27>$B27,$B27/$AB27,1) -> 0 | X27: 0 | Y27: =ProdBesoins!G29 -> 0 | AA27: =(SUMIF(Navires!$B$2:$BE$2,">29",Navires!$B27:$BE27)-SUMIF(Navires!$B$2:$BE$2,">39",Navires!$B27:$BE27))/0.54/(IF(ISERR((B27+'1'!P27+'2'!P27+'4'!P27+'5'!P27+'6'!P27+'7'!P27+'8'!P27+'9'!P27+'10'!P27)/B27),1,(B27+'1'!P27+'2'!P27+'4'!P27+'5'!P27+'6'!P27+'7'!P27+'8'!P27+'9'!P27+'10'!P27)/B27))+Y27 -> 0 | AB27: 0
A28: Cidre | B28: =ProdBesoins!F30 -> 0 | C28: ='1'!P28 -> 0 | D28: ='2'!P28 -> 0 | F28: ='4'!P28 -> 0 | G28: ='5'!P28 -> 0 | H28: ='6'!P28 -> 0 | I28: ='7'!P28 -> 0 | J28: ='8'!P28 -> 0 | K28: ='9'!P28 -> 0 | L28: ='10'!P28 -> 0 | M28: 0 | N28: =SUMIF(Navires!$B$2:$BE$2,$A$2&N$2,Navires!$B28:$BE28)/0.54*IF($AB28>$B28,$B28/$AB28,1) -> 0 | O28: =SUMIF(Navires!$B$2:$BE$2,$A$2&O$2,Navires!$B28:$BE28)/0.54*IF($AB28>$B28,$B28/$AB28,1) -> 0 | Q28: =SUMIF(Navires!$B$2:$BE$2,$A$2&Q$2,Navires!$B28:$BE28)/0.54*IF($AB28>$B28,$B28/$AB28,1) -> 0 | R28: =SUMIF(Navires!$B$2:$BE$2,$A$2&R$2,Navires!$B28:$BE28)/0.54*IF($AB28>$B28,$B28/$AB28,1) -> 0 | S28: =SUMIF(Navires!$B$2:$BE$2,$A$2&S$2,Navires!$B28:$BE28)/0.54*IF($AB28>$B28,$B28/$AB28,1) -> 0 | T28: =SUMIF(Navires!$B$2:$BE$2,$A$2&T$2,Navires!$B28:$BE28)/0.54*IF($AB28>$B28,$B28/$AB28,1) -> 0 | U28: =SUMIF(Navires!$B$2:$BE$2,$A$2&U$2,Navires!$B28:$BE28)/0.54*IF($AB28>$B28,$B28/$AB28,1) -> 0 | V28: =SUMIF(Navires!$B$2:$BE$2,$A$2&V$2,Navires!$B28:$BE28)/0.54*IF($AB28>$B28,$B28/$AB28,1) -> 0 | W28: =SUMIF(Navires!$B$2:$BE$2,$A$2&W$2,Navires!$B28:$BE28)/0.54*IF($AB28>$B28,$B28/$AB28,1) -> 0 | X28: 0 | Y28: =ProdBesoins!G30 -> 0 | AA28: =(SUMIF(Navires!$B$2:$BE$2,">29",Navires!$B28:$BE28)-SUMIF(Navires!$B$2:$BE$2,">39",Navires!$B28:$BE28))/0.54/(IF(ISERR((B28+'1'!P28+'2'!P28+'4'!P28+'5'!P28+'6'!P28+'7'!P28+'8'!P28+'9'!P28+'10'!P28)/B28),1,(B28+'1'!P28+'2'!P28+'4'!P28+'5'!P28+'6'!P28+'7'!P28+'8'!P28+'9'!P28+'10'!P28)/B28))+Y28 -> 0 | AB28: 0
A29: Herbes | B29: =ProdBesoins!F31 -> 0 | C29: ='1'!P29 -> 0 | D29: ='2'!P29 -> 0 | F29: ='4'!P29 -> 0 | G29: ='5'!P29 -> 0 | H29: ='6'!P29 -> 0 | I29: ='7'!P29 -> 0 | J29: ='8'!P29 -> 0 | K29: ='9'!P29 -> 0 | L29: ='10'!P29 -> 0 | M29: 0 | N29: =SUMIF(Navires!$B$2:$BE$2,$A$2&N$2,Navires!$B29:$BE29)/0.54*IF($AB29>$B29,$B29/$AB29,1) -> 0 | O29: =SUMIF(Navires!$B$2:$BE$2,$A$2&O$2,Navires!$B29:$BE29)/0.54*IF($AB29>$B29,$B29/$AB29,1) -> 0 | Q29: =SUMIF(Navires!$B$2:$BE$2,$A$2&Q$2,Navires!$B29:$BE29)/0.54*IF($AB29>$B29,$B29/$AB29,1) -> 0 | R29: =SUMIF(Navires!$B$2:$BE$2,$A$2&R$2,Navires!$B29:$BE29)/0.54*IF($AB29>$B29,$B29/$AB29,1) -> 0 | S29: =SUMIF(Navires!$B$2:$BE$2,$A$2&S$2,Navires!$B29:$BE29)/0.54*IF($AB29>$B29,$B29/$AB29,1) -> 0 | T29: =SUMIF(Navires!$B$2:$BE$2,$A$2&T$2,Navires!$B29:$BE29)/0.54*IF($AB29>$B29,$B29/$AB29,1) -> 0 | U29: =SUMIF(Navires!$B$2:$BE$2,$A$2&U$2,Navires!$B29:$BE29)/0.54*IF($AB29>$B29,$B29/$AB29,1) -> 0 | V29: =SUMIF(Navires!$B$2:$BE$2,$A$2&V$2,Navires!$B29:$BE29)/0.54*IF($AB29>$B29,$B29/$AB29,1) -> 0 | W29: =SUMIF(Navires!$B$2:$BE$2,$A$2&W$2,Navires!$B29:$BE29)/0.54*IF($AB29>$B29,$B29/$AB29,1) -> 0 | X29: 0 | Y29: =ProdBesoins!G31 -> 0 | AA29: =(SUMIF(Navires!$B$2:$BE$2,">29",Navires!$B29:$BE29)-SUMIF(Navires!$B$2:$BE$2,">39",Navires!$B29:$BE29))/0.54/(IF(ISERR((B29+'1'!P29+'2'!P29+'4'!P29+'5'!P29+'6'!P29+'7'!P29+'8'!P29+'9'!P29+'10'!P29)/B29),1,(B29+'1'!P29+'2'!P29+'4'!P29+'5'!P29+'6'!P29+'7'!P29+'8'!P29+'9'!P29+'10'!P29)/B29))+Y29 -> 0 | AB29: 0
A30: Céréales | B30: =ProdBesoins!F32 -> 0 | C30: =FIXED(C$16,0) -> 0 | D30: 0 | F30: 0 | G30: 0 | H30: 0 | I30: 0 | J30: 0 | K30: 0 | L30: 0 | M30: 0 | N30: 0 | O30: 0 | Q30: 0 | R30: 0 | S30: 0 | T30: 0 | U30: 0 | V30: 0 | W30: 0 | X30: =FIXED(X$16,0) -> 0 | Y30: =ProdBesoins!G32 -> 0
A31: Bière | B31: =ProdBesoins!F33 -> 0 | C31: ='1'!P31 -> 0 | D31: ='2'!P31 -> 0 | F31: ='4'!P31 -> 0 | G31: ='5'!P31 -> 0 | H31: ='6'!P31 -> 0 | I31: ='7'!P31 -> 0 | J31: ='8'!P31 -> 0 | K31: ='9'!P31 -> 0 | L31: ='10'!P31 -> 0 | M31: =SUM(B31:L31) -> 0 | N31: =SUMIF(Navires!$B$2:$BE$2,$A$2&N$2,Navires!$B31:$BE31)/0.54*IF($AB31>$B31,$B31/$AB31,1) -> 0 | O31: =SUMIF(Navires!$B$2:$BE$2,$A$2&O$2,Navires!$B31:$BE31)/0.54*IF($AB31>$B31,$B31/$AB31,1) -> 0 | Q31: =SUMIF(Navires!$B$2:$BE$2,$A$2&Q$2,Navires!$B31:$BE31)/0.54*IF($AB31>$B31,$B31/$AB31,1) -> 0 | R31: =SUMIF(Navires!$B$2:$BE$2,$A$2&R$2,Navires!$B31:$BE31)/0.54*IF($AB31>$B31,$B31/$AB31,1) -> 0 | S31: =SUMIF(Navires!$B$2:$BE$2,$A$2&S$2,Navires!$B31:$BE31)/0.54*IF($AB31>$B31,$B31/$AB31,1) -> 0 | T31: =SUMIF(Navires!$B$2:$BE$2,$A$2&T$2,Navires!$B31:$BE31)/0.54*IF($AB31>$B31,$B31/$AB31,1) -> 0 | U31: =SUMIF(Navires!$B$2:$BE$2,$A$2&U$2,Navires!$B31:$BE31)/0.54*IF($AB31>$B31,$B31/$AB31,1) -> 0 | V31: =SUMIF(Navires!$B$2:$BE$2,$A$2&V$2,Navires!$B31:$BE31)/0.54*IF($AB31>$B31,$B31/$AB31,1) -> 0 | W31: =SUMIF(Navires!$B$2:$BE$2,$A$2&W$2,Navires!$B31:$BE31)/0.54*IF($AB31>$B31,$B31/$AB31,1) -> 0 | X31: 0 | Y31: =ProdBesoins!G33 -> 0 | AA31: =(SUMIF(Navires!$B$2:$BE$2,">29",Navires!$B31:$BE31)-SUMIF(Navires!$B$2:$BE$2,">39",Navires!$B31:$BE31))/0.54/(IF(ISERR((B31+'1'!P31+'2'!P31+'4'!P31+'5'!P31+'6'!P31+'7'!P31+'8'!P31+'9'!P31+'10'!P31)/B31),1,(B31+'1'!P31+'2'!P31+'4'!P31+'5'!P31+'6'!P31+'7'!P31+'8'!P31+'9'!P31+'10'!P31)/B31))+Y31 -> 0 | AB31: 0
A32: Fer | B32: =ProdBesoins!F34 -> 0 | C32: =FIXED(C$9,0) -> 0 | D32: 0 | F32: 0 | G32: 0 | H32: 0 | I32: 0 | J32: 0 | K32: 0 | L32: 0 | M32: 0 | N32: 0 | O32: 0 | Q32: 0 | R32: 0 | S32: 0 | T32: 0 | U32: 0 | V32: 0 | W32: 0 | X32: =FIXED(X$9,0) -> 0 | Y32: =ProdBesoins!G34 -> 0
A33: Bois | B33: =ProdBesoins!F35 -> 0 | C33: =FIXED(C$5,0) -> 0 | D33: 0 | F33: 0 | G33: 0 | H33: 0 | I33: 0 | J33: 0 | K33: 0 | L33: 0 | M33: 0 | N33: 0 | O33: 0 | Q33: 0 | R33: 0 | S33: 0 | T33: 0 | U33: 0 | V33: 0 | W33: 0 | X33: =FIXED(X$5,0) -> 0 | Y33: =ProdBesoins!G35 -> 0
A34: Tonneaux | B34: =ProdBesoins!F36 -> 0 | C34: ='1'!P34 -> 0 | D34: ='2'!P34 -> 0 | F34: ='4'!P34 -> 0 | G34: ='5'!P34 -> 0 | H34: ='6'!P34 -> 0 | I34: ='7'!P34 -> 0 | J34: ='8'!P34 -> 0 | K34: ='9'!P34 -> 0 | L34: ='10'!P34 -> 0 | M34: =SUM(B34:L34) -> 0 | N34: =SUMIF(Navires!$B$2:$BE$2,$A$2&N$2,Navires!$B34:$BE34)/0.54*IF($AB34>$B34,$B34/$AB34,1) -> 0 | O34: =SUMIF(Navires!$B$2:$BE$2,$A$2&O$2,Navires!$B34:$BE34)/0.54*IF($AB34>$B34,$B34/$AB34,1) -> 0 | Q34: =SUMIF(Navires!$B$2:$BE$2,$A$2&Q$2,Navires!$B34:$BE34)/0.54*IF($AB34>$B34,$B34/$AB34,1) -> 0 | R34: =SUMIF(Navires!$B$2:$BE$2,$A$2&R$2,Navires!$B34:$BE34)/0.54*IF($AB34>$B34,$B34/$AB34,1) -> 0 | S34: =SUMIF(Navires!$B$2:$BE$2,$A$2&S$2,Navires!$B34:$BE34)/0.54*IF($AB34>$B34,$B34/$AB34,1) -> 0 | T34: =SUMIF(Navires!$B$2:$BE$2,$A$2&T$2,Navires!$B34:$BE34)/0.54*IF($AB34>$B34,$B34/$AB34,1) -> 0 | U34: =SUMIF(Navires!$B$2:$BE$2,$A$2&U$2,Navires!$B34:$BE34)/0.54*IF($AB34>$B34,$B34/$AB34,1) -> 0 | V34: =SUMIF(Navires!$B$2:$BE$2,$A$2&V$2,Navires!$B34:$BE34)/0.54*IF($AB34>$B34,$B34/$AB34,1) -> 0 | W34: =SUMIF(Navires!$B$2:$BE$2,$A$2&W$2,Navires!$B34:$BE34)/0.54*IF($AB34>$B34,$B34/$AB34,1) -> 0 | X34: =M34-SUM(N34:W34) -> 0 | Y34: =ProdBesoins!G36 -> 0 | AA34: =(SUMIF(Navires!$B$2:$BE$2,">29",Navires!$B34:$BE34)-SUMIF(Navires!$B$2:$BE$2,">39",Navires!$B34:$BE34))/0.54/(IF(ISERR((B34+'1'!P34+'2'!P34+'4'!P34+'5'!P34+'6'!P34+'7'!P34+'8'!P34+'9'!P34+'10'!P34)/B34),1,(B34+'1'!P34+'2'!P34+'4'!P34+'5'!P34+'6'!P34+'7'!P34+'8'!P34+'9'!P34+'10'!P34)/B34))+Y34 -> 0 | AB34: 0
A35: Raisins | B35: =ProdBesoins!F37 -> 0 | C35: ='1'!P35 -> 0 | D35: ='2'!P35 -> 0 | F35: ='4'!P35 -> 0 | G35: ='5'!P35 -> 0 | H35: ='6'!P35 -> 0 | I35: ='7'!P35 -> 0 | J35: ='8'!P35 -> 0 | K35: ='9'!P35 -> 0 | L35: ='10'!P35 -> 0 | M35: 0 | N35: =SUMIF(Navires!$B$2:$BE$2,$A$2&N$2,Navires!$B35:$BE35)/0.54*IF($AB35>$B35,$B35/$AB35,1) -> 0 | O35: =SUMIF(Navires!$B$2:$BE$2,$A$2&O$2,Navires!$B35:$BE35)/0.54*IF($AB35>$B35,$B35/$AB35,1) -> 0 | Q35: =SUMIF(Navires!$B$2:$BE$2,$A$2&Q$2,Navires!$B35:$BE35)/0.54*IF($AB35>$B35,$B35/$AB35,1) -> 0 | R35: =SUMIF(Navires!$B$2:$BE$2,$A$2&R$2,Navires!$B35:$BE35)/0.54*IF($AB35>$B35,$B35/$AB35,1) -> 0 | S35: =SUMIF(Navires!$B$2:$BE$2,$A$2&S$2,Navires!$B35:$BE35)/0.54*IF($AB35>$B35,$B35/$AB35,1) -> 0 | T35: =SUMIF(Navires!$B$2:$BE$2,$A$2&T$2,Navires!$B35:$BE35)/0.54*IF($AB35>$B35,$B35/$AB35,1) -> 0 | U35: =SUMIF(Navires!$B$2:$BE$2,$A$2&U$2,Navires!$B35:$BE35)/0.54*IF($AB35>$B35,$B35/$AB35,1) -> 0 | V35: =SUMIF(Navires!$B$2:$BE$2,$A$2&V$2,Navires!$B35:$BE35)/0.54*IF($AB35>$B35,$B35/$AB35,1) -> 0 | W35: =SUMIF(Navires!$B$2:$BE$2,$A$2&W$2,Navires!$B35:$BE35)/0.54*IF($AB35>$B35,$B35/$AB35,1) -> 0 | X35: 0 | Y35: =ProdBesoins!G37 -> 0 | AA35: =(SUMIF(Navires!$B$2:$BE$2,">29",Navires!$B35:$BE35)-SUMIF(Navires!$B$2:$BE$2,">39",Navires!$B35:$BE35))/0.54/(IF(ISERR((B35+'1'!P35+'2'!P35+'4'!P35+'5'!P35+'6'!P35+'7'!P35+'8'!P35+'9'!P35+'10'!P35)/B35),1,(B35+'1'!P35+'2'!P35+'4'!P35+'5'!P35+'6'!P35+'7'!P35+'8'!P35+'9'!P35+'10'!P35)/B35))+Y35 -> 0 | AB35: 0
A36: Vin | B36: =ProdBesoins!F38 -> 0 | C36: ='1'!P36 -> 0 | D36: ='2'!P36 -> 0 | F36: ='4'!P36 -> 0 | G36: ='5'!P36 -> 0 | H36: ='6'!P36 -> 0 | I36: ='7'!P36 -> 0 | J36: ='8'!P36 -> 0 | K36: ='9'!P36 -> 0 | L36: ='10'!P36 -> 0 | M36: 0 | N36: =SUMIF(Navires!$B$2:$BE$2,$A$2&N$2,Navires!$B36:$BE36)/0.54*IF($AB36>$B36,$B36/$AB36,1) -> 0 | O36: =SUMIF(Navires!$B$2:$BE$2,$A$2&O$2,Navires!$B36:$BE36)/0.54*IF($AB36>$B36,$B36/$AB36,1) -> 0 | Q36: =SUMIF(Navires!$B$2:$BE$2,$A$2&Q$2,Navires!$B36:$BE36)/0.54*IF($AB36>$B36,$B36/$AB36,1) -> 0 | R36: =SUMIF(Navires!$B$2:$BE$2,$A$2&R$2,Navires!$B36:$BE36)/0.54*IF($AB36>$B36,$B36/$AB36,1) -> 0 | S36: =SUMIF(Navires!$B$2:$BE$2,$A$2&S$2,Navires!$B36:$BE36)/0.54*IF($AB36>$B36,$B36/$AB36,1) -> 0 | T36: =SUMIF(Navires!$B$2:$BE$2,$A$2&T$2,Navires!$B36:$BE36)/0.54*IF($AB36>$B36,$B36/$AB36,1) -> 0 | U36: =SUMIF(Navires!$B$2:$BE$2,$A$2&U$2,Navires!$B36:$BE36)/0.54*IF($AB36>$B36,$B36/$AB36,1) -> 0 | V36: =SUMIF(Navires!$B$2:$BE$2,$A$2&V$2,Navires!$B36:$BE36)/0.54*IF($AB36>$B36,$B36/$AB36,1) -> 0 | W36: =SUMIF(Navires!$B$2:$BE$2,$A$2&W$2,Navires!$B36:$BE36)/0.54*IF($AB36>$B36,$B36/$AB36,1) -> 0 | X36: 0 | Y36: =ProdBesoins!G38 -> 0 | AA36: =(SUMIF(Navires!$B$2:$BE$2,">29",Navires!$B36:$BE36)-SUMIF(Navires!$B$2:$BE$2,">39",Navires!$B36:$BE36))/0.54/(IF(ISERR((B36+'1'!P36+'2'!P36+'4'!P36+'5'!P36+'6'!P36+'7'!P36+'8'!P36+'9'!P36+'10'!P36)/B36),1,(B36+'1'!P36+'2'!P36+'4'!P36+'5'!P36+'6'!P36+'7'!P36+'8'!P36+'9'!P36+'10'!P36)/B36))+Y36 -> 0 | AB36: 0
B37: =ProdBesoins!F39 -> 0 | Y37: =ProdBesoins!G39 -> 0
A38: Laine | B38: =ProdBesoins!F40 -> 0 | C38: ='1'!P38 -> 0 | D38: ='2'!P38 -> 0 | F38: ='4'!P38 -> 0 | G38: ='5'!P38 -> 0 | H38: ='6'!P38 -> 0 | I38: ='7'!P38 -> 0 | J38: ='8'!P38 -> 0 | K38: ='9'!P38 -> 0 | L38: ='10'!P38 -> 0 | M38: =SUM(B38:L38) -> 0 | N38: =SUMIF(Navires!$B$2:$BE$2,$A$2&N$2,Navires!$B38:$BE38)/0.54*IF($AB38>$B38,$B38/$AB38,1) -> 0 | O38: =SUMIF(Navires!$B$2:$BE$2,$A$2&O$2,Navires!$B38:$BE38)/0.54*IF($AB38>$B38,$B38/$AB38,1) -> 0 | Q38: =SUMIF(Navires!$B$2:$BE$2,$A$2&Q$2,Navires!$B38:$BE38)/0.54*IF($AB38>$B38,$B38/$AB38,1) -> 0 | R38: =SUMIF(Navires!$B$2:$BE$2,$A$2&R$2,Navires!$B38:$BE38)/0.54*IF($AB38>$B38,$B38/$AB38,1) -> 0 | S38: =SUMIF(Navires!$B$2:$BE$2,$A$2&S$2,Navires!$B38:$BE38)/0.54*IF($AB38>$B38,$B38/$AB38,1) -> 0 | T38: =SUMIF(Navires!$B$2:$BE$2,$A$2&T$2,Navires!$B38:$BE38)/0.54*IF($AB38>$B38,$B38/$AB38,1) -> 0 | U38: =SUMIF(Navires!$B$2:$BE$2,$A$2&U$2,Navires!$B38:$BE38)/0.54*IF($AB38>$B38,$B38/$AB38,1) -> 0 | V38: =SUMIF(Navires!$B$2:$BE$2,$A$2&V$2,Navires!$B38:$BE38)/0.54*IF($AB38>$B38,$B38/$AB38,1) -> 0 | W38: =SUMIF(Navires!$B$2:$BE$2,$A$2&W$2,Navires!$B38:$BE38)/0.54*IF($AB38>$B38,$B38/$AB38,1) -> 0 | X38: =M38-SUM(N38:W38) -> 0 | Y38: =ProdBesoins!G40 -> 0 | AA38: =(SUMIF(Navires!$B$2:$BE$2,">29",Navires!$B38:$BE38)-SUMIF(Navires!$B$2:$BE$2,">39",Navires!$B38:$BE38))/0.54/(IF(ISERR((B38+'1'!P38+'2'!P38+'4'!P38+'5'!P38+'6'!P38+'7'!P38+'8'!P38+'9'!P38+'10'!P38)/B38),1,(B38+'1'!P38+'2'!P38+'4'!P38+'5'!P38+'6'!P38+'7'!P38+'8'!P38+'9'!P38+'10'!P38)/B38))+Y38 -> 0 | AB38: 0
A39: Vêtements en laine | B39: =ProdBesoins!F41 -> 0 | C39: ='1'!P39 -> 0 | D39: ='2'!P39 -> 0 | F39: ='4'!P39 -> 0 | G39: ='5'!P39 -> 0 | H39: ='6'!P39 -> 0 | I39: ='7'!P39 -> 0 | J39: ='8'!P39 -> 0 | K39: ='9'!P39 -> 0 | L39: ='10'!P39 -> 0 | M39: 0 | N39: =SUMIF(Navires!$B$2:$BE$2,$A$2&N$2,Navires!$B39:$BE39)/0.54*IF($AB39>$B39,$B39/$AB39,1) -> 0 | O39: =SUMIF(Navires!$B$2:$BE$2,$A$2&O$2,Navires!$B39:$BE39)/0.54*IF($AB39>$B39,$B39/$AB39,1) -> 0 | Q39: =SUMIF(Navires!$B$2:$BE$2,$A$2&Q$2,Navires!$B39:$BE39)/0.54*IF($AB39>$B39,$B39/$AB39,1) -> 0 | R39: =SUMIF(Navires!$B$2:$BE$2,$A$2&R$2,Navires!$B39:$BE39)/0.54*IF($AB39>$B39,$B39/$AB39,1) -> 0 | S39: =SUMIF(Navires!$B$2:$BE$2,$A$2&S$2,Navires!$B39:$BE39)/0.54*IF($AB39>$B39,$B39/$AB39,1) -> 0 | T39: =SUMIF(Navires!$B$2:$BE$2,$A$2&T$2,Navires!$B39:$BE39)/0.54*IF($AB39>$B39,$B39/$AB39,1) -> 0 | U39: =SUMIF(Navires!$B$2:$BE$2,$A$2&U$2,Navires!$B39:$BE39)/0.54*IF($AB39>$B39,$B39/$AB39,1) -> 0 | V39: =SUMIF(Navires!$B$2:$BE$2,$A$2&V$2,Navires!$B39:$BE39)/0.54*IF($AB39>$B39,$B39/$AB39,1) -> 0 | W39: =SUMIF(Navires!$B$2:$BE$2,$A$2&W$2,Navires!$B39:$BE39)/0.54*IF($AB39>$B39,$B39/$AB39,1) -> 0 | X39: 0 | Y39: =ProdBesoins!G41 -> 0 | AA39: =(SUMIF(Navires!$B$2:$BE$2,">29",Navires!$B39:$BE39)-SUMIF(Navires!$B$2:$BE$2,">39",Navires!$B39:$BE39))/0.54/(IF(ISERR((B39+'1'!P39+'2'!P39+'4'!P39+'5'!P39+'6'!P39+'7'!P39+'8'!P39+'9'!P39+'10'!P39)/B39),1,(B39+'1'!P39+'2'!P39+'4'!P39+'5'!P39+'6'!P39+'7'!P39+'8'!P39+'9'!P39+'10'!P39)/B39))+Y39 -> 0 | AB39: 0
A40: Chanvre | B40: =ProdBesoins!F42 -> 0 | C40: ='1'!P40 -> 0 | D40: ='2'!P40 -> 0 | F40: ='4'!P40 -> 0 | G40: ='5'!P40 -> 0 | H40: ='6'!P40 -> 0 | I40: ='7'!P40 -> 0 | J40: ='8'!P40 -> 0 | K40: ='9'!P40 -> 0 | L40: ='10'!P40 -> 0 | M40: 0 | N40: =SUMIF(Navires!$B$2:$BE$2,$A$2&N$2,Navires!$B40:$BE40)/0.54*IF($AB40>$B40,$B40/$AB40,1) -> 0 | O40: =SUMIF(Navires!$B$2:$BE$2,$A$2&O$2,Navires!$B40:$BE40)/0.54*IF($AB40>$B40,$B40/$AB40,1) -> 0 | Q40: =SUMIF(Navires!$B$2:$BE$2,$A$2&Q$2,Navires!$B40:$BE40)/0.54*IF($AB40>$B40,$B40/$AB40,1) -> 0 | R40: =SUMIF(Navires!$B$2:$BE$2,$A$2&R$2,Navires!$B40:$BE40)/0.54*IF($AB40>$B40,$B40/$AB40,1) -> 0 | S40: =SUMIF(Navires!$B$2:$BE$2,$A$2&S$2,Navires!$B40:$BE40)/0.54*IF($AB40>$B40,$B40/$AB40,1) -> 0 | T40: =SUMIF(Navires!$B$2:$BE$2,$A$2&T$2,Navires!$B40:$BE40)/0.54*IF($AB40>$B40,$B40/$AB40,1) -> 0 | U40: =SUMIF(Navires!$B$2:$BE$2,$A$2&U$2,Navires!$B40:$BE40)/0.54*IF($AB40>$B40,$B40/$AB40,1) -> 0 | V40: =SUMIF(Navires!$B$2:$BE$2,$A$2&V$2,Navires!$B40:$BE40)/0.54*IF($AB40>$B40,$B40/$AB40,1) -> 0 | W40: =SUMIF(Navires!$B$2:$BE$2,$A$2&W$2,Navires!$B40:$BE40)/0.54*IF($AB40>$B40,$B40/$AB40,1) -> 0 | X40: 0 | Y40: =ProdBesoins!G42 -> 0 | AA40: =(SUMIF(Navires!$B$2:$BE$2,">29",Navires!$B40:$BE40)-SUMIF(Navires!$B$2:$BE$2,">39",Navires!$B40:$BE40))/0.54/(IF(ISERR((B40+'1'!P40+'2'!P40+'4'!P40+'5'!P40+'6'!P40+'7'!P40+'8'!P40+'9'!P40+'10'!P40)/B40),1,(B40+'1'!P40+'2'!P40+'4'!P40+'5'!P40+'6'!P40+'7'!P40+'8'!P40+'9'!P40+'10'!P40)/B40))+Y40 -> 0 | AB40: 0
A41: Vêtements en lin | B41: =ProdBesoins!F43 -> 0 | C41: ='1'!P41 -> 0 | D41: ='2'!P41 -> 0 | F41: ='4'!P41 -> 0 | G41: ='5'!P41 -> 0 | H41: ='6'!P41 -> 0 | I41: ='7'!P41 -> 0 | J41: ='8'!P41 -> 0 | K41: ='9'!P41 -> 0 | L41: ='10'!P41 -> 0 | M41: 0 | N41: =SUMIF(Navires!$B$2:$BE$2,$A$2&N$2,Navires!$B41:$BE41)/0.54*IF($AB41>$B41,$B41/$AB41,1) -> 0 | O41: =SUMIF(Navires!$B$2:$BE$2,$A$2&O$2,Navires!$B41:$BE41)/0.54*IF($AB41>$B41,$B41/$AB41,1) -> 0 | Q41: =SUMIF(Navires!$B$2:$BE$2,$A$2&Q$2,Navires!$B41:$BE41)/0.54*IF($AB41>$B41,$B41/$AB41,1) -> 0 | R41: =SUMIF(Navires!$B$2:$BE$2,$A$2&R$2,Navires!$B41:$BE41)/0.54*IF($AB41>$B41,$B41/$AB41,1) -> 0 | S41: =SUMIF(Navires!$B$2:$BE$2,$A$2&S$2,Navires!$B41:$BE41)/0.54*IF($AB41>$B41,$B41/$AB41,1) -> 0 | T41: =SUMIF(Navires!$B$2:$BE$2,$A$2&T$2,Navires!$B41:$BE41)/0.54*IF($AB41>$B41,$B41/$AB41,1) -> 0 | U41: =SUMIF(Navires!$B$2:$BE$2,$A$2&U$2,Navires!$B41:$BE41)/0.54*IF($AB41>$B41,$B41/$AB41,1) -> 0 | V41: =SUMIF(Navires!$B$2:$BE$2,$A$2&V$2,Navires!$B41:$BE41)/0.54*IF($AB41>$B41,$B41/$AB41,1) -> 0 | W41: =SUMIF(Navires!$B$2:$BE$2,$A$2&W$2,Navires!$B41:$BE41)/0.54*IF($AB41>$B41,$B41/$AB41,1) -> 0 | X41: 0 | Y41: =ProdBesoins!G43 -> 0 | AA41: =(SUMIF(Navires!$B$2:$BE$2,">29",Navires!$B41:$BE41)-SUMIF(Navires!$B$2:$BE$2,">39",Navires!$B41:$BE41))/0.54/(IF(ISERR((B41+'1'!P41+'2'!P41+'4'!P41+'5'!P41+'6'!P41+'7'!P41+'8'!P41+'9'!P41+'10'!P41)/B41),1,(B41+'1'!P41+'2'!P41+'4'!P41+'5'!P41+'6'!P41+'7'!P41+'8'!P41+'9'!P41+'10'!P41)/B41))+Y41 -> 0 | AB41: 0
A42: Charbon | B42: =ProdBesoins!F44 -> 0 | C42: =FIXED(C$7,0) -> 0 | D42: 0 | F42: 0 | G42: 0 | H42: 0 | I42: 0 | J42: 0 | K42: 0 | L42: 0 | M42: 0 | N42: 0 | O42: 0 | Q42: 0 | R42: 0 | S42: 0 | T42: 0 | U42: 0 | V42: 0 | W42: 0 | X42: =FIXED(X$7,0) -> 0 | Y42: =ProdBesoins!G44 -> 0
A43: Saumure | B43: =ProdBesoins!F45 -> 0 | C43: =FIXED(C$21,0) -> 0 | D43: 0 | F43: 0 | G43: 0 | H43: 0 | I43: 0 | J43: 0 | K43: 0 | L43: 0 | M43: 0 | N43: 0 | O43: 0 | Q43: 0 | R43: 0 | S43: 0 | T43: 0 | U43: 0 | V43: 0 | W43: 0 | X43: =FIXED(X$21,0) -> 0 | Y43: =ProdBesoins!G45 -> 0
A44: Sel | B44: =ProdBesoins!F46 -> 0 | C44: =FIXED(C$22,0) -> 0 | D44: 0 | F44: 0 | G44: 0 | H44: 0 | I44: 0 | J44: 0 | K44: 0 | L44: 0 | M44: 0 | N44: 0 | O44: 0 | Q44: 0 | R44: 0 | S44: 0 | T44: 0 | U44: 0 | V44: 0 | W44: 0 | X44: =FIXED(X$22,0) -> 0 | Y44: =ProdBesoins!G46 -> 0
A45: Peaux animales | B45: =ProdBesoins!F47 -> 0 | C45: ='1'!P45 -> 0 | D45: ='2'!P45 -> 0 | F45: ='4'!P45 -> 0 | G45: ='5'!P45 -> 0 | H45: ='6'!P45 -> 0 | I45: ='7'!P45 -> 0 | J45: ='8'!P45 -> 0 | K45: ='9'!P45 -> 0 | L45: ='10'!P45 -> 0 | M45: =SUM(B45:L45) -> 0 | N45: =SUMIF(Navires!$B$2:$BE$2,$A$2&N$2,Navires!$B45:$BE45)/0.54*IF($AB45>$B45,$B45/$AB45,1) -> 0 | O45: =SUMIF(Navires!$B$2:$BE$2,$A$2&O$2,Navires!$B45:$BE45)/0.54*IF($AB45>$B45,$B45/$AB45,1) -> 0 | Q45: =SUMIF(Navires!$B$2:$BE$2,$A$2&Q$2,Navires!$B45:$BE45)/0.54*IF($AB45>$B45,$B45/$AB45,1) -> 0 | R45: =SUMIF(Navires!$B$2:$BE$2,$A$2&R$2,Navires!$B45:$BE45)/0.54*IF($AB45>$B45,$B45/$AB45,1) -> 0 | S45: =SUMIF(Navires!$B$2:$BE$2,$A$2&S$2,Navires!$B45:$BE45)/0.54*IF($AB45>$B45,$B45/$AB45,1) -> 0 | T45: =SUMIF(Navires!$B$2:$BE$2,$A$2&T$2,Navires!$B45:$BE45)/0.54*IF($AB45>$B45,$B45/$AB45,1) -> 0 | U45: =SUMIF(Navires!$B$2:$BE$2,$A$2&U$2,Navires!$B45:$BE45)/0.54*IF($AB45>$B45,$B45/$AB45,1) -> 0 | V45: =SUMIF(Navires!$B$2:$BE$2,$A$2&V$2,Navires!$B45:$BE45)/0.54*IF($AB45>$B45,$B45/$AB45,1) -> 0 | W45: =SUMIF(Navires!$B$2:$BE$2,$A$2&W$2,Navires!$B45:$BE45)/0.54*IF($AB45>$B45,$B45/$AB45,1) -> 0 | X45: =M45-SUM(N45:W45) -> 0 | Y45: =ProdBesoins!G47 -> 0 | AA45: =(SUMIF(Navires!$B$2:$BE$2,">29",Navires!$B45:$BE45)-SUMIF(Navires!$B$2:$BE$2,">39",Navires!$B45:$BE45))/0.54/(IF(ISERR((B45+'1'!P45+'2'!P45+'4'!P45+'5'!P45+'6'!P45+'7'!P45+'8'!P45+'9'!P45+'10'!P45)/B45),1,(B45+'1'!P45+'2'!P45+'4'!P45+'5'!P45+'6'!P45+'7'!P45+'8'!P45+'9'!P45+'10'!P45)/B45))+Y45 -> 0 | AB45: 0
A46: Justaucorps en cuir | B46: =ProdBesoins!F48 -> 0 | C46: ='1'!P46 -> 0 | D46: ='2'!P46 -> 0 | F46: ='4'!P46 -> 0 | G46: ='5'!P46 -> 0 | H46: ='6'!P46 -> 0 | I46: ='7'!P46 -> 0 | J46: ='8'!P46 -> 0 | K46: ='9'!P46 -> 0 | L46: ='10'!P46 -> 0 | M46: 0 | N46: =SUMIF(Navires!$B$2:$BE$2,$A$2&N$2,Navires!$B46:$BE46)/0.54*IF($AB46>$B46,$B46/$AB46,1) -> 0 | O46: =SUMIF(Navires!$B$2:$BE$2,$A$2&O$2,Navires!$B46:$BE46)/0.54*IF($AB46>$B46,$B46/$AB46,1) -> 0 | Q46: =SUMIF(Navires!$B$2:$BE$2,$A$2&Q$2,Navires!$B46:$BE46)/0.54*IF($AB46>$B46,$B46/$AB46,1) -> 0 | R46: =SUMIF(Navires!$B$2:$BE$2,$A$2&R$2,Navires!$B46:$BE46)/0.54*IF($AB46>$B46,$B46/$AB46,1) -> 0 | S46: =SUMIF(Navires!$B$2:$BE$2,$A$2&S$2,Navires!$B46:$BE46)/0.54*IF($AB46>$B46,$B46/$AB46,1) -> 0 | T46: =SUMIF(Navires!$B$2:$BE$2,$A$2&T$2,Navires!$B46:$BE46)/0.54*IF($AB46>$B46,$B46/$AB46,1) -> 0 | U46: =SUMIF(Navires!$B$2:$BE$2,$A$2&U$2,Navires!$B46:$BE46)/0.54*IF($AB46>$B46,$B46/$AB46,1) -> 0 | V46: =SUMIF(Navires!$B$2:$BE$2,$A$2&V$2,Navires!$B46:$BE46)/0.54*IF($AB46>$B46,$B46/$AB46,1) -> 0 | W46: =SUMIF(Navires!$B$2:$BE$2,$A$2&W$2,Navires!$B46:$BE46)/0.54*IF($AB46>$B46,$B46/$AB46,1) -> 0 | X46: 0 | Y46: =ProdBesoins!G48 -> 0 | AA46: =(SUMIF(Navires!$B$2:$BE$2,">29",Navires!$B46:$BE46)-SUMIF(Navires!$B$2:$BE$2,">39",Navires!$B46:$BE46))/0.54/(IF(ISERR((B46+'1'!P46+'2'!P46+'4'!P46+'5'!P46+'6'!P46+'7'!P46+'8'!P46+'9'!P46+'10'!P46)/B46),1,(B46+'1'!P46+'2'!P46+'4'!P46+'5'!P46+'6'!P46+'7'!P46+'8'!P46+'9'!P46+'10'!P46)/B46))+Y46 -> 0 | AB46: 0
A47: Fourrures | B47: =ProdBesoins!F49 -> 0 | C47: ='1'!P47 -> 0 | D47: ='2'!P47 -> 0 | F47: ='4'!P47 -> 0 | G47: ='5'!P47 -> 0 | H47: ='6'!P47 -> 0 | I47: ='7'!P47 -> 0 | J47: ='8'!P47 -> 0 | K47: ='9'!P47 -> 0 | L47: ='10'!P47 -> 0 | M47: 0 | N47: =SUMIF(Navires!$B$2:$BE$2,$A$2&N$2,Navires!$B47:$BE47)/0.54*IF($AB47>$B47,$B47/$AB47,1) -> 0 | O47: =SUMIF(Navires!$B$2:$BE$2,$A$2&O$2,Navires!$B47:$BE47)/0.54*IF($AB47>$B47,$B47/$AB47,1) -> 0 | Q47: =SUMIF(Navires!$B$2:$BE$2,$A$2&Q$2,Navires!$B47:$BE47)/0.54*IF($AB47>$B47,$B47/$AB47,1) -> 0 | R47: =SUMIF(Navires!$B$2:$BE$2,$A$2&R$2,Navires!$B47:$BE47)/0.54*IF($AB47>$B47,$B47/$AB47,1) -> 0 | S47: =SUMIF(Navires!$B$2:$BE$2,$A$2&S$2,Navires!$B47:$BE47)/0.54*IF($AB47>$B47,$B47/$AB47,1) -> 0 | T47: =SUMIF(Navires!$B$2:$BE$2,$A$2&T$2,Navires!$B47:$BE47)/0.54*IF($AB47>$B47,$B47/$AB47,1) -> 0 | U47: =SUMIF(Navires!$B$2:$BE$2,$A$2&U$2,Navires!$B47:$BE47)/0.54*IF($AB47>$B47,$B47/$AB47,1) -> 0 | V47: =SUMIF(Navires!$B$2:$BE$2,$A$2&V$2,Navires!$B47:$BE47)/0.54*IF($AB47>$B47,$B47/$AB47,1) -> 0 | W47: =SUMIF(Navires!$B$2:$BE$2,$A$2&W$2,Navires!$B47:$BE47)/0.54*IF($AB47>$B47,$B47/$AB47,1) -> 0 | X47: 0 | Y47: =ProdBesoins!G49 -> 0 | AA47: =(SUMIF(Navires!$B$2:$BE$2,">29",Navires!$B47:$BE47)-SUMIF(Navires!$B$2:$BE$2,">39",Navires!$B47:$BE47))/0.54/(IF(ISERR((B47+'1'!P47+'2'!P47+'4'!P47+'5'!P47+'6'!P47+'7'!P47+'8'!P47+'9'!P47+'10'!P47)/B47),1,(B47+'1'!P47+'2'!P47+'4'!P47+'5'!P47+'6'!P47+'7'!P47+'8'!P47+'9'!P47+'10'!P47)/B47))+Y47 -> 0 | AB47: 0
A48: Manteaux de fourrure | B48: =ProdBesoins!F50 -> 0 | C48: ='1'!P48 -> 0 | D48: ='2'!P48 -> 0 | F48: ='4'!P48 -> 0 | G48: ='5'!P48 -> 0 | H48: ='6'!P48 -> 0 | I48: ='7'!P48 -> 0 | J48: ='8'!P48 -> 0 | K48: ='9'!P48 -> 0 | L48: ='10'!P48 -> 0 | M48: 0 | N48: =SUMIF(Navires!$B$2:$BE$2,$A$2&N$2,Navires!$B48:$BE48)/0.54*IF($AB48>$B48,$B48/$AB48,1) -> 0 | O48: =SUMIF(Navires!$B$2:$BE$2,$A$2&O$2,Navires!$B48:$BE48)/0.54*IF($AB48>$B48,$B48/$AB48,1) -> 0 | Q48: =SUMIF(Navires!$B$2:$BE$2,$A$2&Q$2,Navires!$B48:$BE48)/0.54*IF($AB48>$B48,$B48/$AB48,1) -> 0 | R48: =SUMIF(Navires!$B$2:$BE$2,$A$2&R$2,Navires!$B48:$BE48)/0.54*IF($AB48>$B48,$B48/$AB48,1) -> 0 | S48: =SUMIF(Navires!$B$2:$BE$2,$A$2&S$2,Navires!$B48:$BE48)/0.54*IF($AB48>$B48,$B48/$AB48,1) -> 0 | T48: =SUMIF(Navires!$B$2:$BE$2,$A$2&T$2,Navires!$B48:$BE48)/0.54*IF($AB48>$B48,$B48/$AB48,1) -> 0 | U48: =SUMIF(Navires!$B$2:$BE$2,$A$2&U$2,Navires!$B48:$BE48)/0.54*IF($AB48>$B48,$B48/$AB48,1) -> 0 | V48: =SUMIF(Navires!$B$2:$BE$2,$A$2&V$2,Navires!$B48:$BE48)/0.54*IF($AB48>$B48,$B48/$AB48,1) -> 0 | W48: =SUMIF(Navires!$B$2:$BE$2,$A$2&W$2,Navires!$B48:$BE48)/0.54*IF($AB48>$B48,$B48/$AB48,1) -> 0 | X48: 0 | Y48: =ProdBesoins!G50 -> 0 | AA48: =(SUMIF(Navires!$B$2:$BE$2,">29",Navires!$B48:$BE48)-SUMIF(Navires!$B$2:$BE$2,">39",Navires!$B48:$BE48))/0.54/(IF(ISERR((B48+'1'!P48+'2'!P48+'4'!P48+'5'!P48+'6'!P48+'7'!P48+'8'!P48+'9'!P48+'10'!P48)/B48),1,(B48+'1'!P48+'2'!P48+'4'!P48+'5'!P48+'6'!P48+'7'!P48+'8'!P48+'9'!P48+'10'!P48)/B48))+Y48 -> 0 | AB48: 0
A49: Charbon | B49: =ProdBesoins!F51 -> 0 | C49: =FIXED(C$7,0) -> 0 | D49: 0 | F49: 0 | G49: 0 | H49: 0 | I49: 0 | J49: 0 | K49: 0 | L49: 0 | M49: 0 | N49: 0 | O49: 0 | Q49: 0 | R49: 0 | S49: 0 | T49: 0 | U49: 0 | V49: 0 | W49: 0 | X49: =FIXED(X$7,0) -> 0 | Y49: =ProdBesoins!G51 -> 0
A50: Minerai d'or | B50: =ProdBesoins!F52 -> 0 | C50: ='1'!P50 -> 0 | D50: ='2'!P50 -> 0 | F50: ='4'!P50 -> 0 | G50: ='5'!P50 -> 0 | H50: ='6'!P50 -> 0 | I50: ='7'!P50 -> 0 | J50: ='8'!P50 -> 0 | K50: ='9'!P50 -> 0 | L50: ='10'!P50 -> 0 | M50: =SUM(B50:L50) -> 0 | N50: =SUMIF(Navires!$B$2:$BE$2,$A$2&N$2,Navires!$B50:$BE50)/0.54*IF($AB50>$B50,$B50/$AB50,1) -> 0 | O50: =SUMIF(Navires!$B$2:$BE$2,$A$2&O$2,Navires!$B50:$BE50)/0.54*IF($AB50>$B50,$B50/$AB50,1) -> 0 | Q50: =SUMIF(Navires!$B$2:$BE$2,$A$2&Q$2,Navires!$B50:$BE50)/0.54*IF($AB50>$B50,$B50/$AB50,1) -> 0 | R50: =SUMIF(Navires!$B$2:$BE$2,$A$2&R$2,Navires!$B50:$BE50)/0.54*IF($AB50>$B50,$B50/$AB50,1) -> 0 | S50: =SUMIF(Navires!$B$2:$BE$2,$A$2&S$2,Navires!$B50:$BE50)/0.54*IF($AB50>$B50,$B50/$AB50,1) -> 0 | T50: =SUMIF(Navires!$B$2:$BE$2,$A$2&T$2,Navires!$B50:$BE50)/0.54*IF($AB50>$B50,$B50/$AB50,1) -> 0 | U50: =SUMIF(Navires!$B$2:$BE$2,$A$2&U$2,Navires!$B50:$BE50)/0.54*IF($AB50>$B50,$B50/$AB50,1) -> 0 | V50: =SUMIF(Navires!$B$2:$BE$2,$A$2&V$2,Navires!$B50:$BE50)/0.54*IF($AB50>$B50,$B50/$AB50,1) -> 0 | W50: =SUMIF(Navires!$B$2:$BE$2,$A$2&W$2,Navires!$B50:$BE50)/0.54*IF($AB50>$B50,$B50/$AB50,1) -> 0 | X50: =M50-SUM(N50:W50) -> 0 | Y50: =ProdBesoins!G52 -> 0 | AA50: =(SUMIF(Navires!$B$2:$BE$2,">29",Navires!$B50:$BE50)-SUMIF(Navires!$B$2:$BE$2,">39",Navires!$B50:$BE50))/0.54/(IF(ISERR((B50+'1'!P50+'2'!P50+'4'!P50+'5'!P50+'6'!P50+'7'!P50+'8'!P50+'9'!P50+'10'!P50)/B50),1,(B50+'1'!P50+'2'!P50+'4'!P50+'5'!P50+'6'!P50+'7'!P50+'8'!P50+'9'!P50+'10'!P50)/B50))+Y50 -> 0 | AB50: 0
A51: Or | B51: =ProdBesoins!F53 -> 0 | C51: ='1'!P51 -> 0 | D51: ='2'!P51 -> 0 | F51: ='4'!P51 -> 0 | G51: ='5'!P51 -> 0 | H51: ='6'!P51 -> 0 | I51: ='7'!P51 -> 0 | J51: ='8'!P51 -> 0 | K51: ='9'!P51 -> 0 | L51: ='10'!P51 -> 0 | M51: =SUM(B51:L51) -> 0 | N51: =SUMIF(Navires!$B$2:$BE$2,$A$2&N$2,Navires!$B51:$BE51)/0.54*IF($AB51>$B51,$B51/$AB51,1) -> 0 | O51: =SUMIF(Navires!$B$2:$BE$2,$A$2&O$2,Navires!$B51:$BE51)/0.54*IF($AB51>$B51,$B51/$AB51,1) -> 0 | Q51: =SUMIF(Navires!$B$2:$BE$2,$A$2&Q$2,Navires!$B51:$BE51)/0.54*IF($AB51>$B51,$B51/$AB51,1) -> 0 | R51: =SUMIF(Navires!$B$2:$BE$2,$A$2&R$2,Navires!$B51:$BE51)/0.54*IF($AB51>$B51,$B51/$AB51,1) -> 0 | S51: =SUMIF(Navires!$B$2:$BE$2,$A$2&S$2,Navires!$B51:$BE51)/0.54*IF($AB51>$B51,$B51/$AB51,1) -> 0 | T51: =SUMIF(Navires!$B$2:$BE$2,$A$2&T$2,Navires!$B51:$BE51)/0.54*IF($AB51>$B51,$B51/$AB51,1) -> 0 | U51: =SUMIF(Navires!$B$2:$BE$2,$A$2&U$2,Navires!$B51:$BE51)/0.54*IF($AB51>$B51,$B51/$AB51,1) -> 0 | V51: =SUMIF(Navires!$B$2:$BE$2,$A$2&V$2,Navires!$B51:$BE51)/0.54*IF($AB51>$B51,$B51/$AB51,1) -> 0 | W51: =SUMIF(Navires!$B$2:$BE$2,$A$2&W$2,Navires!$B51:$BE51)/0.54*IF($AB51>$B51,$B51/$AB51,1) -> 0 | X51: 0 | Y51: =ProdBesoins!G53 -> 0 | AA51: =(SUMIF(Navires!$B$2:$BE$2,">29",Navires!$B51:$BE51)-SUMIF(Navires!$B$2:$BE$2,">39",Navires!$B51:$BE51))/0.54/(IF(ISERR((B51+'1'!P51+'2'!P51+'4'!P51+'5'!P51+'6'!P51+'7'!P51+'8'!P51+'9'!P51+'10'!P51)/B51),1,(B51+'1'!P51+'2'!P51+'4'!P51+'5'!P51+'6'!P51+'7'!P51+'8'!P51+'9'!P51+'10'!P51)/B51))+Y51 -> 0 | AB51: 0
A52: Soierie | B52: =ProdBesoins!F54 -> 0 | C52: ='1'!P52 -> 0 | D52: ='2'!P52 -> 0 | F52: ='4'!P52 -> 0 | G52: ='5'!P52 -> 0 | H52: ='6'!P52 -> 0 | I52: ='7'!P52 -> 0 | J52: ='8'!P52 -> 0 | K52: ='9'!P52 -> 0 | L52: ='10'!P52 -> 0 | M52: 0 | N52: =SUMIF(Navires!$B$2:$BE$2,$A$2&N$2,Navires!$B52:$BE52)/0.54*IF($AB52>$B52,$B52/$AB52,1) -> 0 | O52: =SUMIF(Navires!$B$2:$BE$2,$A$2&O$2,Navires!$B52:$BE52)/0.54*IF($AB52>$B52,$B52/$AB52,1) -> 0 | Q52: =SUMIF(Navires!$B$2:$BE$2,$A$2&Q$2,Navires!$B52:$BE52)/0.54*IF($AB52>$B52,$B52/$AB52,1) -> 0 | R52: =SUMIF(Navires!$B$2:$BE$2,$A$2&R$2,Navires!$B52:$BE52)/0.54*IF($AB52>$B52,$B52/$AB52,1) -> 0 | S52: =SUMIF(Navires!$B$2:$BE$2,$A$2&S$2,Navires!$B52:$BE52)/0.54*IF($AB52>$B52,$B52/$AB52,1) -> 0 | T52: =SUMIF(Navires!$B$2:$BE$2,$A$2&T$2,Navires!$B52:$BE52)/0.54*IF($AB52>$B52,$B52/$AB52,1) -> 0 | U52: =SUMIF(Navires!$B$2:$BE$2,$A$2&U$2,Navires!$B52:$BE52)/0.54*IF($AB52>$B52,$B52/$AB52,1) -> 0 | V52: =SUMIF(Navires!$B$2:$BE$2,$A$2&V$2,Navires!$B52:$BE52)/0.54*IF($AB52>$B52,$B52/$AB52,1) -> 0 | W52: =SUMIF(Navires!$B$2:$BE$2,$A$2&W$2,Navires!$B52:$BE52)/0.54*IF($AB52>$B52,$B52/$AB52,1) -> 0 | X52: 0 | Y52: =ProdBesoins!G54 -> 0 | AA52: =(SUMIF(Navires!$B$2:$BE$2,">29",Navires!$B52:$BE52)-SUMIF(Navires!$B$2:$BE$2,">39",Navires!$B52:$BE52))/0.54/(IF(ISERR((B52+'1'!P52+'2'!P52+'4'!P52+'5'!P52+'6'!P52+'7'!P52+'8'!P52+'9'!P52+'10'!P52)/B52),1,(B52+'1'!P52+'2'!P52+'4'!P52+'5'!P52+'6'!P52+'7'!P52+'8'!P52+'9'!P52+'10'!P52)/B52))+Y52 -> 0 | AB52: 0
A53: Robes en brocart | B53: =ProdBesoins!F55 -> 0 | C53: ='1'!P53 -> 0 | D53: ='2'!P53 -> 0 | F53: ='4'!P53 -> 0 | G53: ='5'!P53 -> 0 | H53: ='6'!P53 -> 0 | I53: ='7'!P53 -> 0 | J53: ='8'!P53 -> 0 | K53: ='9'!P53 -> 0 | L53: ='10'!P53 -> 0 | M53: 0 | N53: =SUMIF(Navires!$B$2:$BE$2,$A$2&N$2,Navires!$B53:$BE53)/0.54*IF($AB53>$B53,$B53/$AB53,1) -> 0 | O53: =SUMIF(Navires!$B$2:$BE$2,$A$2&O$2,Navires!$B53:$BE53)/0.54*IF($AB53>$B53,$B53/$AB53,1) -> 0 | Q53: =SUMIF(Navires!$B$2:$BE$2,$A$2&Q$2,Navires!$B53:$BE53)/0.54*IF($AB53>$B53,$B53/$AB53,1) -> 0 | R53: =SUMIF(Navires!$B$2:$BE$2,$A$2&R$2,Navires!$B53:$BE53)/0.54*IF($AB53>$B53,$B53/$AB53,1) -> 0 | S53: =SUMIF(Navires!$B$2:$BE$2,$A$2&S$2,Navires!$B53:$BE53)/0.54*IF($AB53>$B53,$B53/$AB53,1) -> 0 | T53: =SUMIF(Navires!$B$2:$BE$2,$A$2&T$2,Navires!$B53:$BE53)/0.54*IF($AB53>$B53,$B53/$AB53,1) -> 0 | U53: =SUMIF(Navires!$B$2:$BE$2,$A$2&U$2,Navires!$B53:$BE53)/0.54*IF($AB53>$B53,$B53/$AB53,1) -> 0 | V53: =SUMIF(Navires!$B$2:$BE$2,$A$2&V$2,Navires!$B53:$BE53)/0.54*IF($AB53>$B53,$B53/$AB53,1) -> 0 | W53: =SUMIF(Navires!$B$2:$BE$2,$A$2&W$2,Navires!$B53:$BE53)/0.54*IF($AB53>$B53,$B53/$AB53,1) -> 0 | X53: 0 | Y53: =ProdBesoins!G55 -> 0 | AA53: =(SUMIF(Navires!$B$2:$BE$2,">29",Navires!$B53:$BE53)-SUMIF(Navires!$B$2:$BE$2,">39",Navires!$B53:$BE53))/0.54/(IF(ISERR((B53+'1'!P53+'2'!P53+'4'!P53+'5'!P53+'6'!P53+'7'!P53+'8'!P53+'9'!P53+'10'!P53)/B53),1,(B53+'1'!P53+'2'!P53+'4'!P53+'5'!P53+'6'!P53+'7'!P53+'8'!P53+'9'!P53+'10'!P53)/B53))+Y53 -> 0 | AB53: 0
B54: =ProdBesoins!F56 -> 0 | Y54: =ProdBesoins!G56 -> 0
A55: Bois | B55: =ProdBesoins!F57 -> 0 | C55: =FIXED(C$5,0) -> 0 | D55: 0 | F55: 0 | G55: 0 | H55: 0 | I55: 0 | J55: 0 | K55: 0 | L55: 0 | M55: 0 | N55: 0 | O55: 0 | Q55: 0 | R55: 0 | S55: 0 | T55: 0 | U55: 0 | V55: 0 | W55: 0 | X55: =FIXED(X$5,0) -> 0 | Y55: =ProdBesoins!G57 -> 0
A56: Papier | B56: =ProdBesoins!F58 -> 0 | C56: ='1'!P56 -> 0 | D56: ='2'!P56 -> 0 | F56: ='4'!P56 -> 0 | G56: ='5'!P56 -> 0 | H56: ='6'!P56 -> 0 | I56: ='7'!P56 -> 0 | J56: ='8'!P56 -> 0 | K56: ='9'!P56 -> 0 | L56: ='10'!P56 -> 0 | M56: =SUM(B56:L56) -> 0 | N56: =SUMIF(Navires!$B$2:$BE$2,$A$2&N$2,Navires!$B56:$BE56)/0.54*IF($AB56>$B56,$B56/$AB56,1) -> 0 | O56: =SUMIF(Navires!$B$2:$BE$2,$A$2&O$2,Navires!$B56:$BE56)/0.54*IF($AB56>$B56,$B56/$AB56,1) -> 0 | Q56: =SUMIF(Navires!$B$2:$BE$2,$A$2&Q$2,Navires!$B56:$BE56)/0.54*IF($AB56>$B56,$B56/$AB56,1) -> 0 | R56: =SUMIF(Navires!$B$2:$BE$2,$A$2&R$2,Navires!$B56:$BE56)/0.54*IF($AB56>$B56,$B56/$AB56,1) -> 0 | S56: =SUMIF(Navires!$B$2:$BE$2,$A$2&S$2,Navires!$B56:$BE56)/0.54*IF($AB56>$B56,$B56/$AB56,1) -> 0 | T56: =SUMIF(Navires!$B$2:$BE$2,$A$2&T$2,Navires!$B56:$BE56)/0.54*IF($AB56>$B56,$B56/$AB56,1) -> 0 | U56: =SUMIF(Navires!$B$2:$BE$2,$A$2&U$2,Navires!$B56:$BE56)/0.54*IF($AB56>$B56,$B56/$AB56,1) -> 0 | V56: =SUMIF(Navires!$B$2:$BE$2,$A$2&V$2,Navires!$B56:$BE56)/0.54*IF($AB56>$B56,$B56/$AB56,1) -> 0 | W56: =SUMIF(Navires!$B$2:$BE$2,$A$2&W$2,Navires!$B56:$BE56)/0.54*IF($AB56>$B56,$B56/$AB56,1) -> 0 | X56: =M56-SUM(N56:W56) -> 0 | Y56: =ProdBesoins!G58 -> 0 | AA56: =(SUMIF(Navires!$B$2:$BE$2,">29",Navires!$B56:$BE56)-SUMIF(Navires!$B$2:$BE$2,">39",Navires!$B56:$BE56))/0.54/(IF(ISERR((B56+'1'!P56+'2'!P56+'4'!P56+'5'!P56+'6'!P56+'7'!P56+'8'!P56+'9'!P56+'10'!P56)/B56),1,(B56+'1'!P56+'2'!P56+'4'!P56+'5'!P56+'6'!P56+'7'!P56+'8'!P56+'9'!P56+'10'!P56)/B56))+Y56 -> 0 | AB56: 0
A57: Teinturerie | B57: =ProdBesoins!F59 -> 0 | C57: ='1'!P57 -> 0 | D57: ='2'!P57 -> 0 | F57: ='4'!P57 -> 0 | G57: ='5'!P57 -> 0 | H57: ='6'!P57 -> 0 | I57: ='7'!P57 -> 0 | J57: ='8'!P57 -> 0 | K57: ='9'!P57 -> 0 | L57: ='10'!P57 -> 0 | M57: 0 | N57: =SUMIF(Navires!$B$2:$BE$2,$A$2&N$2,Navires!$B57:$BE57)/0.54*IF($AB57>$B57,$B57/$AB57,1) -> 0 | O57: =SUMIF(Navires!$B$2:$BE$2,$A$2&O$2,Navires!$B57:$BE57)/0.54*IF($AB57>$B57,$B57/$AB57,1) -> 0 | Q57: =SUMIF(Navires!$B$2:$BE$2,$A$2&Q$2,Navires!$B57:$BE57)/0.54*IF($AB57>$B57,$B57/$AB57,1) -> 0 | R57: =SUMIF(Navires!$B$2:$BE$2,$A$2&R$2,Navires!$B57:$BE57)/0.54*IF($AB57>$B57,$B57/$AB57,1) -> 0 | S57: =SUMIF(Navires!$B$2:$BE$2,$A$2&S$2,Navires!$B57:$BE57)/0.54*IF($AB57>$B57,$B57/$AB57,1) -> 0 | T57: =SUMIF(Navires!$B$2:$BE$2,$A$2&T$2,Navires!$B57:$BE57)/0.54*IF($AB57>$B57,$B57/$AB57,1) -> 0 | U57: =SUMIF(Navires!$B$2:$BE$2,$A$2&U$2,Navires!$B57:$BE57)/0.54*IF($AB57>$B57,$B57/$AB57,1) -> 0 | V57: =SUMIF(Navires!$B$2:$BE$2,$A$2&V$2,Navires!$B57:$BE57)/0.54*IF($AB57>$B57,$B57/$AB57,1) -> 0 | W57: =SUMIF(Navires!$B$2:$BE$2,$A$2&W$2,Navires!$B57:$BE57)/0.54*IF($AB57>$B57,$B57/$AB57,1) -> 0 | X57: 0 | Y57: =ProdBesoins!G59 -> 0 | AA57: =(SUMIF(Navires!$B$2:$BE$2,">29",Navires!$B57:$BE57)-SUMIF(Navires!$B$2:$BE$2,">39",Navires!$B57:$BE57))/0.54/(IF(ISERR((B57+'1'!P57+'2'!P57+'4'!P57+'5'!P57+'6'!P57+'7'!P57+'8'!P57+'9'!P57+'10'!P57)/B57),1,(B57+'1'!P57+'2'!P57+'4'!P57+'5'!P57+'6'!P57+'7'!P57+'8'!P57+'9'!P57+'10'!P57)/B57))+Y57 -> 0 | AB57: 0
A58: Livres | B58: =ProdBesoins!F60 -> 0 | C58: ='1'!P58 -> 0 | D58: ='2'!P58 -> 0 | F58: ='4'!P58 -> 0 | G58: ='5'!P58 -> 0 | H58: ='6'!P58 -> 0 | I58: ='7'!P58 -> 0 | J58: ='8'!P58 -> 0 | K58: ='9'!P58 -> 0 | L58: ='10'!P58 -> 0 | M58: 0 | N58: =SUMIF(Navires!$B$2:$BE$2,$A$2&N$2,Navires!$B58:$BE58)/0.54*IF($AB58>$B58,$B58/$AB58,1) -> 0 | O58: =SUMIF(Navires!$B$2:$BE$2,$A$2&O$2,Navires!$B58:$BE58)/0.54*IF($AB58>$B58,$B58/$AB58,1) -> 0 | Q58: =SUMIF(Navires!$B$2:$BE$2,$A$2&Q$2,Navires!$B58:$BE58)/0.54*IF($AB58>$B58,$B58/$AB58,1) -> 0 | R58: =SUMIF(Navires!$B$2:$BE$2,$A$2&R$2,Navires!$B58:$BE58)/0.54*IF($AB58>$B58,$B58/$AB58,1) -> 0 | S58: =SUMIF(Navires!$B$2:$BE$2,$A$2&S$2,Navires!$B58:$BE58)/0.54*IF($AB58>$B58,$B58/$AB58,1) -> 0 | T58: =SUMIF(Navires!$B$2:$BE$2,$A$2&T$2,Navires!$B58:$BE58)/0.54*IF($AB58>$B58,$B58/$AB58,1) -> 0 | U58: =SUMIF(Navires!$B$2:$BE$2,$A$2&U$2,Navires!$B58:$BE58)/0.54*IF($AB58>$B58,$B58/$AB58,1) -> 0 | V58: =SUMIF(Navires!$B$2:$BE$2,$A$2&V$2,Navires!$B58:$BE58)/0.54*IF($AB58>$B58,$B58/$AB58,1) -> 0 | W58: =SUMIF(Navires!$B$2:$BE$2,$A$2&W$2,Navires!$B58:$BE58)/0.54*IF($AB58>$B58,$B58/$AB58,1) -> 0 | X58: 0 | Y58: =ProdBesoins!G60 -> 0 | AA58: =(SUMIF(Navires!$B$2:$BE$2,">29",Navires!$B58:$BE58)-SUMIF(Navires!$B$2:$BE$2,">39",Navires!$B58:$BE58))/0.54/(IF(ISERR((B58+'1'!P58+'2'!P58+'4'!P58+'5'!P58+'6'!P58+'7'!P58+'8'!P58+'9'!P58+'10'!P58)/B58),1,(B58+'1'!P58+'2'!P58+'4'!P58+'5'!P58+'6'!P58+'7'!P58+'8'!P58+'9'!P58+'10'!P58)/B58))+Y58 -> 0 | AB58: 0
A59: Charbon | B59: =ProdBesoins!F61 -> 0 | C59: =FIXED(C$7,0) -> 0 | D59: 0 | F59: 0 | G59: 0 | H59: 0 | I59: 0 | J59: 0 | K59: 0 | L59: 0 | M59: 0 | N59: 0 | O59: 0 | Q59: 0 | R59: 0 | S59: 0 | T59: 0 | U59: 0 | V59: 0 | W59: 0 | X59: =FIXED(X$7,0) -> 0 | Y59: =ProdBesoins!G61 -> 0
A60: Minerai de cuivre | B60: =ProdBesoins!F62 -> 0 | C60: ='1'!P60 -> 0 | D60: ='2'!P60 -> 0 | F60: ='4'!P60 -> 0 | G60: ='5'!P60 -> 0 | H60: ='6'!P60 -> 0 | I60: ='7'!P60 -> 0 | J60: ='8'!P60 -> 0 | K60: ='9'!P60 -> 0 | L60: ='10'!P60 -> 0 | M60: =SUM(B60:L60) -> 0 | N60: =SUMIF(Navires!$B$2:$BE$2,$A$2&N$2,Navires!$B60:$BE60)/0.54*IF($AB60>$B60,$B60/$AB60,1) -> 0 | O60: =SUMIF(Navires!$B$2:$BE$2,$A$2&O$2,Navires!$B60:$BE60)/0.54*IF($AB60>$B60,$B60/$AB60,1) -> 0 | Q60: =SUMIF(Navires!$B$2:$BE$2,$A$2&Q$2,Navires!$B60:$BE60)/0.54*IF($AB60>$B60,$B60/$AB60,1) -> 0 | R60: =SUMIF(Navires!$B$2:$BE$2,$A$2&R$2,Navires!$B60:$BE60)/0.54*IF($AB60>$B60,$B60/$AB60,1) -> 0 | S60: =SUMIF(Navires!$B$2:$BE$2,$A$2&S$2,Navires!$B60:$BE60)/0.54*IF($AB60>$B60,$B60/$AB60,1) -> 0 | T60: =SUMIF(Navires!$B$2:$BE$2,$A$2&T$2,Navires!$B60:$BE60)/0.54*IF($AB60>$B60,$B60/$AB60,1) -> 0 | U60: =SUMIF(Navires!$B$2:$BE$2,$A$2&U$2,Navires!$B60:$BE60)/0.54*IF($AB60>$B60,$B60/$AB60,1) -> 0 | V60: =SUMIF(Navires!$B$2:$BE$2,$A$2&V$2,Navires!$B60:$BE60)/0.54*IF($AB60>$B60,$B60/$AB60,1) -> 0 | W60: =SUMIF(Navires!$B$2:$BE$2,$A$2&W$2,Navires!$B60:$BE60)/0.54*IF($AB60>$B60,$B60/$AB60,1) -> 0 | X60: =M60-SUM(N60:W60) -> 0 | Y60: =ProdBesoins!G62 -> 0 | AA60: =(SUMIF(Navires!$B$2:$BE$2,">29",Navires!$B60:$BE60)-SUMIF(Navires!$B$2:$BE$2,">39",Navires!$B60:$BE60))/0.54/(IF(ISERR((B60+'1'!P60+'2'!P60+'4'!P60+'5'!P60+'6'!P60+'7'!P60+'8'!P60+'9'!P60+'10'!P60)/B60),1,(B60+'1'!P60+'2'!P60+'4'!P60+'5'!P60+'6'!P60+'7'!P60+'8'!P60+'9'!P60+'10'!P60)/B60))+Y60 -> 0 | AB60: 0
A61: Bronze | B61: =ProdBesoins!F63 -> 0 | C61: ='1'!P61 -> 0 | D61: ='2'!P61 -> 0 | F61: ='4'!P61 -> 0 | G61: ='5'!P61 -> 0 | H61: ='6'!P61 -> 0 | I61: ='7'!P61 -> 0 | J61: ='8'!P61 -> 0 | K61: ='9'!P61 -> 0 | L61: ='10'!P61 -> 0 | M61: =SUM(B61:L61) -> 0 | N61: =SUMIF(Navires!$B$2:$BE$2,$A$2&N$2,Navires!$B61:$BE61)/0.54*IF($AB61>$B61,$B61/$AB61,1) -> 0 | O61: =SUMIF(Navires!$B$2:$BE$2,$A$2&O$2,Navires!$B61:$BE61)/0.54*IF($AB61>$B61,$B61/$AB61,1) -> 0 | Q61: =SUMIF(Navires!$B$2:$BE$2,$A$2&Q$2,Navires!$B61:$BE61)/0.54*IF($AB61>$B61,$B61/$AB61,1) -> 0 | R61: =SUMIF(Navires!$B$2:$BE$2,$A$2&R$2,Navires!$B61:$BE61)/0.54*IF($AB61>$B61,$B61/$AB61,1) -> 0 | S61: =SUMIF(Navires!$B$2:$BE$2,$A$2&S$2,Navires!$B61:$BE61)/0.54*IF($AB61>$B61,$B61/$AB61,1) -> 0 | T61: =SUMIF(Navires!$B$2:$BE$2,$A$2&T$2,Navires!$B61:$BE61)/0.54*IF($AB61>$B61,$B61/$AB61,1) -> 0 | U61: =SUMIF(Navires!$B$2:$BE$2,$A$2&U$2,Navires!$B61:$BE61)/0.54*IF($AB61>$B61,$B61/$AB61,1) -> 0 | V61: =SUMIF(Navires!$B$2:$BE$2,$A$2&V$2,Navires!$B61:$BE61)/0.54*IF($AB61>$B61,$B61/$AB61,1) -> 0 | W61: =SUMIF(Navires!$B$2:$BE$2,$A$2&W$2,Navires!$B61:$BE61)/0.54*IF($AB61>$B61,$B61/$AB61,1) -> 0 | X61: 0 | Y61: =ProdBesoins!G63 -> 0 | AA61: =(SUMIF(Navires!$B$2:$BE$2,">29",Navires!$B61:$BE61)-SUMIF(Navires!$B$2:$BE$2,">39",Navires!$B61:$BE61))/0.54/(IF(ISERR((B61+'1'!P61+'2'!P61+'4'!P61+'5'!P61+'6'!P61+'7'!P61+'8'!P61+'9'!P61+'10'!P61)/B61),1,(B61+'1'!P61+'2'!P61+'4'!P61+'5'!P61+'6'!P61+'7'!P61+'8'!P61+'9'!P61+'10'!P61)/B61))+Y61 -> 0 | AB61: 0
A62: Chanvre | B62: =ProdBesoins!F64 -> 0 | C62: =FIXED(C$40,0) -> 0 | D62: 0 | F62: 0 | G62: 0 | H62: 0 | I62: 0 | J62: 0 | K62: 0 | L62: 0 | M62: 0 | N62: 0 | O62: 0 | Q62: 0 | R62: 0 | S62: 0 | T62: 0 | U62: 0 | V62: 0 | W62: 0 | X62: =FIXED(X$40,0) -> 0 | Y62: =ProdBesoins!G64 -> 0
A63: Cire d'abeille | B63: =ProdBesoins!F65 -> 0 | C63: ='1'!P63 -> 0 | D63: ='2'!P63 -> 0 | F63: ='4'!P63 -> 0 | G63: ='5'!P63 -> 0 | H63: ='6'!P63 -> 0 | I63: ='7'!P63 -> 0 | J63: ='8'!P63 -> 0 | K63: ='9'!P63 -> 0 | L63: ='10'!P63 -> 0 | M63: =SUM(B63:L63) -> 0 | N63: =SUMIF(Navires!$B$2:$BE$2,$A$2&N$2,Navires!$B63:$BE63)/0.54*IF($AB63>$B63,$B63/$AB63,1) -> 0 | O63: =SUMIF(Navires!$B$2:$BE$2,$A$2&O$2,Navires!$B63:$BE63)/0.54*IF($AB63>$B63,$B63/$AB63,1) -> 0 | Q63: =SUMIF(Navires!$B$2:$BE$2,$A$2&Q$2,Navires!$B63:$BE63)/0.54*IF($AB63>$B63,$B63/$AB63,1) -> 0 | R63: =SUMIF(Navires!$B$2:$BE$2,$A$2&R$2,Navires!$B63:$BE63)/0.54*IF($AB63>$B63,$B63/$AB63,1) -> 0 | S63: =SUMIF(Navires!$B$2:$BE$2,$A$2&S$2,Navires!$B63:$BE63)/0.54*IF($AB63>$B63,$B63/$AB63,1) -> 0 | T63: =SUMIF(Navires!$B$2:$BE$2,$A$2&T$2,Navires!$B63:$BE63)/0.54*IF($AB63>$B63,$B63/$AB63,1) -> 0 | U63: =SUMIF(Navires!$B$2:$BE$2,$A$2&U$2,Navires!$B63:$BE63)/0.54*IF($AB63>$B63,$B63/$AB63,1) -> 0 | V63: =SUMIF(Navires!$B$2:$BE$2,$A$2&V$2,Navires!$B63:$BE63)/0.54*IF($AB63>$B63,$B63/$AB63,1) -> 0 | W63: =SUMIF(Navires!$B$2:$BE$2,$A$2&W$2,Navires!$B63:$BE63)/0.54*IF($AB63>$B63,$B63/$AB63,1) -> 0 | X63: =M63-SUM(N63:W63) -> 0 | Y63: =ProdBesoins!G65 -> 0 | AA63: =(SUMIF(Navires!$B$2:$BE$2,">29",Navires!$B63:$BE63)-SUMIF(Navires!$B$2:$BE$2,">39",Navires!$B63:$BE63))/0.54/(IF(ISERR((B63+'1'!P63+'2'!P63+'4'!P63+'5'!P63+'6'!P63+'7'!P63+'8'!P63+'9'!P63+'10'!P63)/B63),1,(B63+'1'!P63+'2'!P63+'4'!P63+'5'!P63+'6'!P63+'7'!P63+'8'!P63+'9'!P63+'10'!P63)/B63))+Y63 -> 0 | AB63: 0
A64: Bougies | B64: =ProdBesoins!F66 -> 0 | C64: ='1'!P64 -> 0 | D64: ='2'!P64 -> 0 | F64: ='4'!P64 -> 0 | G64: ='5'!P64 -> 0 | H64: ='6'!P64 -> 0 | I64: ='7'!P64 -> 0 | J64: ='8'!P64 -> 0 | K64: ='9'!P64 -> 0 | L64: ='10'!P64 -> 0 | M64: 0 | N64: =SUMIF(Navires!$B$2:$BE$2,$A$2&N$2,Navires!$B64:$BE64)/0.54*IF($AB64>$B64,$B64/$AB64,1) -> 0 | O64: =SUMIF(Navires!$B$2:$BE$2,$A$2&O$2,Navires!$B64:$BE64)/0.54*IF($AB64>$B64,$B64/$AB64,1) -> 0 | Q64: =SUMIF(Navires!$B$2:$BE$2,$A$2&Q$2,Navires!$B64:$BE64)/0.54*IF($AB64>$B64,$B64/$AB64,1) -> 0 | R64: =SUMIF(Navires!$B$2:$BE$2,$A$2&R$2,Navires!$B64:$BE64)/0.54*IF($AB64>$B64,$B64/$AB64,1) -> 0 | S64: =SUMIF(Navires!$B$2:$BE$2,$A$2&S$2,Navires!$B64:$BE64)/0.54*IF($AB64>$B64,$B64/$AB64,1) -> 0 | T64: =SUMIF(Navires!$B$2:$BE$2,$A$2&T$2,Navires!$B64:$BE64)/0.54*IF($AB64>$B64,$B64/$AB64,1) -> 0 | U64: =SUMIF(Navires!$B$2:$BE$2,$A$2&U$2,Navires!$B64:$BE64)/0.54*IF($AB64>$B64,$B64/$AB64,1) -> 0 | V64: =SUMIF(Navires!$B$2:$BE$2,$A$2&V$2,Navires!$B64:$BE64)/0.54*IF($AB64>$B64,$B64/$AB64,1) -> 0 | W64: =SUMIF(Navires!$B$2:$BE$2,$A$2&W$2,Navires!$B64:$BE64)/0.54*IF($AB64>$B64,$B64/$AB64,1) -> 0 | X64: 0 | Y64: =ProdBesoins!G66 -> 0 | AA64: =(SUMIF(Navires!$B$2:$BE$2,">29",Navires!$B64:$BE64)-SUMIF(Navires!$B$2:$BE$2,">39",Navires!$B64:$BE64))/0.54/(IF(ISERR((B64+'1'!P64+'2'!P64+'4'!P64+'5'!P64+'6'!P64+'7'!P64+'8'!P64+'9'!P64+'10'!P64)/B64),1,(B64+'1'!P64+'2'!P64+'4'!P64+'5'!P64+'6'!P64+'7'!P64+'8'!P64+'9'!P64+'10'!P64)/B64))+Y64 -> 0 | AB64: 0
A65: Bougeoirs | B65: =ProdBesoins!F67 -> 0 | C65: ='1'!P65 -> 0 | D65: ='2'!P65 -> 0 | F65: ='4'!P65 -> 0 | G65: ='5'!P65 -> 0 | H65: ='6'!P65 -> 0 | I65: ='7'!P65 -> 0 | J65: ='8'!P65 -> 0 | K65: ='9'!P65 -> 0 | L65: ='10'!P65 -> 0 | M65: 0 | N65: =SUMIF(Navires!$B$2:$BE$2,$A$2&N$2,Navires!$B65:$BE65)/0.54*IF($AB65>$B65,$B65/$AB65,1) -> 0 | O65: =SUMIF(Navires!$B$2:$BE$2,$A$2&O$2,Navires!$B65:$BE65)/0.54*IF($AB65>$B65,$B65/$AB65,1) -> 0 | Q65: =SUMIF(Navires!$B$2:$BE$2,$A$2&Q$2,Navires!$B65:$BE65)/0.54*IF($AB65>$B65,$B65/$AB65,1) -> 0 | R65: =SUMIF(Navires!$B$2:$BE$2,$A$2&R$2,Navires!$B65:$BE65)/0.54*IF($AB65>$B65,$B65/$AB65,1) -> 0 | S65: =SUMIF(Navires!$B$2:$BE$2,$A$2&S$2,Navires!$B65:$BE65)/0.54*IF($AB65>$B65,$B65/$AB65,1) -> 0 | T65: =SUMIF(Navires!$B$2:$BE$2,$A$2&T$2,Navires!$B65:$BE65)/0.54*IF($AB65>$B65,$B65/$AB65,1) -> 0 | U65: =SUMIF(Navires!$B$2:$BE$2,$A$2&U$2,Navires!$B65:$BE65)/0.54*IF($AB65>$B65,$B65/$AB65,1) -> 0 | V65: =SUMIF(Navires!$B$2:$BE$2,$A$2&V$2,Navires!$B65:$BE65)/0.54*IF($AB65>$B65,$B65/$AB65,1) -> 0 | W65: =SUMIF(Navires!$B$2:$BE$2,$A$2&W$2,Navires!$B65:$BE65)/0.54*IF($AB65>$B65,$B65/$AB65,1) -> 0 | X65: 0 | Y65: =ProdBesoins!G67 -> 0 | AA65: =(SUMIF(Navires!$B$2:$BE$2,">29",Navires!$B65:$BE65)-SUMIF(Navires!$B$2:$BE$2,">39",Navires!$B65:$BE65))/0.54/(IF(ISERR((B65+'1'!P65+'2'!P65+'4'!P65+'5'!P65+'6'!P65+'7'!P65+'8'!P65+'9'!P65+'10'!P65)/B65),1,(B65+'1'!P65+'2'!P65+'4'!P65+'5'!P65+'6'!P65+'7'!P65+'8'!P65+'9'!P65+'10'!P65)/B65))+Y65 -> 0 | AB65: 0
A66: Charbon | B66: =ProdBesoins!F68 -> 0 | C66: =FIXED(C$7,0) -> 0 | D66: 0 | F66: 0 | G66: 0 | H66: 0 | I66: 0 | J66: 0 | K66: 0 | L66: 0 | M66: 0 | N66: 0 | O66: 0 | Q66: 0 | R66: 0 | S66: 0 | T66: 0 | U66: 0 | V66: 0 | W66: 0 | X66: =FIXED(X$7,0) -> 0 | Y66: =ProdBesoins!G68 -> 0
A67: Minerai de cuivre | B67: =ProdBesoins!F69 -> 0 | C67: =FIXED(C$60,0) -> 0 | D67: 0 | F67: 0 | G67: 0 | H67: 0 | I67: 0 | J67: 0 | K67: 0 | L67: 0 | M67: 0 | N67: 0 | O67: 0 | Q67: 0 | R67: 0 | S67: 0 | T67: 0 | U67: 0 | V67: 0 | W67: 0 | X67: =FIXED(X$60,0) -> 0 | Y67: =ProdBesoins!G69 -> 0
A68: Bronze | B68: =ProdBesoins!F70 -> 0 | C68: =FIXED(C$61,0) -> 0 | D68: 0 | F68: 0 | G68: 0 | H68: 0 | I68: 0 | J68: 0 | K68: 0 | L68: 0 | M68: 0 | N68: 0 | O68: 0 | Q68: 0 | R68: 0 | S68: 0 | T68: 0 | U68: 0 | V68: 0 | W68: 0 | X68: =FIXED(X$61,0) -> 0 | Y68: =ProdBesoins!G70 -> 0
A69: Quartz | B69: =ProdBesoins!F71 -> 0 | C69: =FIXED(C$12,0) -> 0 | D69: 0 | F69: 0 | G69: 0 | H69: 0 | I69: 0 | J69: 0 | K69: 0 | L69: 0 | M69: 0 | N69: 0 | O69: 0 | Q69: 0 | R69: 0 | S69: 0 | T69: 0 | U69: 0 | V69: 0 | W69: 0 | X69: =FIXED(X$12,0) -> 0 | Y69: =ProdBesoins!G71 -> 0
A70: Lunettes | B70: =ProdBesoins!F72 -> 0 | C70: ='1'!P70 -> 0 | D70: ='2'!P70 -> 0 | F70: ='4'!P70 -> 0 | G70: ='5'!P70 -> 0 | H70: ='6'!P70 -> 0 | I70: ='7'!P70 -> 0 | J70: ='8'!P70 -> 0 | K70: ='9'!P70 -> 0 | L70: ='10'!P70 -> 0 | M70: =SUM(B70:L70) -> 0 | N70: =SUMIF(Navires!$B$2:$BE$2,$A$2&N$2,Navires!$B70:$BE70)/0.54*IF($AB70>$B70,$B70/$AB70,1) -> 0 | O70: =SUMIF(Navires!$B$2:$BE$2,$A$2&O$2,Navires!$B70:$BE70)/0.54*IF($AB70>$B70,$B70/$AB70,1) -> 0 | Q70: =SUMIF(Navires!$B$2:$BE$2,$A$2&Q$2,Navires!$B70:$BE70)/0.54*IF($AB70>$B70,$B70/$AB70,1) -> 0 | R70: =SUMIF(Navires!$B$2:$BE$2,$A$2&R$2,Navires!$B70:$BE70)/0.54*IF($AB70>$B70,$B70/$AB70,1) -> 0 | S70: =SUMIF(Navires!$B$2:$BE$2,$A$2&S$2,Navires!$B70:$BE70)/0.54*IF($AB70>$B70,$B70/$AB70,1) -> 0 | T70: =SUMIF(Navires!$B$2:$BE$2,$A$2&T$2,Navires!$B70:$BE70)/0.54*IF($AB70>$B70,$B70/$AB70,1) -> 0 | U70: =SUMIF(Navires!$B$2:$BE$2,$A$2&U$2,Navires!$B70:$BE70)/0.54*IF($AB70>$B70,$B70/$AB70,1) -> 0 | V70: =SUMIF(Navires!$B$2:$BE$2,$A$2&V$2,Navires!$B70:$BE70)/0.54*IF($AB70>$B70,$B70/$AB70,1) -> 0 | W70: =SUMIF(Navires!$B$2:$BE$2,$A$2&W$2,Navires!$B70:$BE70)/0.54*IF($AB70>$B70,$B70/$AB70,1) -> 0 | X70: =M70-SUM(N70:W70) -> 0 | Y70: =ProdBesoins!G72 -> 0 | AA70: =(SUMIF(Navires!$B$2:$BE$2,">29",Navires!$B70:$BE70)-SUMIF(Navires!$B$2:$BE$2,">39",Navires!$B70:$BE70))/0.54/(IF(ISERR((B70+'1'!P70+'2'!P70+'4'!P70+'5'!P70+'6'!P70+'7'!P70+'8'!P70+'9'!P70+'10'!P70)/B70),1,(B70+'1'!P70+'2'!P70+'4'!P70+'5'!P70+'6'!P70+'7'!P70+'8'!P70+'9'!P70+'10'!P70)/B70))+Y70 -> 0 | AB70: 0

Sheet 4
A1: Marsuif | B1: Production | C1: Importations de | M1: Dispo 1 | N1: Exportations vers | X1: Dispo 2 | Y1: Besoins | Z1: Couverture | AA1: Exp+Besoin
A2: 4 | C2: 1 | D2: 2 | E2: 3 | F2: 4 | G2: 5 | H2: 6 | I2: 7 | J2: 8 | K2: 9 | L2: 10 | N2: 1 | O2: 2 | P2: 3 | Q2: 4 | R2: 5 | S2: 6 | T2: 7 | U2: 8 | V2: 9 | W2: 10
A5: Bois | B5: =ProdBesoins!H7 -> 246.1714286 | C5: ='1'!Q5 -> 0 | D5: ='2'!Q5 -> 0 | E5: ='3'!Q5 -> 0 | G5: ='5'!Q5 -> 0 | H5: ='6'!Q5 -> 0 | I5: ='7'!Q5 -> 0 | J5: ='8'!Q5 -> 0 | K5: ='9'!Q5 -> 0 | L5: ='10'!U5 -> 0 | M5: =SUM(B5:L5) -> 246.1714286 | N5: =SUMIF(Navires!$B$2:$BE$2,$A$2&N$2,Navires!$B5:$BE5)/0.54*IF($AB5>$B5,$B5/$AB5,1) -> 0 | O5: =SUMIF(Navires!$B$2:$BE$2,$A$2&O$2,Navires!$B5:$BE5)/0.54*IF($AB5>$B5,$B5/$AB5,1) -> 0 | P5: =SUMIF(Navires!$B$2:$BE$2,$A$2&P$2,Navires!$B5:$BE5)/0.54*IF($AB5>$B5,$B5/$AB5,1) -> 0 | R5: =SUMIF(Navires!$B$2:$BE$2,$A$2&R$2,Navires!$B5:$BE5)/0.54*IF($AB5>$B5,$B5/$AB5,1) -> 0 | S5: =SUMIF(Navires!$B$2:$BE$2,$A$2&S$2,Navires!$B5:$BE5)/0.54*IF($AB5>$B5,$B5/$AB5,1) -> 0 | T5: =SUMIF(Navires!$B$2:$BE$2,$A$2&T$2,Navires!$B5:$BE5)/0.54*IF($AB5>$B5,$B5/$AB5,1) -> 0 | U5: =SUMIF(Navires!$B$2:$BE$2,$A$2&U$2,Navires!$B5:$BE5)/0.54*IF($AB5>$B5,$B5/$AB5,1) -> 0 | V5: =SUMIF(Navires!$B$2:$BE$2,$A$2&V$2,Navires!$B5:$BE5)/0.54*IF($AB5>$B5,$B5/$AB5,1) -> 0 | W5: =SUMIF(Navires!$B$2:$BE$2,$A$2&W$2,Navires!$B5:$BE5)/0.54*IF($AB5>$B5,$B5/$AB5,1) -> 0 | X5: =M5-SUM(N5:W5) -> 246.1714286 | Y5: =ProdBesoins!I7 -> 102.8571429 | Z5: =IF(Y5>0,X5/Y5,IF(X5>0,"Excédent","")) -> 2.393333333 | AA5: =(SUMIF(Navires!$B$2:$BE$2,">39",Navires!$B5:$BE5)-SUMIF(Navires!$B$2:$BE$2,">49",Navires!$B5:$BE5))/0.54/(IF(ISERR((B5+'1'!Q5+'2'!Q5+'3'!Q5+'5'!Q5+'6'!Q5+'7'!Q5+'8'!Q5+'9'!Q5+'10'!Q5)/B5),1,(B5+'1'!Q5+'2'!Q5+'3'!Q5+'5'!Q5+'6'!Q5+'7'!Q5+'8'!Q5+'9'!Q5+'10'!Q5)/B5))+Y5 -> 102.8571429 | AB5: 102.8571429
A6: Pierre | B6: =ProdBesoins!H8 -> 0 | C6: ='1'!Q6 -> 0 | D6: ='2'!Q6 -> 0 | E6: ='3'!Q6 -> 0 | G6: ='5'!Q6 -> 0 | H6: ='6'!Q6 -> 0 | I6: ='7'!Q6 -> 0 | J6: ='8'!Q6 -> 0 | K6: ='9'!Q6 -> 0 | L6: ='10'!U6 -> 0 | M6: 0 | N6: =SUMIF(Navires!$B$2:$BE$2,$A$2&N$2,Navires!$B6:$BE6)/0.54*IF($AB6>$B6,$B6/$AB6,1) -> 0 | O6: =SUMIF(Navires!$B$2:$BE$2,$A$2&O$2,Navires!$B6:$BE6)/0.54*IF($AB6>$B6,$B6/$AB6,1) -> 0 | P6: =SUMIF(Navires!$B$2:$BE$2,$A$2&P$2,Navires!$B6:$BE6)/0.54*IF($AB6>$B6,$B6/$AB6,1) -> 0 | R6: =SUMIF(Navires!$B$2:$BE$2,$A$2&R$2,Navires!$B6:$BE6)/0.54*IF($AB6>$B6,$B6/$AB6,1) -> 0 | S6: =SUMIF(Navires!$B$2:$BE$2,$A$2&S$2,Navires!$B6:$BE6)/0.54*IF($AB6>$B6,$B6/$AB6,1) -> 0 | T6: =SUMIF(Navires!$B$2:$BE$2,$A$2&T$2,Navires!$B6:$BE6)/0.54*IF($AB6>$B6,$B6/$AB6,1) -> 0 | U6: =SUMIF(Navires!$B$2:$BE$2,$A$2&U$2,Navires!$B6:$BE6)/0.54*IF($AB6>$B6,$B6/$AB6,1) -> 0 | V6: =SUMIF(Navires!$B$2:$BE$2,$A$2&V$2,Navires!$B6:$BE6)/0.54*IF($AB6>$B6,$B6/$AB6,1) -> 0 | W6: =SUMIF(Navires!$B$2:$BE$2,$A$2&W$2,Navires!$B6:$BE6)/0.54*IF($AB6>$B6,$B6/$AB6,1) -> 0 | X6: =M6-SUM(N6:W6) -> 0 | Y6: =ProdBesoins!I8 -> 0 | Z6: =IF(Y6>0,X6/Y6,IF(X6>0,"Excédent","")) ->  | AA6: =(SUMIF(Navires!$B$2:$BE$2,">39",Navires!$B6:$BE6)-SUMIF(Navires!$B$2:$BE$2,">49",Navires!$B6:$BE6))/0.54/(IF(ISERR((B6+'1'!Q6+'2'!Q6+'3'!Q6+'5'!Q6+'6'!Q6+'7'!Q6+'8'!Q6+'9'!Q6+'10'!Q6)/B6),1,(B6+'1'!Q6+'2'!Q6+'3'!Q6+'5'!Q6+'6'!Q6+'7'!Q6+'8'!Q6+'9'!Q6+'10'!Q6)/B6))+Y6 -> 0 | AB6: 0
A7: Charbon | B7: =ProdBesoins!H9 -> 34.28571429 | C7: ='1'!Q7 -> 0 | D7: ='2'!Q7 -> 0 | E7: ='3'!Q7 -> 0 | G7: ='5'!Q7 -> 0 | H7: ='6'!Q7 -> 0 | I7: ='7'!Q7 -> 0 | J7: ='8'!Q7 -> 0 | K7: ='9'!Q7 -> 0 | L7: ='10'!U7 -> 0 | M7: 34.28571429 | N7: =SUMIF(Navires!$B$2:$BE$2,$A$2&N$2,Navires!$B7:$BE7)/0.54*IF($AB7>$B7,$B7/$AB7,1) -> 0 | O7: =SUMIF(Navires!$B$2:$BE$2,$A$2&O$2,Navires!$B7:$BE7)/0.54*IF($AB7>$B7,$B7/$AB7,1) -> 0 | P7: =SUMIF(Navires!$B$2:$BE$2,$A$2&P$2,Navires!$B7:$BE7)/0.54*IF($AB7>$B7,$B7/$AB7,1) -> 0 | R7: =SUMIF(Navires!$B$2:$BE$2,$A$2&R$2,Navires!$B7:$BE7)/0.54*IF($AB7>$B7,$B7/$AB7,1) -> 34.28571429 | S7: =SUMIF(Navires!$B$2:$BE$2,$A$2&S$2,Navires!$B7:$BE7)/0.54*IF($AB7>$B7,$B7/$AB7,1) -> 0 | T7: =SUMIF(Navires!$B$2:$BE$2,$A$2&T$2,Navires!$B7:$BE7)/0.54*IF($AB7>$B7,$B7/$AB7,1) -> 0 | U7: =SUMIF(Navires!$B$2:$BE$2,$A$2&U$2,Navires!$B7:$BE7)/0.54*IF($AB7>$B7,$B7/$AB7,1) -> 0 | V7: =SUMIF(Navires!$B$2:$BE$2,$A$2&V$2,Navires!$B7:$BE7)/0.54*IF($AB7>$B7,$B7/$AB7,1) -> 0 | W7: =SUMIF(Navires!$B$2:$BE$2,$A$2&W$2,Navires!$B7:$BE7)/0.54*IF($AB7>$B7,$B7/$AB7,1) -> 0 | X7: 0 | Y7: =ProdBesoins!I9 -> 0 | Z7: =IF(Y7>0,X7/Y7,IF(X7>0,"Excédent","")) ->  | AA7: =(SUMIF(Navires!$B$2:$BE$2,">39",Navires!$B7:$BE7)-SUMIF(Navires!$B$2:$BE$2,">49",Navires!$B7:$BE7))/0.54/(IF(ISERR((B7+'1'!Q7+'2'!Q7+'3'!Q7+'5'!Q7+'6'!Q7+'7'!Q7+'8'!Q7+'9'!Q7+'10'!Q7)/B7),1,(B7+'1'!Q7+'2'!Q7+'3'!Q7+'5'!Q7+'6'!Q7+'7'!Q7+'8'!Q7+'9'!Q7+'10'!Q7)/B7))+Y7 -> 92.59259259 | AB7: 92.59259259
A8: Minerai de fer | B8: =ProdBesoins!H10 -> 0 | C8: ='1'!Q8 -> 0 | D8: ='2'!Q8 -> 0 | E8: ='3'!Q8 -> 0 | G8: ='5'!Q8 -> 0 | H8: ='6'!Q8 -> 0 | I8: ='7'!Q8 -> 0 | J8: ='8'!Q8 -> 0 | K8: ='9'!Q8 -> 0 | L8: ='10'!U8 -> 0 | M8: 0 | N8: =SUMIF(Navires!$B$2:$BE$2,$A$2&N$2,Navires!$B8:$BE8)/0.54*IF($AB8>$B8,$B8/$AB8,1) -> 0 | O8: =SUMIF(Navires!$B$2:$BE$2,$A$2&O$2,Navires!$B8:$BE8)/0.54*IF($AB8>$B8,$B8/$AB8,1) -> 0 | P8: =SUMIF(Navires!$B$2:$BE$2,$A$2&P$2,Navires!$B8:$BE8)/0.54*IF($AB8>$B8,$B8/$AB8,1) -> 0 | R8: =SUMIF(Navires!$B$2:$BE$2,$A$2&R$2,Navires!$B8:$BE8)/0.54*IF($AB8>$B8,$B8/$AB8,1) -> 0 | S8: =SUMIF(Navires!$B$2:$BE$2,$A$2&S$2,Navires!$B8:$BE8)/0.54*IF($AB8>$B8,$B8/$AB8,1) -> 0 | T8: =SUMIF(Navires!$B$2:$BE$2,$A$2&T$2,Navires!$B8:$BE8)/0.54*IF($AB8>$B8,$B8/$AB8,1) -> 0 | U8: =SUMIF(Navires!$B$2:$BE$2,$A$2&U$2,Navires!$B8:$BE8)/0.54*IF($AB8>$B8,$B8/$AB8,1) -> 0 | V8: =SUMIF(Navires!$B$2:$BE$2,$A$2&V$2,Navires!$B8:$BE8)/0.54*IF($AB8>$B8,$B8/$AB8,1) -> 0 | W8: =SUMIF(Navires!$B$2:$BE$2,$A$2&W$2,Navires!$B8:$BE8)/0.54*IF($AB8>$B8,$B8/$AB8,1) -> 0 | X8: 0 | Y8: =ProdBesoins!I10 -> 85.71428571 | Z8: 0 | AA8: =(SUMIF(Navires!$B$2:$BE$2,">39",Navires!$B8:$BE8)-SUMIF(Navires!$B$2:$BE$2,">49",Navires!$B8:$BE8))/0.54/(IF(ISERR((B8+'1'!Q8+'2'!Q8+'3'!Q8+'5'!Q8+'6'!Q8+'7'!Q8+'8'!Q8+'9'!Q8+'10'!Q8)/B8),1,(B8+'1'!Q8+'2'!Q8+'3'!Q8+'5'!Q8+'6'!Q8+'7'!Q8+'8'!Q8+'9'!Q8+'10'!Q8)/B8))+Y8 -> 85.71428571 | AB8: 85.71428571
A9: Fer | B9: =ProdBesoins!H11 -> 0 | C9: ='1'!Q9 -> 0 | D9: ='2'!Q9 -> 0 | E9: ='3'!Q9 -> 0 | G9: ='5'!Q9 -> 50.15673981 | H9: ='6'!Q9 -> 0 | I9: ='7'!Q9 -> 0 | J9: ='8'!Q9 -> 0 | K9: ='9'!Q9 -> 0 | L9: ='10'!U9 -> 0 | M9: 50.15673981 | N9: =SUMIF(Navires!$B$2:$BE$2,$A$2&N$2,Navires!$B9:$BE9)/0.54*IF($AB9>$B9,$B9/$AB9,1) -> 0 | O9: =SUMIF(Navires!$B$2:$BE$2,$A$2&O$2,Navires!$B9:$BE9)/0.54*IF($AB9>$B9,$B9/$AB9,1) -> 0 | P9: =SUMIF(Navires!$B$2:$BE$2,$A$2&P$2,Navires!$B9:$BE9)/0.54*IF($AB9>$B9,$B9/$AB9,1) -> 0 | R9: =SUMIF(Navires!$B$2:$BE$2,$A$2&R$2,Navires!$B9:$BE9)/0.54*IF($AB9>$B9,$B9/$AB9,1) -> 0 | S9: =SUMIF(Navires!$B$2:$BE$2,$A$2&S$2,Navires!$B9:$BE9)/0.54*IF($AB9>$B9,$B9/$AB9,1) -> 0 | T9: =SUMIF(Navires!$B$2:$BE$2,$A$2&T$2,Navires!$B9:$BE9)/0.54*IF($AB9>$B9,$B9/$AB9,1) -> 0 | U9: =SUMIF(Navires!$B$2:$BE$2,$A$2&U$2,Navires!$B9:$BE9)/0.54*IF($AB9>$B9,$B9/$AB9,1) -> 0 | V9: =SUMIF(Navires!$B$2:$BE$2,$A$2&V$2,Navires!$B9:$BE9)/0.54*IF($AB9>$B9,$B9/$AB9,1) -> 0 | W9: =SUMIF(Navires!$B$2:$BE$2,$A$2&W$2,Navires!$B9:$BE9)/0.54*IF($AB9>$B9,$B9/$AB9,1) -> 0 | X9: 50.15673981 | Y9: =ProdBesoins!I11 -> 85.71428571 | Z9: 0.5851619645 | AA9: =(SUMIF(Navires!$B$2:$BE$2,">39",Navires!$B9:$BE9)-SUMIF(Navires!$B$2:$BE$2,">49",Navires!$B9:$BE9))/0.54/(IF(ISERR((B9+'1'!Q9+'2'!Q9+'3'!Q9+'5'!Q9+'6'!Q9+'7'!Q9+'8'!Q9+'9'!Q9+'10'!Q9)/B9),1,(B9+'1'!Q9+'2'!Q9+'3'!Q9+'5'!Q9+'6'!Q9+'7'!Q9+'8'!Q9+'9'!Q9+'10'!Q9)/B9))+Y9 -> 85.71428571 | AB9: 85.71428571
A10: Outils | B10: =ProdBesoins!H12 -> 0 | C10: ='1'!Q10 -> 0 | D10: ='2'!Q10 -> 0 | E10: ='3'!Q10 -> 0 | G10: ='5'!Q10 -> 0 | H10: ='6'!Q10 -> 0 | I10: ='7'!Q10 -> 0 | J10: ='8'!Q10 -> 0 | K10: ='9'!Q10 -> 0 | L10: ='10'!U10 -> 0 | M10: 0 | N10: =SUMIF(Navires!$B$2:$BE$2,$A$2&N$2,Navires!$B10:$BE10)/0.54*IF($AB10>$B10,$B10/$AB10,1) -> 0 | O10: =SUMIF(Navires!$B$2:$BE$2,$A$2&O$2,Navires!$B10:$BE10)/0.54*IF($AB10>$B10,$B10/$AB10,1) -> 0 | P10: =SUMIF(Navires!$B$2:$BE$2,$A$2&P$2,Navires!$B10:$BE10)/0.54*IF($AB10>$B10,$B10/$AB10,1) -> 0 | R10: =SUMIF(Navires!$B$2:$BE$2,$A$2&R$2,Navires!$B10:$BE10)/0.54*IF($AB10>$B10,$B10/$AB10,1) -> 0 | S10: =SUMIF(Navires!$B$2:$BE$2,$A$2&S$2,Navires!$B10:$BE10)/0.54*IF($AB10>$B10,$B10/$AB10,1) -> 0 | T10: =SUMIF(Navires!$B$2:$BE$2,$A$2&T$2,Navires!$B10:$BE10)/0.54*IF($AB10>$B10,$B10/$AB10,1) -> 0 | U10: =SUMIF(Navires!$B$2:$BE$2,$A$2&U$2,Navires!$B10:$BE10)/0.54*IF($AB10>$B10,$B10/$AB10,1) -> 0 | V10: =SUMIF(Navires!$B$2:$BE$2,$A$2&V$2,Navires!$B10:$BE10)/0.54*IF($AB10>$B10,$B10/$AB10,1) -> 0 | W10: =SUMIF(Navires!$B$2:$BE$2,$A$2&W$2,Navires!$B10:$BE10)/0.54*IF($AB10>$B10,$B10/$AB10,1) -> 0 | X10: 0 | Y10: =ProdBesoins!I12 -> 0 | AA10: =(SUMIF(Navires!$B$2:$BE$2,">39",Navires!$B10:$BE10)-SUMIF(Navires!$B$2:$BE$2,">49",Navires!$B10:$BE10))/0.54/(IF(ISERR((B10+'1'!Q10+'2'!Q10+'3'!Q10+'5'!Q10+'6'!Q10+'7'!Q10+'8'!Q10+'9'!Q10+'10'!Q10)/B10),1,(B10+'1'!Q10+'2'!Q10+'3'!Q10+'5'!Q10+'6'!Q10+'7'!Q10+'8'!Q10+'9'!Q10+'10'!Q10)/B10))+Y10 -> 0 | AB10: 0
A11: Potasse | B11: =ProdBesoins!H13 -> 8.571428571 | C11: ='1'!Q11 -> 0 | D11: ='2'!Q11 -> 0 | E11: ='3'!Q11 -> 0 | G11: ='5'!Q11 -> 0 | H11: ='6'!Q11 -> 0 | I11: ='7'!Q11 -> 0 | J11: ='8'!Q11 -> 0 | K11: ='9'!Q11 -> 0 | L11: ='10'!U11 -> 0 | M11: 8.571428571 | N11: =SUMIF(Navires!$B$2:$BE$2,$A$2&N$2,Navires!$B11:$BE11)/0.54*IF($AB11>$B11,$B11/$AB11,1) -> 0 | O11: =SUMIF(Navires!$B$2:$BE$2,$A$2&O$2,Navires!$B11:$BE11)/0.54*IF($AB11>$B11,$B11/$AB11,1) -> 0 | P11: =SUMIF(Navires!$B$2:$BE$2,$A$2&P$2,Navires!$B11:$BE11)/0.54*IF($AB11>$B11,$B11/$AB11,1) -> 0 | R11: =SUMIF(Navires!$B$2:$BE$2,$A$2&R$2,Navires!$B11:$BE11)/0.54*IF($AB11>$B11,$B11/$AB11,1) -> 0 | S11: =SUMIF(Navires!$B$2:$BE$2,$A$2&S$2,Navires!$B11:$BE11)/0.54*IF($AB11>$B11,$B11/$AB11,1) -> 0 | T11: =SUMIF(Navires!$B$2:$BE$2,$A$2&T$2,Navires!$B11:$BE11)/0.54*IF($AB11>$B11,$B11/$AB11,1) -> 0 | U11: =SUMIF(Navires!$B$2:$BE$2,$A$2&U$2,Navires!$B11:$BE11)/0.54*IF($AB11>$B11,$B11/$AB11,1) -> 0 | V11: =SUMIF(Navires!$B$2:$BE$2,$A$2&V$2,Navires!$B11:$BE11)/0.54*IF($AB11>$B11,$B11/$AB11,1) -> 0 | W11: =SUMIF(Navires!$B$2:$BE$2,$A$2&W$2,Navires!$B11:$BE11)/0.54*IF($AB11>$B11,$B11/$AB11,1) -> 0 | X11: 8.571428571 | Y11: =ProdBesoins!I13 -> 5.714285714 | Z11: 1.5 | AA11: =(SUMIF(Navires!$B$2:$BE$2,">39",Navires!$B11:$BE11)-SUMIF(Navires!$B$2:$BE$2,">49",Navires!$B11:$BE11))/0.54/(IF(ISERR((B11+'1'!Q11+'2'!Q11+'3'!Q11+'5'!Q11+'6'!Q11+'7'!Q11+'8'!Q11+'9'!Q11+'10'!Q11)/B11),1,(B11+'1'!Q11+'2'!Q11+'3'!Q11+'5'!Q11+'6'!Q11+'7'!Q11+'8'!Q11+'9'!Q11+'10'!Q11)/B11))+Y11 -> 5.714285714 | AB11: 5.714285714
A12: Quartz | B12: =ProdBesoins!H14 -> 5.714285714 | C12: ='1'!Q12 -> 0 | D12: ='2'!Q12 -> 0 | E12: ='3'!Q12 -> 0 | G12: ='5'!Q12 -> 0 | H12: ='6'!Q12 -> 0 | I12: ='7'!Q12 -> 0 | J12: ='8'!Q12 -> 0 | K12: ='9'!Q12 -> 0 | L12: ='10'!U12 -> 0 | M12: 5.714285714 | N12: =SUMIF(Navires!$B$2:$BE$2,$A$2&N$2,Navires!$B12:$BE12)/0.54*IF($AB12>$B12,$B12/$AB12,1) -> 0 | O12: =SUMIF(Navires!$B$2:$BE$2,$A$2&O$2,Navires!$B12:$BE12)/0.54*IF($AB12>$B12,$B12/$AB12,1) -> 0 | P12: =SUMIF(Navires!$B$2:$BE$2,$A$2&P$2,Navires!$B12:$BE12)/0.54*IF($AB12>$B12,$B12/$AB12,1) -> 0 | R12: =SUMIF(Navires!$B$2:$BE$2,$A$2&R$2,Navires!$B12:$BE12)/0.54*IF($AB12>$B12,$B12/$AB12,1) -> 0 | S12: =SUMIF(Navires!$B$2:$BE$2,$A$2&S$2,Navires!$B12:$BE12)/0.54*IF($AB12>$B12,$B12/$AB12,1) -> 0 | T12: =SUMIF(Navires!$B$2:$BE$2,$A$2&T$2,Navires!$B12:$BE12)/0.54*IF($AB12>$B12,$B12/$AB12,1) -> 0 | U12: =SUMIF(Navires!$B$2:$BE$2,$A$2&U$2,Navires!$B12:$BE12)/0.54*IF($AB12>$B12,$B12/$AB12,1) -> 0 | V12: =SUMIF(Navires!$B$2:$BE$2,$A$2&V$2,Navires!$B12:$BE12)/0.54*IF($AB12>$B12,$B12/$AB12,1) -> 0 | W12: =SUMIF(Navires!$B$2:$BE$2,$A$2&W$2,Navires!$B12:$BE12)/0.54*IF($AB12>$B12,$B12/$AB12,1) -> 0 | X12: 5.714285714 | Y12: =ProdBesoins!I14 -> 5.714285714 | Z12: 1 | AA12: =(SUMIF(Navires!$B$2:$BE$2,">39",Navires!$B12:$BE12)-SUMIF(Navires!$B$2:$BE$2,">49",Navires!$B12:$BE12))/0.54/(IF(ISERR((B12+'1'!Q12+'2'!Q12+'3'!Q12+'5'!Q12+'6'!Q12+'7'!Q12+'8'!Q12+'9'!Q12+'10'!Q12)/B12),1,(B12+'1'!Q12+'2'!Q12+'3'!Q12+'5'!Q12+'6'!Q12+'7'!Q12+'8'!Q12+'9'!Q12+'10'!Q12)/B12))+Y12 -> 5.714285714 | AB12: 5.714285714
A13: Verre | B13: =ProdBesoins!H15 -> 5.714285714 | C13: ='1'!Q13 -> 0 | D13: ='2'!Q13 -> 0 | E13: ='3'!Q13 -> 0 | G13: ='5'!Q13 -> 0 | H13: ='6'!Q13 -> 0 | I13: ='7'!Q13 -> 0 | J13: ='8'!Q13 -> 0 | K13: ='9'!Q13 -> 0 | L13: ='10'!U13 -> 0 | M13: 5.714285714 | N13: =SUMIF(Navires!$B$2:$BE$2,$A$2&N$2,Navires!$B13:$BE13)/0.54*IF($AB13>$B13,$B13/$AB13,1) -> 0 | O13: =SUMIF(Navires!$B$2:$BE$2,$A$2&O$2,Navires!$B13:$BE13)/0.54*IF($AB13>$B13,$B13/$AB13,1) -> 0 | P13: =SUMIF(Navires!$B$2:$BE$2,$A$2&P$2,Navires!$B13:$BE13)/0.54*IF($AB13>$B13,$B13/$AB13,1) -> 0 | R13: =SUMIF(Navires!$B$2:$BE$2,$A$2&R$2,Navires!$B13:$BE13)/0.54*IF($AB13>$B13,$B13/$AB13,1) -> 0 | S13: =SUMIF(Navires!$B$2:$BE$2,$A$2&S$2,Navires!$B13:$BE13)/0.54*IF($AB13>$B13,$B13/$AB13,1) -> 0 | T13: =SUMIF(Navires!$B$2:$BE$2,$A$2&T$2,Navires!$B13:$BE13)/0.54*IF($AB13>$B13,$B13/$AB13,1) -> 0 | U13: =SUMIF(Navires!$B$2:$BE$2,$A$2&U$2,Navires!$B13:$BE13)/0.54*IF($AB13>$B13,$B13/$AB13,1) -> 0 | V13: =SUMIF(Navires!$B$2:$BE$2,$A$2&V$2,Navires!$B13:$BE13)/0.54*IF($AB13>$B13,$B13/$AB13,1) -> 0 | W13: =SUMIF(Navires!$B$2:$BE$2,$A$2&W$2,Navires!$B13:$BE13)/0.54*IF($AB13>$B13,$B13/$AB13,1) -> 0 | X13: 5.714285714 | Y13: =ProdBesoins!I15 -> 0 | Z13: Excédent | AA13: =(SUMIF(Navires!$B$2:$BE$2,">39",Navires!$B13:$BE13)-SUMIF(Navires!$B$2:$BE$2,">49",Navires!$B13:$BE13))/0.54/(IF(ISERR((B13+'1'!Q13+'2'!Q13+'3'!Q13+'5'!Q13+'6'!Q13+'7'!Q13+'8'!Q13+'9'!Q13+'10'!Q13)/B13),1,(B13+'1'!Q13+'2'!Q13+'3'!Q13+'5'!Q13+'6'!Q13+'7'!Q13+'8'!Q13+'9'!Q13+'10'!Q13)/B13))+Y13 -> 0 | AB13: 0
B14: =ProdBesoins!H16 -> 0 | Y14: =ProdBesoins!I16 -> 0
A15: Poisson | B15: =ProdBesoins!H17 -> 0 | C15: ='1'!Q15 -> 0 | D15: ='2'!Q15 -> 0 | E15: ='3'!Q15 -> 0 | G15: ='5'!Q15 -> 0 | H15: ='6'!Q15 -> 0 | I15: ='7'!Q15 -> 0 | J15: ='8'!Q15 -> 0 | K15: ='9'!Q15 -> 0 | L15: ='10'!Q15 -> 0 | M15: =SUM(B15:L15) -> 0 | N15: =SUMIF(Navires!$B$2:$BE$2,$A$2&N$2,Navires!$B15:$BE15)/0.54*IF($AB15>$B15,$B15/$AB15,1) -> 0 | O15: =SUMIF(Navires!$B$2:$BE$2,$A$2&O$2,Navires!$B15:$BE15)/0.54*IF($AB15>$B15,$B15/$AB15,1) -> 0 | P15: =SUMIF(Navires!$B$2:$BE$2,$A$2&P$2,Navires!$B15:$BE15)/0.54*IF($AB15>$B15,$B15/$AB15,1) -> 0 | R15: =SUMIF(Navires!$B$2:$BE$2,$A$2&R$2,Navires!$B15:$BE15)/0.54*IF($AB15>$B15,$B15/$AB15,1) -> 0 | S15: =SUMIF(Navires!$B$2:$BE$2,$A$2&S$2,Navires!$B15:$BE15)/0.54*IF($AB15>$B15,$B15/$AB15,1) -> 0 | T15: =SUMIF(Navires!$B$2:$BE$2,$A$2&T$2,Navires!$B15:$BE15)/0.54*IF($AB15>$B15,$B15/$AB15,1) -> 0 | U15: =SUMIF(Navires!$B$2:$BE$2,$A$2&U$2,Navires!$B15:$BE15)/0.54*IF($AB15>$B15,$B15/$AB15,1) -> 0 | V15: =SUMIF(Navires!$B$2:$BE$2,$A$2&V$2,Navires!$B15:$BE15)/0.54*IF($AB15>$B15,$B15/$AB15,1) -> 0 | W15: =SUMIF(Navires!$B$2:$BE$2,$A$2&W$2,Navires!$B15:$BE15)/0.54*IF($AB15>$B15,$B15/$AB15,1) -> 0 | X15: 0 | Y15: =ProdBesoins!I17 -> 0 | AA15: =(SUMIF(Navires!$B$2:$BE$2,">39",Navires!$B15:$BE15)-SUMIF(Navires!$B$2:$BE$2,">49",Navires!$B15:$BE15))/0.54/(IF(ISERR((B15+'1'!Q15+'2'!Q15+'3'!Q15+'5'!Q15+'6'!Q15+'7'!Q15+'8'!Q15+'9'!Q15+'10'!Q15)/B15),1,(B15+'1'!Q15+'2'!Q15+'3'!Q15+'5'!Q15+'6'!Q15+'7'!Q15+'8'!Q15+'9'!Q15+'10'!Q15)/B15))+Y15 -> 0 | AB15: 0
A16: Céréales | B16: =ProdBesoins!H18 -> 0 | C16: ='1'!Q16 -> 0 | D16: ='2'!Q16 -> 0 | E16: ='3'!Q16 -> 0 | G16: ='5'!Q16 -> 0 | H16: ='6'!Q16 -> 0 | I16: ='7'!Q16 -> 0 | J16: ='8'!Q16 -> 0 | K16: ='9'!Q16 -> 0 | L16: ='10'!Q16 -> 0 | M16: 0 | N16: =SUMIF(Navires!$B$2:$BE$2,$A$2&N$2,Navires!$B16:$BE16)/0.54*IF($AB16>$B16,$B16/$AB16,1) -> 0 | O16: =SUMIF(Navires!$B$2:$BE$2,$A$2&O$2,Navires!$B16:$BE16)/0.54*IF($AB16>$B16,$B16/$AB16,1) -> 0 | P16: =SUMIF(Navires!$B$2:$BE$2,$A$2&P$2,Navires!$B16:$BE16)/0.54*IF($AB16>$B16,$B16/$AB16,1) -> 0 | R16: =SUMIF(Navires!$B$2:$BE$2,$A$2&R$2,Navires!$B16:$BE16)/0.54*IF($AB16>$B16,$B16/$AB16,1) -> 0 | S16: =SUMIF(Navires!$B$2:$BE$2,$A$2&S$2,Navires!$B16:$BE16)/0.54*IF($AB16>$B16,$B16/$AB16,1) -> 0 | T16: =SUMIF(Navires!$B$2:$BE$2,$A$2&T$2,Navires!$B16:$BE16)/0.54*IF($AB16>$B16,$B16/$AB16,1) -> 0 | U16: =SUMIF(Navires!$B$2:$BE$2,$A$2&U$2,Navires!$B16:$BE16)/0.54*IF($AB16>$B16,$B16/$AB16,1) -> 0 | V16: =SUMIF(Navires!$B$2:$BE$2,$A$2&V$2,Navires!$B16:$BE16)/0.54*IF($AB16>$B16,$B16/$AB16,1) -> 0 | W16: =SUMIF(Navires!$B$2:$BE$2,$A$2&W$2,Navires!$B16:$BE16)/0.54*IF($AB16>$B16,$B16/$AB16,1) -> 0 | X16: 0 | Y16: =ProdBesoins!I18 -> 0 | AA16: =(SUMIF(Navires!$B$2:$BE$2,">39",Navires!$B16:$BE16)-SUMIF(Navires!$B$2:$BE$2,">49",Navires!$B16:$BE16))/0.54/(IF(ISERR((B16+'1'!Q16+'2'!Q16+'3'!Q16+'5'!Q16+'6'!Q16+'7'!Q16+'8'!Q16+'9'!Q16+'10'!Q16)/B16),1,(B16+'1'!Q16+'2'!Q16+'3'!Q16+'5'!Q16+'6'!Q16+'7'!Q16+'8'!Q16+'9'!Q16+'10'!Q16)/B16))+Y16 -> 0 | AB16: 0
A17: Farine | B17: =ProdBesoins!H19 -> 0 | C17: ='1'!Q17 -> 0 | D17: ='2'!Q17 -> 0 | E17: ='3'!Q17 -> 0 | G17: ='5'!Q17 -> 0 | H17: ='6'!Q17 -> 0 | I17: ='7'!Q17 -> 0 | J17: ='8'!Q17 -> 0 | K17: ='9'!Q17 -> 0 | L17: ='10'!Q17 -> 0 | M17: 0 | N17: =SUMIF(Navires!$B$2:$BE$2,$A$2&N$2,Navires!$B17:$BE17)/0.54*IF($AB17>$B17,$B17/$AB17,1) -> 0 | O17: =SUMIF(Navires!$B$2:$BE$2,$A$2&O$2,Navires!$B17:$BE17)/0.54*IF($AB17>$B17,$B17/$AB17,1) -> 0 | P17: =SUMIF(Navires!$B$2:$BE$2,$A$2&P$2,Navires!$B17:$BE17)/0.54*IF($AB17>$B17,$B17/$AB17,1) -> 0 | R17: =SUMIF(Navires!$B$2:$BE$2,$A$2&R$2,Navires!$B17:$BE17)/0.54*IF($AB17>$B17,$B17/$AB17,1) -> 0 | S17: =SUMIF(Navires!$B$2:$BE$2,$A$2&S$2,Navires!$B17:$BE17)/0.54*IF($AB17>$B17,$B17/$AB17,1) -> 0 | T17: =SUMIF(Navires!$B$2:$BE$2,$A$2&T$2,Navires!$B17:$BE17)/0.54*IF($AB17>$B17,$B17/$AB17,1) -> 0 | U17: =SUMIF(Navires!$B$2:$BE$2,$A$2&U$2,Navires!$B17:$BE17)/0.54*IF($AB17>$B17,$B17/$AB17,1) -> 0 | V17: =SUMIF(Navires!$B$2:$BE$2,$A$2&V$2,Navires!$B17:$BE17)/0.54*IF($AB17>$B17,$B17/$AB17,1) -> 0 | W17: =SUMIF(Navires!$B$2:$BE$2,$A$2&W$2,Navires!$B17:$BE17)/0.54*IF($AB17>$B17,$B17/$AB17,1) -> 0 | X17: 0 | Y17: =ProdBesoins!I19 -> 0 | AA17: =(SUMIF(Navires!$B$2:$BE$2,">39",Navires!$B17:$BE17)-SUMIF(Navires!$B$2:$BE$2,">49",Navires!$B17:$BE17))/0.54/(IF(ISERR((B17+'1'!Q17+'2'!Q17+'3'!Q17+'5'!Q17+'6'!Q17+'7'!Q17+'8'!Q17+'9'!Q17+'10'!Q17)/B17),1,(B17+'1'!Q17+'2'!Q17+'3'!Q17+'5'!Q17+'6'!Q17+'7'!Q17+'8'!Q17+'9'!Q17+'10'!Q17)/B17))+Y17 -> 0 | AB17: 0
A18: Pain | B18: =ProdBesoins!H20 -> 0 | C18: ='1'!Q18 -> 0 | D18: ='2'!Q18 -> 0 | E18: ='3'!Q18 -> 0 | G18: ='5'!Q18 -> 0 | H18: ='6'!Q18 -> 0 | I18: ='7'!Q18 -> 0 | J18: ='8'!Q18 -> 0 | K18: ='9'!Q18 -> 0 | L18: ='10'!Q18 -> 0 | M18: 0 | N18: =SUMIF(Navires!$B$2:$BE$2,$A$2&N$2,Navires!$B18:$BE18)/0.54*IF($AB18>$B18,$B18/$AB18,1) -> 0 | O18: =SUMIF(Navires!$B$2:$BE$2,$A$2&O$2,Navires!$B18:$BE18)/0.54*IF($AB18>$B18,$B18/$AB18,1) -> 0 | P18: =SUMIF(Navires!$B$2:$BE$2,$A$2&P$2,Navires!$B18:$BE18)/0.54*IF($AB18>$B18,$B18/$AB18,1) -> 0 | R18: =SUMIF(Navires!$B$2:$BE$2,$A$2&R$2,Navires!$B18:$BE18)/0.54*IF($AB18>$B18,$B18/$AB18,1) -> 0 | S18: =SUMIF(Navires!$B$2:$BE$2,$A$2&S$2,Navires!$B18:$BE18)/0.54*IF($AB18>$B18,$B18/$AB18,1) -> 0 | T18: =SUMIF(Navires!$B$2:$BE$2,$A$2&T$2,Navires!$B18:$BE18)/0.54*IF($AB18>$B18,$B18/$AB18,1) -> 0 | U18: =SUMIF(Navires!$B$2:$BE$2,$A$2&U$2,Navires!$B18:$BE18)/0.54*IF($AB18>$B18,$B18/$AB18,1) -> 0 | V18: =SUMIF(Navires!$B$2:$BE$2,$A$2&V$2,Navires!$B18:$BE18)/0.54*IF($AB18>$B18,$B18/$AB18,1) -> 0 | W18: =SUMIF(Navires!$B$2:$BE$2,$A$2&W$2,Navires!$B18:$BE18)/0.54*IF($AB18>$B18,$B18/$AB18,1) -> 0 | X18: 0 | Y18: =ProdBesoins!I20 -> 0 | AA18: =(SUMIF(Navires!$B$2:$BE$2,">39",Navires!$B18:$BE18)-SUMIF(Navires!$B$2:$BE$2,">49",Navires!$B18:$BE18))/0.54/(IF(ISERR((B18+'1'!Q18+'2'!Q18+'3'!Q18+'5'!Q18+'6'!Q18+'7'!Q18+'8'!Q18+'9'!Q18+'10'!Q18)/B18),1,(B18+'1'!Q18+'2'!Q18+'3'!Q18+'5'!Q18+'6'!Q18+'7'!Q18+'8'!Q18+'9'!Q18+'10'!Q18)/B18))+Y18 -> 0 | AB18: 0
A19: Epices | B19: =ProdBesoins!H21 -> 0 | C19: ='1'!Q19 -> 0 | D19: ='2'!Q19 -> 0 | E19: ='3'!Q19 -> 0 | G19: ='5'!Q19 -> 0 | H19: ='6'!Q19 -> 0 | I19: ='7'!Q19 -> 0 | J19: ='8'!Q19 -> 0 | K19: ='9'!Q19 -> 0 | L19: ='10'!Q19 -> 0 | M19: =SUM(B19:K19) -> 0 | N19: =SUMIF(Navires!$B$2:$BE$2,$A$2&N$2,Navires!$B19:$BE19)/0.54*IF($AB19>$B19,$B19/$AB19,1) -> 0 | O19: =SUMIF(Navires!$B$2:$BE$2,$A$2&O$2,Navires!$B19:$BE19)/0.54*IF($AB19>$B19,$B19/$AB19,1) -> 0 | P19: =SUMIF(Navires!$B$2:$BE$2,$A$2&P$2,Navires!$B19:$BE19)/0.54*IF($AB19>$B19,$B19/$AB19,1) -> 0 | R19: =SUMIF(Navires!$B$2:$BE$2,$A$2&R$2,Navires!$B19:$BE19)/0.54*IF($AB19>$B19,$B19/$AB19,1) -> 0 | S19: =SUMIF(Navires!$B$2:$BE$2,$A$2&S$2,Navires!$B19:$BE19)/0.54*IF($AB19>$B19,$B19/$AB19,1) -> 0 | T19: =SUMIF(Navires!$B$2:$BE$2,$A$2&T$2,Navires!$B19:$BE19)/0.54*IF($AB19>$B19,$B19/$AB19,1) -> 0 | U19: =SUMIF(Navires!$B$2:$BE$2,$A$2&U$2,Navires!$B19:$BE19)/0.54*IF($AB19>$B19,$B19/$AB19,1) -> 0 | V19: =SUMIF(Navires!$B$2:$BE$2,$A$2&V$2,Navires!$B19:$BE19)/0.54*IF($AB19>$B19,$B19/$AB19,1) -> 0 | W19: =SUMIF(Navires!$B$2:$BE$2,$A$2&W$2,Navires!$B19:$BE19)/0.54*IF($AB19>$B19,$B19/$AB19,1) -> 0 | X19: 0 | Y19: =ProdBesoins!I21 -> 0 | AA19: =(SUMIF(Navires!$B$2:$BE$2,">39",Navires!$B19:$BE19)-SUMIF(Navires!$B$2:$BE$2,">49",Navires!$B19:$BE19))/0.54/(IF(ISERR((B19+'1'!Q19+'2'!Q19+'3'!Q19+'5'!Q19+'6'!Q19+'7'!Q19+'8'!Q19+'9'!Q19+'10'!Q19)/B19),1,(B19+'1'!Q19+'2'!Q19+'3'!Q19+'5'!Q19+'6'!Q19+'7'!Q19+'8'!Q19+'9'!Q19+'10'!Q19)/B19))+Y19 -> 0 | AB19: 0
A20: Charbon | B20: =ProdBesoins!H22 -> 34.28571429 | C20: =FIXED(C$7,0) -> 0 | D20: 0 | E20: 0 | G20: 0 | H20: 0 | I20: 0 | J20: 0 | K20: 0 | L20: 0 | M20: =FIXED(M$7,2) -> 34.29 | N20: =FIXED(N$7,0) -> 0 | O20: 0 | P20: 0 | R20: 34 | S20: 0 | T20: 0 | U20: 0 | V20: 0 | W20: 0 | X20: =FIXED(X$7,2) -> 0.00 | Y20: =ProdBesoins!I22 -> 0
A21: Saumure | B21: =ProdBesoins!H23 -> 0 | C21: ='1'!Q21 -> 0 | D21: ='2'!Q21 -> 0 | E21: ='3'!Q21 -> 0 | G21: ='5'!Q21 -> 0 | H21: ='6'!Q21 -> 0 | I21: ='7'!Q21 -> 0 | J21: ='8'!Q21 -> 0 | K21: ='9'!Q21 -> 0 | L21: ='10'!Q21 -> 0 | M21: =SUM(B21:L21) -> 0 | N21: =SUMIF(Navires!$B$2:$BE$2,$A$2&N$2,Navires!$B21:$BE21)/0.54*IF($AB21>$B21,$B21/$AB21,1) -> 0 | O21: =SUMIF(Navires!$B$2:$BE$2,$A$2&O$2,Navires!$B21:$BE21)/0.54*IF($AB21>$B21,$B21/$AB21,1) -> 0 | P21: =SUMIF(Navires!$B$2:$BE$2,$A$2&P$2,Navires!$B21:$BE21)/0.54*IF($AB21>$B21,$B21/$AB21,1) -> 0 | R21: =SUMIF(Navires!$B$2:$BE$2,$A$2&R$2,Navires!$B21:$BE21)/0.54*IF($AB21>$B21,$B21/$AB21,1) -> 0 | S21: =SUMIF(Navires!$B$2:$BE$2,$A$2&S$2,Navires!$B21:$BE21)/0.54*IF($AB21>$B21,$B21/$AB21,1) -> 0 | T21: =SUMIF(Navires!$B$2:$BE$2,$A$2&T$2,Navires!$B21:$BE21)/0.54*IF($AB21>$B21,$B21/$AB21,1) -> 0 | U21: =SUMIF(Navires!$B$2:$BE$2,$A$2&U$2,Navires!$B21:$BE21)/0.54*IF($AB21>$B21,$B21/$AB21,1) -> 0 | V21: =SUMIF(Navires!$B$2:$BE$2,$A$2&V$2,Navires!$B21:$BE21)/0.54*IF($AB21>$B21,$B21/$AB21,1) -> 0 | W21: =SUMIF(Navires!$B$2:$BE$2,$A$2&W$2,Navires!$B21:$BE21)/0.54*IF($AB21>$B21,$B21/$AB21,1) -> 0 | X21: 0 | Y21: =ProdBesoins!I23 -> 0 | AA21: =(SUMIF(Navires!$B$2:$BE$2,">39",Navires!$B21:$BE21)-SUMIF(Navires!$B$2:$BE$2,">49",Navires!$B21:$BE21))/0.54/(IF(ISERR((B21+'1'!Q21+'2'!Q21+'3'!Q21+'5'!Q21+'6'!Q21+'7'!Q21+'8'!Q21+'9'!Q21+'10'!Q21)/B21),1,(B21+'1'!Q21+'2'!Q21+'3'!Q21+'5'!Q21+'6'!Q21+'7'!Q21+'8'!Q21+'9'!Q21+'10'!Q21)/B21))+Y21 -> 0 | AB21: 0
A22: Sel | B22: =ProdBesoins!H24 -> 0 | C22: ='1'!Q22 -> 0 | D22: ='2'!Q22 -> 0 | E22: ='3'!Q22 -> 0 | G22: ='5'!Q22 -> 0 | H22: ='6'!Q22 -> 0 | I22: ='7'!Q22 -> 0 | J22: ='8'!Q22 -> 0 | K22: ='9'!Q22 -> 0 | L22: ='10'!Q22 -> 0 | M22: =SUM(B22:L22) -> 0 | N22: =SUMIF(Navires!$B$2:$BE$2,$A$2&N$2,Navires!$B22:$BE22)/0.54*IF($AB22>$B22,$B22/$AB22,1) -> 0 | O22: =SUMIF(Navires!$B$2:$BE$2,$A$2&O$2,Navires!$B22:$BE22)/0.54*IF($AB22>$B22,$B22/$AB22,1) -> 0 | P22: =SUMIF(Navires!$B$2:$BE$2,$A$2&P$2,Navires!$B22:$BE22)/0.54*IF($AB22>$B22,$B22/$AB22,1) -> 0 | R22: =SUMIF(Navires!$B$2:$BE$2,$A$2&R$2,Navires!$B22:$BE22)/0.54*IF($AB22>$B22,$B22/$AB22,1) -> 0 | S22: =SUMIF(Navires!$B$2:$BE$2,$A$2&S$2,Navires!$B22:$BE22)/0.54*IF($AB22>$B22,$B22/$AB22,1) -> 0 | T22: =SUMIF(Navires!$B$2:$BE$2,$A$2&T$2,Navires!$B22:$BE22)/0.54*IF($AB22>$B22,$B22/$AB22,1) -> 0 | U22: =SUMIF(Navires!$B$2:$BE$2,$A$2&U$2,Navires!$B22:$BE22)/0.54*IF($AB22>$B22,$B22/$AB22,1) -> 0 | V22: =SUMIF(Navires!$B$2:$BE$2,$A$2&V$2,Navires!$B22:$BE22)/0.54*IF($AB22>$B22,$B22/$AB22,1) -> 0 | W22: =SUMIF(Navires!$B$2:$BE$2,$A$2&W$2,Navires!$B22:$BE22)/0.54*IF($AB22>$B22,$B22/$AB22,1) -> 0 | X22: 0 | Y22: =ProdBesoins!I24 -> 0 | AA22: =(SUMIF(Navires!$B$2:$BE$2,">39",Navires!$B22:$BE22)-SUMIF(Navires!$B$2:$BE$2,">49",Navires!$B22:$BE22))/0.54/(IF(ISERR((B22+'1'!Q22+'2'!Q22+'3'!Q22+'5'!Q22+'6'!Q22+'7'!Q22+'8'!Q22+'9'!Q22+'10'!Q22)/B22),1,(B22+'1'!Q22+'2'!Q22+'3'!Q22+'5'!Q22+'6'!Q22+'7'!Q22+'8'!Q22+'9'!Q22+'10'!Q22)/B22))+Y22 -> 0 | AB22: 0
A23: Bétail | B23: =ProdBesoins!H25 -> 0 | C23: ='1'!Q23 -> 0 | D23: ='2'!Q23 -> 0 | E23: ='3'!Q23 -> 0 | G23: ='5'!Q23 -> 0 | H23: ='6'!Q23 -> 0 | I23: ='7'!Q23 -> 0 | J23: ='8'!Q23 -> 0 | K23: ='9'!Q23 -> 0 | L23: ='10'!Q23 -> 0 | M23: 0 | N23: =SUMIF(Navires!$B$2:$BE$2,$A$2&N$2,Navires!$B23:$BE23)/0.54*IF($AB23>$B23,$B23/$AB23,1) -> 0 | O23: =SUMIF(Navires!$B$2:$BE$2,$A$2&O$2,Navires!$B23:$BE23)/0.54*IF($AB23>$B23,$B23/$AB23,1) -> 0 | P23: =SUMIF(Navires!$B$2:$BE$2,$A$2&P$2,Navires!$B23:$BE23)/0.54*IF($AB23>$B23,$B23/$AB23,1) -> 0 | R23: =SUMIF(Navires!$B$2:$BE$2,$A$2&R$2,Navires!$B23:$BE23)/0.54*IF($AB23>$B23,$B23/$AB23,1) -> 0 | S23: =SUMIF(Navires!$B$2:$BE$2,$A$2&S$2,Navires!$B23:$BE23)/0.54*IF($AB23>$B23,$B23/$AB23,1) -> 0 | T23: =SUMIF(Navires!$B$2:$BE$2,$A$2&T$2,Navires!$B23:$BE23)/0.54*IF($AB23>$B23,$B23/$AB23,1) -> 0 | U23: =SUMIF(Navires!$B$2:$BE$2,$A$2&U$2,Navires!$B23:$BE23)/0.54*IF($AB23>$B23,$B23/$AB23,1) -> 0 | V23: =SUMIF(Navires!$B$2:$BE$2,$A$2&V$2,Navires!$B23:$BE23)/0.54*IF($AB23>$B23,$B23/$AB23,1) -> 0 | W23: =SUMIF(Navires!$B$2:$BE$2,$A$2&W$2,Navires!$B23:$BE23)/0.54*IF($AB23>$B23,$B23/$AB23,1) -> 0 | X23: 0 | Y23: =ProdBesoins!I25 -> 0 | AA23: =(SUMIF(Navires!$B$2:$BE$2,">39",Navires!$B23:$BE23)-SUMIF(Navires!$B$2:$BE$2,">49",Navires!$B23:$BE23))/0.54/(IF(ISERR((B23+'1'!Q23+'2'!Q23+'3'!Q23+'5'!Q23+'6'!Q23+'7'!Q23+'8'!Q23+'9'!Q23+'10'!Q23)/B23),1,(B23+'1'!Q23+'2'!Q23+'3'!Q23+'5'!Q23+'6'!Q23+'7'!Q23+'8'!Q23+'9'!Q23+'10'!Q23)/B23))+Y23 -> 0 | AB23: 0
A24: Viande | B24: =ProdBesoins!H26 -> 0 | C24: ='1'!Q24 -> 0 | D24: ='2'!Q24 -> 0 | E24: ='3'!Q24 -> 0 | G24: ='5'!Q24 -> 0 | H24: ='6'!Q24 -> 0 | I24: ='7'!Q24 -> 0 | J24: ='8'!Q24 -> 0 | K24: ='9'!Q24 -> 0 | L24: ='10'!Q24 -> 0 | M24: 0 | N24: =SUMIF(Navires!$B$2:$BE$2,$A$2&N$2,Navires!$B24:$BE24)/0.54*IF($AB24>$B24,$B24/$AB24,1) -> 0 | O24: =SUMIF(Navires!$B$2:$BE$2,$A$2&O$2,Navires!$B24:$BE24)/0.54*IF($AB24>$B24,$B24/$AB24,1) -> 0 | P24: =SUMIF(Navires!$B$2:$BE$2,$A$2&P$2,Navires!$B24:$BE24)/0.54*IF($AB24>$B24,$B24/$AB24,1) -> 0 | R24: =SUMIF(Navires!$B$2:$BE$2,$A$2&R$2,Navires!$B24:$BE24)/0.54*IF($AB24>$B24,$B24/$AB24,1) -> 0 | S24: =SUMIF(Navires!$B$2:$BE$2,$A$2&S$2,Navires!$B24:$BE24)/0.54*IF($AB24>$B24,$B24/$AB24,1) -> 0 | T24: =SUMIF(Navires!$B$2:$BE$2,$A$2&T$2,Navires!$B24:$BE24)/0.54*IF($AB24>$B24,$B24/$AB24,1) -> 0 | U24: =SUMIF(Navires!$B$2:$BE$2,$A$2&U$2,Navires!$B24:$BE24)/0.54*IF($AB24>$B24,$B24/$AB24,1) -> 0 | V24: =SUMIF(Navires!$B$2:$BE$2,$A$2&V$2,Navires!$B24:$BE24)/0.54*IF($AB24>$B24,$B24/$AB24,1) -> 0 | W24: =SUMIF(Navires!$B$2:$BE$2,$A$2&W$2,Navires!$B24:$BE24)/0.54*IF($AB24>$B24,$B24/$AB24,1) -> 0 | X24: 0 | Y24: =ProdBesoins!I26 -> 0 | AA24: =(SUMIF(Navires!$B$2:$BE$2,">39",Navires!$B24:$BE24)-SUMIF(Navires!$B$2:$BE$2,">49",Navires!$B24:$BE24))/0.54/(IF(ISERR((B24+'1'!Q24+'2'!Q24+'3'!Q24+'5'!Q24+'6'!Q24+'7'!Q24+'8'!Q24+'9'!Q24+'10'!Q24)/B24),1,(B24+'1'!Q24+'2'!Q24+'3'!Q24+'5'!Q24+'6'!Q24+'7'!Q24+'8'!Q24+'9'!Q24+'10'!Q24)/B24))+Y24 -> 0 | AB24: 0
B25: =ProdBesoins!H27 -> 0 | Y25: =ProdBesoins!I27 -> 0
A26: Lait | B26: =ProdBesoins!H28 -> 0 | C26: ='1'!Q26 -> 0 | D26: ='2'!Q26 -> 0 | E26: ='3'!Q26 -> 0 | G26: ='5'!Q26 -> 0 | H26: ='6'!Q26 -> 0 | I26: ='7'!Q26 -> 0 | J26: ='8'!Q26 -> 0 | K26: ='9'!Q26 -> 0 | L26: ='10'!Q26 -> 0 | M26: =SUM(B26:L26) -> 0 | N26: =SUMIF(Navires!$B$2:$BE$2,$A$2&N$2,Navires!$B26:$BE26)/0.54*IF($AB26>$B26,$B26/$AB26,1) -> 0 | O26: =SUMIF(Navires!$B$2:$BE$2,$A$2&O$2,Navires!$B26:$BE26)/0.54*IF($AB26>$B26,$B26/$AB26,1) -> 0 | P26: =SUMIF(Navires!$B$2:$BE$2,$A$2&P$2,Navires!$B26:$BE26)/0.54*IF($AB26>$B26,$B26/$AB26,1) -> 0 | R26: =SUMIF(Navires!$B$2:$BE$2,$A$2&R$2,Navires!$B26:$BE26)/0.54*IF($AB26>$B26,$B26/$AB26,1) -> 0 | S26: =SUMIF(Navires!$B$2:$BE$2,$A$2&S$2,Navires!$B26:$BE26)/0.54*IF($AB26>$B26,$B26/$AB26,1) -> 0 | T26: =SUMIF(Navires!$B$2:$BE$2,$A$2&T$2,Navires!$B26:$BE26)/0.54*IF($AB26>$B26,$B26/$AB26,1) -> 0 | U26: =SUMIF(Navires!$B$2:$BE$2,$A$2&U$2,Navires!$B26:$BE26)/0.54*IF($AB26>$B26,$B26/$AB26,1) -> 0 | V26: =SUMIF(Navires!$B$2:$BE$2,$A$2&V$2,Navires!$B26:$BE26)/0.54*IF($AB26>$B26,$B26/$AB26,1) -> 0 | W26: =SUMIF(Navires!$B$2:$BE$2,$A$2&W$2,Navires!$B26:$BE26)/0.54*IF($AB26>$B26,$B26/$AB26,1) -> 0 | X26: 0 | Y26: =ProdBesoins!I28 -> 0 | AA26: =(SUMIF(Navires!$B$2:$BE$2,">39",Navires!$B26:$BE26)-SUMIF(Navires!$B$2:$BE$2,">49",Navires!$B26:$BE26))/0.54/(IF(ISERR((B26+'1'!Q26+'2'!Q26+'3'!Q26+'5'!Q26+'6'!Q26+'7'!Q26+'8'!Q26+'9'!Q26+'10'!Q26)/B26),1,(B26+'1'!Q26+'2'!Q26+'3'!Q26+'5'!Q26+'6'!Q26+'7'!Q26+'8'!Q26+'9'!Q26+'10'!Q26)/B26))+Y26 -> 0 | AB26: 0
A27: Pommes | B27: =ProdBesoins!H29 -> 0 | C27: ='1'!Q27 -> 0 | D27: ='2'!Q27 -> 0 | E27: ='3'!Q27 -> 0 | G27: ='5'!Q27 -> 0 | H27: ='6'!Q27 -> 0 | I27: ='7'!Q27 -> 0 | J27: ='8'!Q27 -> 0 | K27: ='9'!Q27 -> 0 | L27: ='10'!Q27 -> 0 | M27: 0 | N27: =SUMIF(Navires!$B$2:$BE$2,$A$2&N$2,Navires!$B27:$BE27)/0.54*IF($AB27>$B27,$B27/$AB27,1) -> 0 | O27: =SUMIF(Navires!$B$2:$BE$2,$A$2&O$2,Navires!$B27:$BE27)/0.54*IF($AB27>$B27,$B27/$AB27,1) -> 0 | P27: =SUMIF(Navires!$B$2:$BE$2,$A$2&P$2,Navires!$B27:$BE27)/0.54*IF($AB27>$B27,$B27/$AB27,1) -> 0 | R27: =SUMIF(Navires!$B$2:$BE$2,$A$2&R$2,Navires!$B27:$BE27)/0.54*IF($AB27>$B27,$B27/$AB27,1) -> 0 | S27: =SUMIF(Navires!$B$2:$BE$2,$A$2&S$2,Navires!$B27:$BE27)/0.54*IF($AB27>$B27,$B27/$AB27,1) -> 0 | T27: =SUMIF(Navires!$B$2:$BE$2,$A$2&T$2,Navires!$B27:$BE27)/0.54*IF($AB27>$B27,$B27/$AB27,1) -> 0 | U27: =SUMIF(Navires!$B$2:$BE$2,$A$2&U$2,Navires!$B27:$BE27)/0.54*IF($AB27>$B27,$B27/$AB27,1) -> 0 | V27: =SUMIF(Navires!$B$2:$BE$2,$A$2&V$2,Navires!$B27:$BE27)/0.54*IF($AB27>$B27,$B27/$AB27,1) -> 0 | W27: =SUMIF(Navires!$B$2:$BE$2,$A$2&W$2,Navires!$B27:$BE27)/0.54*IF($AB27>$B27,$B27/$AB27,1) -> 0 | X27: 0 | Y27: =ProdBesoins!I29 -> 0 | AA27: =(SUMIF(Navires!$B$2:$BE$2,">39",Navires!$B27:$BE27)-SUMIF(Navires!$B$2:$BE$2,">49",Navires!$B27:$BE27))/0.54/(IF(ISERR((B27+'1'!Q27+'2'!Q27+'3'!Q27+'5'!Q27+'6'!Q27+'7'!Q27+'8'!Q27+'9'!Q27+'10'!Q27)/B27),1,(B27+'1'!Q27+'2'!Q27+'3'!Q27+'5'!Q27+'6'!Q27+'7'!Q27+'8'!Q27+'9'!Q27+'10'!Q27)/B27))+Y27 -> 0 | AB27: 0
A28: Cidre | B28: =ProdBesoins!H30 -> 0 | C28: ='1'!Q28 -> 0 | D28: ='2'!Q28 -> 0 | E28: ='3'!Q28 -> 0 | G28: ='5'!Q28 -> 0 | H28: ='6'!Q28 -> 0 | I28: ='7'!Q28 -> 0 | J28: ='8'!Q28 -> 0 | K28: ='9'!Q28 -> 0 | L28: ='10'!Q28 -> 0 | M28: 0 | N28: =SUMIF(Navires!$B$2:$BE$2,$A$2&N$2,Navires!$B28:$BE28)/0.54*IF($AB28>$B28,$B28/$AB28,1) -> 0 | O28: =SUMIF(Navires!$B$2:$BE$2,$A$2&O$2,Navires!$B28:$BE28)/0.54*IF($AB28>$B28,$B28/$AB28,1) -> 0 | P28: =SUMIF(Navires!$B$2:$BE$2,$A$2&P$2,Navires!$B28:$BE28)/0.54*IF($AB28>$B28,$B28/$AB28,1) -> 0 | R28: =SUMIF(Navires!$B$2:$BE$2,$A$2&R$2,Navires!$B28:$BE28)/0.54*IF($AB28>$B28,$B28/$AB28,1) -> 0 | S28: =SUMIF(Navires!$B$2:$BE$2,$A$2&S$2,Navires!$B28:$BE28)/0.54*IF($AB28>$B28,$B28/$AB28,1) -> 0 | T28: =SUMIF(Navires!$B$2:$BE$2,$A$2&T$2,Navires!$B28:$BE28)/0.54*IF($AB28>$B28,$B28/$AB28,1) -> 0 | U28: =SUMIF(Navires!$B$2:$BE$2,$A$2&U$2,Navires!$B28:$BE28)/0.54*IF($AB28>$B28,$B28/$AB28,1) -> 0 | V28: =SUMIF(Navires!$B$2:$BE$2,$A$2&V$2,Navires!$B28:$BE28)/0.54*IF($AB28>$B28,$B28/$AB28,1) -> 0 | W28: =SUMIF(Navires!$B$2:$BE$2,$A$2&W$2,Navires!$B28:$BE28)/0.54*IF($AB28>$B28,$B28/$AB28,1) -> 0 | X28: 0 | Y28: =ProdBesoins!I30 -> 0 | AA28: =(SUMIF(Navires!$B$2:$BE$2,">39",Navires!$B28:$BE28)-SUMIF(Navires!$B$2:$BE$2,">49",Navires!$B28:$BE28))/0.54/(IF(ISERR((B28+'1'!Q28+'2'!Q28+'3'!Q28+'5'!Q28+'6'!Q28+'7'!Q28+'8'!Q28+'9'!Q28+'10'!Q28)/B28),1,(B28+'1'!Q28+'2'!Q28+'3'!Q28+'5'!Q28+'6'!Q28+'7'!Q28+'8'!Q28+'9'!Q28+'10'!Q28)/B28))+Y28 -> 0 | AB28: 0
A29: Herbes | B29: =ProdBesoins!H31 -> 0 | C29: ='1'!Q29 -> 0 | D29: ='2'!Q29 -> 0 | E29: ='3'!Q29 -> 0 | G29: ='5'!Q29 -> 0 | H29: ='6'!Q29 -> 0 | I29: ='7'!Q29 -> 0 | J29: ='8'!Q29 -> 0 | K29: ='9'!Q29 -> 0 | L29: ='10'!Q29 -> 0 | M29: 0 | N29: =SUMIF(Navires!$B$2:$BE$2,$A$2&N$2,Navires!$B29:$BE29)/0.54*IF($AB29>$B29,$B29/$AB29,1) -> 0 | O29: =SUMIF(Navires!$B$2:$BE$2,$A$2&O$2,Navires!$B29:$BE29)/0.54*IF($AB29>$B29,$B29/$AB29,1) -> 0 | P29: =SUMIF(Navires!$B$2:$BE$2,$A$2&P$2,Navires!$B29:$BE29)/0.54*IF($AB29>$B29,$B29/$AB29,1) -> 0 | R29: =SUMIF(Navires!$B$2:$BE$2,$A$2&R$2,Navires!$B29:$BE29)/0.54*IF($AB29>$B29,$B29/$AB29,1) -> 0 | S29: =SUMIF(Navires!$B$2:$BE$2,$A$2&S$2,Navires!$B29:$BE29)/0.54*IF($AB29>$B29,$B29/$AB29,1) -> 0 | T29: =SUMIF(Navires!$B$2:$BE$2,$A$2&T$2,Navires!$B29:$BE29)/0.54*IF($AB29>$B29,$B29/$AB29,1) -> 0 | U29: =SUMIF(Navires!$B$2:$BE$2,$A$2&U$2,Navires!$B29:$BE29)/0.54*IF($AB29>$B29,$B29/$AB29,1) -> 0 | V29: =SUMIF(Navires!$B$2:$BE$2,$A$2&V$2,Navires!$B29:$BE29)/0.54*IF($AB29>$B29,$B29/$AB29,1) -> 0 | W29: =SUMIF(Navires!$B$2:$BE$2,$A$2&W$2,Navires!$B29:$BE29)/0.54*IF($AB29>$B29,$B29/$AB29,1) -> 0 | X29: 0 | Y29: =ProdBesoins!I31 -> 0 | AA29: =(SUMIF(Navires!$B$2:$BE$2,">39",Navires!$B29:$BE29)-SUMIF(Navires!$B$2:$BE$2,">49",Navires!$B29:$BE29))/0.54/(IF(ISERR((B29+'1'!Q29+'2'!Q29+'3'!Q29+'5'!Q29+'6'!Q29+'7'!Q29+'8'!Q29+'9'!Q29+'10'!Q29)/B29),1,(B29+'1'!Q29+'2'!Q29+'3'!Q29+'5'!Q29+'6'!Q29+'7'!Q29+'8'!Q29+'9'!Q29+'10'!Q29)/B29))+Y29 -> 0 | AB29: 0
A30: Céréales | B30: =ProdBesoins!H32 -> 0 | C30: =FIXED(C$16,0) -> 0 | D30: 0 | E30: 0 | G30: 0 | H30: 0 | I30: 0 | J30: 0 | K30: 0 | L30: 0 | M30: 0 | N30: 0 | O30: 0 | P30: 0 | R30: 0 | S30: 0 | T30: 0 | U30: 0 | V30: 0 | W30: 0 | X30: =FIXED(X$16,0) -> 0 | Y30: =ProdBesoins!I32 -> 0
A31: Bière | B31: =ProdBesoins!H33 -> 0 | C31: ='1'!Q31 -> 0 | D31: ='2'!Q31 -> 0 | E31: ='3'!Q31 -> 0 | G31: ='5'!Q31 -> 0 | H31: ='6'!Q31 -> 0 | I31: ='7'!Q31 -> 0 | J31: ='8'!Q31 -> 0 | K31: ='9'!Q31 -> 0 | L31: ='10'!Q31 -> 0 | M31: =SUM(B31:L31) -> 0 | N31: =SUMIF(Navires!$B$2:$BE$2,$A$2&N$2,Navires!$B31:$BE31)/0.54*IF($AB31>$B31,$B31/$AB31,1) -> 0 | O31: =SUMIF(Navires!$B$2:$BE$2,$A$2&O$2,Navires!$B31:$BE31)/0.54*IF($AB31>$B31,$B31/$AB31,1) -> 0 | P31: =SUMIF(Navires!$B$2:$BE$2,$A$2&P$2,Navires!$B31:$BE31)/0.54*IF($AB31>$B31,$B31/$AB31,1) -> 0 | R31: =SUMIF(Navires!$B$2:$BE$2,$A$2&R$2,Navires!$B31:$BE31)/0.54*IF($AB31>$B31,$B31/$AB31,1) -> 0 | S31: =SUMIF(Navires!$B$2:$BE$2,$A$2&S$2,Navires!$B31:$BE31)/0.54*IF($AB31>$B31,$B31/$AB31,1) -> 0 | T31: =SUMIF(Navires!$B$2:$BE$2,$A$2&T$2,Navires!$B31:$BE31)/0.54*IF($AB31>$B31,$B31/$AB31,1) -> 0 | U31: =SUMIF(Navires!$B$2:$BE$2,$A$2&U$2,Navires!$B31:$BE31)/0.54*IF($AB31>$B31,$B31/$AB31,1) -> 0 | V31: =SUMIF(Navires!$B$2:$BE$2,$A$2&V$2,Navires!$B31:$BE31)/0.54*IF($AB31>$B31,$B31/$AB31,1) -> 0 | W31: =SUMIF(Navires!$B$2:$BE$2,$A$2&W$2,Navires!$B31:$BE31)/0.54*IF($AB31>$B31,$B31/$AB31,1) -> 0 | X31: 0 | Y31: =ProdBesoins!I33 -> 0 | AA31: =(SUMIF(Navires!$B$2:$BE$2,">39",Navires!$B31:$BE31)-SUMIF(Navires!$B$2:$BE$2,">49",Navires!$B31:$BE31))/0.54/(IF(ISERR((B31+'1'!Q31+'2'!Q31+'3'!Q31+'5'!Q31+'6'!Q31+'7'!Q31+'8'!Q31+'9'!Q31+'10'!Q31)/B31),1,(B31+'1'!Q31+'2'!Q31+'3'!Q31+'5'!Q31+'6'!Q31+'7'!Q31+'8'!Q31+'9'!Q31+'10'!Q31)/B31))+Y31 -> 0 | AB31: 0
A32: Fer | B32: =ProdBesoins!H34 -> 0 | C32: =FIXED(C$9,0) -> 0 | D32: 0 | E32: 0 | G32: 50 | H32: 0 | I32: 0 | J32: 0 | K32: 0 | L32: 0 | M32: 50 | N32: 0 | O32: 0 | P32: 0 | R32: 0 | S32: 0 | T32: 0 | U32: 0 | V32: 0 | W32: 0 | X32: =FIXED(X$9,0) -> 50 | Y32: =ProdBesoins!I34 -> 85.71428571
A33: Bois | B33: =ProdBesoins!H35 -> 246.1714286 | C33: =FIXED(C$5,0) -> 0 | D33: 0 | E33: 0 | G33: 0 | H33: 0 | I33: 0 | J33: 0 | K33: 0 | L33: 0 | M33: 246 | N33: 0 | O33: 0 | P33: 0 | R33: 0 | S33: 0 | T33: 0 | U33: 0 | V33: 0 | W33: 0 | X33: =FIXED(X$5,0) -> 246 | Y33: =ProdBesoins!I35 -> 102.8571429
A34: Tonneaux | B34: =ProdBesoins!H36 -> 87.61904762 | C34: ='1'!Q34 -> 0 | D34: ='2'!Q34 -> 0 | E34: ='3'!Q34 -> 0 | G34: ='5'!Q34 -> 0 | H34: ='6'!Q34 -> 0 | I34: ='7'!Q34 -> 0 | J34: ='8'!Q34 -> 0 | K34: ='9'!Q34 -> 0 | L34: ='10'!Q34 -> 0 | M34: =SUM(B34:L34) -> 87.61904762 | N34: =SUMIF(Navires!$B$2:$BE$2,$A$2&N$2,Navires!$B34:$BE34)/0.54*IF($AB34>$B34,$B34/$AB34,1) -> 0 | O34: =SUMIF(Navires!$B$2:$BE$2,$A$2&O$2,Navires!$B34:$BE34)/0.54*IF($AB34>$B34,$B34/$AB34,1) -> 0 | P34: =SUMIF(Navires!$B$2:$BE$2,$A$2&P$2,Navires!$B34:$BE34)/0.54*IF($AB34>$B34,$B34/$AB34,1) -> 0 | R34: =SUMIF(Navires!$B$2:$BE$2,$A$2&R$2,Navires!$B34:$BE34)/0.54*IF($AB34>$B34,$B34/$AB34,1) -> 0 | S34: =SUMIF(Navires!$B$2:$BE$2,$A$2&S$2,Navires!$B34:$BE34)/0.54*IF($AB34>$B34,$B34/$AB34,1) -> 0 | T34: =SUMIF(Navires!$B$2:$BE$2,$A$2&T$2,Navires!$B34:$BE34)/0.54*IF($AB34>$B34,$B34/$AB34,1) -> 0 | U34: =SUMIF(Navires!$B$2:$BE$2,$A$2&U$2,Navires!$B34:$BE34)/0.54*IF($AB34>$B34,$B34/$AB34,1) -> 0 | V34: =SUMIF(Navires!$B$2:$BE$2,$A$2&V$2,Navires!$B34:$BE34)/0.54*IF($AB34>$B34,$B34/$AB34,1) -> 0 | W34: =SUMIF(Navires!$B$2:$BE$2,$A$2&W$2,Navires!$B34:$BE34)/0.54*IF($AB34>$B34,$B34/$AB34,1) -> 0 | X34: =M34-SUM(N34:W34) -> 87.61904762 | Y34: =ProdBesoins!I36 -> 85.71428571 | Z34: 1.022222222 | AA34: =(SUMIF(Navires!$B$2:$BE$2,">39",Navires!$B34:$BE34)-SUMIF(Navires!$B$2:$BE$2,">49",Navires!$B34:$BE34))/0.54/(IF(ISERR((B34+'1'!Q34+'2'!Q34+'3'!Q34+'5'!Q34+'6'!Q34+'7'!Q34+'8'!Q34+'9'!Q34+'10'!Q34)/B34),1,(B34+'1'!Q34+'2'!Q34+'3'!Q34+'5'!Q34+'6'!Q34+'7'!Q34+'8'!Q34+'9'!Q34+'10'!Q34)/B34))+Y34 -> 85.71428571 | AB34: 85.71428571
A35: Raisins | B35: =ProdBesoins!H37 -> 86.53061224 | C35: ='1'!Q35 -> 0 | D35: ='2'!Q35 -> 0 | E35: ='3'!Q35 -> 0 | G35: ='5'!Q35 -> 0 | H35: ='6'!Q35 -> 0 | I35: ='7'!Q35 -> 0 | J35: ='8'!Q35 -> 0 | K35: ='9'!Q35 -> 0 | L35: ='10'!Q35 -> 0 | M35: 86.53061224 | N35: =SUMIF(Navires!$B$2:$BE$2,$A$2&N$2,Navires!$B35:$BE35)/0.54*IF($AB35>$B35,$B35/$AB35,1) -> 0 | O35: =SUMIF(Navires!$B$2:$BE$2,$A$2&O$2,Navires!$B35:$BE35)/0.54*IF($AB35>$B35,$B35/$AB35,1) -> 0 | P35: =SUMIF(Navires!$B$2:$BE$2,$A$2&P$2,Navires!$B35:$BE35)/0.54*IF($AB35>$B35,$B35/$AB35,1) -> 0 | R35: =SUMIF(Navires!$B$2:$BE$2,$A$2&R$2,Navires!$B35:$BE35)/0.54*IF($AB35>$B35,$B35/$AB35,1) -> 0 | S35: =SUMIF(Navires!$B$2:$BE$2,$A$2&S$2,Navires!$B35:$BE35)/0.54*IF($AB35>$B35,$B35/$AB35,1) -> 0 | T35: =SUMIF(Navires!$B$2:$BE$2,$A$2&T$2,Navires!$B35:$BE35)/0.54*IF($AB35>$B35,$B35/$AB35,1) -> 0 | U35: =SUMIF(Navires!$B$2:$BE$2,$A$2&U$2,Navires!$B35:$BE35)/0.54*IF($AB35>$B35,$B35/$AB35,1) -> 0 | V35: =SUMIF(Navires!$B$2:$BE$2,$A$2&V$2,Navires!$B35:$BE35)/0.54*IF($AB35>$B35,$B35/$AB35,1) -> 0 | W35: =SUMIF(Navires!$B$2:$BE$2,$A$2&W$2,Navires!$B35:$BE35)/0.54*IF($AB35>$B35,$B35/$AB35,1) -> 0 | X35: 86.53061224 | Y35: =ProdBesoins!I37 -> 85.71428571 | Z35: 1.00952381 | AA35: =(SUMIF(Navires!$B$2:$BE$2,">39",Navires!$B35:$BE35)-SUMIF(Navires!$B$2:$BE$2,">49",Navires!$B35:$BE35))/0.54/(IF(ISERR((B35+'1'!Q35+'2'!Q35+'3'!Q35+'5'!Q35+'6'!Q35+'7'!Q35+'8'!Q35+'9'!Q35+'10'!Q35)/B35),1,(B35+'1'!Q35+'2'!Q35+'3'!Q35+'5'!Q35+'6'!Q35+'7'!Q35+'8'!Q35+'9'!Q35+'10'!Q35)/B35))+Y35 -> 85.71428571 | AB35: 85.71428571
A36: Vin | B36: =ProdBesoins!H38 -> 85.71428571 | C36: ='1'!Q36 -> 0 | D36: ='2'!Q36 -> 0 | E36: ='3'!Q36 -> 0 | G36: ='5'!Q36 -> 0 | H36: ='6'!Q36 -> 0 | I36: ='7'!Q36 -> 0 | J36: ='8'!Q36 -> 0 | K36: ='9'!Q36 -> 0 | L36: ='10'!Q36 -> 0 | M36: 85.71428571 | N36: =SUMIF(Navires!$B$2:$BE$2,$A$2&N$2,Navires!$B36:$BE36)/0.54*IF($AB36>$B36,$B36/$AB36,1) -> 0 | O36: =SUMIF(Navires!$B$2:$BE$2,$A$2&O$2,Navires!$B36:$BE36)/0.54*IF($AB36>$B36,$B36/$AB36,1) -> 0 | P36: =SUMIF(Navires!$B$2:$BE$2,$A$2&P$2,Navires!$B36:$BE36)/0.54*IF($AB36>$B36,$B36/$AB36,1) -> 0 | R36: =SUMIF(Navires!$B$2:$BE$2,$A$2&R$2,Navires!$B36:$BE36)/0.54*IF($AB36>$B36,$B36/$AB36,1) -> 85.71428571 | S36: =SUMIF(Navires!$B$2:$BE$2,$A$2&S$2,Navires!$B36:$BE36)/0.54*IF($AB36>$B36,$B36/$AB36,1) -> 0 | T36: =SUMIF(Navires!$B$2:$BE$2,$A$2&T$2,Navires!$B36:$BE36)/0.54*IF($AB36>$B36,$B36/$AB36,1) -> 0 | U36: =SUMIF(Navires!$B$2:$BE$2,$A$2&U$2,Navires!$B36:$BE36)/0.54*IF($AB36>$B36,$B36/$AB36,1) -> 0 | V36: =SUMIF(Navires!$B$2:$BE$2,$A$2&V$2,Navires!$B36:$BE36)/0.54*IF($AB36>$B36,$B36/$AB36,1) -> 0 | W36: =SUMIF(Navires!$B$2:$BE$2,$A$2&W$2,Navires!$B36:$BE36)/0.54*IF($AB36>$B36,$B36/$AB36,1) -> 0 | X36: 0 | Y36: =ProdBesoins!I38 -> 0 | AA36: =(SUMIF(Navires!$B$2:$BE$2,">39",Navires!$B36:$BE36)-SUMIF(Navires!$B$2:$BE$2,">49",Navires!$B36:$BE36))/0.54/(IF(ISERR((B36+'1'!Q36+'2'!Q36+'3'!Q36+'5'!Q36+'6'!Q36+'7'!Q36+'8'!Q36+'9'!Q36+'10'!Q36)/B36),1,(B36+'1'!Q36+'2'!Q36+'3'!Q36+'5'!Q36+'6'!Q36+'7'!Q36+'8'!Q36+'9'!Q36+'10'!Q36)/B36))+Y36 -> 92.59259259 | AB36: 92.59259259
B37: =ProdBesoins!H39 -> 0 | Y37: =ProdBesoins!I39 -> 0
A38: Laine | B38: =ProdBesoins!H40 -> 342 | C38: ='1'!Q38 -> 0 | D38: ='2'!Q38 -> 0 | E38: ='3'!Q38 -> 0 | G38: ='5'!Q38 -> 0 | H38: ='6'!Q38 -> 0 | I38: ='7'!Q38 -> 0 | J38: ='8'!Q38 -> 0 | K38: ='9'!Q38 -> 0 | L38: ='10'!Q38 -> 0 | M38: =SUM(B38:L38) -> 342 | N38: =SUMIF(Navires!$B$2:$BE$2,$A$2&N$2,Navires!$B38:$BE38)/0.54*IF($AB38>$B38,$B38/$AB38,1) -> 0 | O38: =SUMIF(Navires!$B$2:$BE$2,$A$2&O$2,Navires!$B38:$BE38)/0.54*IF($AB38>$B38,$B38/$AB38,1) -> 0 | P38: =SUMIF(Navires!$B$2:$BE$2,$A$2&P$2,Navires!$B38:$BE38)/0.54*IF($AB38>$B38,$B38/$AB38,1) -> 0 | R38: =SUMIF(Navires!$B$2:$BE$2,$A$2&R$2,Navires!$B38:$BE38)/0.54*IF($AB38>$B38,$B38/$AB38,1) -> 0 | S38: =SUMIF(Navires!$B$2:$BE$2,$A$2&S$2,Navires!$B38:$BE38)/0.54*IF($AB38>$B38,$B38/$AB38,1) -> 0 | T38: =SUMIF(Navires!$B$2:$BE$2,$A$2&T$2,Navires!$B38:$BE38)/0.54*IF($AB38>$B38,$B38/$AB38,1) -> 0 | U38: =SUMIF(Navires!$B$2:$BE$2,$A$2&U$2,Navires!$B38:$BE38)/0.54*IF($AB38>$B38,$B38/$AB38,1) -> 0 | V38: =SUMIF(Navires!$B$2:$BE$2,$A$2&V$2,Navires!$B38:$BE38)/0.54*IF($AB38>$B38,$B38/$AB38,1) -> 0 | W38: =SUMIF(Navires!$B$2:$BE$2,$A$2&W$2,Navires!$B38:$BE38)/0.54*IF($AB38>$B38,$B38/$AB38,1) -> 0 | X38: =M38-SUM(N38:W38) -> 342 | Y38: =ProdBesoins!I40 -> 342 | Z38: 1 | AA38: =(SUMIF(Navires!$B$2:$BE$2,">39",Navires!$B38:$BE38)-SUMIF(Navires!$B$2:$BE$2,">49",Navires!$B38:$BE38))/0.54/(IF(ISERR((B38+'1'!Q38+'2'!Q38+'3'!Q38+'5'!Q38+'6'!Q38+'7'!Q38+'8'!Q38+'9'!Q38+'10'!Q38)/B38),1,(B38+'1'!Q38+'2'!Q38+'3'!Q38+'5'!Q38+'6'!Q38+'7'!Q38+'8'!Q38+'9'!Q38+'10'!Q38)/B38))+Y38 -> 342 | AB38: 342
A39: Vêtements en laine | B39: =ProdBesoins!H41 -> 342 | C39: ='1'!Q39 -> 0 | D39: ='2'!Q39 -> 0 | E39: ='3'!Q39 -> 0 | G39: ='5'!Q39 -> 0 | H39: ='6'!Q39 -> 0 | I39: ='7'!Q39 -> 0 | J39: ='8'!Q39 -> 0 | K39: ='9'!Q39 -> 0 | L39: ='10'!Q39 -> 0 | M39: 342 | N39: =SUMIF(Navires!$B$2:$BE$2,$A$2&N$2,Navires!$B39:$BE39)/0.54*IF($AB39>$B39,$B39/$AB39,1) -> 0 | O39: =SUMIF(Navires!$B$2:$BE$2,$A$2&O$2,Navires!$B39:$BE39)/0.54*IF($AB39>$B39,$B39/$AB39,1) -> 0 | P39: =SUMIF(Navires!$B$2:$BE$2,$A$2&P$2,Navires!$B39:$BE39)/0.54*IF($AB39>$B39,$B39/$AB39,1) -> 0 | R39: =SUMIF(Navires!$B$2:$BE$2,$A$2&R$2,Navires!$B39:$BE39)/0.54*IF($AB39>$B39,$B39/$AB39,1) -> 342 | S39: =SUMIF(Navires!$B$2:$BE$2,$A$2&S$2,Navires!$B39:$BE39)/0.54*IF($AB39>$B39,$B39/$AB39,1) -> 0 | T39: =SUMIF(Navires!$B$2:$BE$2,$A$2&T$2,Navires!$B39:$BE39)/0.54*IF($AB39>$B39,$B39/$AB39,1) -> 0 | U39: =SUMIF(Navires!$B$2:$BE$2,$A$2&U$2,Navires!$B39:$BE39)/0.54*IF($AB39>$B39,$B39/$AB39,1) -> 0 | V39: =SUMIF(Navires!$B$2:$BE$2,$A$2&V$2,Navires!$B39:$BE39)/0.54*IF($AB39>$B39,$B39/$AB39,1) -> 0 | W39: =SUMIF(Navires!$B$2:$BE$2,$A$2&W$2,Navires!$B39:$BE39)/0.54*IF($AB39>$B39,$B39/$AB39,1) -> 0 | X39: 0 | Y39: =ProdBesoins!I41 -> 0 | AA39: =(SUMIF(Navires!$B$2:$BE$2,">39",Navires!$B39:$BE39)-SUMIF(Navires!$B$2:$BE$2,">49",Navires!$B39:$BE39))/0.54/(IF(ISERR((B39+'1'!Q39+'2'!Q39+'3'!Q39+'5'!Q39+'6'!Q39+'7'!Q39+'8'!Q39+'9'!Q39+'10'!Q39)/B39),1,(B39+'1'!Q39+'2'!Q39+'3'!Q39+'5'!Q39+'6'!Q39+'7'!Q39+'8'!Q39+'9'!Q39+'10'!Q39)/B39))+Y39 -> 388.8888889 | AB39: 388.8888889
A40: Chanvre | B40: =ProdBesoins!H42 -> 0 | C40: ='1'!Q40 -> 0 | D40: ='2'!Q40 -> 0 | E40: ='3'!Q40 -> 0 | G40: ='5'!Q40 -> 0 | H40: ='6'!Q40 -> 0 | I40: ='7'!Q40 -> 0 | J40: ='8'!Q40 -> 0 | K40: ='9'!Q40 -> 0 | L40: ='10'!Q40 -> 0 | M40: 0 | N40: =SUMIF(Navires!$B$2:$BE$2,$A$2&N$2,Navires!$B40:$BE40)/0.54*IF($AB40>$B40,$B40/$AB40,1) -> 0 | O40: =SUMIF(Navires!$B$2:$BE$2,$A$2&O$2,Navires!$B40:$BE40)/0.54*IF($AB40>$B40,$B40/$AB40,1) -> 0 | P40: =SUMIF(Navires!$B$2:$BE$2,$A$2&P$2,Navires!$B40:$BE40)/0.54*IF($AB40>$B40,$B40/$AB40,1) -> 0 | R40: =SUMIF(Navires!$B$2:$BE$2,$A$2&R$2,Navires!$B40:$BE40)/0.54*IF($AB40>$B40,$B40/$AB40,1) -> 0 | S40: =SUMIF(Navires!$B$2:$BE$2,$A$2&S$2,Navires!$B40:$BE40)/0.54*IF($AB40>$B40,$B40/$AB40,1) -> 0 | T40: =SUMIF(Navires!$B$2:$BE$2,$A$2&T$2,Navires!$B40:$BE40)/0.54*IF($AB40>$B40,$B40/$AB40,1) -> 0 | U40: =SUMIF(Navires!$B$2:$BE$2,$A$2&U$2,Navires!$B40:$BE40)/0.54*IF($AB40>$B40,$B40/$AB40,1) -> 0 | V40: =SUMIF(Navires!$B$2:$BE$2,$A$2&V$2,Navires!$B40:$BE40)/0.54*IF($AB40>$B40,$B40/$AB40,1) -> 0 | W40: =SUMIF(Navires!$B$2:$BE$2,$A$2&W$2,Navires!$B40:$BE40)/0.54*IF($AB40>$B40,$B40/$AB40,1) -> 0 | X40: 0 | Y40: =ProdBesoins!I42 -> 0 | AA40: =(SUMIF(Navires!$B$2:$BE$2,">39",Navires!$B40:$BE40)-SUMIF(Navires!$B$2:$BE$2,">49",Navires!$B40:$BE40))/0.54/(IF(ISERR((B40+'1'!Q40+'2'!Q40+'3'!Q40+'5'!Q40+'6'!Q40+'7'!Q40+'8'!Q40+'9'!Q40+'10'!Q40)/B40),1,(B40+'1'!Q40+'2'!Q40+'3'!Q40+'5'!Q40+'6'!Q40+'7'!Q40+'8'!Q40+'9'!Q40+'10'!Q40)/B40))+Y40 -> 0 | AB40: 0
A41: Vêtements en lin | B41: =ProdBesoins!H43 -> 0 | C41: ='1'!Q41 -> 0 | D41: ='2'!Q41 -> 0 | E41: ='3'!Q41 -> 0 | G41: ='5'!Q41 -> 0 | H41: ='6'!Q41 -> 0 | I41: ='7'!Q41 -> 0 | J41: ='8'!Q41 -> 0 | K41: ='9'!Q41 -> 0 | L41: ='10'!Q41 -> 0 | M41: 0 | N41: =SUMIF(Navires!$B$2:$BE$2,$A$2&N$2,Navires!$B41:$BE41)/0.54*IF($AB41>$B41,$B41/$AB41,1) -> 0 | O41: =SUMIF(Navires!$B$2:$BE$2,$A$2&O$2,Navires!$B41:$BE41)/0.54*IF($AB41>$B41,$B41/$AB41,1) -> 0 | P41: =SUMIF(Navires!$B$2:$BE$2,$A$2&P$2,Navires!$B41:$BE41)/0.54*IF($AB41>$B41,$B41/$AB41,1) -> 0 | R41: =SUMIF(Navires!$B$2:$BE$2,$A$2&R$2,Navires!$B41:$BE41)/0.54*IF($AB41>$B41,$B41/$AB41,1) -> 0 | S41: =SUMIF(Navires!$B$2:$BE$2,$A$2&S$2,Navires!$B41:$BE41)/0.54*IF($AB41>$B41,$B41/$AB41,1) -> 0 | T41: =SUMIF(Navires!$B$2:$BE$2,$A$2&T$2,Navires!$B41:$BE41)/0.54*IF($AB41>$B41,$B41/$AB41,1) -> 0 | U41: =SUMIF(Navires!$B$2:$BE$2,$A$2&U$2,Navires!$B41:$BE41)/0.54*IF($AB41>$B41,$B41/$AB41,1) -> 0 | V41: =SUMIF(Navires!$B$2:$BE$2,$A$2&V$2,Navires!$B41:$BE41)/0.54*IF($AB41>$B41,$B41/$AB41,1) -> 0 | W41: =SUMIF(Navires!$B$2:$BE$2,$A$2&W$2,Navires!$B41:$BE41)/0.54*IF($AB41>$B41,$B41/$AB41,1) -> 0 | X41: 0 | Y41: =ProdBesoins!I43 -> 0 | AA41: =(SUMIF(Navires!$B$2:$BE$2,">39",Navires!$B41:$BE41)-SUMIF(Navires!$B$2:$BE$2,">49",Navires!$B41:$BE41))/0.54/(IF(ISERR((B41+'1'!Q41+'2'!Q41+'3'!Q41+'5'!Q41+'6'!Q41+'7'!Q41+'8'!Q41+'9'!Q41+'10'!Q41)/B41),1,(B41+'1'!Q41+'2'!Q41+'3'!Q41+'5'!Q41+'6'!Q41+'7'!Q41+'8'!Q41+'9'!Q41+'10'!Q41)/B41))+Y41 -> 0 | AB41: 0
A42: Charbon | B42: =ProdBesoins!H44 -> 34.28571429 | C42: =FIXED(C$7,0) -> 0 | D42: 0 | E42: 0 | G42: 0 | H42: 0 | I42: 0 | J42: 0 | K42: 0 | L42: 0 | M42: 34 | N42: 0 | O42: 0 | P42: 0 | R42: 34 | S42: 0 | T42: 0 | U42: 0 | V42: 0 | W42: 0 | X42: =FIXED(X$7,0) -> 0 | Y42: =ProdBesoins!I44 -> 0
A43: Saumure | B43: =ProdBesoins!H45 -> 0 | C43: =FIXED(C$21,0) -> 0 | D43: 0 | E43: 0 | G43: 0 | H43: 0 | I43: 0 | J43: 0 | K43: 0 | L43: 0 | M43: 0 | N43: 0 | O43: 0 | P43: 0 | R43: 0 | S43: 0 | T43: 0 | U43: 0 | V43: 0 | W43: 0 | X43: =FIXED(X$21,0) -> 0 | Y43: =ProdBesoins!I45 -> 0
A44: Sel | B44: =ProdBesoins!H46 -> 0 | C44: =FIXED(C$22,0) -> 0 | D44: 0 | E44: 0 | G44: 0 | H44: 0 | I44: 0 | J44: 0 | K44: 0 | L44: 0 | M44: 0 | N44: 0 | O44: 0 | P44: 0 | R44: 0 | S44: 0 | T44: 0 | U44: 0 | V44: 0 | W44: 0 | X44: =FIXED(X$22,0) -> 0 | Y44: =ProdBesoins!I46 -> 0
A45: Peaux animales | B45: =ProdBesoins!H47 -> 0 | C45: ='1'!Q45 -> 0 | D45: ='2'!Q45 -> 0 | E45: ='3'!Q45 -> 0 | G45: ='5'!Q45 -> 0 | H45: ='6'!Q45 -> 0 | I45: ='7'!Q45 -> 0 | J45: ='8'!Q45 -> 0 | K45: ='9'!Q45 -> 0 | L45: ='10'!Q45 -> 0 | M45: =SUM(B45:L45) -> 0 | N45: =SUMIF(Navires!$B$2:$BE$2,$A$2&N$2,Navires!$B45:$BE45)/0.54*IF($AB45>$B45,$B45/$AB45,1) -> 0 | O45: =SUMIF(Navires!$B$2:$BE$2,$A$2&O$2,Navires!$B45:$BE45)/0.54*IF($AB45>$B45,$B45/$AB45,1) -> 0 | P45: =SUMIF(Navires!$B$2:$BE$2,$A$2&P$2,Navires!$B45:$BE45)/0.54*IF($AB45>$B45,$B45/$AB45,1) -> 0 | R45: =SUMIF(Navires!$B$2:$BE$2,$A$2&R$2,Navires!$B45:$BE45)/0.54*IF($AB45>$B45,$B45/$AB45,1) -> 0 | S45: =SUMIF(Navires!$B$2:$BE$2,$A$2&S$2,Navires!$B45:$BE45)/0.54*IF($AB45>$B45,$B45/$AB45,1) -> 0 | T45: =SUMIF(Navires!$B$2:$BE$2,$A$2&T$2,Navires!$B45:$BE45)/0.54*IF($AB45>$B45,$B45/$AB45,1) -> 0 | U45: =SUMIF(Navires!$B$2:$BE$2,$A$2&U$2,Navires!$B45:$BE45)/0.54*IF($AB45>$B45,$B45/$AB45,1) -> 0 | V45: =SUMIF(Navires!$B$2:$BE$2,$A$2&V$2,Navires!$B45:$BE45)/0.54*IF($AB45>$B45,$B45/$AB45,1) -> 0 | W45: =SUMIF(Navires!$B$2:$BE$2,$A$2&W$2,Navires!$B45:$BE45)/0.54*IF($AB45>$B45,$B45/$AB45,1) -> 0 | X45: =M45-SUM(N45:W45) -> 0 | Y45: =ProdBesoins!I47 -> 0 | AA45: =(SUMIF(Navires!$B$2:$BE$2,">39",Navires!$B45:$BE45)-SUMIF(Navires!$B$2:$BE$2,">49",Navires!$B45:$BE45))/0.54/(IF(ISERR((B45+'1'!Q45+'2'!Q45+'3'!Q45+'5'!Q45+'6'!Q45+'7'!Q45+'8'!Q45+'9'!Q45+'10'!Q45)/B45),1,(B45+'1'!Q45+'2'!Q45+'3'!Q45+'5'!Q45+'6'!Q45+'7'!Q45+'8'!Q45+'9'!Q45+'10'!Q45)/B45))+Y45 -> 0 | AB45: 0
A46: Justaucorps en cuir | B46: =ProdBesoins!H48 -> 0 | C46: ='1'!Q46 -> 0 | D46: ='2'!Q46 -> 0 | E46: ='3'!Q46 -> 0 | G46: ='5'!Q46 -> 0 | H46: ='6'!Q46 -> 0 | I46: ='7'!Q46 -> 0 | J46: ='8'!Q46 -> 0 | K46: ='9'!Q46 -> 0 | L46: ='10'!Q46 -> 0 | M46: 0 | N46: =SUMIF(Navires!$B$2:$BE$2,$A$2&N$2,Navires!$B46:$BE46)/0.54*IF($AB46>$B46,$B46/$AB46,1) -> 0 | O46: =SUMIF(Navires!$B$2:$BE$2,$A$2&O$2,Navires!$B46:$BE46)/0.54*IF($AB46>$B46,$B46/$AB46,1) -> 0 | P46: =SUMIF(Navires!$B$2:$BE$2,$A$2&P$2,Navires!$B46:$BE46)/0.54*IF($AB46>$B46,$B46/$AB46,1) -> 0 | R46: =SUMIF(Navires!$B$2:$BE$2,$A$2&R$2,Navires!$B46:$BE46)/0.54*IF($AB46>$B46,$B46/$AB46,1) -> 0 | S46: =SUMIF(Navires!$B$2:$BE$2,$A$2&S$2,Navires!$B46:$BE46)/0.54*IF($AB46>$B46,$B46/$AB46,1) -> 0 | T46: =SUMIF(Navires!$B$2:$BE$2,$A$2&T$2,Navires!$B46:$BE46)/0.54*IF($AB46>$B46,$B46/$AB46,1) -> 0 | U46: =SUMIF(Navires!$B$2:$BE$2,$A$2&U$2,Navires!$B46:$BE46)/0.54*IF($AB46>$B46,$B46/$AB46,1) -> 0 | V46: =SUMIF(Navires!$B$2:$BE$2,$A$2&V$2,Navires!$B46:$BE46)/0.54*IF($AB46>$B46,$B46/$AB46,1) -> 0 | W46: =SUMIF(Navires!$B$2:$BE$2,$A$2&W$2,Navires!$B46:$BE46)/0.54*IF($AB46>$B46,$B46/$AB46,1) -> 0 | X46: 0 | Y46: =ProdBesoins!I48 -> 0 | AA46: =(SUMIF(Navires!$B$2:$BE$2,">39",Navires!$B46:$BE46)-SUMIF(Navires!$B$2:$BE$2,">49",Navires!$B46:$BE46))/0.54/(IF(ISERR((B46+'1'!Q46+'2'!Q46+'3'!Q46+'5'!Q46+'6'!Q46+'7'!Q46+'8'!Q46+'9'!Q46+'10'!Q46)/B46),1,(B46+'1'!Q46+'2'!Q46+'3'!Q46+'5'!Q46+'6'!Q46+'7'!Q46+'8'!Q46+'9'!Q46+'10'!Q46)/B46))+Y46 -> 0 | AB46: 0
A47: Fourrures | B47: =ProdBesoins!H49 -> 18 | C47: ='1'!Q47 -> 0 | D47: ='2'!Q47 -> 0 | E47: ='3'!Q47 -> 0 | G47: ='5'!Q47 -> 0 | H47: ='6'!Q47 -> 0 | I47: ='7'!Q47 -> 0 | J47: ='8'!Q47 -> 0 | K47: ='9'!Q47 -> 0 | L47: ='10'!Q47 -> 0 | M47: 18 | N47: =SUMIF(Navires!$B$2:$BE$2,$A$2&N$2,Navires!$B47:$BE47)/0.54*IF($AB47>$B47,$B47/$AB47,1) -> 0 | O47: =SUMIF(Navires!$B$2:$BE$2,$A$2&O$2,Navires!$B47:$BE47)/0.54*IF($AB47>$B47,$B47/$AB47,1) -> 0 | P47: =SUMIF(Navires!$B$2:$BE$2,$A$2&P$2,Navires!$B47:$BE47)/0.54*IF($AB47>$B47,$B47/$AB47,1) -> 0 | R47: =SUMIF(Navires!$B$2:$BE$2,$A$2&R$2,Navires!$B47:$BE47)/0.54*IF($AB47>$B47,$B47/$AB47,1) -> 0 | S47: =SUMIF(Navires!$B$2:$BE$2,$A$2&S$2,Navires!$B47:$BE47)/0.54*IF($AB47>$B47,$B47/$AB47,1) -> 0 | T47: =SUMIF(Navires!$B$2:$BE$2,$A$2&T$2,Navires!$B47:$BE47)/0.54*IF($AB47>$B47,$B47/$AB47,1) -> 0 | U47: =SUMIF(Navires!$B$2:$BE$2,$A$2&U$2,Navires!$B47:$BE47)/0.54*IF($AB47>$B47,$B47/$AB47,1) -> 0 | V47: =SUMIF(Navires!$B$2:$BE$2,$A$2&V$2,Navires!$B47:$BE47)/0.54*IF($AB47>$B47,$B47/$AB47,1) -> 0 | W47: =SUMIF(Navires!$B$2:$BE$2,$A$2&W$2,Navires!$B47:$BE47)/0.54*IF($AB47>$B47,$B47/$AB47,1) -> 0 | X47: 18 | Y47: =ProdBesoins!I49 -> 18 | Z47: 1 | AA47: =(SUMIF(Navires!$B$2:$BE$2,">39",Navires!$B47:$BE47)-SUMIF(Navires!$B$2:$BE$2,">49",Navires!$B47:$BE47))/0.54/(IF(ISERR((B47+'1'!Q47+'2'!Q47+'3'!Q47+'5'!Q47+'6'!Q47+'7'!Q47+'8'!Q47+'9'!Q47+'10'!Q47)/B47),1,(B47+'1'!Q47+'2'!Q47+'3'!Q47+'5'!Q47+'6'!Q47+'7'!Q47+'8'!Q47+'9'!Q47+'10'!Q47)/B47))+Y47 -> 18 | AB47: 18
A48: Manteaux de fourrure | B48: =ProdBesoins!H50 -> 18 | C48: ='1'!Q48 -> 0 | D48: ='2'!Q48 -> 0 | E48: ='3'!Q48 -> 0 | G48: ='5'!Q48 -> 0 | H48: ='6'!Q48 -> 0 | I48: ='7'!Q48 -> 0 | J48: ='8'!Q48 -> 0 | K48: ='9'!Q48 -> 0 | L48: ='10'!Q48 -> 0 | M48: 18 | N48: =SUMIF(Navires!$B$2:$BE$2,$A$2&N$2,Navires!$B48:$BE48)/0.54*IF($AB48>$B48,$B48/$AB48,1) -> 0 | O48: =SUMIF(Navires!$B$2:$BE$2,$A$2&O$2,Navires!$B48:$BE48)/0.54*IF($AB48>$B48,$B48/$AB48,1) -> 0 | P48: =SUMIF(Navires!$B$2:$BE$2,$A$2&P$2,Navires!$B48:$BE48)/0.54*IF($AB48>$B48,$B48/$AB48,1) -> 0 | R48: =SUMIF(Navires!$B$2:$BE$2,$A$2&R$2,Navires!$B48:$BE48)/0.54*IF($AB48>$B48,$B48/$AB48,1) -> 18 | S48: =SUMIF(Navires!$B$2:$BE$2,$A$2&S$2,Navires!$B48:$BE48)/0.54*IF($AB48>$B48,$B48/$AB48,1) -> 0 | T48: =SUMIF(Navires!$B$2:$BE$2,$A$2&T$2,Navires!$B48:$BE48)/0.54*IF($AB48>$B48,$B48/$AB48,1) -> 0 | U48: =SUMIF(Navires!$B$2:$BE$2,$A$2&U$2,Navires!$B48:$BE48)/0.54*IF($AB48>$B48,$B48/$AB48,1) -> 0 | V48: =SUMIF(Navires!$B$2:$BE$2,$A$2&V$2,Navires!$B48:$BE48)/0.54*IF($AB48>$B48,$B48/$AB48,1) -> 0 | W48: =SUMIF(Navires!$B$2:$BE$2,$A$2&W$2,Navires!$B48:$BE48)/0.54*IF($AB48>$B48,$B48/$AB48,1) -> 0 | X48: 0 | Y48: =ProdBesoins!I50 -> 0 | AA48: =(SUMIF(Navires!$B$2:$BE$2,">39",Navires!$B48:$BE48)-SUMIF(Navires!$B$2:$BE$2,">49",Navires!$B48:$BE48))/0.54/(IF(ISERR((B48+'1'!Q48+'2'!Q48+'3'!Q48+'5'!Q48+'6'!Q48+'7'!Q48+'8'!Q48+'9'!Q48+'10'!Q48)/B48),1,(B48+'1'!Q48+'2'!Q48+'3'!Q48+'5'!Q48+'6'!Q48+'7'!Q48+'8'!Q48+'9'!Q48+'10'!Q48)/B48))+Y48 -> 55.55555556 | AB48: 55.55555556
A49: Charbon | B49: =ProdBesoins!H51 -> 34.28571429 | C49: =FIXED(C$7,0) -> 0 | D49: 0 | E49: 0 | G49: 0 | H49: 0 | I49: 0 | J49: 0 | K49: 0 | L49: 0 | M49: 34 | N49: 0 | O49: 0 | P49: 0 | R49: 34 | S49: 0 | T49: 0 | U49: 0 | V49: 0 | W49: 0 | X49: =FIXED(X$7,0) -> 0 | Y49: =ProdBesoins!I51 -> 0
A50: Minerai d'or | B50: =ProdBesoins!H52 -> 0 | C50: ='1'!Q50 -> 0 | D50: ='2'!Q50 -> 0 | E50: ='3'!Q50 -> 0 | G50: ='5'!Q50 -> 0 | H50: ='6'!Q50 -> 0 | I50: ='7'!Q50 -> 0 | J50: ='8'!Q50 -> 0 | K50: ='9'!Q50 -> 0 | L50: ='10'!Q50 -> 0 | M50: =SUM(B50:L50) -> 0 | N50: =SUMIF(Navires!$B$2:$BE$2,$A$2&N$2,Navires!$B50:$BE50)/0.54*IF($AB50>$B50,$B50/$AB50,1) -> 0 | O50: =SUMIF(Navires!$B$2:$BE$2,$A$2&O$2,Navires!$B50:$BE50)/0.54*IF($AB50>$B50,$B50/$AB50,1) -> 0 | P50: =SUMIF(Navires!$B$2:$BE$2,$A$2&P$2,Navires!$B50:$BE50)/0.54*IF($AB50>$B50,$B50/$AB50,1) -> 0 | R50: =SUMIF(Navires!$B$2:$BE$2,$A$2&R$2,Navires!$B50:$BE50)/0.54*IF($AB50>$B50,$B50/$AB50,1) -> 0 | S50: =SUMIF(Navires!$B$2:$BE$2,$A$2&S$2,Navires!$B50:$BE50)/0.54*IF($AB50>$B50,$B50/$AB50,1) -> 0 | T50: =SUMIF(Navires!$B$2:$BE$2,$A$2&T$2,Navires!$B50:$BE50)/0.54*IF($AB50>$B50,$B50/$AB50,1) -> 0 | U50: =SUMIF(Navires!$B$2:$BE$2,$A$2&U$2,Navires!$B50:$BE50)/0.54*IF($AB50>$B50,$B50/$AB50,1) -> 0 | V50: =SUMIF(Navires!$B$2:$BE$2,$A$2&V$2,Navires!$B50:$BE50)/0.54*IF($AB50>$B50,$B50/$AB50,1) -> 0 | W50: =SUMIF(Navires!$B$2:$BE$2,$A$2&W$2,Navires!$B50:$BE50)/0.54*IF($AB50>$B50,$B50/$AB50,1) -> 0 | X50: =M50-SUM(N50:W50) -> 0 | Y50: =ProdBesoins!I52 -> 0 | AA50: =(SUMIF(Navires!$B$2:$BE$2,">39",Navires!$B50:$BE50)-SUMIF(Navires!$B$2:$BE$2,">49",Navires!$B50:$BE50))/0.54/(IF(ISERR((B50+'1'!Q50+'2'!Q50+'3'!Q50+'5'!Q50+'6'!Q50+'7'!Q50+'8'!Q50+'9'!Q50+'10'!Q50)/B50),1,(B50+'1'!Q50+'2'!Q50+'3'!Q50+'5'!Q50+'6'!Q50+'7'!Q50+'8'!Q50+'9'!Q50+'10'!Q50)/B50))+Y50 -> 0 | AB50: 0
A51: Or | B51: =ProdBesoins!H53 -> 0 | C51: ='1'!Q51 -> 0 | D51: ='2'!Q51 -> 0 | E51: ='3'!Q51 -> 0 | G51: ='5'!Q51 -> 0 | H51: ='6'!Q51 -> 0 | I51: ='7'!Q51 -> 0 | J51: ='8'!Q51 -> 0 | K51: ='9'!Q51 -> 0 | L51: ='10'!Q51 -> 0 | M51: =SUM(B51:L51) -> 0 | N51: =SUMIF(Navires!$B$2:$BE$2,$A$2&N$2,Navires!$B51:$BE51)/0.54*IF($AB51>$B51,$B51/$AB51,1) -> 0 | O51: =SUMIF(Navires!$B$2:$BE$2,$A$2&O$2,Navires!$B51:$BE51)/0.54*IF($AB51>$B51,$B51/$AB51,1) -> 0 | P51: =SUMIF(Navires!$B$2:$BE$2,$A$2&P$2,Navires!$B51:$BE51)/0.54*IF($AB51>$B51,$B51/$AB51,1) -> 0 | R51: =SUMIF(Navires!$B$2:$BE$2,$A$2&R$2,Navires!$B51:$BE51)/0.54*IF($AB51>$B51,$B51/$AB51,1) -> 0 | S51: =SUMIF(Navires!$B$2:$BE$2,$A$2&S$2,Navires!$B51:$BE51)/0.54*IF($AB51>$B51,$B51/$AB51,1) -> 0 | T51: =SUMIF(Navires!$B$2:$BE$2,$A$2&T$2,Navires!$B51:$BE51)/0.54*IF($AB51>$B51,$B51/$AB51,1) -> 0 | U51: =SUMIF(Navires!$B$2:$BE$2,$A$2&U$2,Navires!$B51:$BE51)/0.54*IF($AB51>$B51,$B51/$AB51,1) -> 0 | V51: =SUMIF(Navires!$B$2:$BE$2,$A$2&V$2,Navires!$B51:$BE51)/0.54*IF($AB51>$B51,$B51/$AB51,1) -> 0 | W51: =SUMIF(Navires!$B$2:$BE$2,$A$2&W$2,Navires!$B51:$BE51)/0.54*IF($AB51>$B51,$B51/$AB51,1) -> 0 | X51: 0 | Y51: =ProdBesoins!I53 -> 0 | AA51: =(SUMIF(Navires!$B$2:$BE$2,">39",Navires!$B51:$BE51)-SUMIF(Navires!$B$2:$BE$2,">49",Navires!$B51:$BE51))/0.54/(IF(ISERR((B51+'1'!Q51+'2'!Q51+'3'!Q51+'5'!Q51+'6'!Q51+'7'!Q51+'8'!Q51+'9'!Q51+'10'!Q51)/B51),1,(B51+'1'!Q51+'2'!Q51+'3'!Q51+'5'!Q51+'6'!Q51+'7'!Q51+'8'!Q51+'9'!Q51+'10'!Q51)/B51))+Y51 -> 0 | AB51: 0
A52: Soierie | B52: =ProdBesoins!H54 -> 0 | C52: ='1'!Q52 -> 0 | D52: ='2'!Q52 -> 0 | E52: ='3'!Q52 -> 0 | G52: ='5'!Q52 -> 0 | H52: ='6'!Q52 -> 0 | I52: ='7'!Q52 -> 0 | J52: ='8'!Q52 -> 0 | K52: ='9'!Q52 -> 0 | L52: ='10'!Q52 -> 0 | M52: 0 | N52: =SUMIF(Navires!$B$2:$BE$2,$A$2&N$2,Navires!$B52:$BE52)/0.54*IF($AB52>$B52,$B52/$AB52,1) -> 0 | O52: =SUMIF(Navires!$B$2:$BE$2,$A$2&O$2,Navires!$B52:$BE52)/0.54*IF($AB52>$B52,$B52/$AB52,1) -> 0 | P52: =SUMIF(Navires!$B$2:$BE$2,$A$2&P$2,Navires!$B52:$BE52)/0.54*IF($AB52>$B52,$B52/$AB52,1) -> 0 | R52: =SUMIF(Navires!$B$2:$BE$2,$A$2&R$2,Navires!$B52:$BE52)/0.54*IF($AB52>$B52,$B52/$AB52,1) -> 0 | S52: =SUMIF(Navires!$B$2:$BE$2,$A$2&S$2,Navires!$B52:$BE52)/0.54*IF($AB52>$B52,$B52/$AB52,1) -> 0 | T52: =SUMIF(Navires!$B$2:$BE$2,$A$2&T$2,Navires!$B52:$BE52)/0.54*IF($AB52>$B52,$B52/$AB52,1) -> 0 | U52: =SUMIF(Navires!$B$2:$BE$2,$A$2&U$2,Navires!$B52:$BE52)/0.54*IF($AB52>$B52,$B52/$AB52,1) -> 0 | V52: =SUMIF(Navires!$B$2:$BE$2,$A$2&V$2,Navires!$B52:$BE52)/0.54*IF($AB52>$B52,$B52/$AB52,1) -> 0 | W52: =SUMIF(Navires!$B$2:$BE$2,$A$2&W$2,Navires!$B52:$BE52)/0.54*IF($AB52>$B52,$B52/$AB52,1) -> 0 | X52: 0 | Y52: =ProdBesoins!I54 -> 0 | AA52: =(SUMIF(Navires!$B$2:$BE$2,">39",Navires!$B52:$BE52)-SUMIF(Navires!$B$2:$BE$2,">49",Navires!$B52:$BE52))/0.54/(IF(ISERR((B52+'1'!Q52+'2'!Q52+'3'!Q52+'5'!Q52+'6'!Q52+'7'!Q52+'8'!Q52+'9'!Q52+'10'!Q52)/B52),1,(B52+'1'!Q52+'2'!Q52+'3'!Q52+'5'!Q52+'6'!Q52+'7'!Q52+'8'!Q52+'9'!Q52+'10'!Q52)/B52))+Y52 -> 0 | AB52: 0
A53: Robes en brocart | B53: =ProdBesoins!H55 -> 0 | C53: ='1'!Q53 -> 0 | D53: ='2'!Q53 -> 0 | E53: ='3'!Q53 -> 0 | G53: ='5'!Q53 -> 0 | H53: ='6'!Q53 -> 0 | I53: ='7'!Q53 -> 0 | J53: ='8'!Q53 -> 0 | K53: ='9'!Q53 -> 0 | L53: ='10'!Q53 -> 0 | M53: 0 | N53: =SUMIF(Navires!$B$2:$BE$2,$A$2&N$2,Navires!$B53:$BE53)/0.54*IF($AB53>$B53,$B53/$AB53,1) -> 0 | O53: =SUMIF(Navires!$B$2:$BE$2,$A$2&O$2,Navires!$B53:$BE53)/0.54*IF($AB53>$B53,$B53/$AB53,1) -> 0 | P53: =SUMIF(Navires!$B$2:$BE$2,$A$2&P$2,Navires!$B53:$BE53)/0.54*IF($AB53>$B53,$B53/$AB53,1) -> 0 | R53: =SUMIF(Navires!$B$2:$BE$2,$A$2&R$2,Navires!$B53:$BE53)/0.54*IF($AB53>$B53,$B53/$AB53,1) -> 0 | S53: =SUMIF(Navires!$B$2:$BE$2,$A$2&S$2,Navires!$B53:$BE53)/0.54*IF($AB53>$B53,$B53/$AB53,1) -> 0 | T53: =SUMIF(Navires!$B$2:$BE$2,$A$2&T$2,Navires!$B53:$BE53)/0.54*IF($AB53>$B53,$B53/$AB53,1) -> 0 | U53: =SUMIF(Navires!$B$2:$BE$2,$A$2&U$2,Navires!$B53:$BE53)/0.54*IF($AB53>$B53,$B53/$AB53,1) -> 0 | V53: =SUMIF(Navires!$B$2:$BE$2,$A$2&V$2,Navires!$B53:$BE53)/0.54*IF($AB53>$B53,$B53/$AB53,1) -> 0 | W53: =SUMIF(Navires!$B$2:$BE$2,$A$2&W$2,Navires!$B53:$BE53)/0.54*IF($AB53>$B53,$B53/$AB53,1) -> 0 | X53: 0 | Y53: =ProdBesoins!I55 -> 0 | AA53: =(SUMIF(Navires!$B$2:$BE$2,">39",Navires!$B53:$BE53)-SUMIF(Navires!$B$2:$BE$2,">49",Navires!$B53:$BE53))/0.54/(IF(ISERR((B53+'1'!Q53+'2'!Q53+'3'!Q53+'5'!Q53+'6'!Q53+'7'!Q53+'8'!Q53+'9'!Q53+'10'!Q53)/B53),1,(B53+'1'!Q53+'2'!Q53+'3'!Q53+'5'!Q53+'6'!Q53+'7'!Q53+'8'!Q53+'9'!Q53+'10'!Q53)/B53))+Y53 -> 0 | AB53: 0
B54: =ProdBesoins!H56 -> 0 | Y54: =ProdBesoins!I56 -> 0
A55: Bois | B55: =ProdBesoins!H57 -> 246.1714286 | C55: =FIXED(C$5,0) -> 0 | D55: 0 | E55: 0 | G55: 0 | H55: 0 | I55: 0 | J55: 0 | K55: 0 | L55: 0 | M55: 246 | N55: 0 | O55: 0 | P55: 0 | R55: 0 | S55: 0 | T55: 0 | U55: 0 | V55: 0 | W55: 0 | X55: =FIXED(X$5,0) -> 246 | Y55: =ProdBesoins!I57 -> 102.8571429
